Workbook

Sheet Inputs
A1: Company | C1: Kentucky Power Company
A2: State/Jurisdiction | C2: Kentucky Jurisdiction
A3: Sample Year Begins | C3: 2022-04-01 | D3: =+C3+0/24 -> 2022-04-01
A4: Test Year Ends | C4: =DATE(YEAR(TYStart)+1,MONTH(TYStart),DAY(TYStart))-1 -> 2023-03-31 | D4: =+C4+23/24 -> 2023-03-31T23:00:00
A5: Reporting Year Begins | C5: 2022-04-01
A8: Loss Factors by System | G8: Coincident Peaks
B9: Total | C9: Fixed | D9: Variable | G9: Year | H9: Month | I9: Day | J9: Hour Ended | K9: Coincident Peak
A10: Transmission | B10: 0.04025 | C10: 0.002398645598 | D10: =+B10-C10 -> 0.0378513544 | G10: =YEAR(TYStart) -> 2022 | H10: =MONTH(TYStart) -> 4 | I10: 20 | J10: 7 | K10: =DATEVALUE(H10&"/"&I10&"/"&G10)+(J10-1)/24 -> 2022-04-20T06:00:00
A11: Subtransmission | B11: 0.01772650805 | C11: 0.002311676884 | D11: =+B11-C11 -> 0.01541483117 | G11: =IF(H11=1,G10+1,G10) -> 2022 | H11: =IF(H10+1=13,1,H10+1) -> 5 | I11: 31 | J11: 15 | K11: =DATEVALUE(H11&"/"&I11&"/"&G11)+(J11-1)/24 -> 2022-05-31T14:00:00
A12: Primary Distribution | B12: 0.0205734768 | C12: 0.003873573765 | D12: =+B12-C12 -> 0.01669990303 | G12: =IF(H12=1,G11+1,G11) -> 2022 | H12: =IF(H11+1=13,1,H11+1) -> 6 | I12: 16 | J12: 15 | K12: 2022-06-16T14:00:00
A13: Secondary Distribution | B13: 0.02812447685 | C13: 0.01492977968 | D13: =+B13-C13 -> 0.01319469717 | G13: 2022 | H13: 7 | I13: 12 | J13: 15 | K13: 2022-07-12T14:00:00
G14: 2022 | H14: 8 | I14: 9 | J14: 14 | K14: 2022-08-09T13:00:00
G15: 2022 | H15: 9 | I15: 21 | J15: 16 | K15: 2022-09-21T15:00:00
A16: Distribution Load Served | G16: 2022 | H16: 10 | I16: 20 | J16: 8 | K16: 2022-10-20T07:00:00
A17: on Subtran System | B17: 0.7706779855 | G17: 2022 | H17: 11 | I17: 21 | J17: 8 | K17: 2022-11-21T07:00:00
A18: on Transmission System | B18: =1-DistAtSubtran -> 0.2293220145 | G18: 2022 | H18: 12 | I18: 23 | J18: 21 | K18: 2022-12-23T20:00:00
G19: 2023 | H19: 1 | I19: 15 | J19: 9 | K19: 2023-01-15T08:00:00
G20: 2023 | H20: 2 | I20: 4 | J20: 8 | K20: 2023-02-04T07:00:00
G21: 2023 | H21: 3 | I21: 20 | J21: 7 | K21: 2023-03-20T06:00:00
A26: Time of Day Inputs
A28: Holiday Name | B28: Date | D28: Peak Start Hour | E28: 7 | F28: =+E28/24 -> 07:00:00
A29: New Year's Day | D29: Peak End Hour | E29: 21 | F29: =+E29/24 -> 21:00:00
A30: Presidents' Day
A31: Memorial Day | D31: Use Daylight Savings | E31: FALSE
A32: Independence Day | D32: DST Date #1 | E32: 2022-11-06
A33: Labor Day | D33: DST Date #2 | E33: 2023-03-12
A34: Thanksgiving Day
A35: Christmas Day
A40: DST Dates
B41: 2011 | C41: 2012 | D41: 2013 | E41: 2014
A42: Starts | B42: 2011-03-13 | C42: 2012-03-11 | D42: 2013-03-10 | E42: 2014-03-09
A43: Ends | B43: 2011-11-06 | C43: 2012-11-04 | D43: 2013-11-03 | E43: 2014-11-02
B45: 2021 | C45: 2022
B46: 2021-03-14 | C46: 2022-03-13
B47: 2021-11-07 | C47: 2022-11-06

Sheet Accum Loss Factors (hidden)
A6: Cumulative Total Loss Factors
B8: Voltage Level
B9: Secondary | C9: Primary | D9: Subtransmission | E9: Transmission
A10: @ Primary | B10: =1+Inputs!B13 -> 1.028124477 | C10: 1 | D10: 0 | E10: 0
A11: @ Subtran before split | B11: =+B10*C11 -> 1.049276572 | C11: =1+Inputs!B12 -> 1.020573477 | D11: 0 | E11: 0
A12: @ Subtransmission | B12: =+DistAtSubtran*B11 -> 0.8086543547 | C12: =+C11*DistAtSubtran -> 0.7865335112 | D12: 1 | E12: 0
A13: @ Transmission | B13: =+C13*B10 -> 1.06361119 | C13: =(1+Inputs!B12)*((D13*DistAtSubtran)+DistAtTran) -> 1.034515969 | D13: =1+Inputs!B11 -> 1.017726508 | E13: 1
A14: @ Generation | B14: =+B13*E14 -> 1.10642154 | C14: =+C13*E14 -> 1.076155237 | D14: =+D13*E14 -> 1.05869 | E14: =1+Inputs!B10 -> 1.04025
A17: Voltage Factors
B19: Voltage Level
B20: Secondary | C20: Primary | D20: Subtransmission | E20: Transmission
A21: @ Primary | B21: 1 | C21: 1 | D21: 0 | E21: 0
A22: @ Subtran before split | B22: 1 | C22: =1+Inputs!B23 -> 1 | D22: 0 | E22: 0
A23: @ Subtransmission | B23: =+DistAtSubtran -> 0.7706779855 | C23: =+DistAtSubtran -> 0.7706779855 | D23: 1 | E23: 0
A24: @ Transmission | B24: 1 | C24: 1 | D24: 1 | E24: 1
A25: @ Generation | B25: 1 | C25: 1 | D25: 1 | E25: 1

Sheet Metered
D1: Total | E1: Total @ | F1: Total @ | G1: Total @ | H1: Total @ | I1: Res | J1: GS Sec | K1: GS Pri | L1: GS Sub | M1: LGS Sec | N1: LGS Pri | O1: LGS Sub | P1: LGS Tran | Q1: PS Sec | R1: PS Pri | S1: IGS Sec | T1: IGS Pri | U1: IGS Sub | V1: IGS Tran | W1: MW | X1: OL | Y1: SL | Z1: Blank A | AA1: Blank 0 | AB1: Blank 1 | AC1: Blank 2 | AD1: Blank 3 | AE1: Blank 4 | AF1: Blank 5 | AG1: Blank 6 | AH1: Blank 7 | AI1: Blank 8 | AJ1: Blank 9 | AK1: Blank 10 | AL1: Blank 11 | AM1: Blank 12
A2: Period | B2: On Peak | C2: Date | D2: Metered | E2: Secondary | F2: Primary | G2: Subtransmission | H2: Transmission | I2: Secondary | J2: Secondary | K2: Primary | L2: Subtransmission | M2: Secondary | N2: Primary | O2: Subtransmission | P2: Transmission | Q2: Secondary | R2: Primary | S2: Secondary | T2: Primary | U2: Subtransmission | V2: Transmission | W2: Secondary | X2: Secondary | Y2: Secondary | Z2: Secondary | AA2: Subtransmission | AB2: Secondary | AC2: Secondary | AD2: Subtransmission | AE2: Transmission | AF2: Secondary | AG2: Primary | AH2: Subtransmission | AI2: Transmission | AJ2: Secondary | AK2: Primary | AL2: Subtransmission | AM2: Subtransmission
A3: =MONTH(C3) -> 4 | B3: =PeakTime(C3,Holidays,PkStart,PkEnd,UseDST,DST_1,DST_2) -> FALSE | C3: =+Inputs!C3 -> 2022-04-01 | D3: =SUM(OFFSET(I3,0,0,1,COUNTA(I3:IV3))) -> 500677.5939 | E3: =SUMIF(OFFSET($I$2,0,0,1,COUNTA($I$2:$IV$2)),E$2,OFFSET(I3,0,0,1,COUNTA(I3:IV3))) -> 236698.4687 | F3: =E3+SUMIF(OFFSET($I$2,0,0,1,COUNTA($I$2:$IV$2)),F$2,OFFSET(I3,0,0,1,COUNTA(I3:IV3))) -> 278603.3323 | G3: =F3*DistAtSubtran+SUMIF(OFFSET($I$2,0,0,1,COUNTA($I$2:$IV$2)),G$2,OFFSET(I3,0,0,1,COUNTA(I3:IV3))) -> 406874.0345 | H3: =SUM(OFFSET(I3,0,0,1,COUNTA(I3:IV3))) -> 500677.5939 | I3: 142755.0116 | J3: 48203.7818 | K3: 798.4833 | L3: 70.8257 | M3: 24887.7854 | N3: 7317.1683 | O3: 876.3764 | Q3: 7145.1239 | R3: 139.0682 | S3: 1761.803 | T3: 33650.1438 | U3: 191213.3775 | V3: 29913.682 | W3: 186.5501 | X3: 9587.280864 | Y3: 2171.1321 | Z3: 0 | AA3: 0 | AB3: 0 | AC3: 0 | AD3: 0 | AE3: 0 | AF3: 0 | AG3: 0 | AH3: 0 | AI3: 0 | AJ3: 0 | AK3: 0 | AL3: 0 | AM3: 0
A4: =MONTH(C4) -> 4 | B4: =PeakTime(C4,Holidays,PkStart,PkEnd,UseDST,DST_1,DST_2) -> FALSE | C4: =+C3+1/24 -> 2022-04-01T01:00:00 | D4: 485506.6704 | E4: 228474.8908 | F4: 267499.5179 | G4: 394273.6836 | H4: 485506.6704 | I4: 138293.8263 | J4: 48458.3831 | K4: 802.7007 | L4: 71.1998 | M4: 21787.1869 | N4: 6405.5725 | O4: 767.1947 | Q4: 6254.9619 | R4: 121.7427 | S4: 1754.7923 | T4: 31694.6112 | U4: 187279.2995 | V4: 29889.4585 | W4: 167.3274 | X4: 9587.280864 | Y4: 2171.1321 | Z4: 0 | AA4: 0 | AB4: 0 | AC4: 0 | AD4: 0 | AE4: 0 | AF4: 0 | AG4: 0 | AH4: 0 | AI4: 0 | AJ4: 0 | AK4: 0 | AL4: 0 | AM4: 0
A5: 4 | B5: FALSE | C5: 2022-04-01T02:00:00 | D5: 504112.8625 | E5: 250192.9544 | F5: 287844.8581 | G5: 408230.8952 | H5: 504112.8625 | I5: 160565.5247 | J5: 48409.5579 | K5: 801.8919 | L5: 71.128 | M5: 21397.9184 | N5: 6291.1251 | O5: 753.4873 | Q5: 6143.2054 | R5: 119.5675 | S5: 1737.1134 | T5: 30439.3192 | U5: 185570.5845 | V5: 29872.8046 | W5: 181.2217 | X5: 9587.280864 | Y5: 2171.1321 | Z5: 0 | AA5: 0 | AB5: 0 | AC5: 0 | AD5: 0 | AE5: 0 | AF5: 0 | AG5: 0 | AH5: 0 | AI5: 0 | AJ5: 0 | AK5: 0 | AL5: 0 | AM5: 0
A6: 4 | B6: FALSE | C6: 2022-04-01T03:00:00 | D6: 507187.2311 | E6: 257533.5015 | F6: 295267.4307 | G6: 409561.7402 | H6: 507187.2311 | I6: 165749.642 | J6: 49951.886 | K6: 827.4402 | L6: 73.3942 | M6: 21862.4561 | N6: 6427.7022 | O6: 769.8452 | Q6: 6276.5712 | R6: 122.1632 | S6: 1745.0385 | T6: 30356.6236 | U6: 181162.3921 | V6: 29914.1689 | W6: 189.4947 | X6: 9587.280864 | Y6: 2171.1321 | Z6: 0 | AA6: 0 | AB6: 0 | AC6: 0 | AD6: 0 | AE6: 0 | AF6: 0 | AG6: 0 | AH6: 0 | AI6: 0 | AJ6: 0 | AK6: 0 | AL6: 0 | AM6: 0
A7: 4 | B7: FALSE | C7: 2022-04-01T04:00:00 | D7: 514956.3515 | E7: 261884.2026 | F7: 300443.7163 | G7: 416112.1613 | H7: 514956.3515 | I7: 166237.7201 | J7: 51091.188 | K7: 846.3124 | L7: 75.0682 | M7: 23968.1256 | N7: 7046.7825 | O7: 843.9923 | Q7: 6881.0954 | R7: 133.9293 | S7: 1766.0703 | T7: 30532.4895 | U7: 183647.7427 | V7: 29945.832 | W7: 181.5903 | X7: 9587.280864 | Y7: 2171.1321 | Z7: 0 | AA7: 0 | AB7: 0 | AC7: 0 | AD7: 0 | AE7: 0 | AF7: 0 | AG7: 0 | AH7: 0 | AI7: 0 | AJ7: 0 | AK7: 0 | AL7: 0 | AM7: 0
A8: 4 | B8: FALSE | C8: 2022-04-01T05:00:00 | D8: 567951.8985 | E8: 310656.8919 | F8: 351186.9923 | G8: 457427.0791 | H8: 567951.8985 | I8: 212626.9811 | J8: 50214.4697 | K8: 831.7898 | L8: 73.78 | M8: 26441.7624 | N8: 7774.0476 | O8: 931.0968 | Q8: 7591.2607 | R8: 147.7515 | S8: 1842.8826 | T8: 31776.5115 | U8: 185770.1185 | V8: 29989.9109 | W8: 181.1224 | X8: 9587.280864 | Y8: 2171.1321 | Z8: 0 | AA8: 0 | AB8: 0 | AC8: 0 | AD8: 0 | AE8: 0 | AF8: 0 | AG8: 0 | AH8: 0 | AI8: 0 | AJ8: 0 | AK8: 0 | AL8: 0 | AM8: 0
A9: 4 | B9: FALSE | C9: 2022-04-01T06:00:00 | D9: 628162.4478 | E9: 364430.9434 | F9: 410906.2074 | G9: 503988.1855 | H9: 628162.4478 | I9: 255605.1784 | J9: 55491.6352 | K9: 919.2047 | L9: 81.5337 | M9: 32889.1779 | N9: 9669.629 | O9: 1158.1304 | Q9: 9442.2725 | R9: 183.7785 | S9: 2002.1459 | T9: 35702.6518 | U9: 186072.1532 | V9: 29944.4231 | W9: 181.7239 | X9: 7190.460474 | Y9: 1628.3491 | Z9: 0 | AA9: 0 | AB9: 0 | AC9: 0 | AD9: 0 | AE9: 0 | AF9: 0 | AG9: 0 | AH9: 0 | AI9: 0 | AJ9: 0 | AK9: 0 | AL9: 0 | AM9: 0
A10: 4 | B10: TRUE | C10: 2022-04-01T07:00:00 | D10: 696542.3627 | E10: 414687.6795 | F10: 471316.1928 | G10: 558546.5384 | H10: 696542.3627 | I10: 297866.8344 | J10: 65765.3482 | K10: 1089.3861 | L10: 96.6289 | M10: 38007.5197 | N10: 11174.4543 | O10: 1338.3631 | Q10: 10911.7156 | R10: 212.3788 | S10: 1953.3761 | T10: 44152.2941 | U10: 193878.5324 | V10: 29912.6455 | W10: 182.8855 | X10: 0 | Y10: 0 | Z10: 0 | AA10: 0 | AB10: 0 | AC10: 0 | AD10: 0 | AE10: 0 | AF10: 0 | AG10: 0 | AH10: 0 | AI10: 0 | AJ10: 0 | AK10: 0 | AL10: 0 | AM10: 0
A11: 4 | B11: TRUE | C11: 2022-04-01T08:00:00 | D11: 687701.8287 | E11: 400051.0867 | F11: 460646.5556 | G11: 552153.7406 | H11: 687701.8287 | I11: 268992.0222 | J11: 76149.4462 | K11: 1261.396 | L11: 111.8862 | M11: 40963.2484 | N11: 12043.4575 | O11: 1442.4435 | Q11: 11760.2864 | R11: 228.8948 | S11: 2000.6217 | T11: 47061.7206 | U11: 195589.2514 | V11: 29911.692 | W11: 185.4618 | X11: 0 | Y11: 0 | Z11: 0 | AA11: 0 | AB11: 0 | AC11: 0 | AD11: 0 | AE11: 0 | AF11: 0 | AG11: 0 | AH11: 0 | AI11: 0 | AJ11: 0 | AK11: 0 | AL11: 0 | AM11: 0
A12: 4 | B12: TRUE | C12: 2022-04-01T09:00:00 | D12: 696863.7862 | E12: 412430.139 | F12: 475123.4804 | G12: 558018.5701 | H12: 696863.7862 | I12: 272722.395 | J12: 83321.4323 | K12: 1380.1981 | L12: 122.424 | M12: 42072.8586 | N12: 12369.69 | O12: 1481.5164 | Q12: 12078.8484 | R12: 235.0951 | S12: 2029.7311 | T12: 48708.3582 | U12: 190247.423 | V12: 29888.9424 | W12: 204.8736 | X12: 0 | Y12: 0 | Z12: 0 | AA12: 0 | AB12: 0 | AC12: 0 | AD12: 0 | AE12: 0 | AF12: 0 | AG12: 0 | AH12: 0 | AI12: 0 | AJ12: 0 | AK12: 0 | AL12: 0 | AM12: 0
A13: 4 | B13: TRUE | C13: 2022-04-01T10:00:00 | D13: 690658.7135 | E13: 408768.9959 | F13: 470029.7711 | G13: 552960.2879 | H13: 690658.7135 | I13: 269154.3917 | J13: 82876.6949 | K13: 1372.8312 | L13: 121.7705 | M13: 42346.4568 | N13: 12450.1296 | O13: 1491.1506 | Q13: 12157.3967 | R13: 236.624 | S13: 2036.437 | T13: 47201.1904 | U13: 189105.7697 | V13: 29910.2516 | W13: 197.6188 | X13: 0 | Y13: 0 | Z13: 0 | AA13: 0 | AB13: 0 | AC13: 0 | AD13: 0 | AE13: 0 | AF13: 0 | AG13: 0 | AH13: 0 | AI13: 0 | AJ13: 0 | AK13: 0 | AL13: 0 | AM13: 0
A14: 4 | B14: TRUE | C14: 2022-04-01T11:00:00 | D14: 653689.5189 | E14: 370230.9484 | F14: 432460.1979 | G14: 524518.1022 | H14: 653689.5189 | I14: 234177.5898 | J14: 80329.7401 | K14: 1330.6415 | L14: 118.0283 | M14: 41585.6491 | N14: 12226.4473 | O14: 1464.3602 | Q14: 11938.9737 | R14: 232.3727 | S14: 2013.4238 | T14: 48439.788 | U14: 189648.1596 | V14: 29998.7729 | W14: 185.5719 | X14: 0 | Y14: 0 | Z14: 0 | AA14: 0 | AB14: 0 | AC14: 0 | AD14: 0 | AE14: 0 | AF14: 0 | AG14: 0 | AH14: 0 | AI14: 0 | AJ14: 0 | AK14: 0 | AL14: 0 | AM14: 0
A15: 4 | B15: TRUE | C15: 2022-04-01T12:00:00 | D15: 650971.9235 | E15: 371552.5524 | F15: 433998.6008 | G15: 521439.7055 | H15: 650971.9235 | I15: 234220.1478 | J15: 83348.9821 | K15: 1380.6545 | L15: 122.4645 | M15: 40244.1671 | N15: 11832.043 | O15: 1417.1224 | Q15: 11553.8428 | R15: 224.8768 | S15: 2003.5175 | T15: 49008.4741 | U15: 185426.9512 | V15: 30006.7846 | W15: 181.8951 | X15: 0 | Y15: 0 | Z15: 0 | AA15: 0 | AB15: 0 | AC15: 0 | AD15: 0 | AE15: 0 | AF15: 0 | AG15: 0 | AH15: 0 | AI15: 0 | AJ15: 0 | AK15: 0 | AL15: 0 | AM15: 0
A16: 4 | B16: TRUE | C16: 2022-04-01T13:00:00 | D16: 647857.3791 | E16: 365643.0356 | F16: 428731.9516 | G16: 519531.136 | H16: 647857.3791 | I16: 229585.0192 | J16: 81930.1861 | K16: 1357.1525 | L16: 120.3798 | M16: 40391.3597 | N16: 11875.3185 | O16: 1422.3055 | Q16: 11596.1008 | R16: 225.6992 | S16: 1956.7292 | T16: 49630.7458 | U16: 187574.1739 | V16: 30008.5683 | W16: 183.6406 | X16: 0 | Y16: 0 | Z16: 0 | AA16: 0 | AB16: 0 | AC16: 0 | AD16: 0 | AE16: 0 | AF16: 0 | AG16: 0 | AH16: 0 | AI16: 0 | AJ16: 0 | AK16: 0 | AL16: 0 | AM16: 0
A17: 4 | B17: TRUE | C17: 2022-04-01T14:00:00 | D17: 642463.179 | E17: 360274.5033 | F17: 421055.706 | G17: 515921.4063 | H17: 642463.179 | I17: 225679.4073 | J17: 82552.2594 | K17: 1367.457 | L17: 121.2938 | M17: 38777.2232 | N17: 11400.7521 | O17: 1365.4668 | Q17: 11132.6926 | R17: 216.6798 | S17: 1952.3094 | T17: 47796.3138 | U17: 189936.2824 | V17: 29984.43 | W17: 180.6114 | X17: 0 | Y17: 0 | Z17: 0 | AA17: 0 | AB17: 0 | AC17: 0 | AD17: 0 | AE17: 0 | AF17: 0 | AG17: 0 | AH17: 0 | AI17: 0 | AJ17: 0 | AK17: 0 | AL17: 0 | AM17: 0
A18: 4 | B18: TRUE | C18: 2022-04-01T15:00:00 | D18: 620899.5248 | E18: 343887.5404 | F18: 400294.0073 | G18: 499130.7239 | H18: 620899.5248 | I18: 218208.0839 | J18: 76735.2537 | K18: 1271.0998 | L18: 112.7469 | M18: 36447.8429 | N18: 10715.8993 | O18: 1283.442 | Q18: 10463.9424 | R18: 203.6636 | S18: 1836.3291 | T18: 44215.8042 | U18: 189236.7558 | V18: 29972.5728 | W18: 196.0884 | X18: 0 | Y18: 0 | Z18: 0 | AA18: 0 | AB18: 0 | AC18: 0 | AD18: 0 | AE18: 0 | AF18: 0 | AG18: 0 | AH18: 0 | AI18: 0 | AJ18: 0 | AK18: 0 | AL18: 0 | AM18: 0
A19: 4 | B19: TRUE | C19: 2022-04-01T16:00:00 | D19: 598405.2242 | E19: 324197.6831 | F19: 378448.1448 | G19: 481605.7408 | H19: 598405.2242 | I19: 205693.8747 | J19: 72579.5749 | K19: 1202.262 | L19: 106.641 | M19: 34090.7044 | N19: 10022.8855 | O19: 1200.4399 | Q19: 9787.223 | R19: 190.4924 | S19: 1850.96 | T19: 42834.8218 | U19: 188637.006 | V19: 30012.9925 | W19: 195.3461 | X19: 0 | Y19: 0 | Z19: 0 | AA19: 0 | AB19: 0 | AC19: 0 | AD19: 0 | AE19: 0 | AF19: 0 | AG19: 0 | AH19: 0 | AI19: 0 | AJ19: 0 | AK19: 0 | AL19: 0 | AM19: 0
A20: 4 | B20: TRUE | C20: 2022-04-01T17:00:00 | D20: 595603.5089 | E20: 327285.4309 | F20: 380221.6415 | G20: 478424.7308 | H20: 595603.5089 | I20: 220485.2762 | J20: 64686.9745 | K20: 1071.5231 | L20: 95.0444 | M20: 31190.1475 | N20: 9170.1032 | O20: 1098.3022 | Q20: 8954.4917 | R20: 174.2846 | S20: 1791.6744 | T20: 42520.2997 | U20: 184202.9354 | V20: 29985.5854 | W20: 176.8666 | X20: 0 | Y20: 0 | Z20: 0 | AA20: 0 | AB20: 0 | AC20: 0 | AD20: 0 | AE20: 0 | AF20: 0 | AG20: 0 | AH20: 0 | AI20: 0 | AJ20: 0 | AK20: 0 | AL20: 0 | AM20: 0
A21: 4 | B21: TRUE | C21: 2022-04-01T18:00:00 | D21: 600413.8432 | E21: 332618.3697 | F21: 385680.3682 | G21: 481940.4879 | H21: 600413.8432 | I21: 227066.4411 | J21: 63257.9368 | K21: 1047.8515 | L21: 92.9447 | M21: 31335.3252 | N21: 9212.7864 | O21: 1103.4144 | Q21: 8996.1713 | R21: 175.0958 | S21: 1792.2839 | T21: 42626.2648 | U21: 183508.7596 | V21: 30028.3563 | W21: 170.2114 | X21: 0 | Y21: 0 | Z21: 0 | AA21: 0 | AB21: 0 | AC21: 0 | AD21: 0 | AE21: 0 | AF21: 0 | AG21: 0 | AH21: 0 | AI21: 0 | AJ21: 0 | AK21: 0 | AL21: 0 | AM21: 0
A22: 4 | B22: TRUE | C22: 2022-04-01T19:00:00 | D22: 631447.1813 | E22: 364105.1779 | F22: 417544.1772 | G22: 505655.9012 | H22: 631447.1813 | I22: 258467.7647 | J22: 63950.067 | K22: 1059.3164 | L22: 93.9617 | M22: 30849.7067 | N22: 9070.0114 | O22: 1086.3142 | Q22: 8856.7533 | R22: 172.3823 | S22: 1808.4389 | T22: 43137.2892 | U22: 182683.5199 | V22: 30039.2083 | W22: 172.4473 | X22: 0 | Y22: 0 | Z22: 0 | AA22: 0 | AB22: 0 | AC22: 0 | AD22: 0 | AE22: 0 | AF22: 0 | AG22: 0 | AH22: 0 | AI22: 0 | AJ22: 0 | AK22: 0 | AL22: 0 | AM22: 0
A23: 4 | B23: TRUE | C23: 2022-04-01T20:00:00 | D23: 645837.7569 | E23: 380730.6819 | F23: 432822.892 | G23: 516473.4302 | H23: 645837.7569 | I23: 268132.8567 | J23: 66282.6537 | K23: 1097.9551 | L23: 97.3889 | M23: 28794.9985 | N23: 8465.914 | O23: 1013.9616 | Q23: 8266.8598 | R23: 160.901 | S23: 1829.4709 | T23: 42367.44 | U23: 181795.0052 | V23: 30108.5092 | W23: 172.821 | X23: 5912.156498 | Y23: 1338.8648 | Z23: 0 | AA23: 0 | AB23: 0 | AC23: 0 | AD23: 0 | AE23: 0 | AF23: 0 | AG23: 0 | AH23: 0 | AI23: 0 | AJ23: 0 | AK23: 0 | AL23: 0 | AM23: 0
A24: 4 | B24: FALSE | C24: 2022-04-01T21:00:00 | D24: 654164.195 | E24: 391267.1303 | F24: 441265.1385 | G24: 522878.142 | H24: 654164.195 | I24: 277961.8872 | J24: 66303.9474 | K24: 1098.3079 | L24: 97.4202 | M24: 25832.0158 | N24: 7594.7782 | O24: 909.6257 | Q24: 7416.2064 | R24: 144.3444 | S24: 1813.3159 | T24: 41160.5777 | U24: 181797.7681 | V24: 30094.2425 | W24: 181.3446 | X24: 9587.280864 | Y24: 2171.1321 | Z24: 0 | AA24: 0 | AB24: 0 | AC24: 0 | AD24: 0 | AE24: 0 | AF24: 0 | AG24: 0 | AH24: 0 | AI24: 0 | AJ24: 0 | AK24: 0 | AL24: 0 | AM24: 0
A25: 4 | B25: FALSE | C25: 2022-04-01T22:00:00 | D25: 647409.69 | E25: 390757.9779 | F25: 436222.9048 | G25: 517288.5519 | H25: 647409.69 | I25: 278970.147 | J25: 65585.9465 | K25: 1086.4144 | L25: 96.3653 | M25: 25176.9286 | N25: 7402.1783 | O25: 886.5581 | Q25: 7228.135 | R25: 140.6839 | S25: 1848.8263 | T25: 36835.6503 | U25: 180118.239 | V25: 30085.6228 | W25: 189.5815 | X25: 9587.280864 | Y25: 2171.1321 | Z25: 0 | AA25: 0 | AB25: 0 | AC25: 0 | AD25: 0 | AE25: 0 | AF25: 0 | AG25: 0 | AH25: 0 | AI25: 0 | AJ25: 0 | AK25: 0 | AL25: 0 | AM25: 0
A26: 4 | B26: FALSE | C26: 2022-04-01T23:00:00 | D26: 640745.4662 | E26: 388295.3356 | F26: 430274.2082 | G26: 511969.7885 | H26: 640745.4662 | I26: 279454.8578 | J26: 63043.6783 | K26: 1044.3023 | L26: 92.6299 | M26: 24839.4295 | N26: 7302.9514 | O26: 874.6737 | Q26: 7131.2412 | R26: 138.798 | S26: 1890.8901 | T26: 33492.8209 | U26: 179399.6249 | V26: 30104.3295 | W26: 176.8257 | X26: 9587.280864 | Y26: 2171.1321 | Z26: 0 | AA26: 0 | AB26: 0 | AC26: 0 | AD26: 0 | AE26: 0 | AF26: 0 | AG26: 0 | AH26: 0 | AI26: 0 | AJ26: 0 | AK26: 0 | AL26: 0 | AM26: 0
A27: 4 | B27: FALSE | C27: 2022-04-02 | D27: 643339.912 | E27: 392329.8783 | F27: 433523.6618 | G27: 513834.0433 | H27: 643339.912 | I27: 283361.2455 | J27: 62300.7994 | K27: 1031.9967 | L27: 91.5384 | M27: 25500.3041 | N27: 7497.2528 | O27: 897.9451 | Q27: 7320.9741 | R27: 142.4909 | S27: 1918.323 | T27: 32522.0431 | U27: 178737.4174 | V27: 30089.3493 | W27: 169.8193 | X27: 9587.280864 | Y27: 2171.1321 | Z27: 0 | AA27: 0 | AB27: 0 | AC27: 0 | AD27: 0 | AE27: 0 | AF27: 0 | AG27: 0 | AH27: 0 | AI27: 0 | AJ27: 0 | AK27: 0 | AL27: 0 | AM27: 0
A28: 4 | B28: FALSE | C28: 2022-04-02T01:00:00 | D28: 655910.9751 | E28: 409600.6431 | F28: 449163.3371 | G28: 522802.5656 | H28: 655910.9751 | I28: 298344.176 | J28: 64513.3397 | K28: 1068.6469 | L28: 94.7893 | M28: 25447.8338 | N28: 7481.8262 | O28: 896.0975 | Q28: 7305.9102 | R28: 142.1977 | S28: 2058.3833 | T28: 30870.0232 | U28: 175651.383 | V28: 30105.3682 | W28: 172.5871 | X28: 9587.280864 | Y28: 2171.1321 | Z28: 0 | AA28: 0 | AB28: 0 | AC28: 0 | AD28: 0 | AE28: 0 | AF28: 0 | AG28: 0 | AH28: 0 | AI28: 0 | AJ28: 0 | AK28: 0 | AL28: 0 | AM28: 0
A29: 4 | B29: FALSE | C29: 2022-04-02T02:00:00 | D29: 673869.1508 | E29: 431146.3795 | F29: 470489.6627 | G29: 535777.3838 | H29: 673869.1508 | I29: 319759.4591 | J29: 65178.5917 | K29: 1079.6666 | L29: 95.7667 | M29: 25062.1739 | N29: 7368.4397 | O29: 882.5172 | Q29: 7195.1897 | R29: 140.0427 | S29: 2019.8248 | T29: 30755.1342 | U29: 172203.0744 | V29: 30198.1298 | W29: 172.7273 | X29: 9587.280864 | Y29: 2171.1321 | Z29: 0 | AA29: 0 | AB29: 0 | AC29: 0 | AD29: 0 | AE29: 0 | AF29: 0 | AG29: 0 | AH29: 0 | AI29: 0 | AJ29: 0 | AK29: 0 | AL29: 0 | AM29: 0
A30: 4 | B30: FALSE | C30: 2022-04-02T03:00:00 | D30: 707817.4133 | E30: 464938.5106 | F30: 504541.0717 | G30: 562066.1894 | H30: 707817.4133 | I30: 349051.1607 | J30: 67788.3765 | K30: 1122.897 | L30: 99.6013 | M30: 26475.0537 | N30: 7783.8354 | O30: 932.2691 | Q30: 7600.8185 | R30: 147.9376 | S30: 2085.3591 | T30: 30547.8911 | U30: 172195.6223 | V30: 30048.8489 | W30: 179.3291 | X30: 9587.280864 | Y30: 2171.1321 | Z30: 0 | AA30: 0 | AB30: 0 | AC30: 0 | AD30: 0 | AE30: 0 | AF30: 0 | AG30: 0 | AH30: 0 | AI30: 0 | AJ30: 0 | AK30: 0 | AL30: 0 | AM30: 0
A31: 4 | B31: FALSE | C31: 2022-04-02T04:00:00 | D31: 687769.9081 | E31: 441835.5272 | F31: 482127.0967 | G31: 547185.5193 | H31: 687769.9081 | I31: 322757.6002 | J31: 68131.434 | K31: 1128.5797 | L31: 100.1054 | M31: 28654.6133 | N31: 8424.6399 | O31: 1009.0182 | Q31: 8226.5561 | R31: 160.1165 | S31: 2131.995 | T31: 30578.2334 | U31: 174511.656 | V31: 30022.0318 | W31: 174.9157 | X31: 9587.280864 | Y31: 2171.1321 | Z31: 0 | AA31: 0 | AB31: 0 | AC31: 0 | AD31: 0 | AE31: 0 | AF31: 0 | AG31: 0 | AH31: 0 | AI31: 0 | AJ31: 0 | AK31: 0 | AL31: 0 | AM31: 0
A32: 4 | B32: FALSE | C32: 2022-04-02T05:00:00 | D32: 721101.5891 | E32: 473941.1837 | F32: 514859.229 | G32: 572880.8156 | H32: 721101.5891 | I32: 350632.2269 | J32: 70206.2476 | K32: 1162.9485 | L32: 103.1539 | M32: 30279.1885 | N32: 8902.2754 | O32: 1066.2245 | Q32: 8692.9612 | R32: 169.1943 | S32: 2181.9838 | T32: 30683.6271 | U32: 174920.7638 | V32: 30152.2179 | W32: 190.1627 | X32: 9587.280864 | Y32: 2171.1321 | Z32: 0 | AA32: 0 | AB32: 0 | AC32: 0 | AD32: 0 | AE32: 0 | AF32: 0 | AG32: 0 | AH32: 0 | AI32: 0 | AJ32: 0 | AK32: 0 | AL32: 0 | AM32: 0
A33: 4 | B33: FALSE | C33: 2022-04-02T06:00:00 | D33: 738438.8358 | E33: 489376.4937 | F33: 532302.4484 | G33: 586120.3921 | H33: 738438.8358 | I33: 362141.5612 | J33: 74503.0256 | K33: 1234.1235 | L33: 109.4671 | M33: 32543.6845 | N33: 9568.0518 | O33: 1145.9645 | Q33: 9343.0835 | R33: 181.8479 | S33: 2218.5611 | T33: 31941.9315 | U33: 174631.1818 | V33: 30249.774 | W33: 199.7152 | X33: 6870.884654 | Y33: 1555.978 | Z33: 0 | AA33: 0 | AB33: 0 | AC33: 0 | AD33: 0 | AE33: 0 | AF33: 0 | AG33: 0 | AH33: 0 | AI33: 0 | AJ33: 0 | AK33: 0 | AL33: 0 | AM33: 0
A34: 4 | B34: FALSE | C34: 2022-04-02T07:00:00 | D34: 785309.3728 | E34: 535034.0509 | F34: 578524.5249 | G34: 622399.9167 | H34: 785309.3728 | I34: 409576.2631 | J34: 80356.3482 | K34: 1331.0823 | L34: 118.0674 | M34: 33177.4734 | N34: 9754.3897 | O34: 1168.2821 | Q34: 9525.0403 | R34: 185.3894 | S34: 2204.3873 | T34: 32219.6126 | U34: 175257.4518 | V34: 30241.0466 | W34: 194.5386 | X34: 0 | Y34: 0 | Z34: 0 | AA34: 0 | AB34: 0 | AC34: 0 | AD34: 0 | AE34: 0 | AF34: 0 | AG34: 0 | AH34: 0 | AI34: 0 | AJ34: 0 | AK34: 0 | AL34: 0 | AM34: 0
A35: 4 | B35: FALSE | C35: 2022-04-02T08:00:00 | D35: 770323.7909 | E35: 519803.5782 | F35: 563943.7899 | G35: 610845.3079 | H35: 770323.7909 | I35: 393931.7078 | J35: 81087.6348 | K35: 1343.1958 | L35: 119.1419 | M35: 33068.6134 | N35: 9722.3842 | O35: 1164.4489 | Q35: 9493.7872 | R35: 184.7811 | S35: 2027.445 | T35: 32889.8506 | U35: 174942.6532 | V35: 30153.757 | W35: 194.39 | X35: 0 | Y35: 0 | Z35: 0 | AA35: 0 | AB35: 0 | AC35: 0 | AD35: 0 | AE35: 0 | AF35: 0 | AG35: 0 | AH35: 0 | AI35: 0 | AJ35: 0 | AK35: 0 | AL35: 0 | AM35: 0
A36: 4 | B36: FALSE | C36: 2022-04-02T09:00:00 | D36: 729907.0673 | E36: 478638.9516 | F36: 523531.1326 | G36: 579842.214 | H36: 729907.0673 | I36: 356812.9861 | J36: 79748.2542 | K36: 1321.0093 | L36: 117.1739 | M36: 31046.7217 | N36: 9127.9351 | O36: 1093.2517 | Q36: 8913.3151 | R36: 173.4832 | S36: 1919.2374 | T36: 34269.7534 | U36: 175157.8697 | V36: 30007.6394 | W36: 198.4371 | X36: 0 | Y36: 0 | Z36: 0 | AA36: 0 | AB36: 0 | AC36: 0 | AD36: 0 | AE36: 0 | AF36: 0 | AG36: 0 | AH36: 0 | AI36: 0 | AJ36: 0 | AK36: 0 | AL36: 0 | AM36: 0
A37: 4 | B37: FALSE | C37: 2022-04-02T10:00:00 | D37: 672018.5715 | E37: 421843.2151 | F37: 466987.432 | G37: 535184.9182 | H37: 672018.5715 | I37: 308493.4499 | J37: 72521.3803 | K37: 1201.298 | L37: 106.5555 | M37: 30147.9478 | N37: 8863.6898 | O37: 1061.6031 | Q37: 8655.2828 | R37: 168.461 | S37: 1846.2354 | T37: 34910.7681 | U37: 174119.8262 | V37: 29743.1547 | W37: 178.9189 | X37: 0 | Y37: 0 | Z37: 0 | AA37: 0 | AB37: 0 | AC37: 0 | AD37: 0 | AE37: 0 | AF37: 0 | AG37: 0 | AH37: 0 | AI37: 0 | AJ37: 0 | AK37: 0 | AL37: 0 | AM37: 0
A38: 4 | B38: FALSE | C38: 2022-04-02T11:00:00 | D38: 577964.7954 | E38: 329049.2224 | F38: 373286.8038 | G38: 462621.4758 | H38: 577964.7954 | I38: 224063.1522 | J38: 65887.7597 | K38: 1091.4138 | L38: 96.8087 | M38: 28857.5203 | N38: 8484.2958 | O38: 1016.1631 | Q38: 8284.8094 | R38: 161.2503 | S38: 1784.6637 | T38: 34500.6215 | U38: 173824.5821 | V38: 29740.4377 | W38: 171.3171 | X38: 0 | Y38: 0 | Z38: 0 | AA38: 0 | AB38: 0 | AC38: 0 | AD38: 0 | AE38: 0 | AF38: 0 | AG38: 0 | AH38: 0 | AI38: 0 | AJ38: 0 | AK38: 0 | AL38: 0 | AM38: 0
A39: 4 | B39: FALSE | C39: 2022-04-02T12:00:00 | D39: 574655.9291 | E39: 327883.6095 | F39: 370506.3873 | G39: 459940.6987 | H39: 574655.9291 | I39: 227052.0905 | J39: 64136.6517 | K39: 1062.4072 | L39: 94.2358 | M39: 26999.4485 | N39: 7938.0108 | O39: 950.7347 | Q39: 7751.3688 | R39: 150.8678 | S39: 1775.6719 | T39: 33471.492 | U39: 173354.612 | V39: 29749.9593 | W39: 168.3781 | X39: 0 | Y39: 0 | Z39: 0 | AA39: 0 | AB39: 0 | AC39: 0 | AD39: 0 | AE39: 0 | AF39: 0 | AG39: 0 | AH39: 0 | AI39: 0 | AJ39: 0 | AK39: 0 | AL39: 0 | AM39: 0
A40: 4 | B40: FALSE | C40: 2022-04-02T13:00:00 | D40: 529149.775 | E40: 283112.3315 | F40: 324616.952 | G40: 424905.5595 | H40: 529149.775 | I40: 181361.7234 | J40: 65197.586 | K40: 1079.9813 | L40: 95.7947 | M40: 26824.4213 | N40: 7886.5517 | O40: 944.5714 | Q40: 7701.1197 | R40: 149.8898 | S40: 1861.1711 | T40: 32388.1977 | U40: 173690.0547 | V40: 29802.4022 | W40: 166.31 | X40: 0 | Y40: 0 | Z40: 0 | AA40: 0 | AB40: 0 | AC40: 0 | AD40: 0 | AE40: 0 | AF40: 0 | AG40: 0 | AH40: 0 | AI40: 0 | AJ40: 0 | AK40: 0 | AL40: 0 | AM40: 0
A41: 4 | B41: FALSE | C41: 2022-04-02T14:00:00 | D41: 525653.8193 | E41: 280291.5371 | F41: 321379.0033 | G41: 422111.109 | H41: 525653.8193 | I41: 183542.8868 | J41: 60322.9026 | K41: 999.2334 | L41: 88.6323 | M41: 26726.2289 | N41: 7857.6825 | O41: 941.1137 | Q41: 7672.9292 | R41: 149.3411 | S41: 1843.6445 | T41: 32081.2092 | U41: 173401.6401 | V41: 29843.4299 | W41: 182.9451 | X41: 0 | Y41: 0 | Z41: 0 | AA41: 0 | AB41: 0 | AC41: 0 | AD41: 0 | AE41: 0 | AF41: 0 | AG41: 0 | AH41: 0 | AI41: 0 | AJ41: 0 | AK41: 0 | AL41: 0 | AM41: 0
A42: 4 | B42: FALSE | C42: 2022-04-02T15:00:00 | D42: 490951.4709 | E42: 246734.7966 | F42: 287764.3833 | G42: 394989.1659 | H42: 490951.4709 | I42: 151035.8111 | J42: 59822.719 | K42: 990.948 | L42: 87.8974 | M42: 26293.0863 | N42: 7730.3358 | O42: 925.8614 | Q42: 7548.5768 | R42: 146.9208 | S42: 1851.722 | T42: 32161.3821 | U42: 172201.7319 | V42: 29971.5969 | W42: 182.8814 | X42: 0 | Y42: 0 | Z42: 0 | AA42: 0 | AB42: 0 | AC42: 0 | AD42: 0 | AE42: 0 | AF42: 0 | AG42: 0 | AH42: 0 | AI42: 0 | AJ42: 0 | AK42: 0 | AL42: 0 | AM42: 0
A43: 4 | B43: FALSE | C43: 2022-04-02T16:00:00 | D43: 505646.6425 | E43: 260457.3534 | F43: 301967.5338 | G43: 406454.8045 | H43: 505646.6425 | I43: 161569.5181 | J43: 62977.5195 | K43: 1043.2064 | L43: 92.5327 | M43: 26366.3661 | N43: 7751.8805 | O43: 928.4419 | Q43: 7569.6149 | R43: 147.3302 | S43: 1812.249 | T43: 32567.7633 | U43: 172714.0992 | V43: 29944.0349 | W43: 162.0858 | X43: 0 | Y43: 0 | Z43: 0 | AA43: 0 | AB43: 0 | AC43: 0 | AD43: 0 | AE43: 0 | AF43: 0 | AG43: 0 | AH43: 0 | AI43: 0 | AJ43: 0 | AK43: 0 | AL43: 0 | AM43: 0
A44: 4 | B44: FALSE | C44: 2022-04-02T17:00:00 | D44: 510063.459 | E44: 265791.2436 | F44: 306709.8277 | G44: 409779.3141 | H44: 510063.459 | I44: 174659.8128 | J44: 56424.4567 | K44: 934.6566 | L44: 82.9043 | M44: 25424.0402 | N44: 7474.8307 | O44: 895.2596 | Q44: 7299.0792 | R44: 142.0647 | S44: 1821.0886 | T44: 32367.0321 | U44: 172426.638 | V44: 29948.8294 | W44: 162.7661 | X44: 0 | Y44: 0 | Z44: 0 | AA44: 0 | AB44: 0 | AC44: 0 | AD44: 0 | AE44: 0 | AF44: 0 | AG44: 0 | AH44: 0 | AI44: 0 | AJ44: 0 | AK44: 0 | AL44: 0 | AM44: 0
A45: 4 | B45: FALSE | C45: 2022-04-02T18:00:00 | D45: 514736.3077 | E45: 271300.876 | F45: 311786.0708 | G45: 413204.1577 | H45: 514736.3077 | I45: 178713.5847 | J45: 58692.9834 | K45: 972.2342 | L45: 86.2375 | M45: 24793.9899 | N45: 7289.5919 | O45: 873.0736 | Q45: 7118.1958 | R45: 138.5441 | S45: 1819.7169 | T45: 32084.8246 | U45: 171958.1856 | V45: 30032.7402 | W45: 162.4053 | X45: 0 | Y45: 0 | Z45: 0 | AA45: 0 | AB45: 0 | AC45: 0 | AD45: 0 | AE45: 0 | AF45: 0 | AG45: 0 | AH45: 0 | AI45: 0 | AJ45: 0 | AK45: 0 | AL45: 0 | AM45: 0
A46: 4 | B46: FALSE | C46: 2022-04-02T19:00:00 | D46: 545516.7055 | E46: 301343.2934 | F46: 342372.385 | G46: 437034.2466 | H46: 545516.7055 | I46: 209668.4893 | J46: 58158.7167 | K46: 963.3842 | L46: 85.4525 | M46: 24552.8211 | N46: 7218.6867 | O46: 864.5813 | Q46: 7048.9578 | R46: 137.1965 | S46: 1749.3058 | T46: 32709.8242 | U46: 172225.3529 | V46: 29968.9338 | W46: 165.0027 | X46: 0 | Y46: 0 | Z46: 0 | AA46: 0 | AB46: 0 | AC46: 0 | AD46: 0 | AE46: 0 | AF46: 0 | AG46: 0 | AH46: 0 | AI46: 0 | AJ46: 0 | AK46: 0 | AL46: 0 | AM46: 0
A47: 4 | B47: FALSE | C47: 2022-04-02T20:00:00 | D47: 536699.7673 | E47: 293090.651 | F47: 334028.7616 | G47: 430157.4348 | H47: 536699.7673 | I47: 193582.0104 | J47: 58256.524 | K47: 965.0044 | L47: 85.5962 | M47: 25012.2779 | N47: 7353.77 | O47: 880.7602 | Q47: 7180.8649 | R47: 139.7639 | S47: 1821.6983 | T47: 32479.5723 | U47: 171762.4653 | V47: 29942.184 | W47: 182.2276 | X47: 5752.368588 | Y47: 1302.6793 | Z47: 0 | AA47: 0 | AB47: 0 | AC47: 0 | AD47: 0 | AE47: 0 | AF47: 0 | AG47: 0 | AH47: 0 | AI47: 0 | AJ47: 0 | AK47: 0 | AL47: 0 | AM47: 0
A48: 4 | B48: FALSE | C48: 2022-04-02T21:00:00 | D48: 546041.3609 | E48: 305065.9911 | F48: 345864.5478 | G48: 436771.3383 | H48: 546041.3609 | I48: 199771.1966 | J48: 58952.9939 | K48: 976.5412 | L48: 86.6195 | M48: 25325.568 | N48: 7445.8792 | O48: 891.7921 | Q48: 7270.8085 | R48: 141.5145 | S48: 1794.5701 | T48: 32234.6218 | U48: 169242.7338 | V48: 29955.6677 | W48: 192.441 | X48: 9587.280864 | Y48: 2171.1321 | Z48: 0 | AA48: 0 | AB48: 0 | AC48: 0 | AD48: 0 | AE48: 0 | AF48: 0 | AG48: 0 | AH48: 0 | AI48: 0 | AJ48: 0 | AK48: 0 | AL48: 0 | AM48: 0
A49: 4 | B49: FALSE | C49: 2022-04-02T22:00:00 | D49: 554972.9268 | E49: 315593.2953 | F49: 355311.4223 | G49: 443489.2498 | H49: 554972.9268 | I49: 213587.4292 | J49: 55648.7285 | K49: 921.8069 | L49: 81.7645 | M49: 25332.4772 | N49: 7447.9106 | O49: 892.0354 | Q49: 7272.7921 | R49: 141.5531 | S49: 1821.8506 | T49: 31206.8564 | U49: 168684.7587 | V49: 30002.9459 | W49: 171.6047 | X49: 9587.280864 | Y49: 2171.1321 | Z49: 0 | AA49: 0 | AB49: 0 | AC49: 0 | AD49: 0 | AE49: 0 | AF49: 0 | AG49: 0 | AH49: 0 | AI49: 0 | AJ49: 0 | AK49: 0 | AL49: 0 | AM49: 0
A50: 4 | B50: FALSE | C50: 2022-04-02T23:00:00 | D50: 520065.0282 | E50: 281685.0681 | F50: 319897.2602 | G50: 416727.7505 | H50: 520065.0282 | I50: 185490.1571 | J50: 52124.7368 | K50: 863.4329 | L50: 76.5868 | M50: 23527.8831 | N50: 6917.3484 | O50: 828.49 | Q50: 6754.7046 | R50: 131.4693 | S50: 1859.3423 | T50: 30299.9415 | U50: 169284.8976 | V50: 29977.7936 | W50: 169.8313 | X50: 9587.280864 | Y50: 2171.1321 | Z50: 0 | AA50: 0 | AB50: 0 | AC50: 0 | AD50: 0 | AE50: 0 | AF50: 0 | AG50: 0 | AH50: 0 | AI50: 0 | AJ50: 0 | AK50: 0 | AL50: 0 | AM50: 0
A51: 4 | B51: FALSE | C51: 2022-04-03 | D51: 505874.4136 | E51: 267996.2065 | F51: 305700.496 | G51: 405788.4185 | H51: 505874.4136 | I51: 174244.6864 | J51: 50420.4976 | K51: 835.2026 | L51: 74.0827 | M51: 22979.9066 | N51: 6756.2398 | O51: 809.1941 | Q51: 6597.3841 | R51: 128.4073 | S51: 1821.3933 | T51: 29984.4398 | U51: 169308.4993 | V51: 29982.1415 | W51: 173.9255 | X51: 9587.280864 | Y51: 2171.1321 | Z51: 0 | AA51: 0 | AB51: 0 | AC51: 0 | AD51: 0 | AE51: 0 | AF51: 0 | AG51: 0 | AH51: 0 | AI51: 0 | AJ51: 0 | AK51: 0 | AL51: 0 | AM51: 0
A52: 4 | B52: FALSE | C52: 2022-04-03T01:00:00 | D52: 502654.6959 | E52: 265666.6672 | F52: 302459.4156 | G52: 403279.4339 | H52: 502654.6959 | I52: 170942.01 | J52: 51920.4098 | K52: 860.0483 | L52: 76.2865 | M52: 22574.008 | N52: 6636.903 | O52: 794.9011 | Q52: 6480.8532 | R52: 126.1393 | S52: 1819.8694 | T52: 29169.6578 | U52: 169309.4332 | V52: 30014.6595 | W52: 171.1038 | X52: 9587.280864 | Y52: 2171.1321 | Z52: 0 | AA52: 0 | AB52: 0 | AC52: 0 | AD52: 0 | AE52: 0 | AF52: 0 | AG52: 0 | AH52: 0 | AI52: 0 | AJ52: 0 | AK52: 0 | AL52: 0 | AM52: 0
A53: 4 | B53: FALSE | C53: 2022-04-03T02:00:00 | D53: 495935.8429 | E53: 257937.6601 | F53: 295030.7846 | G53: 398233.6421 | H53: 495935.8429 | I53: 163828.6048 | J53: 51170.7566 | K53: 847.6304 | L53: 75.1851 | M53: 22673.79 | N53: 6666.2395 | O53: 798.4147 | Q53: 6509.5 | R53: 126.6968 | S53: 1823.8319 | T53: 29452.5578 | U53: 169986.3115 | V53: 30045.147 | W53: 172.7639 | X53: 9587.280864 | Y53: 2171.1321 | Z53: 0 | AA53: 0 | AB53: 0 | AC53: 0 | AD53: 0 | AE53: 0 | AF53: 0 | AG53: 0 | AH53: 0 | AI53: 0 | AJ53: 0 | AK53: 0 | AL53: 0 | AM53: 0
A54: 4 | B54: FALSE | C54: 2022-04-03T03:00:00 | D54: 497610.904 | E54: 259578.4025 | F54: 296645.6966 | G54: 399577.9489 | H54: 497610.904 | I54: 168727.8439 | J54: 47818.9435 | K54: 792.1085 | L54: 70.2603 | M54: 22751.5289 | N54: 6689.0953 | O54: 801.1522 | Q54: 6531.8183 | R54: 127.1312 | S54: 1821.6983 | T54: 29458.9591 | U54: 170088.2285 | V54: 30005.5664 | W54: 168.1567 | X54: 9587.280864 | Y54: 2171.1321 | Z54: 0 | AA54: 0 | AB54: 0 | AC54: 0 | AD54: 0 | AE54: 0 | AF54: 0 | AG54: 0 | AH54: 0 | AI54: 0 | AJ54: 0 | AK54: 0 | AL54: 0 | AM54: 0
A55: 4 | B55: FALSE | C55: 2022-04-03T04:00:00 | D55: 510759.4213 | E55: 271941.1779 | F55: 309437.0683 | G55: 409718.7092 | H55: 510759.4213 | I55: 175160.0907 | J55: 53422.4753 | K55: 884.9296 | L55: 78.4935 | M55: 22982.3792 | N55: 6756.9667 | O55: 809.2811 | Q55: 6598.094 | R55: 128.4212 | S55: 1834.043 | T55: 29725.5729 | U55: 170354.5981 | V55: 30079.9803 | W55: 185.6828 | X55: 9587.280864 | Y55: 2171.1321 | Z55: 0 | AA55: 0 | AB55: 0 | AC55: 0 | AD55: 0 | AE55: 0 | AF55: 0 | AG55: 0 | AH55: 0 | AI55: 0 | AJ55: 0 | AK55: 0 | AL55: 0 | AM55: 0
A56: 4 | B56: FALSE | C56: 2022-04-03T05:00:00 | D56: 522610.0817 | E56: 283318.4417 | F56: 320506.8228 | G56: 419017.8051 | H56: 522610.0817 | I56: 186341.8123 | J56: 54049.1694 | K56: 895.3106 | L56: 79.4143 | M56: 22680.5042 | N56: 6668.2135 | O56: 798.6512 | Q56: 6511.4276 | R56: 126.7343 | S56: 1789.3883 | T56: 29498.1227 | U56: 171132.1871 | V56: 30093.0063 | W56: 187.7269 | X56: 9587.280864 | Y56: 2171.1321 | Z56: 0 | AA56: 0 | AB56: 0 | AC56: 0 | AD56: 0 | AE56: 0 | AF56: 0 | AG56: 0 | AH56: 0 | AI56: 0 | AJ56: 0 | AK56: 0 | AL56: 0 | AM56: 0
A57: 4 | B57: FALSE | C57: 2022-04-03T06:00:00 | D57: 545592.2909 | E57: 305431.1698 | F57: 343713.6237 | G57: 436697.5278 | H57: 545592.2909 | I57: 206179.3083 | J57: 56243.7447 | K57: 931.6632 | L57: 82.6388 | M57: 25447.4947 | N57: 7481.7265 | O57: 896.0855 | Q57: 7305.8128 | R57: 142.1958 | S57: 1837.5483 | T57: 29726.8684 | U57: 170826.2804 | V57: 30073.6625 | W57: 186.3721 | X57: 6711.096396 | Y57: 1519.7925 | Z57: 0 | AA57: 0 | AB57: 0 | AC57: 0 | AD57: 0 | AE57: 0 | AF57: 0 | AG57: 0 | AH57: 0 | AI57: 0 | AJ57: 0 | AK57: 0 | AL57: 0 | AM57: 0
A58: 4 | B58: FALSE | C58: 2022-04-03T07:00:00 | D58: 561828.9609 | E58: 322739.1703 | F58: 361249.1088 | G58: 448946.4032 | H58: 561828.9609 | I58: 229571.8851 | J58: 58076.0821 | K58: 962.0154 | L58: 85.331 | M58: 25686.1683 | N58: 7551.8981 | O58: 904.49 | Q58: 7374.3345 | R58: 143.5294 | S58: 1836.7863 | T58: 29852.4956 | U58: 169549.8468 | V58: 30040.1843 | W58: 193.914 | X58: 0 | Y58: 0 | Z58: 0 | AA58: 0 | AB58: 0 | AC58: 0 | AD58: 0 | AE58: 0 | AF58: 0 | AG58: 0 | AH58: 0 | AI58: 0 | AJ58: 0 | AK58: 0 | AL58: 0 | AM58: 0
A59: 4 | B59: FALSE | C59: 2022-04-03T08:00:00 | D59: 604701.9185 | E59: 367265.0187 | F59: 404533.9761 | G59: 481875.1924 | H59: 604701.9185 | I59: 268187.7732 | J59: 65369.1549 | K59: 1082.8233 | L59: 96.0467 | M59: 24630.4527 | N59: 7241.5109 | O59: 867.3149 | Q59: 7071.2453 | R59: 137.6303 | S59: 1820.3266 | T59: 28806.9929 | U59: 169146.401 | V59: 30058.1798 | W59: 186.066 | X59: 0 | Y59: 0 | Z59: 0 | AA59: 0 | AB59: 0 | AC59: 0 | AD59: 0 | AE59: 0 | AF59: 0 | AG59: 0 | AH59: 0 | AI59: 0 | AJ59: 0 | AK59: 0 | AL59: 0 | AM59: 0
A60: 4 | B60: FALSE | C60: 2022-04-03T09:00:00 | D60: 582368.8327 | E60: 344348.1266 | F60: 382646.6768 | G60: 464588.2126 | H60: 582368.8327 | I60: 246017.3574 | J60: 63499.2633 | K60: 1051.849 | L60: 93.2993 | M60: 25494.0448 | N60: 7495.4125 | O60: 897.7247 | Q60: 7319.1771 | R60: 142.4559 | S60: 1846.2354 | T60: 29608.8328 | U60: 168699.8186 | V60: 30031.3133 | W60: 172.0486 | X60: 0 | Y60: 0 | Z60: 0 | AA60: 0 | AB60: 0 | AC60: 0 | AD60: 0 | AE60: 0 | AF60: 0 | AG60: 0 | AH60: 0 | AI60: 0 | AJ60: 0 | AK60: 0 | AL60: 0 | AM60: 0
A61: 4 | B61: FALSE | C61: 2022-04-03T10:00:00 | D61: 577680.5163 | E61: 340087.4814 | F61: 378452.4714 | G61: 460919.1569 | H61: 577680.5163 | I61: 236037.4167 | J61: 68512.2756 | K61: 1134.8883 | L61: 100.6649 | M61: 26080.6901 | N61: 7667.89 | O61: 918.3823 | Q61: 7487.5992 | R61: 145.7339 | S61: 1797.6182 | T61: 29416.4778 | U61: 168235.1214 | V61: 29973.8763 | W61: 171.8816 | X61: 0 | Y61: 0 | Z61: 0 | AA61: 0 | AB61: 0 | AC61: 0 | AD61: 0 | AE61: 0 | AF61: 0 | AG61: 0 | AH61: 0 | AI61: 0 | AJ61: 0 | AK61: 0 | AL61: 0 | AM61: 0
A62: 4 | B62: FALSE | C62: 2022-04-03T11:00:00 | D62: 557919.8274 | E62: 320108.7225 | F62: 358521.5193 | G62: 445720.3489 | H62: 557919.8274 | I62: 220316.3838 | J62: 64722.1161 | K62: 1072.1052 | L62: 95.0961 | M62: 25753.8049 | N62: 7571.7836 | O62: 906.8717 | Q62: 7393.7526 | R62: 143.9074 | S62: 1749.3058 | T62: 29625.0006 | U62: 168413.7388 | V62: 29982.6015 | W62: 173.3593 | X62: 0 | Y62: 0 | Z62: 0 | AA62: 0 | AB62: 0 | AC62: 0 | AD62: 0 | AE62: 0 | AF62: 0 | AG62: 0 | AH62: 0 | AI62: 0 | AJ62: 0 | AK62: 0 | AL62: 0 | AM62: 0
A63: 4 | B63: FALSE | C63: 2022-04-03T12:00:00 | D63: 556820.7153 | E63: 318451.0988 | F63: 357293.1776 | G63: 444925.7708 | H63: 556820.7153 | I63: 224774.2988 | J63: 58785.6042 | K63: 973.7684 | L63: 86.3735 | M63: 25646.225 | N63: 7540.1545 | O63: 903.0834 | Q63: 7362.8671 | R63: 143.3062 | S63: 1703.7366 | T63: 30184.8497 | U63: 168578.3276 | V63: 29959.7532 | W63: 178.3671 | X63: 0 | Y63: 0 | Z63: 0 | AA63: 0 | AB63: 0 | AC63: 0 | AD63: 0 | AE63: 0 | AF63: 0 | AG63: 0 | AH63: 0 | AI63: 0 | AJ63: 0 | AK63: 0 | AL63: 0 | AM63: 0
A64: 4 | B64: FALSE | C64: 2022-04-03T13:00:00 | D64: 545328.7694 | E64: 307738.546 | F64: 346955.4536 | G64: 435852.9577 | H64: 545328.7694 | I64: 215076.204 | J64: 56771.4525 | K64: 940.4045 | L64: 83.4142 | M64: 26371.721 | N64: 7753.4549 | O64: 928.6304 | Q64: 7571.1523 | R64: 147.3602 | S64: 1749.1534 | T64: 30375.688 | U64: 167449.983 | V64: 29911.2882 | W64: 198.8628 | X64: 0 | Y64: 0 | Z64: 0 | AA64: 0 | AB64: 0 | AC64: 0 | AD64: 0 | AE64: 0 | AF64: 0 | AG64: 0 | AH64: 0 | AI64: 0 | AJ64: 0 | AK64: 0 | AL64: 0 | AM64: 0
A65: 4 | B65: FALSE | C65: 2022-04-03T14:00:00 | D65: 520857.17 | E65: 284345.2427 | F65: 322626.0361 | G65: 416873.3353 | H65: 520857.17 | I65: 189896.9988 | J65: 59491.6588 | K65: 985.464 | L65: 87.411 | M65: 25653.2473 | N65: 7542.219 | O65: 903.3307 | Q65: 7364.8831 | R65: 143.3455 | S65: 1746.5625 | T65: 29609.7649 | U65: 167241.81 | V65: 29998.5822 | W65: 191.8922 | X65: 0 | Y65: 0 | Z65: 0 | AA65: 0 | AB65: 0 | AC65: 0 | AD65: 0 | AE65: 0 | AF65: 0 | AG65: 0 | AH65: 0 | AI65: 0 | AJ65: 0 | AK65: 0 | AL65: 0 | AM65: 0
A66: 4 | B66: FALSE | C66: 2022-04-03T15:00:00 | D66: 512589.638 | E66: 276332.0029 | F66: 314566.9108 | G66: 410497.0119 | H66: 512589.638 | I66: 185020.2023 | J66: 57578.4023 | K66: 953.7714 | L66: 84.5998 | M66: 24704.6367 | N66: 7263.3215 | O66: 869.9272 | Q66: 7092.5431 | R66: 138.0448 | S66: 1763.9367 | T66: 29879.7702 | U66: 167112.6918 | V66: 29955.5084 | W66: 172.2818 | X66: 0 | Y66: 0 | Z66: 0 | AA66: 0 | AB66: 0 | AC66: 0 | AD66: 0 | AE66: 0 | AF66: 0 | AG66: 0 | AH66: 0 | AI66: 0 | AJ66: 0 | AK66: 0 | AL66: 0 | AM66: 0
A67: 4 | B67: =PeakTime(C67,Holidays,PkStart,PkEnd,UseDST,DST_1,DST_2) -> FALSE | C67: 2022-04-03T16:00:00 | D67: =SUM(OFFSET(I67,0,0,1,COUNTA(I67:IV67))) -> 501320.3827 | E67: =SUMIF(OFFSET($I$2,0,0,1,COUNTA($I$2:$IV$2)),E$2,OFFSET(I67,0,0,1,COUNTA(I67:IV67))) -> 265420.551 | F67: =E67+SUMIF(OFFSET($I$2,0,0,1,COUNTA($I$2:$IV$2)),F$2,OFFSET(I67,0,0,1,COUNTA(I67:IV67))) -> 304037.9028 | G67: =F67*DistAtSubtran+SUMIF(OFFSET($I$2,0,0,1,COUNTA($I$2:$IV$2)),G$2,OFFSET(I67,0,0,1,COUNTA(I67:IV67))) -> 401608.5111 | H67: =SUM(OFFSET(I67,0,0,1,COUNTA(I67:IV67))) -> 501320.3827 | I67: 172571.4522 | J67: 58214.7468 | K67: 964.3123 | L67: 85.5348 | M67: 25368.8402 | N67: 7458.6015 | O67: 893.3159 | Q67: 7283.2316 | R67: 141.7563 | S67: 1811.3346 | T67: 30052.6817 | U67: 166314.342 | V67: 29989.2872 | W67: 170.9456 | X67: 0 | Y67: 0 | Z67: 0 | AA67: 0 | AB67: 0 | AC67: 0 | AD67: 0 | AE67: 0 | AF67: 0 | AG67: 0 | AH67: 0 | AI67: 0 | AJ67: 0 | AK67: 0 | AL67: 0 | AM67: 0
A68: =MONTH(C68) -> 4 | B68: FALSE | C68: =+C67+1/24 -> 2022-04-03T17:00:00 | D68: 489133.8345 | E68: 254089.7819 | F68: 292425.6219 | G68: 392031.8054 | H68: 489133.8345 | I68: 163664.7896 | J68: 56294.2927 | K68: 932.5005 | L68: 82.7131 | M68: 24992.0844 | N68: 7347.8329 | O68: 880.0491 | Q68: 7175.0675 | R68: 139.651 | S68: 1793.8081 | T68: 29915.8556 | U68: 165703.054 | V68: 30042.3964 | W68: 169.7396 | X68: 0 | Y68: 0 | Z68: 0 | AA68: 0 | AB68: 0 | AC68: 0 | AD68: 0 | AE68: 0 | AF68: 0 | AG68: 0 | AH68: 0 | AI68: 0 | AJ68: 0 | AK68: 0 | AL68: 0 | AM68: 0
A69: 4 | B69: FALSE | C69: 2022-04-03T18:00:00 | D69: 493253.9283 | E69: 258437.0496 | F69: 296437.3707 | G69: 395278.356 | H69: 493253.9283 | I69: 169601.0602 | J69: 55054.0808 | K69: 911.9567 | L69: 80.8908 | M69: 24691.9063 | N69: 7259.5786 | O69: 869.4789 | Q69: 7088.8883 | R69: 137.9737 | S69: 1830.0804 | T69: 29690.8121 | U69: 165870.2306 | V69: 29995.9573 | W69: 171.0336 | X69: 0 | Y69: 0 | Z69: 0 | AA69: 0 | AB69: 0 | AC69: 0 | AD69: 0 | AE69: 0 | AF69: 0 | AG69: 0 | AH69: 0 | AI69: 0 | AJ69: 0 | AK69: 0 | AL69: 0 | AM69: 0
A70: 4 | B70: FALSE | C70: 2022-04-03T19:00:00 | D70: 535888.1071 | E70: 301125.962 | F70: 338972.4184 | G70: 428169.6328 | H70: 535888.1071 | I70: 212152.9363 | J70: 56925.5674 | K70: 942.9574 | L70: 83.6406 | M70: 23383.635 | N70: 6874.9385 | O70: 823.4106 | Q70: 6713.2919 | R70: 130.6633 | S70: 1758.7549 | T70: 29897.8972 | U70: 166024.0011 | V70: 29984.6364 | W70: 191.7765 | X70: 0 | Y70: 0 | Z70: 0 | AA70: 0 | AB70: 0 | AC70: 0 | AD70: 0 | AE70: 0 | AF70: 0 | AG70: 0 | AH70: 0 | AI70: 0 | AJ70: 0 | AK70: 0 | AL70: 0 | AM70: 0
A71: 4 | B71: FALSE | C71: 2022-04-03T20:00:00 | D71: 550191.897 | E71: 314465.4547 | F71: 352617.3712 | G71: 439340.0137 | H71: 550191.897 | I71: 217131.7735 | J71: 57774.7361 | K71: 957.0237 | L71: 84.8883 | M71: 23898.3809 | N71: 7026.2771 | O71: 841.5364 | Q71: 6861.0722 | R71: 133.5396 | S71: 1741.0759 | T71: 30035.0761 | U71: 166659.1437 | V71: 29988.9574 | W71: 199.3417 | X71: 5592.580677 | Y71: 1266.4938 | Z71: 0 | AA71: 0 | AB71: 0 | AC71: 0 | AD71: 0 | AE71: 0 | AF71: 0 | AG71: 0 | AH71: 0 | AI71: 0 | AJ71: 0 | AK71: 0 | AL71: 0 | AM71: 0
A72: 4 | B72: FALSE | C72: 2022-04-03T21:00:00 | D72: 557568.3066 | E72: 321561.4779 | F72: 359664.6499 | G72: 445102.2073 | H72: 557568.3066 | I72: 220678.9032 | J72: 56731.4857 | K72: 939.7425 | L72: 83.3554 | M72: 23738.1471 | N72: 6979.1673 | O72: 835.8941 | Q72: 6815.0701 | R72: 132.6443 | S72: 1648.2612 | T72: 30051.6179 | U72: 166997.3299 | V72: 29987.0773 | W72: 191.1977 | X72: 9587.280864 | Y72: 2171.1321 | Z72: 0 | AA72: 0 | AB72: 0 | AC72: 0 | AD72: 0 | AE72: 0 | AF72: 0 | AG72: 0 | AH72: 0 | AI72: 0 | AJ72: 0 | AK72: 0 | AL72: 0 | AM72: 0
A73: 4 | B73: FALSE | C73: 2022-04-03T22:00:00 | D73: 556185.3338 | E73: 319929.8008 | F73: 358127.8438 | G73: 444044.3921 | H73: 556185.3338 | I73: 218427.4855 | J73: 57354.778 | K73: 950.0672 | L73: 84.2712 | M73: 23750.7673 | N73: 6982.8777 | O73: 836.3385 | Q73: 6818.6933 | R73: 132.7148 | S73: 1652.0713 | T73: 30132.3833 | U73: 167122.5372 | V73: 30014.3431 | W73: 167.5925 | X73: 9587.280864 | Y73: 2171.1321 | Z73: 0 | AA73: 0 | AB73: 0 | AC73: 0 | AD73: 0 | AE73: 0 | AF73: 0 | AG73: 0 | AH73: 0 | AI73: 0 | AJ73: 0 | AK73: 0 | AL73: 0 | AM73: 0
A74: 4 | B74: FALSE | C74: 2022-04-03T23:00:00 | D74: 558966.6015 | E74: 322502.8029 | F74: 360554.2038 | G74: 446290.9865 | H74: 558966.6015 | I74: 222598.4066 | J74: 56138.955 | K74: 929.9274 | L74: 82.4848 | M74: 23459.9907 | N74: 6897.3876 | O74: 826.0993 | Q74: 6735.2132 | R74: 131.09 | S74: 1644.6035 | T74: 30092.9959 | U74: 167511.2149 | V74: 29992.5987 | W74: 167.2209 | X74: 9587.280864 | Y74: 2171.1321 | Z74: 0 | AA74: 0 | AB74: 0 | AC74: 0 | AD74: 0 | AE74: 0 | AF74: 0 | AG74: 0 | AH74: 0 | AI74: 0 | AJ74: 0 | AK74: 0 | AL74: 0 | AM74: 0
A75: 4 | B75: FALSE | C75: 2022-04-04 | D75: 547940.3707 | E75: 311072.7676 | F75: 348910.6403 | G75: 437918.4292 | H75: 547940.3707 | I75: 213174.2068 | J75: 54884.5486 | K75: 909.1485 | L75: 80.6417 | M75: 22850.4349 | N75: 6718.1743 | O75: 804.635 | Q75: 6560.2136 | R75: 127.6839 | S75: 1683.0096 | T75: 30082.866 | U75: 168135.4031 | V75: 30009.0506 | W75: 161.9411 | X75: 9587.280864 | Y75: 2171.1321 | Z75: 0 | AA75: 0 | AB75: 0 | AC75: 0 | AD75: 0 | AE75: 0 | AF75: 0 | AG75: 0 | AH75: 0 | AI75: 0 | AJ75: 0 | AK75: 0 | AL75: 0 | AM75: 0
A76: 4 | B76: FALSE | C76: 2022-04-04T01:00:00 | D76: 570799.131 | E76: 334395.5703 | F76: 372093.2959 | G76: 455481.3461 | H76: 570799.131 | I76: 235916.0186 | J76: 55980.1354 | K76: 927.2966 | L76: 82.2515 | M76: 22417.0987 | N76: 6590.7706 | O76: 789.3759 | Q76: 6435.8056 | R76: 125.2625 | S76: 1724.6162 | T76: 30054.3959 | U76: 167845.607 | V76: 29988.6007 | W76: 163.4828 | X76: 9587.280864 | Y76: 2171.1321 | Z76: 0 | AA76: 0 | AB76: 0 | AC76: 0 | AD76: 0 | AE76: 0 | AF76: 0 | AG76: 0 | AH76: 0 | AI76: 0 | AJ76: 0 | AK76: 0 | AL76: 0 | AM76: 0
A77: 4 | B77: FALSE | C77: 2022-04-04T02:00:00 | D77: 600810.2613 | E77: 363275.4317 | F77: 401127.2632 | G77: 478851.5116 | H77: 600810.2613 | I77: 261192.6279 | J77: 58328.8876 | K77: 966.203 | L77: 85.7025 | M77: 23353.017 | N77: 6865.9366 | O77: 822.3324 | Q77: 6704.5017 | R77: 130.4922 | S77: 1752.8111 | T77: 29889.1997 | U77: 168803.5256 | V77: 29971.4376 | W77: 185.1734 | X77: 9587.280864 | Y77: 2171.1321 | Z77: 0 | AA77: 0 | AB77: 0 | AC77: 0 | AD77: 0 | AE77: 0 | AF77: 0 | AG77: 0 | AH77: 0 | AI77: 0 | AJ77: 0 | AK77: 0 | AL77: 0 | AM77: 0
A78: 4 | B78: FALSE | C78: 2022-04-04T03:00:00 | D78: 594075.2065 | E78: 356066.7429 | F78: 394144.9675 | G78: 473717.965 | H78: 594075.2065 | I78: 252303.0838 | J78: 59670.5349 | K78: 988.4271 | L78: 87.6738 | M78: 23617.533 | N78: 6943.706 | O78: 831.6469 | Q78: 6780.4425 | R78: 131.9703 | S78: 1749.3058 | T78: 30014.1212 | U78: 169039.7948 | V78: 29971.1235 | W78: 187.4299 | X78: 9587.280864 | Y78: 2171.1321 | Z78: 0 | AA78: 0 | AB78: 0 | AC78: 0 | AD78: 0 | AE78: 0 | AF78: 0 | AG78: 0 | AH78: 0 | AI78: 0 | AJ78: 0 | AK78: 0 | AL78: 0 | AM78: 0
A79: 4 | B79: FALSE | C79: 2022-04-04T04:00:00 | D79: 610395.9051 | E79: 370384.8268 | F79: 410029.0479 | G79: 486186.0761 | H79: 610395.9051 | I79: 262448.6907 | J79: 58615.9661 | K79: 970.9584 | L79: 86.1243 | M79: 27633.8957 | N79: 8124.5424 | O79: 973.0755 | Q79: 7933.5146 | R79: 154.413 | S79: 1802.0379 | T79: 30394.3073 | U79: 169126.5157 | V79: 30181.1417 | W79: 192.3088 | X79: 9587.280864 | Y79: 2171.1321 | Z79: 0 | AA79: 0 | AB79: 0 | AC79: 0 | AD79: 0 | AE79: 0 | AF79: 0 | AG79: 0 | AH79: 0 | AI79: 0 | AJ79: 0 | AK79: 0 | AL79: 0 | AM79: 0
A80: 4 | B80: FALSE | C80: 2022-04-04T05:00:00 | D80: 645316.0738 | E80: 401181.926 | F80: 443667.2153 | G80: 514137.7261 | H80: 645316.0738 | I80: 281962.6642 | J80: 62048.9757 | K80: 1027.8253 | L80: 91.1684 | M80: 33686.7753 | N80: 9904.1278 | O80: 1186.2163 | Q80: 9671.2576 | R80: 188.2353 | S80: 1850.6552 | T80: 31365.1009 | U80: 170935.7857 | V80: 29435.6881 | W80: 203.185 | X80: 9587.280864 | Y80: 2171.1321 | Z80: 0 | AA80: 0 | AB80: 0 | AC80: 0 | AD80: 0 | AE80: 0 | AF80: 0 | AG80: 0 | AH80: 0 | AI80: 0 | AJ80: 0 | AK80: 0 | AL80: 0 | AM80: 0
A81: 4 | B81: FALSE | C81: 2022-04-04T06:00:00 | D81: 686515.4515 | E81: 430589.9861 | F81: 480896.5257 | G81: 546846.7627 | H81: 686515.4515 | I81: 301107.6306 | J81: 65493.6104 | K81: 1084.8848 | L81: 96.2296 | M81: 41973.6234 | N81: 12340.5142 | O81: 1478.022 | Q81: 12050.3586 | R81: 234.5406 | S81: 1903.2349 | T81: 36646.6 | U81: 174656.1454 | V81: 29388.5288 | W81: 222.5862 | X81: 6391.520576 | Y81: 1447.4215 | Z81: 0 | AA81: 0 | AB81: 0 | AC81: 0 | AD81: 0 | AE81: 0 | AF81: 0 | AG81: 0 | AH81: 0 | AI81: 0 | AJ81: 0 | AK81: 0 | AL81: 0 | AM81: 0
A82: 4 | B82: TRUE | C82: 2022-04-04T07:00:00 | D82: 712984.5419 | E82: 443128.0901 | F82: 499525.7647 | G82: 569328.1996 | H82: 712984.5419 | I82: 309669.0684 | J82: 71099.0804 | K82: 1177.738 | L82: 104.4657 | M82: 46782.9563 | N82: 13754.4889 | O82: 1647.3736 | Q82: 13431.0873 | R82: 261.4143 | S82: 1950.7853 | T82: 41204.0334 | U82: 182602.8502 | V82: 29104.0877 | W82: 195.1124 | X82: 0 | Y82: 0 | Z82: 0 | AA82: 0 | AB82: 0 | AC82: 0 | AD82: 0 | AE82: 0 | AF82: 0 | AG82: 0 | AH82: 0 | AI82: 0 | AJ82: 0 | AK82: 0 | AL82: 0 | AM82: 0
A83: 4 | B83: TRUE | C83: 2022-04-04T08:00:00 | D83: 709409.7992 | E83: 431549.9265 | F83: 492801.9544 | G83: 567361.1666 | H83: 709409.7992 | I83: 283771.7705 | J83: 81553.6806 | K83: 1350.9158 | L83: 119.8266 | M83: 49795.7585 | N83: 14640.272 | O83: 1753.4637 | Q83: 14296.0435 | R83: 278.2492 | S83: 1955.0527 | T83: 44982.5909 | U83: 185696.2588 | V83: 29038.2957 | W83: 177.6207 | X83: 0 | Y83: 0 | Z83: 0 | AA83: 0 | AB83: 0 | AC83: 0 | AD83: 0 | AE83: 0 | AF83: 0 | AG83: 0 | AH83: 0 | AI83: 0 | AJ83: 0 | AK83: 0 | AL83: 0 | AM83: 0
A84: 4 | B84: TRUE | C84: 2022-04-04T09:00:00 | D84: 706039.7879 | E84: 428403.3547 | F84: 490344.5508 | G84: 564582.2606 | H84: 706039.7879 | I84: 270899.0615 | J84: 91242.5898 | K84: 1511.4101 | L84: 134.0625 | M84: 49844.3687 | N84: 14654.5637 | O84: 1755.1754 | Q84: 14309.9992 | R84: 278.5209 | S84: 1925.0289 | T84: 45496.7014 | U84: 184795.2721 | V84: 29010.7271 | W84: 182.3066 | X84: 0 | Y84: 0 | Z84: 0 | AA84: 0 | AB84: 0 | AC84: 0 | AD84: 0 | AE84: 0 | AF84: 0 | AG84: 0 | AH84: 0 | AI84: 0 | AJ84: 0 | AK84: 0 | AL84: 0 | AM84: 0
A85: 4 | B85: TRUE | C85: 2022-04-04T10:00:00 | D85: 665419.5222 | E85: 391089.1621 | F85: 453138.0902 | G85: 532542.3234 | H85: 665419.5222 | I85: 237676.1673 | J85: 87939.8793 | K85: 1456.7015 | L85: 129.2099 | M85: 49244.9223 | N85: 14478.3227 | O85: 1734.0671 | Q85: 14137.902 | R85: 275.1713 | S85: 1910.5503 | T85: 45838.7326 | U85: 181455.4959 | V85: 28962.6591 | W85: 179.7409 | X85: 0 | Y85: 0 | Z85: 0 | AA85: 0 | AB85: 0 | AC85: 0 | AD85: 0 | AE85: 0 | AF85: 0 | AG85: 0 | AH85: 0 | AI85: 0 | AJ85: 0 | AK85: 0 | AL85: 0 | AM85: 0
A86: 4 | B86: TRUE | C86: 2022-04-04T11:00:00 | D86: 645837.8222 | E86: 369484.805 | F86: 432354.5556 | G86: 517746.5761 | H86: 645837.8222 | I86: 225510.8674 | J86: 79256.9363 | K86: 1312.8708 | L86: 116.452 | M86: 48671.8581 | N86: 14309.8381 | O86: 1713.8877 | Q86: 13973.3789 | R86: 271.9691 | S86: 1895.767 | T86: 46975.0726 | U86: 182710.0985 | V86: 28942.8284 | W86: 175.9973 | X86: 0 | Y86: 0 | Z86: 0 | AA86: 0 | AB86: 0 | AC86: 0 | AD86: 0 | AE86: 0 | AF86: 0 | AG86: 0 | AH86: 0 | AI86: 0 | AJ86: 0 | AK86: 0 | AL86: 0 | AM86: 0
A87: 4 | B87: TRUE | C87: 2022-04-04T12:00:00 | D87: 615538.9146 | E87: 338910.4171 | F87: 400233.8577 | G87: 494766.4094 | H87: 615538.9146 | I87: 196033.4899 | J87: 78295.2875 | K87: 1296.9413 | L87: 115.0391 | M87: 48526.0332 | N87: 14266.9646 | O87: 1708.7527 | Q87: 13931.5135 | R87: 271.1542 | S87: 1932.3443 | T87: 45488.3805 | U87: 184491.1944 | V87: 28990.0707 | W87: 191.7487 | X87: 0 | Y87: 0 | Z87: 0 | AA87: 0 | AB87: 0 | AC87: 0 | AD87: 0 | AE87: 0 | AF87: 0 | AG87: 0 | AH87: 0 | AI87: 0 | AJ87: 0 | AK87: 0 | AL87: 0 | AM87: 0
A88: 4 | B88: TRUE | C88: 2022-04-04T13:00:00 | D88: 567238.7238 | E88: 292096.9422 | F88: 352304.1841 | G88: 457429.5821 | H88: 567238.7238 | I88: 154789.0143 | J88: 76597.2496 | K88: 1268.8138 | L88: 112.5442 | M88: 45474.9718 | N88: 13369.9331 | O88: 1601.3154 | Q88: 13055.5733 | R88: 254.1055 | S88: 1979.5899 | T88: 45314.3895 | U88: 184202.6436 | V88: 29018.0365 | W88: 200.5433 | X88: 0 | Y88: 0 | Z88: 0 | AA88: 0 | AB88: 0 | AC88: 0 | AD88: 0 | AE88: 0 | AF88: 0 | AG88: 0 | AH88: 0 | AI88: 0 | AJ88: 0 | AK88: 0 | AL88: 0 | AM88: 0
A89: 4 | B89: TRUE | C89: 2022-04-04T14:00:00 | D89: 586917.783 | E89: 311548.386 | F89: 371935.3312 | G89: 472619.8198 | H89: 586917.783 | I89: 174759.5969 | J89: 74968.8597 | K89: 1241.8399 | L89: 110.1516 | M89: 46385.7019 | N89: 13637.6935 | O89: 1633.385 | Q89: 13317.0381 | R89: 259.1945 | S89: 1932.1918 | T89: 45248.2173 | U89: 184233.9114 | V89: 29005.0038 | W89: 184.9976 | X89: 0 | Y89: 0 | Z89: 0 | AA89: 0 | AB89: 0 | AC89: 0 | AD89: 0 | AE89: 0 | AF89: 0 | AG89: 0 | AH89: 0 | AI89: 0 | AJ89: 0 | AK89: 0 | AL89: 0 | AM89: 0
A90: 4 | B90: TRUE | C90: 2022-04-04T15:00:00 | D90: 562234.2986 | E90: 294478.4909 | F90: 351752.3059 | G90: 452548.3247 | H90: 562234.2986 | I90: 163193.6184 | J90: 75736.288 | K90: 1254.5522 | L90: 111.2791 | M90: 41540.8821 | N90: 12213.2855 | O90: 1462.7838 | Q90: 11926.1214 | R90: 232.1226 | S90: 1900.4917 | T90: 43573.8547 | U90: 179886.5033 | V90: 29021.4265 | W90: 181.0893 | X90: 0 | Y90: 0 | Z90: 0 | AA90: 0 | AB90: 0 | AC90: 0 | AD90: 0 | AE90: 0 | AF90: 0 | AG90: 0 | AH90: 0 | AI90: 0 | AJ90: 0 | AK90: 0 | AL90: 0 | AM90: 0
A91: 4 | B91: TRUE | C91: 2022-04-04T16:00:00 | D91: 539284.3218 | E91: 278602.0196 | F91: 331561.8748 | G91: 434321.6058 | H91: 539284.3218 | I91: 159051.1163 | J91: 68628.6137 | K91: 1136.8154 | L91: 100.8359 | M91: 37965.1914 | N91: 11162.0095 | O91: 1336.8726 | Q91: 10899.5634 | R91: 212.1423 | S91: 1875.4972 | T91: 40448.888 | U91: 177356.4595 | V91: 28928.279 | W91: 182.0376 | X91: 0 | Y91: 0 | Z91: 0 | AA91: 0 | AB91: 0 | AC91: 0 | AD91: 0 | AE91: 0 | AF91: 0 | AG91: 0 | AH91: 0 | AI91: 0 | AJ91: 0 | AK91: 0 | AL91: 0 | AM91: 0
A92: 4 | B92: TRUE | C92: 2022-04-04T17:00:00 | D92: 550089.3835 | E92: 289259.8086 | F92: 341714.975 | G92: 442812.6585 | H92: 550089.3835 | I92: 178962.9744 | J92: 64005.984 | K92: 1060.2427 | L92: 94.0438 | M92: 34364.9978 | N92: 10103.5295 | O92: 1210.0986 | Q92: 9865.9709 | R92: 192.0251 | S92: 1879.1549 | T92: 41099.3691 | U92: 178156.3076 | V92: 28913.9585 | W92: 180.7266 | X92: 0 | Y92: 0 | Z92: 0 | AA92: 0 | AB92: 0 | AC92: 0 | AD92: 0 | AE92: 0 | AF92: 0 | AG92: 0 | AH92: 0 | AI92: 0 | AJ92: 0 | AK92: 0 | AL92: 0 | AM92: 0
A93: 4 | B93: TRUE | C93: 2022-04-04T18:00:00 | D93: 521173.7545 | E93: 263543.3237 | F93: 314916.3851 | G93: 420019.8157 | H93: 521173.7545 | I93: 156233.045 | J93: 61264.8818 | K93: 1014.837 | L93: 90.0163 | M93: 34219.9867 | N93: 10060.8953 | O93: 1204.9923 | Q93: 9824.3392 | R93: 191.2148 | S93: 1822.1553 | T93: 40106.1143 | U93: 176025.6819 | V93: 28936.6789 | W93: 178.9157 | X93: 0 | Y93: 0 | Z93: 0 | AA93: 0 | AB93: 0 | AC93: 0 | AD93: 0 | AE93: 0 | AF93: 0 | AG93: 0 | AH93: 0 | AI93: 0 | AJ93: 0 | AK93: 0 | AL93: 0 | AM93: 0
A94: 4 | B94: TRUE | C94: 2022-04-04T19:00:00 | D94: 543924.1493 | E94: 286639.6012 | F94: 338130.2977 | G94: 437470.6095 | H94: 543924.1493 | I94: 181362.0055 | J94: 61401.9515 | K94: 1017.1076 | L94: 90.2177 | M94: 32475.8699 | N94: 9548.1138 | O94: 1143.5765 | Q94: 9323.6144 | R94: 181.469 | S94: 1875.0399 | T94: 40744.0061 | U94: 175647.2386 | V94: 28912.8188 | W94: 201.12 | X94: 0 | Y94: 0 | Z94: 0 | AA94: 0 | AB94: 0 | AC94: 0 | AD94: 0 | AE94: 0 | AF94: 0 | AG94: 0 | AH94: 0 | AI94: 0 | AJ94: 0 | AK94: 0 | AL94: 0 | AM94: 0
A95: 4 | B95: TRUE | C95: 2022-04-04T20:00:00 | D95: 568688.6131 | E95: 312303.4578 | F95: 363047.3201 | G95: 456531.0959 | H95: 568688.6131 | I95: 201017.3868 | J95: 63059.5993 | K95: 1044.5661 | L95: 92.6533 | M95: 30733.8442 | N95: 9035.9471 | O95: 1082.2344 | Q95: 8823.49 | R95: 171.7349 | S95: 1801.4283 | T95: 40491.6142 | U95: 175563.6309 | V95: 28902.7744 | W95: 204.6085 | X95: 5432.79242 | Y95: 1230.3083 | Z95: 0 | AA95: 0 | AB95: 0 | AC95: 0 | AD95: 0 | AE95: 0 | AF95: 0 | AG95: 0 | AH95: 0 | AI95: 0 | AJ95: 0 | AK95: 0 | AL95: 0 | AM95: 0
A96: 4 | B96: FALSE | C96: 2022-04-04T21:00:00 | D96: 573072.8782 | E96: 318921.4369 | F96: 366649.1349 | G96: 459520.3778 | H96: 573072.8782 | I96: 208889.4683 | J96: 60134.4929 | K96: 996.1124 | L96: 88.3555 | M96: 28155.4562 | N96: 8277.8845 | O96: 991.4413 | Q96: 8083.2513 | R96: 157.3273 | S96: 1720.6536 | T96: 38296.3738 | U96: 175872.1643 | V96: 29471.7822 | W96: 179.7016 | X96: 9587.280864 | Y96: 2171.1321 | Z96: 0 | AA96: 0 | AB96: 0 | AC96: 0 | AD96: 0 | AE96: 0 | AF96: 0 | AG96: 0 | AH96: 0 | AI96: 0 | AJ96: 0 | AK96: 0 | AL96: 0 | AM96: 0
A97: 4 | B97: FALSE | C97: 2022-04-04T22:00:00 | D97: 542787.8956 | E97: 289079.2452 | F97: 336346.044 | G97: 436128.6138 | H97: 542787.8956 | I97: 183312.6783 | J97: 57511.3494 | K97: 952.6607 | L97: 84.5013 | M97: 26838.3612 | N97: 7890.6501 | O97: 945.0623 | Q97: 7705.1217 | R97: 149.9677 | S97: 1773.843 | T97: 38273.5203 | U97: 175884.5585 | V97: 29527.7295 | W97: 179.4787 | X97: 9587.280864 | Y97: 2171.1321 | Z97: 0 | AA97: 0 | AB97: 0 | AC97: 0 | AD97: 0 | AE97: 0 | AF97: 0 | AG97: 0 | AH97: 0 | AI97: 0 | AJ97: 0 | AK97: 0 | AL97: 0 | AM97: 0
A98: 4 | B98: FALSE | C98: 2022-04-04T23:00:00 | D98: 501810.7565 | E98: 250457.0312 | F98: 294216.8356 | G98: 404787.9573 | H98: 501810.7565 | I98: 147802.3489 | J98: 55331.5015 | K98: 916.5521 | L98: 81.2984 | M98: 26158.6693 | N98: 7690.8164 | O98: 921.1282 | Q98: 7509.9865 | R98: 146.1697 | S98: 1716.5386 | T98: 35006.2662 | U98: 177039.0925 | V98: 29552.4018 | W98: 179.5734 | X98: 9587.280864 | Y98: 2171.1321 | Z98: 0 | AA98: 0 | AB98: 0 | AC98: 0 | AD98: 0 | AE98: 0 | AF98: 0 | AG98: 0 | AH98: 0 | AI98: 0 | AJ98: 0 | AK98: 0 | AL98: 0 | AM98: 0
A99: 4 | B99: FALSE | C99: 2022-04-05 | D99: 495794.1838 | E99: 245303.7599 | F99: 286316.5138 | G99: 400472.7714 | H99: 495794.1838 | I99: 146760.8483 | J99: 52245.1008 | K99: 865.4267 | L99: 76.7636 | M99: 25383.1418 | N99: 7462.8063 | O99: 893.8195 | Q99: 7287.3375 | R99: 141.8362 | S99: 1692.4587 | T99: 32542.6847 | U99: 178844.3543 | V99: 29662.7326 | W99: 176.4598 | X99: 9587.280864 | Y99: 2171.1321 | Z99: 0 | AA99: 0 | AB99: 0 | AC99: 0 | AD99: 0 | AE99: 0 | AF99: 0 | AG99: 0 | AH99: 0 | AI99: 0 | AJ99: 0 | AK99: 0 | AL99: 0 | AM99: 0
A100: 4 | B100: FALSE | C100: 2022-04-05T01:00:00 | D100: 485126.5162 | E100: 242161.0028 | F100: 281342.8024 | G100: 390915.9562 | H100: 485126.5162 | I100: 144542.1336 | J100: 51756.8707 | K100: 857.3393 | L100: 76.0462 | M100: 25006.533 | N100: 7352.0809 | O100: 880.5579 | Q100: 7179.2156 | R100: 139.7318 | S100: 1738.485 | T100: 30832.6476 | U100: 173134.6479 | V100: 29692.4618 | W100: 179.3519 | X100: 9587.280864 | Y100: 2171.1321 | Z100: 0 | AA100: 0 | AB100: 0 | AC100: 0 | AD100: 0 | AE100: 0 | AF100: 0 | AG100: 0 | AH100: 0 | AI100: 0 | AJ100: 0 | AK100: 0 | AL100: 0 | AM100: 0
A101: 4 | B101: FALSE | C101: 2022-04-05T02:00:00 | D101: 489757.8924 | E101: 247618.3515 | F101: 285914.2019 | G101: 394511.8788 | H101: 489757.8924 | I101: 151547.513 | J101: 51221.2061 | K101: 848.4661 | L101: 75.2592 | M101: 24193.3539 | N101: 7113.001 | O101: 851.9233 | Q101: 6945.757 | R101: 135.1879 | S101: 1768.8137 | T101: 30199.1954 | U101: 173236.9152 | V101: 29679.5928 | W101: 183.2948 | X101: 9587.280864 | Y101: 2171.1321 | Z101: 0 | AA101: 0 | AB101: 0 | AC101: 0 | AD101: 0 | AE101: 0 | AF101: 0 | AG101: 0 | AH101: 0 | AI101: 0 | AJ101: 0 | AK101: 0 | AL101: 0 | AM101: 0
A102: 4 | B102: FALSE | C102: 2022-04-05T03:00:00 | D102: 490984.7265 | E102: 250205.8126 | F102: 288724.305 | G102: 395086.7203 | H102: 490984.7265 | I102: 155763.9717 | J102: 49171.1354 | K102: 814.5072 | L102: 72.247 | M102: 24544.6713 | N102: 7216.2906 | O102: 864.2943 | Q102: 7046.618 | R102: 137.151 | S102: 1742.4476 | T102: 30350.5436 | U102: 171636.7132 | V102: 29687.167 | W102: 178.5557 | X102: 9587.280864 | Y102: 2171.1321 | Z102: 0 | AA102: 0 | AB102: 0 | AC102: 0 | AD102: 0 | AE102: 0 | AF102: 0 | AG102: 0 | AH102: 0 | AI102: 0 | AJ102: 0 | AK102: 0 | AL102: 0 | AM102: 0
A103: 4 | B103: FALSE | C103: 2022-04-05T04:00:00 | D103: 504694.2075 | E103: 261341.4525 | F103: 301089.8812 | G103: 405973.3422 | H103: 504694.2075 | I103: 164984.8482 | J103: 48289.8875 | K103: 799.9096 | L103: 70.9522 | M103: 26721.2525 | N103: 7856.2194 | O103: 940.9385 | Q103: 7671.5006 | R103: 149.3133 | S103: 1735.4369 | T103: 30942.9864 | U103: 172918.1084 | V103: 29674.3272 | W103: 180.1138 | X103: 9587.280864 | Y103: 2171.1321 | Z103: 0 | AA103: 0 | AB103: 0 | AC103: 0 | AD103: 0 | AE103: 0 | AF103: 0 | AG103: 0 | AH103: 0 | AI103: 0 | AJ103: 0 | AK103: 0 | AL103: 0 | AM103: 0
A104: 4 | B104: FALSE | C104: 2022-04-05T05:00:00 | D104: 540347.7649 | E104: 291945.2659 | F104: 334559.5305 | G104: 433947.4418 | H104: 540347.7649 | I104: 185028.6646 | J104: 51310.9726 | K104: 849.9531 | L104: 75.3911 | M104: 32528.0802 | N104: 9563.464 | O104: 1145.415 | Q104: 9338.6036 | R104: 181.7607 | S104: 1781.0061 | T104: 32019.0868 | U104: 174888.9707 | V104: 29678.4576 | W104: 199.5259 | X104: 9587.280864 | Y104: 2171.1321 | Z104: 0 | AA104: 0 | AB104: 0 | AC104: 0 | AD104: 0 | AE104: 0 | AF104: 0 | AG104: 0 | AH104: 0 | AI104: 0 | AJ104: 0 | AK104: 0 | AL104: 0 | AM104: 0
A105: 4 | B105: FALSE | C105: 2022-04-05T06:00:00 | D105: 576143.4765 | E105: 320294.9588 | F105: 369024.4126 | G105: 461866.0778 | H105: 576143.4765 | I105: 204005.9196 | J105: 56197.8468 | K105: 930.9029 | L105: 82.5714 | M105: 39323.1989 | N105: 11561.2724 | O105: 1384.6923 | Q105: 11289.4387 | R105: 219.7306 | S105: 1829.6232 | T105: 36017.5479 | U105: 175999.8232 | V105: 29651.977 | W105: 201.9364 | X105: 6071.944755 | Y105: 1375.0504 | Z105: 0 | AA105: 0 | AB105: 0 | AC105: 0 | AD105: 0 | AE105: 0 | AF105: 0 | AG105: 0 | AH105: 0 | AI105: 0 | AJ105: 0 | AK105: 0 | AL105: 0 | AM105: 0
A106: 4 | B106: TRUE | C106: 2022-04-05T07:00:00 | D106: 594652.4338 | E106: 324241.1094 | F106: 380204.9521 | G106: 477743.951 | H106: 594652.4338 | I106: 206193.5531 | J106: 61728.0952 | K106: 1022.51 | L106: 90.6969 | M106: 42187.6642 | N106: 12403.4436 | O106: 1485.559 | Q106: 12111.8084 | R106: 235.7366 | S106: 1840.7489 | T106: 42302.1525 | U106: 183152.1085 | V106: 29719.1173 | W106: 179.2396 | X106: 0 | Y106: 0 | Z106: 0 | AA106: 0 | AB106: 0 | AC106: 0 | AD106: 0 | AE106: 0 | AF106: 0 | AG106: 0 | AH106: 0 | AI106: 0 | AJ106: 0 | AK106: 0 | AL106: 0 | AM106: 0
A107: 4 | B107: TRUE | C107: 2022-04-05T08:00:00 | D107: 576306.7574 | E107: 300165.8589 | F107: 360629.2172 | G107: 464036.1797 | H107: 576306.7574 | I107: 167899.1072 | J107: 72369.5356 | K107: 1198.7828 | L107: 106.3324 | M107: 44951.2044 | N107: 13215.9421 | O107: 1582.8719 | Q107: 12905.2031 | R107: 251.1788 | S107: 1861.476 | T107: 45797.4546 | U107: 184417.9768 | V107: 29570.3591 | W107: 179.3326 | X107: 0 | Y107: 0 | Z107: 0 | AA107: 0 | AB107: 0 | AC107: 0 | AD107: 0 | AE107: 0 | AF107: 0 | AG107: 0 | AH107: 0 | AI107: 0 | AJ107: 0 | AK107: 0 | AL107: 0 | AM107: 0
A108: 4 | B108: TRUE | C108: 2022-04-05T09:00:00 | D108: 572621.5996 | E108: 292998.3376 | F108: 355999.9602 | G108: 461413.0365 | H108: 572621.5996 | I108: 156269.3445 | J108: 76482.554 | K108: 1266.9139 | L108: 112.3756 | M108: 45253.4312 | N108: 13304.7987 | O108: 1593.5142 | Q108: 12991.9705 | R108: 252.8676 | S108: 1832.9761 | T108: 48177.0424 | U108: 185345.8145 | V108: 29569.9351 | W108: 168.0613 | X108: 0 | Y108: 0 | Z108: 0 | AA108: 0 | AB108: 0 | AC108: 0 | AD108: 0 | AE108: 0 | AF108: 0 | AG108: 0 | AH108: 0 | AI108: 0 | AJ108: 0 | AK108: 0 | AL108: 0 | AM108: 0
A109: 4 | B109: TRUE | C109: 2022-04-05T10:00:00 | D109: 597033.7252 | E109: 318332.8991 | F109: 380925.8777 | G109: 480031.862 | H109: 597033.7252 | I109: 178280.8815 | J109: 77500.8132 | K109: 1283.7811 | L109: 113.8718 | M109: 46967.0374 | N109: 13808.6099 | O109: 1653.8556 | Q109: 13483.9358 | R109: 262.4429 | S109: 1930.2106 | T109: 47238.1447 | U109: 184692.9465 | V109: 29647.1736 | W109: 170.0206 | X109: 0 | Y109: 0 | Z109: 0 | AA109: 0 | AB109: 0 | AC109: 0 | AD109: 0 | AE109: 0 | AF109: 0 | AG109: 0 | AH109: 0 | AI109: 0 | AJ109: 0 | AK109: 0 | AL109: 0 | AM109: 0
A110: 4 | B110: TRUE | C110: 2022-04-05T11:00:00 | D110: 569753.9225 | E110: 290007.7659 | F110: 352238.6327 | G110: 459350.2151 | H110: 569753.9225 | I110: 149639.363 | J110: 79596.1248 | K110: 1318.4894 | L110: 116.9504 | M110: 45601.7477 | N110: 13407.206 | O110: 1605.7795 | Q110: 13091.9699 | R110: 254.8139 | S110: 1908.7216 | T110: 47250.3575 | U110: 186164.9253 | V110: 29627.6346 | W110: 169.8389 | X110: 0 | Y110: 0 | Z110: 0 | AA110: 0 | AB110: 0 | AC110: 0 | AD110: 0 | AE110: 0 | AF110: 0 | AG110: 0 | AH110: 0 | AI110: 0 | AJ110: 0 | AK110: 0 | AL110: 0 | AM110: 0
A111: 4 | B111: TRUE | C111: 2022-04-05T12:00:00 | D111: 576278.1976 | E111: 296915.8184 | F111: 360709.0628 | G111: 463990.8262 | H111: 576278.1976 | I111: 154635.16 | J111: 79616.2068 | K111: 1318.822 | L111: 116.9799 | M111: 47067.6347 | N111: 13838.1861 | O111: 1657.398 | Q111: 13512.8166 | R111: 263.005 | S111: 1894.5478 | T111: 48373.2313 | U111: 184225.9144 | V111: 29568.8425 | W111: 189.4525 | X111: 0 | Y111: 0 | Z111: 0 | AA111: 0 | AB111: 0 | AC111: 0 | AD111: 0 | AE111: 0 | AF111: 0 | AG111: 0 | AH111: 0 | AI111: 0 | AJ111: 0 | AK111: 0 | AL111: 0 | AM111: 0
A112: 4 | B112: TRUE | C112: 2022-04-05T13:00:00 | D112: 570883.5399 | E112: 282177.4057 | F112: 343971.7723 | G112: 462301.8423 | H112: 570883.5399 | I112: 148652.206 | J112: 73697.6307 | K112: 1220.7823 | L112: 108.2838 | M112: 44814.9704 | N112: 13175.8884 | O112: 1578.0747 | Q112: 12866.0912 | R112: 250.4175 | S112: 1959.7773 | T112: 47147.2784 | U112: 195524.0113 | V112: 29701.3978 | W112: 186.7301 | X112: 0 | Y112: 0 | Z112: 0 | AA112: 0 | AB112: 0 | AC112: 0 | AD112: 0 | AE112: 0 | AF112: 0 | AG112: 0 | AH112: 0 | AI112: 0 | AJ112: 0 | AK112: 0 | AL112: 0 | AM112: 0
A113: 4 | B113: TRUE | C113: 2022-04-05T14:00:00 | D113: 580929.4512 | E113: 301378.473 | F113: 360338.9855 | G113: 468684.2588 | H113: 580929.4512 | I113: 167412.3866 | J113: 75394.8949 | K113: 1248.8971 | L113: 110.7775 | M113: 43831.2798 | N113: 12886.6771 | O113: 1543.4358 | Q113: 12583.6799 | R113: 244.9209 | S113: 1987.515 | T113: 44580.0174 | U113: 189324.722 | V113: 29611.5304 | W113: 168.7168 | X113: 0 | Y113: 0 | Z113: 0 | AA113: 0 | AB113: 0 | AC113: 0 | AD113: 0 | AE113: 0 | AF113: 0 | AG113: 0 | AH113: 0 | AI113: 0 | AJ113: 0 | AK113: 0 | AL113: 0 | AM113: 0
A114: 4 | B114: TRUE | C114: 2022-04-05T15:00:00 | D114: 557742.0603 | E114: 289301.8402 | F114: 345550.7913 | G114: 448963.5611 | H114: 557742.0603 | I114: 158576.9304 | J114: 74180.1523 | K114: 1228.7752 | L114: 108.9927 | M114: 42335.4897 | N114: 12446.9052 | O114: 1490.7644 | Q114: 12154.2481 | R114: 236.5627 | S114: 1889.2137 | T114: 42336.708 | U114: 181055.4162 | V114: 29536.0957 | W114: 165.806 | X114: 0 | Y114: 0 | Z114: 0 | AA114: 0 | AB114: 0 | AC114: 0 | AD114: 0 | AE114: 0 | AF114: 0 | AG114: 0 | AH114: 0 | AI114: 0 | AJ114: 0 | AK114: 0 | AL114: 0 | AM114: 0
A115: 4 | B115: TRUE | C115: 2022-04-05T16:00:00 | D115: 538640.7191 | E115: 274681.1136 | F115: 328053.0486 | G115: 433829.2128 | H115: 538640.7191 | I115: 157304.8422 | J115: 66938.0873 | K115: 1108.8122 | L115: 98.352 | M115: 37582.6399 | N115: 11049.5369 | O115: 1323.4018 | Q115: 10789.7353 | R115: 210.0046 | S115: 1901.1012 | T115: 41003.5813 | U115: 179584.1963 | V115: 29581.7204 | W115: 164.7077 | X115: 0 | Y115: 0 | Z115: 0 | AA115: 0 | AB115: 0 | AC115: 0 | AD115: 0 | AE115: 0 | AF115: 0 | AG115: 0 | AH115: 0 | AI115: 0 | AJ115: 0 | AK115: 0 | AL115: 0 | AM115: 0
A116: 4 | B116: TRUE | C116: 2022-04-05T17:00:00 | D116: 579044.4614 | E116: 317000.5625 | F116: 367380.9422 | G116: 465106.0711 | H116: 579044.4614 | I116: 204957.0593 | J116: 63451.4784 | K116: 1051.0574 | L116: 93.2291 | M116: 36156.9646 | N116: 10630.3792 | O116: 1273.1993 | Q116: 10380.4331 | R116: 202.0382 | S116: 1886.1656 | T116: 38496.9049 | U116: 180607.2383 | V116: 29689.8525 | W116: 168.4615 | X116: 0 | Y116: 0 | Z116: 0 | AA116: 0 | AB116: 0 | AC116: 0 | AD116: 0 | AE116: 0 | AF116: 0 | AG116: 0 | AH116: 0 | AI116: 0 | AJ116: 0 | AK116: 0 | AL116: 0 | AM116: 0
A117: 4 | B117: TRUE | C117: 2022-04-05T18:00:00 | D117: 568197.0287 | E117: 307167.3923 | F117: 357744.9337 | G117: 456500.443 | H117: 568197.0287 | I117: 197495.4499 | J117: 65033.1272 | K117: 1077.257 | L117: 95.553 | M117: 33122.4344 | N117: 9738.2079 | O117: 1166.3441 | Q117: 9509.2389 | R117: 185.0819 | S117: 1832.9761 | T117: 39576.9946 | U117: 179532.4011 | V117: 29657.7968 | W117: 174.1658 | X117: 0 | Y117: 0 | Z117: 0 | AA117: 0 | AB117: 0 | AC117: 0 | AD117: 0 | AE117: 0 | AF117: 0 | AG117: 0 | AH117: 0 | AI117: 0 | AJ117: 0 | AK117: 0 | AL117: 0 | AM117: 0
A118: 4 | B118: TRUE | C118: 2022-04-05T19:00:00 | D118: 573028.6762 | E118: 317998.5754 | F118: 367984.2057 | G118: 458939.515 | H118: 573028.6762 | I118: 209380.2614 | J118: 64646.2558 | K118: 1070.8486 | L118: 94.9846 | M118: 32546.8608 | N118: 9568.9856 | O118: 1146.0763 | Q118: 9343.9954 | R118: 181.8657 | S118: 1887.5371 | T118: 39163.9304 | U118: 174101.1278 | V118: 29702.2818 | W118: 193.6649 | X118: 0 | Y118: 0 | Z118: 0 | AA118: 0 | AB118: 0 | AC118: 0 | AD118: 0 | AE118: 0 | AF118: 0 | AG118: 0 | AH118: 0 | AI118: 0 | AJ118: 0 | AK118: 0 | AL118: 0 | AM118: 0
A119: 4 | B119: TRUE | C119: 2022-04-05T20:00:00 | D119: 600695.9979 | E119: 344575.5522 | F119: 394930.7338 | G119: 480449.1648 | H119: 600695.9979 | I119: 232025.5154 | J119: 63260.2582 | K119: 1047.8899 | L119: 92.9481 | M119: 31734.6255 | N119: 9330.1832 | O119: 1117.475 | Q119: 9110.8079 | R119: 177.3271 | S119: 1788.1691 | T119: 39799.7814 | U119: 174874.3194 | V119: 29680.5216 | W119: 189.0489 | X119: 5273.00451 | Y119: 1194.1227 | Z119: 0 | AA119: 0 | AB119: 0 | AC119: 0 | AD119: 0 | AE119: 0 | AF119: 0 | AG119: 0 | AH119: 0 | AI119: 0 | AJ119: 0 | AK119: 0 | AL119: 0 | AM119: 0
A120: 4 | B120: FALSE | C120: 2022-04-05T21:00:00 | D120: 583068.6633 | E120: 330194.8008 | F120: 378824.5432 | G120: 466500.3496 | H120: 583068.6633 | I120: 219202.1342 | J120: 59693.7667 | K120: 988.8119 | L120: 87.7079 | M120: 29245.5539 | N120: 8598.3802 | O120: 1029.827 | Q120: 8396.2113 | R120: 163.4186 | S120: 1721.2633 | T120: 38879.1317 | U120: 173431.0789 | V120: 29695.5063 | W120: 177.4584 | X120: 9587.280864 | Y120: 2171.1321 | Z120: 0 | AA120: 0 | AB120: 0 | AC120: 0 | AD120: 0 | AE120: 0 | AF120: 0 | AG120: 0 | AH120: 0 | AI120: 0 | AJ120: 0 | AK120: 0 | AL120: 0 | AM120: 0
A121: 4 | B121: FALSE | C121: 2022-04-05T22:00:00 | D121: 528975.9298 | E121: 277006.2875 | F121: 324483.144 | G121: 424875.9698 | H121: 528975.9298 | I121: 171249.5953 | J121: 57061.3925 | K121: 945.2073 | L121: 83.8402 | M121: 27224.818 | N121: 8004.2709 | O121: 958.6706 | Q121: 7816.071 | R121: 152.1271 | S121: 1716.3863 | T121: 38375.2512 | U121: 173761.4433 | V121: 29688.8317 | W121: 179.6114 | X121: 9587.280864 | Y121: 2171.1321 | Z121: 0 | AA121: 0 | AB121: 0 | AC121: 0 | AD121: 0 | AE121: 0 | AF121: 0 | AG121: 0 | AH121: 0 | AI121: 0 | AJ121: 0 | AK121: 0 | AL121: 0 | AM121: 0
A122: 4 | B122: FALSE | C122: 2022-04-05T23:00:00 | D122: 513055.5976 | E122: 265575.3985 | F122: 310911.7537 | G122: 412124.0683 | H122: 513055.5976 | I122: 157942.8256 | J122: 58755.2075 | K122: 973.2649 | L122: 86.3289 | M122: 27356.2057 | N122: 8042.8997 | O122: 963.2972 | Q122: 7853.7915 | R122: 152.8613 | S122: 1730.2552 | T122: 36167.3293 | U122: 171461.5981 | V122: 29632.6197 | W122: 178.7001 | X122: 9587.280864 | Y122: 2171.1321 | Z122: 0 | AA122: 0 | AB122: 0 | AC122: 0 | AD122: 0 | AE122: 0 | AF122: 0 | AG122: 0 | AH122: 0 | AI122: 0 | AJ122: 0 | AK122: 0 | AL122: 0 | AM122: 0
A123: 4 | B123: FALSE | C123: 2022-04-06 | D123: 484064.6673 | E123: 238917.2278 | F123: 280535.8016 | G123: 390078.1856 | H123: 484064.6673 | I123: 138512.8047 | J123: 53812.3104 | K123: 891.3871 | L123: 79.0663 | M123: 25638.1629 | N123: 7537.7842 | O123: 902.7996 | Q123: 7360.5525 | R123: 143.2612 | S123: 1662.5873 | T123: 33046.1413 | U123: 172893.5533 | V123: 29653.4465 | W123: 172.397 | X123: 9587.280864 | Y123: 2171.1321 | Z123: 0 | AA123: 0 | AB123: 0 | AC123: 0 | AD123: 0 | AE123: 0 | AF123: 0 | AG123: 0 | AH123: 0 | AI123: 0 | AJ123: 0 | AK123: 0 | AL123: 0 | AM123: 0
A124: 4 | B124: FALSE | C124: 2022-04-06T01:00:00 | D124: 472042.2491 | E124: 233040.5913 | F124: 272648.1907 | G124: 379876.4207 | H124: 472042.2491 | I124: 134634.0957 | J124: 52874.39 | K124: 875.8507 | L124: 77.6882 | M124: 24801.2834 | N124: 7291.7362 | O124: 873.3304 | Q124: 7120.2897 | R124: 138.5849 | S124: 1678.1326 | T124: 31301.4276 | U124: 168801.4437 | V124: 29641.5961 | W124: 173.987 | X124: 9587.280864 | Y124: 2171.1321 | Z124: 0 | AA124: 0 | AB124: 0 | AC124: 0 | AD124: 0 | AE124: 0 | AF124: 0 | AG124: 0 | AH124: 0 | AI124: 0 | AJ124: 0 | AK124: 0 | AL124: 0 | AM124: 0
A125: 4 | B125: FALSE | C125: 2022-04-06T02:00:00 | D125: 459084.1221 | E125: 223922.3808 | F125: 263035.8569 | G125: 369126.1649 | H125: 459084.1221 | I125: 126514.5549 | J125: 52321.7458 | K125: 866.6963 | L125: 76.8762 | M125: 24433.8417 | N125: 7183.706 | O125: 860.3917 | Q125: 7014.7996 | R125: 136.5317 | S125: 1702.6697 | T125: 30926.5421 | U125: 165472.9527 | V125: 29638.0446 | W125: 176.3561 | X125: 9587.280864 | Y125: 2171.1321 | Z125: 0 | AA125: 0 | AB125: 0 | AC125: 0 | AD125: 0 | AE125: 0 | AF125: 0 | AG125: 0 | AH125: 0 | AI125: 0 | AJ125: 0 | AK125: 0 | AL125: 0 | AM125: 0
A126: 4 | B126: FALSE | C126: 2022-04-06T03:00:00 | D126: 461731.6435 | E126: 228702.7908 | F126: 267467.9866 | G126: 370775.8017 | H126: 461731.6435 | I126: 132818.7925 | J126: 51579.4802 | K126: 854.4008 | L126: 75.7856 | M126: 23882.5845 | N126: 7021.6328 | O126: 840.9802 | Q126: 6856.5371 | R126: 133.4513 | S126: 1632.5634 | T126: 30755.7109 | U126: 163727.3468 | V126: 29619.5443 | W126: 174.4201 | X126: 9587.280864 | Y126: 2171.1321 | Z126: 0 | AA126: 0 | AB126: 0 | AC126: 0 | AD126: 0 | AE126: 0 | AF126: 0 | AG126: 0 | AH126: 0 | AI126: 0 | AJ126: 0 | AK126: 0 | AL126: 0 | AM126: 0
A127: 4 | B127: FALSE | C127: 2022-04-06T04:00:00 | D127: 472999.8784 | E127: 239445.9954 | F127: 279207.9213 | G127: 379325.7861 | H127: 472999.8784 | I127: 143087.2696 | J127: 48793.586 | K127: 808.2532 | L127: 71.6923 | M127: 26357.442 | N127: 7749.2568 | O127: 928.1276 | Q127: 7567.0529 | R127: 147.2804 | S127: 1702.5174 | T127: 31057.1355 | U127: 163146.5678 | V127: 29645.5694 | W127: 179.7146 | X127: 9587.280864 | Y127: 2171.1321 | Z127: 0 | AA127: 0 | AB127: 0 | AC127: 0 | AD127: 0 | AE127: 0 | AF127: 0 | AG127: 0 | AH127: 0 | AI127: 0 | AJ127: 0 | AK127: 0 | AL127: 0 | AM127: 0
A128: 4 | B128: FALSE | C128: 2022-04-06T05:00:00 | D128: 506724.261 | E128: 268918.2076 | F128: 310921.1254 | G128: 405782.748 | H128: 506724.261 | I128: 164660.0211 | J128: 50560.4946 | K128: 837.5216 | L128: 74.2884 | M128: 31057.7679 | N128: 9131.1828 | O128: 1093.6407 | Q128: 8916.4864 | R128: 173.5449 | S128: 1771.2521 | T128: 31860.6685 | U128: 164994.7523 | V128: 29640.4542 | W128: 193.7725 | X128: 9587.280864 | Y128: 2171.1321 | Z128: 0 | AA128: 0 | AB128: 0 | AC128: 0 | AD128: 0 | AE128: 0 | AF128: 0 | AG128: 0 | AH128: 0 | AI128: 0 | AJ128: 0 | AK128: 0 | AL128: 0 | AM128: 0
A129: 4 | B129: FALSE | C129: 2022-04-06T06:00:00 | D129: 549416.147 | E129: 301827.0186 | F129: 349668.8586 | G129: 439627.7549 | H129: 549416.147 | I129: 190469.2234 | J129: 52943.5964 | K129: 876.9971 | L129: 77.7899 | M129: 38211.9667 | N129: 11234.563 | O129: 1345.5623 | Q129: 10970.4111 | R129: 213.5212 | S129: 1801.7332 | T129: 35516.7587 | U129: 168722.3111 | V129: 29601.6251 | W129: 179.0665 | X129: 5912.156498 | Y129: 1338.8648 | Z129: 0 | AA129: 0 | AB129: 0 | AC129: 0 | AD129: 0 | AE129: 0 | AF129: 0 | AG129: 0 | AH129: 0 | AI129: 0 | AJ129: 0 | AK129: 0 | AL129: 0 | AM129: 0
A130: 4 | B130: TRUE | C130: 2022-04-06T07:00:00 | D130: 592002.9881 | E130: 330471.3226 | F130: 384097.877 | G130: 474256.2227 | H130: 592002.9881 | I130: 216313.7028 | J130: 58414.8911 | K130: 967.6277 | L130: 85.8289 | M130: 41742.9073 | N130: 12272.6822 | O130: 1469.8978 | Q130: 11984.1215 | R130: 233.2514 | S130: 1840.7489 | T130: 40152.9931 | U130: 176684.7179 | V130: 29664.6665 | W130: 174.951 | X130: 0 | Y130: 0 | Z130: 0 | AA130: 0 | AB130: 0 | AC130: 0 | AD130: 0 | AE130: 0 | AF130: 0 | AG130: 0 | AH130: 0 | AI130: 0 | AJ130: 0 | AK130: 0 | AL130: 0 | AM130: 0
A131: 4 | B131: =PeakTime(C131,Holidays,PkStart,PkEnd,UseDST,DST_1,DST_2) -> TRUE | C131: 2022-04-06T08:00:00 | D131: =SUM(OFFSET(I131,0,0,1,COUNTA(I131:IV131))) -> 554966.9369 | E131: =SUMIF(OFFSET($I$2,0,0,1,COUNTA($I$2:$IV$2)),E$2,OFFSET(I131,0,0,1,COUNTA(I131:IV131))) -> 290262.1864 | F131: =E131+SUMIF(OFFSET($I$2,0,0,1,COUNTA($I$2:$IV$2)),F$2,OFFSET(I131,0,0,1,COUNTA(I131:IV131))) -> 348013.8045 | G131: =F131*DistAtSubtran+SUMIF(OFFSET($I$2,0,0,1,COUNTA($I$2:$IV$2)),G$2,OFFSET(I131,0,0,1,COUNTA(I131:IV131))) -> 445521.1137 | H131: =SUM(OFFSET(I131,0,0,1,COUNTA(I131:IV131))) -> 554966.9369 | I131: 165758.7213 | J131: 64721.6489 | K131: 1072.0975 | L131: 95.0954 | M131: 44840.4821 | N131: 13183.389 | O131: 1578.973 | Q131: 12873.4154 | R131: 250.5601 | S131: 1891.0425 | T131: 43245.5715 | U131: 175640.4675 | V131: 29638.5965 | W131: 176.8762 | X131: 0 | Y131: 0 | Z131: 0 | AA131: 0 | AB131: 0 | AC131: 0 | AD131: 0 | AE131: 0 | AF131: 0 | AG131: 0 | AH131: 0 | AI131: 0 | AJ131: 0 | AK131: 0 | AL131: 0 | AM131: 0
A132: =MONTH(C132) -> 4 | B132: TRUE | C132: =+C131+1/24 -> 2022-04-06T09:00:00 | D132: 550141.3638 | E132: 282337.4929 | F132: 341488.423 | G132: 442311.8156 | H132: 550141.3638 | I132: 148873.5644 | J132: 73027.6922 | K132: 1209.685 | L132: 107.2994 | M132: 45371.6391 | N132: 13339.5526 | O132: 1597.6767 | Q132: 13025.9072 | R132: 253.5281 | S132: 1858.8851 | T132: 44348.1644 | U132: 177429.2296 | V132: 29518.7351 | W132: 179.8049 | X132: 0 | Y132: 0 | Z132: 0 | AA132: 0 | AB132: 0 | AC132: 0 | AD132: 0 | AE132: 0 | AF132: 0 | AG132: 0 | AH132: 0 | AI132: 0 | AJ132: 0 | AK132: 0 | AL132: 0 | AM132: 0
A133: 4 | B133: TRUE | C133: 2022-04-06T10:00:00 | D133: 572425.4713 | E133: 303994.0803 | F133: 361970.7843 | G133: 459802.5222 | H133: 572425.4713 | I133: 166564.6099 | J133: 77145.0685 | K133: 1277.8882 | L133: 113.3491 | M133: 45195.8095 | N133: 13287.8575 | O133: 1591.4852 | Q133: 12975.4276 | R133: 252.5456 | S133: 1941.3362 | T133: 43158.4127 | U133: 179134.773 | V133: 29615.0797 | W133: 171.8286 | X133: 0 | Y133: 0 | Z133: 0 | AA133: 0 | AB133: 0 | AC133: 0 | AD133: 0 | AE133: 0 | AF133: 0 | AG133: 0 | AH133: 0 | AI133: 0 | AJ133: 0 | AK133: 0 | AL133: 0 | AM133: 0
A134: 4 | B134: TRUE | C134: 2022-04-06T11:00:00 | D134: 548287.7764 | E134: 279571.988 | F134: 339169.4273 | G134: 440811.2145 | H134: 548287.7764 | I134: 142030.1755 | J134: 77754.3378 | K134: 1287.9806 | L134: 114.2443 | M134: 44907.8785 | N134: 13203.204 | O134: 1581.3462 | Q134: 12892.7645 | R134: 250.9367 | S134: 1940.117 | T134: 44855.318 | U134: 177725.213 | V134: 29697.5456 | W134: 46.7147 | X134: 0 | Y134: 0 | Z134: 0 | AA134: 0 | AB134: 0 | AC134: 0 | AD134: 0 | AE134: 0 | AF134: 0 | AG134: 0 | AH134: 0 | AI134: 0 | AJ134: 0 | AK134: 0 | AL134: 0 | AM134: 0
A135: 4 | B135: TRUE | C135: 2022-04-06T12:00:00 | D135: 526944.7581 | E135: 257758.3304 | F135: 318146.3601 | G135: 424307.504 | H135: 526944.7581 | I135: 120708.6559 | J135: 75994.5502 | K135: 1258.8302 | L135: 111.6586 | M135: 45926.9713 | N135: 13502.8238 | O135: 1617.2317 | Q135: 13185.3395 | R135: 256.6312 | S135: 1856.9037 | T135: 45369.7445 | U135: 177390.2178 | V135: 29679.2899 | W135: 85.9098 | X135: 0 | Y135: 0 | Z135: 0 | AA135: 0 | AB135: 0 | AC135: 0 | AD135: 0 | AE135: 0 | AF135: 0 | AG135: 0 | AH135: 0 | AI135: 0 | AJ135: 0 | AK135: 0 | AL135: 0 | AM135: 0
A136: 4 | B136: TRUE | C136: 2022-04-06T13:00:00 | D136: 551922.8429 | E136: 283621.5498 | F136: 344126.4274 | G136: 443234.1823 | H136: 551922.8429 | I136: 149597.7922 | J136: 73646.809 | K136: 1219.9405 | L136: 108.2091 | M136: 45404.1533 | N136: 13349.112 | O136: 1598.8216 | Q136: 13035.2418 | R136: 253.7098 | S136: 1837.7008 | T136: 45682.1153 | U136: 176316.4897 | V136: 29772.8951 | W136: 99.8527 | X136: 0 | Y136: 0 | Z136: 0 | AA136: 0 | AB136: 0 | AC136: 0 | AD136: 0 | AE136: 0 | AF136: 0 | AG136: 0 | AH136: 0 | AI136: 0 | AJ136: 0 | AK136: 0 | AL136: 0 | AM136: 0
A137: 4 | B137: TRUE | C137: 2022-04-06T14:00:00 | D137: 523032.1123 | E137: 256010.474 | F137: 316290.893 | G137: 420628.4426 | H137: 523032.1123 | I137: 122102.4948 | J137: 74009.1016 | K137: 1225.9418 | L137: 108.7414 | M137: 45030.8847 | N137: 13239.3686 | O137: 1585.6777 | Q137: 12928.0788 | R137: 251.624 | S137: 1850.0455 | T137: 45563.4846 | U137: 175175.5952 | V137: 29871.205 | W137: 89.8686 | X137: 0 | Y137: 0 | Z137: 0 | AA137: 0 | AB137: 0 | AC137: 0 | AD137: 0 | AE137: 0 | AF137: 0 | AG137: 0 | AH137: 0 | AI137: 0 | AJ137: 0 | AK137: 0 | AL137: 0 | AM137: 0
A138: 4 | B138: TRUE | C138: 2022-04-06T15:00:00 | D138: 526407.4684 | E138: 259709.886 | F138: 319827.7648 | G138: 423148.709 | H138: 526407.4684 | I138: 128560.3928 | J138: 73951.4691 | K138: 1224.9871 | L138: 108.6567 | M138: 42919.3233 | N138: 12618.556 | O138: 1511.323 | Q138: 12321.863 | R138: 239.825 | S138: 1867.7245 | T138: 46034.5107 | U138: 175044.5118 | V138: 29915.2121 | W138: 89.1133 | X138: 0 | Y138: 0 | Z138: 0 | AA138: 0 | AB138: 0 | AC138: 0 | AD138: 0 | AE138: 0 | AF138: 0 | AG138: 0 | AH138: 0 | AI138: 0 | AJ138: 0 | AK138: 0 | AL138: 0 | AM138: 0
A139: 4 | B139: TRUE | C139: 2022-04-06T16:00:00 | D139: 544661.8679 | E139: 282670.3547 | F139: 338663.552 | G139: 437013.1737 | H139: 544661.8679 | I139: 155410.2671 | J139: 75356.8625 | K139: 1248.2671 | L139: 110.7217 | M139: 38778.7859 | N139: 11401.2115 | O139: 1365.5218 | Q139: 11133.1412 | R139: 216.6885 | S139: 1876.8688 | T139: 43127.0302 | U139: 174536.3861 | V139: 29985.6863 | W139: 114.4292 | X139: 0 | Y139: 0 | Z139: 0 | AA139: 0 | AB139: 0 | AC139: 0 | AD139: 0 | AE139: 0 | AF139: 0 | AG139: 0 | AH139: 0 | AI139: 0 | AJ139: 0 | AK139: 0 | AL139: 0 | AM139: 0
A140: 4 | B140: TRUE | C140: 2022-04-06T17:00:00 | D140: 532547.5786 | E140: 276172.8217 | F140: 329957.2914 | G140: 426902.7152 | H140: 532547.5786 | I140: 156791.9239 | J140: 71232.2155 | K140: 1179.9434 | L140: 104.6613 | M140: 35830.622 | N140: 10534.4324 | O140: 1261.7078 | Q140: 10286.7422 | R140: 200.2147 | S140: 1859.4946 | T140: 41869.8792 | U140: 171245.5255 | V140: 29978.3926 | W140: 171.8235 | X140: 0 | Y140: 0 | Z140: 0 | AA140: 0 | AB140: 0 | AC140: 0 | AD140: 0 | AE140: 0 | AF140: 0 | AG140: 0 | AH140: 0 | AI140: 0 | AJ140: 0 | AK140: 0 | AL140: 0 | AM140: 0
A141: 4 | B141: TRUE | C141: 2022-04-06T18:00:00 | D141: 492573.1468 | E141: 237507.2781 | F141: 288896.6168 | G141: 396363.5935 | H141: 492573.1468 | I141: 124054.5956 | J141: 67400.7094 | K141: 1116.4754 | L141: 99.0317 | M141: 34253.6115 | N141: 10070.7812 | O141: 1206.1763 | Q141: 9833.9926 | R141: 191.4027 | S141: 1784.0541 | T141: 40010.6794 | U141: 172412.1229 | V141: 29959.1991 | W141: 180.3149 | X141: 0 | Y141: 0 | Z141: 0 | AA141: 0 | AB141: 0 | AC141: 0 | AD141: 0 | AE141: 0 | AF141: 0 | AG141: 0 | AH141: 0 | AI141: 0 | AJ141: 0 | AK141: 0 | AL141: 0 | AM141: 0
A142: 4 | B142: TRUE | C142: 2022-04-06T19:00:00 | D142: 515800.8095 | E142: 261182.065 | F142: 311392.0978 | G142: 414690.5056 | H142: 515800.8095 | I142: 156584.8102 | J142: 60042.3721 | K142: 994.5865 | L142: 88.2201 | M142: 33054.3796 | N142: 9718.1994 | O142: 1163.9476 | Q142: 9489.7008 | R142: 184.7016 | S142: 1808.8961 | T142: 39312.5453 | U142: 173455.3032 | V142: 29701.2408 | W142: 201.9062 | X142: 0 | Y142: 0 | Z142: 0 | AA142: 0 | AB142: 0 | AC142: 0 | AD142: 0 | AE142: 0 | AF142: 0 | AG142: 0 | AH142: 0 | AI142: 0 | AJ142: 0 | AK142: 0 | AL142: 0 | AM142: 0
A143: 4 | B143: TRUE | C143: 2022-04-06T20:00:00 | D143: 540746.92 | E143: 285249.947 | F143: 334842.9099 | G143: 434262.573 | H143: 540746.92 | I143: 179622.6423 | J143: 58748.331 | K143: 973.151 | L143: 86.3188 | M143: 30021.7682 | N143: 8826.5922 | O143: 1057.1599 | Q143: 8619.0575 | R143: 167.7559 | S143: 1766.8323 | T143: 39625.4638 | U143: 175063.0351 | V143: 29697.4963 | W143: 200.162 | X143: 5113.2166 | Y143: 1157.9371 | Z143: 0 | AA143: 0 | AB143: 0 | AC143: 0 | AD143: 0 | AE143: 0 | AF143: 0 | AG143: 0 | AH143: 0 | AI143: 0 | AJ143: 0 | AK143: 0 | AL143: 0 | AM143: 0
A144: 4 | B144: FALSE | C144: 2022-04-06T21:00:00 | D144: 540597.6725 | E144: 287570.5597 | F144: 335178.6855 | G144: 434004.2511 | H144: 540597.6725 | I144: 184781.4786 | J144: 54217.019 | K144: 898.091 | L144: 79.6609 | M144: 27168.4255 | N144: 7987.6911 | O144: 956.6849 | Q144: 7799.8811 | R144: 151.812 | S144: 1661.8253 | T144: 38570.5317 | U144: 174653.0712 | V144: 29729.57 | W144: 183.5172 | X144: 9587.280864 | Y144: 2171.1321 | Z144: 0 | AA144: 0 | AB144: 0 | AC144: 0 | AD144: 0 | AE144: 0 | AF144: 0 | AG144: 0 | AH144: 0 | AI144: 0 | AJ144: 0 | AK144: 0 | AL144: 0 | AM144: 0
A145: 4 | B145: FALSE | C145: 2022-04-06T22:00:00 | D145: 493896.5616 | E145: 240462.1941 | F145: 288375.0991 | G145: 398041.5524 | H145: 493896.5616 | I145: 141880.3055 | J145: 53063.6903 | K145: 878.9864 | L145: 77.9664 | M145: 24741.7005 | N145: 7274.2185 | O145: 871.2323 | Q145: 7103.1838 | R145: 138.2519 | S145: 1728.2738 | T145: 39621.4482 | U145: 174848.0132 | V145: 29724.2506 | W145: 186.6273 | X145: 9587.280864 | Y145: 2171.1321 | Z145: 0 | AA145: 0 | AB145: 0 | AC145: 0 | AD145: 0 | AE145: 0 | AF145: 0 | AG145: 0 | AH145: 0 | AI145: 0 | AJ145: 0 | AK145: 0 | AL145: 0 | AM145: 0
A146: 4 | B146: FALSE | C146: 2022-04-06T23:00:00 | D146: 468831.4047 | E146: 219102.4289 | F146: 263937.6871 | G146: 378611.2987 | H146: 468831.4047 | I146: 121346.2338 | J146: 52648.8896 | K146: 872.1153 | L146: 77.3569 | M146: 24467.0284 | N146: 7193.4631 | O146: 861.5603 | Q146: 7024.3273 | R146: 136.7171 | S146: 1672.3413 | T146: 36632.9627 | U146: 174261.4165 | V146: 29693.3839 | W146: 185.1955 | X146: 9587.280864 | Y146: 2171.1321 | Z146: 0 | AA146: 0 | AB146: 0 | AC146: 0 | AD146: 0 | AE146: 0 | AF146: 0 | AG146: 0 | AH146: 0 | AI146: 0 | AJ146: 0 | AK146: 0 | AL146: 0 | AM146: 0
A147: 4 | B147: FALSE | C147: 2022-04-07 | D147: 452473.922 | E147: 208852.4216 | F147: 250436.886 | G147: 365329.4127 | H147: 452473.922 | I147: 117293.3787 | J147: 46423.9707 | K147: 769.0012 | L147: 68.2106 | M147: 24465.0362 | N147: 7192.8774 | O147: 861.4901 | Q147: 7023.7553 | R147: 136.706 | S147: 1690.9347 | T147: 33485.8798 | U147: 171393.5172 | V147: 29713.8181 | W147: 196.9331 | X147: 9587.280864 | Y147: 2171.1321 | Z147: 0 | AA147: 0 | AB147: 0 | AC147: 0 | AD147: 0 | AE147: 0 | AF147: 0 | AG147: 0 | AH147: 0 | AI147: 0 | AJ147: 0 | AK147: 0 | AL147: 0 | AM147: 0
A148: 4 | B148: FALSE | C148: 2022-04-07T01:00:00 | D148: 443082.5088 | E148: 203715.5715 | F148: 242834.2815 | G148: 357601.1409 | H148: 443082.5088 | I148: 114558.3432 | J148: 45751.0538 | K148: 757.8545 | L148: 67.2219 | M148: 23140.6957 | N148: 6803.5128 | O148: 814.856 | Q148: 6643.5456 | R148: 129.3058 | S148: 1674.7797 | T148: 31428.0369 | U148: 169572.0281 | V148: 29794.1213 | W148: 188.7406 | X148: 9587.280864 | Y148: 2171.1321 | Z148: 0 | AA148: 0 | AB148: 0 | AC148: 0 | AD148: 0 | AE148: 0 | AF148: 0 | AG148: 0 | AH148: 0 | AI148: 0 | AJ148: 0 | AK148: 0 | AL148: 0 | AM148: 0
A149: 4 | B149: FALSE | C149: 2022-04-07T02:00:00 | D149: 443018.8315 | E149: 206084.5947 | F149: 245005.5899 | G149: 357086.2969 | H149: 443018.8315 | I149: 113054.971 | J149: 48964.4139 | K149: 811.0829 | L149: 71.9433 | M149: 23673.4282 | N149: 6960.1396 | O149: 833.6151 | Q149: 6796.4897 | R149: 132.2826 | S149: 1651.4617 | T149: 31017.4901 | U149: 167360.3241 | V149: 29747.3591 | W149: 185.4172 | X149: 9587.280864 | Y149: 2171.1321 | Z149: 0 | AA149: 0 | AB149: 0 | AC149: 0 | AD149: 0 | AE149: 0 | AF149: 0 | AG149: 0 | AH149: 0 | AI149: 0 | AJ149: 0 | AK149: 0 | AL149: 0 | AM149: 0
A150: 4 | B150: FALSE | C150: 2022-04-07T03:00:00 | D150: 448905.4169 | E150: 211703.8872 | F150: 250030.3627 | G150: 361815.8776 | H150: 448905.4169 | I150: 118836.9906 | J150: 49233.031 | K150: 815.5325 | L150: 72.338 | M150: 23324.2725 | N150: 6857.4855 | O150: 821.3203 | Q150: 6696.2493 | R150: 130.3316 | S150: 1685.2957 | T150: 30523.1259 | U150: 168229.3231 | V150: 29752.0728 | W150: 169.6351 | X150: 9587.280864 | Y150: 2171.1321 | Z150: 0 | AA150: 0 | AB150: 0 | AC150: 0 | AD150: 0 | AE150: 0 | AF150: 0 | AG150: 0 | AH150: 0 | AI150: 0 | AJ150: 0 | AK150: 0 | AL150: 0 | AM150: 0
A151: 4 | B151: FALSE | C151: 2022-04-07T04:00:00 | D151: 459435.9647 | E151: 220362.8524 | F151: 259821.1199 | G151: 370087.8447 | H151: 459435.9647 | I151: 125518.3362 | J151: 48390.7242 | K151: 801.5799 | L151: 71.1004 | M151: 25541.7507 | N151: 7509.4384 | O151: 899.4046 | Q151: 7332.8732 | R151: 142.7224 | S151: 1644.4511 | T151: 31004.5268 | U151: 168878.9224 | V151: 29765.4174 | W151: 176.3041 | X151: 9587.280864 | Y151: 2171.1321 | Z151: 0 | AA151: 0 | AB151: 0 | AC151: 0 | AD151: 0 | AE151: 0 | AF151: 0 | AG151: 0 | AH151: 0 | AI151: 0 | AJ151: 0 | AK151: 0 | AL151: 0 | AM151: 0
A152: 4 | B152: FALSE | C152: 2022-04-07T05:00:00 | D152: 510020.7472 | E152: 268312.5027 | F152: 309952.1887 | G152: 409178.3451 | H152: 510020.7472 | I152: 167996.5818 | J152: 46525.4316 | K152: 770.6818 | L152: 68.3597 | M152: 31142.3313 | N152: 9156.0449 | O152: 1096.6185 | Q152: 8940.764 | R152: 174.0174 | S152: 1765.1559 | T152: 31538.9419 | U152: 169140.0385 | V152: 29763.5418 | W152: 183.8252 | X152: 9587.280864 | Y152: 2171.1321 | Z152: 0 | AA152: 0 | AB152: 0 | AC152: 0 | AD152: 0 | AE152: 0 | AF152: 0 | AG152: 0 | AH152: 0 | AI152: 0 | AJ152: 0 | AK152: 0 | AL152: 0 | AM152: 0
A153: 4 | B153: FALSE | C153: 2022-04-07T06:00:00 | D153: 539057.7802 | E153: 287293.4132 | F153: 336233.0633 | G153: 432192.7635 | H153: 539057.7802 | I153: 179962.578 | J153: 49543.8121 | K153: 820.6805 | L153: 72.7946 | M153: 37981.002 | N153: 11166.6579 | O153: 1337.4293 | Q153: 10904.1026 | R153: 212.2306 | S153: 1862.8476 | T153: 36740.0811 | U153: 171655.1197 | V153: 29759.3733 | W153: 179.9964 | X153: 5592.580677 | Y153: 1266.4938 | Z153: 0 | AA153: 0 | AB153: 0 | AC153: 0 | AD153: 0 | AE153: 0 | AF153: 0 | AG153: 0 | AH153: 0 | AI153: 0 | AJ153: 0 | AK153: 0 | AL153: 0 | AM153: 0
A154: 4 | B154: TRUE | C154: 2022-04-07T07:00:00 | D154: 586815.72 | E154: 314473.296 | F154: 372266.4468 | G154: 471696.3576 | H154: 586815.72 | I154: 201229.7188 | J154: 56067.0367 | K154: 928.7361 | L154: 82.3792 | M154: 42868.7605 | N154: 12603.6902 | O154: 1509.5425 | Q154: 12307.3467 | R154: 239.5425 | S154: 1825.8131 | T154: 44021.182 | U154: 183206.8806 | V154: 29750.4709 | W154: 174.6202 | X154: 0 | Y154: 0 | Z154: 0 | AA154: 0 | AB154: 0 | AC154: 0 | AD154: 0 | AE154: 0 | AF154: 0 | AG154: 0 | AH154: 0 | AI154: 0 | AJ154: 0 | AK154: 0 | AL154: 0 | AM154: 0
A155: 4 | B155: TRUE | C155: 2022-04-07T08:00:00 | D155: 578867.0571 | E155: 301329.4346 | F155: 363746.6739 | G155: 465722.836 | H155: 578867.0571 | I155: 169168.7625 | J155: 70321.1111 | K155: 1164.8511 | L155: 103.3226 | M155: 46494.0702 | N155: 13669.5545 | O155: 1637.201 | Q155: 13348.15 | R155: 259.8 | S155: 1824.1367 | T155: 47323.0337 | U155: 183650.7585 | V155: 29729.1011 | W155: 173.2041 | X155: 0 | Y155: 0 | Z155: 0 | AA155: 0 | AB155: 0 | AC155: 0 | AD155: 0 | AE155: 0 | AF155: 0 | AG155: 0 | AH155: 0 | AI155: 0 | AJ155: 0 | AK155: 0 | AL155: 0 | AM155: 0
A156: 4 | B156: TRUE | C156: 2022-04-07T09:00:00 | D156: 593517.7846 | E156: 319940.6507 | F156: 382396.6645 | G156: 479345.751 | H156: 593517.7846 | I156: 184866.4185 | J156: 74463.9056 | K156: 1233.4755 | L156: 109.4096 | M156: 45504.8099 | N156: 13378.7056 | O156: 1602.3661 | Q156: 13064.1397 | R156: 254.2722 | S156: 1870.0106 | T156: 47589.5605 | U156: 182929.2842 | V156: 26480.0602 | W156: 171.3664 | X156: 0 | Y156: 0 | Z156: 0 | AA156: 0 | AB156: 0 | AC156: 0 | AD156: 0 | AE156: 0 | AF156: 0 | AG156: 0 | AH156: 0 | AI156: 0 | AJ156: 0 | AK156: 0 | AL156: 0 | AM156: 0
A157: 4 | B157: TRUE | C157: 2022-04-07T10:00:00 | D157: 562159.2584 | E157: 285324.972 | F157: 348795.4205 | G157: 452284.3748 | H157: 562159.2584 | I157: 148054.3301 | J157: 76669.1241 | K157: 1270.0044 | L157: 112.6498 | M157: 45501.3991 | N157: 13377.7028 | O157: 1602.2459 | Q157: 13063.1604 | R157: 254.2532 | S157: 1862.6952 | T157: 48568.4881 | U157: 181760.527 | V157: 29888.4152 | W157: 174.2631 | X157: 0 | Y157: 0 | Z157: 0 | AA157: 0 | AB157: 0 | AC157: 0 | AD157: 0 | AE157: 0 | AF157: 0 | AG157: 0 | AH157: 0 | AI157: 0 | AJ157: 0 | AK157: 0 | AL157: 0 | AM157: 0
A158: 4 | B158: TRUE | C158: 2022-04-07T11:00:00 | D158: 551644.6066 | E158: 271445.7991 | F158: 335498.4998 | G158: 444561.6717 | H158: 551644.6066 | I158: 135020.7942 | J158: 76134.7515 | K158: 1261.1526 | L158: 111.8646 | M158: 45252.8011 | N158: 13304.6134 | O158: 1593.492 | Q158: 12991.7895 | R158: 252.8641 | S158: 1868.3342 | T158: 49234.0706 | U158: 184295.0071 | V158: 30145.7431 | W158: 177.3286 | X158: 0 | Y158: 0 | Z158: 0 | AA158: 0 | AB158: 0 | AC158: 0 | AD158: 0 | AE158: 0 | AF158: 0 | AG158: 0 | AH158: 0 | AI158: 0 | AJ158: 0 | AK158: 0 | AL158: 0 | AM158: 0
A159: 4 | B159: TRUE | C159: 2022-04-07T12:00:00 | D159: 542662.9117 | E159: 259961.7829 | F159: 325077.4943 | G159: 438309.5253 | H159: 542662.9117 | I159: 124624.0259 | J159: 74390.8704 | K159: 1232.2657 | L159: 109.3023 | M159: 45698.0298 | N159: 13435.5135 | O159: 1609.1699 | Q159: 13119.6119 | R159: 255.3519 | S159: 1941.6411 | T159: 50192.5803 | U159: 186060.9847 | V159: 29805.9605 | W159: 187.6038 | X159: 0 | Y159: 0 | Z159: 0 | AA159: 0 | AB159: 0 | AC159: 0 | AD159: 0 | AE159: 0 | AF159: 0 | AG159: 0 | AH159: 0 | AI159: 0 | AJ159: 0 | AK159: 0 | AL159: 0 | AM159: 0
A160: 4 | B160: TRUE | C160: 2022-04-07T13:00:00 | D160: 535534.5818 | E160: 252524.6026 | F160: 316342.8593 | G160: 433266.2614 | H160: 535534.5818 | I160: 121194.7859 | J160: 72677.2107 | K160: 1203.8793 | L160: 106.7845 | M160: 44003.6479 | N160: 12937.3544 | O160: 1549.5055 | Q160: 12633.1656 | R160: 245.884 | S160: 1821.0886 | T160: 49431.139 | U160: 187811.4938 | V160: 29723.9387 | W160: 194.7039 | X160: 0 | Y160: 0 | Z160: 0 | AA160: 0 | AB160: 0 | AC160: 0 | AD160: 0 | AE160: 0 | AF160: 0 | AG160: 0 | AH160: 0 | AI160: 0 | AJ160: 0 | AK160: 0 | AL160: 0 | AM160: 0
A161: 4 | B161: TRUE | C161: 2022-04-07T14:00:00 | D161: 560256.408 | E161: 280166.3692 | F161: 342110.905 | G161: 452052.8509 | H161: 560256.408 | I161: 145280.5181 | J161: 74636.095 | K161: 1236.3277 | L161: 109.6626 | M161: 45214.1379 | N161: 13293.2462 | O161: 1592.1306 | Q161: 12980.6896 | R161: 252.648 | S161: 1879.6122 | T161: 47162.3139 | U161: 186693.7146 | V161: 29749.9952 | W161: 175.3164 | X161: 0 | Y161: 0 | Z161: 0 | AA161: 0 | AB161: 0 | AC161: 0 | AD161: 0 | AE161: 0 | AF161: 0 | AG161: 0 | AH161: 0 | AI161: 0 | AJ161: 0 | AK161: 0 | AL161: 0 | AM161: 0
A162: 4 | B162: TRUE | C162: 2022-04-07T15:00:00 | D162: 545371.2937 | E162: 269202.1951 | F162: 327971.8475 | G162: 440383.7631 | H162: 545371.2937 | I162: 140807.2036 | J162: 72178.6951 | K162: 1195.6215 | L162: 106.052 | M162: 42162.2796 | N162: 12395.9803 | O162: 1484.6652 | Q162: 12104.5206 | R162: 235.5948 | S162: 1777.6531 | T162: 44942.4558 | U162: 186032.3631 | V162: 29776.3659 | W162: 171.8431 | X162: 0 | Y162: 0 | Z162: 0 | AA162: 0 | AB162: 0 | AC162: 0 | AD162: 0 | AE162: 0 | AF162: 0 | AG162: 0 | AH162: 0 | AI162: 0 | AJ162: 0 | AK162: 0 | AL162: 0 | AM162: 0
A163: 4 | B163: TRUE | C163: 2022-04-07T16:00:00 | D163: 523524.177 | E163: 252379.2285 | F163: 309456.8287 | G163: 422778.2806 | H163: 523524.177 | I163: 134603.3142 | J163: 68744.9226 | K163: 1138.742 | L163: 101.0068 | M163: 36500.5703 | N163: 10731.4015 | O163: 1285.2987 | Q163: 10479.0801 | R163: 203.9582 | S163: 1879.7645 | T163: 45003.4985 | U163: 182900.4097 | V163: 29780.6331 | W163: 171.5768 | X163: 0 | Y163: 0 | Z163: 0 | AA163: 0 | AB163: 0 | AC163: 0 | AD163: 0 | AE163: 0 | AF163: 0 | AG163: 0 | AH163: 0 | AI163: 0 | AJ163: 0 | AK163: 0 | AL163: 0 | AM163: 0
A164: 4 | B164: TRUE | C164: 2022-04-07T17:00:00 | D164: 516027.1192 | E164: 247707.1249 | F164: 303423.3445 | G164: 416624.2097 | H164: 516027.1192 | I164: 142092.5758 | J164: 61140.6745 | K164: 1012.7796 | L164: 89.8338 | M164: 33000.8779 | N164: 9702.4695 | O164: 1162.0637 | Q164: 9474.3408 | R164: 184.4026 | S164: 1828.7088 | T164: 44816.5679 | U164: 181530.6203 | V164: 29821.2569 | W164: 169.9471 | X164: 0 | Y164: 0 | Z164: 0 | AA164: 0 | AB164: 0 | AC164: 0 | AD164: 0 | AE164: 0 | AF164: 0 | AG164: 0 | AH164: 0 | AI164: 0 | AJ164: 0 | AK164: 0 | AL164: 0 | AM164: 0
A165: 4 | B165: TRUE | C165: 2022-04-07T18:00:00 | D165: 514336.3757 | E165: 248207.6875 | F165: 301764.435 | G165: 415392.8522 | H165: 514336.3757 | I165: 148459.1079 | J165: 57604.1344 | K165: 954.1977 | L165: 84.6376 | M165: 31237.7629 | N165: 9184.1024 | O165: 1099.9789 | Q165: 8968.1618 | R165: 174.5507 | S165: 1768.6612 | T165: 43243.8967 | U165: 181645.0288 | V165: 29742.2954 | W165: 169.8593 | X165: 0 | Y165: 0 | Z165: 0 | AA165: 0 | AB165: 0 | AC165: 0 | AD165: 0 | AE165: 0 | AF165: 0 | AG165: 0 | AH165: 0 | AI165: 0 | AJ165: 0 | AK165: 0 | AL165: 0 | AM165: 0
A166: 4 | B166: TRUE | C166: 2022-04-07T19:00:00 | D166: 534670.0637 | E166: 271067.0289 | F166: 322327.158 | G166: 430980.0561 | H166: 534670.0637 | I166: 172528.471 | J166: 58569.871 | K166: 970.1949 | L166: 86.0566 | M166: 29489.851 | N166: 8670.2051 | O166: 1038.4295 | Q166: 8466.3475 | R166: 164.7837 | S166: 1818.6501 | T166: 41454.9454 | U166: 181445.1252 | V166: 29773.2944 | W166: 193.8383 | X166: 0 | Y166: 0 | Z166: 0 | AA166: 0 | AB166: 0 | AC166: 0 | AD166: 0 | AE166: 0 | AF166: 0 | AG166: 0 | AH166: 0 | AI166: 0 | AJ166: 0 | AK166: 0 | AL166: 0 | AM166: 0
A167: 4 | B167: TRUE | C167: 2022-04-07T20:00:00 | D167: 599789.4253 | E167: 336680.1478 | F167: 386963.2279 | G167: 481264.4766 | H167: 599789.4253 | I167: 232130.2886 | J167: 58321.8433 | K167: 966.0864 | L167: 85.6921 | M167: 29620.6056 | N167: 8708.6478 | O167: 1043.0338 | Q167: 8503.8863 | R167: 165.5143 | S167: 1831.2997 | T167: 40442.8316 | U167: 181911.7097 | V167: 29785.7618 | W167: 197.044 | X167: 4953.428689 | Y167: 1121.7516 | Z167: 0 | AA167: 0 | AB167: 0 | AC167: 0 | AD167: 0 | AE167: 0 | AF167: 0 | AG167: 0 | AH167: 0 | AI167: 0 | AJ167: 0 | AK167: 0 | AL167: 0 | AM167: 0
A168: 4 | B168: FALSE | C168: 2022-04-07T21:00:00 | D168: 595732.5065 | E168: 333703.6399 | F168: 382326.5526 | G168: 478234.2168 | H168: 595732.5065 | I168: 230722.9278 | J168: 54944.82 | K168: 910.1468 | L168: 80.7303 | M168: 26738.8773 | N168: 7861.4012 | O168: 941.5591 | Q168: 7676.5605 | R168: 149.4118 | S168: 1687.1244 | T168: 39701.9529 | U168: 182561.2701 | V168: 29822.3944 | W168: 174.9169 | X168: 9587.280864 | Y168: 2171.1321 | Z168: 0 | AA168: 0 | AB168: 0 | AC168: 0 | AD168: 0 | AE168: 0 | AF168: 0 | AG168: 0 | AH168: 0 | AI168: 0 | AJ168: 0 | AK168: 0 | AL168: 0 | AM168: 0
A169: 4 | B169: FALSE | C169: 2022-04-07T22:00:00 | D169: 574210.4871 | E169: 311280.9776 | F169: 360173.5926 | G169: 461759.8634 | H169: 574210.4871 | I169: 211840.7496 | J169: 54332.4373 | K169: 900.0029 | L169: 79.8305 | M169: 24429.2949 | N169: 7182.3692 | O169: 860.2315 | Q169: 7013.4942 | R169: 136.5063 | S169: 1730.5599 | T169: 40673.7366 | U169: 183241.9426 | V169: 29854.8899 | W169: 176.0287 | X169: 9587.280864 | Y169: 2171.1321 | Z169: 0 | AA169: 0 | AB169: 0 | AC169: 0 | AD169: 0 | AE169: 0 | AF169: 0 | AG169: 0 | AH169: 0 | AI169: 0 | AJ169: 0 | AK169: 0 | AL169: 0 | AM169: 0
A170: 4 | B170: FALSE | C170: 2022-04-07T23:00:00 | D170: 541150.6263 | E170: 282328.9376 | F170: 328131.9635 | G170: 436070.1028 | H170: 541150.6263 | I170: 182245.0064 | J170: 55121.2689 | K170: 913.0697 | L170: 80.9895 | M170: 24309.4706 | N170: 7147.1401 | O170: 856.0122 | Q170: 6979.0934 | R170: 135.8367 | S170: 1738.7898 | T170: 37606.9794 | U170: 182249.0204 | V170: 29832.6407 | W170: 176.8956 | X170: 9587.280864 | Y170: 2171.1321 | Z170: 0 | AA170: 0 | AB170: 0 | AC170: 0 | AD170: 0 | AE170: 0 | AF170: 0 | AG170: 0 | AH170: 0 | AI170: 0 | AJ170: 0 | AK170: 0 | AL170: 0 | AM170: 0
A171: 4 | B171: FALSE | C171: 2022-04-08 | D171: 550070.152 | E171: 295439.2705 | F171: 336401.8186 | G171: 443026.7485 | H171: 550070.152 | I171: 196734.4994 | J171: 54055.075 | K171: 895.4084 | L171: 79.423 | M171: 24014.7012 | N171: 7060.476 | O171: 845.6324 | Q171: 6894.467 | R171: 134.1896 | S171: 1792.8936 | T171: 32872.4741 | U171: 182844.2172 | V171: 29899.0608 | W171: 189.2213 | X171: 9587.280864 | Y171: 2171.1321 | Z171: 0 | AA171: 0 | AB171: 0 | AC171: 0 | AD171: 0 | AE171: 0 | AF171: 0 | AG171: 0 | AH171: 0 | AI171: 0 | AJ171: 0 | AK171: 0 | AL171: 0 | AM171: 0
A172: 4 | B172: FALSE | C172: 2022-04-08T01:00:00 | D172: 556810.8046 | E172: 308042.6443 | F172: 346798.7413 | G172: 447364.5589 | H172: 556810.8046 | I172: 209041.3129 | J172: 54542.1444 | K172: 903.4766 | L172: 80.1386 | M172: 23797.1027 | N172: 6996.5006 | O172: 837.9701 | Q172: 6831.9959 | R172: 132.9737 | S172: 1884.9462 | T172: 30723.1461 | U172: 179176.2948 | V172: 29917.6598 | W172: 186.7293 | X172: 9587.280864 | Y172: 2171.1321 | Z172: 0 | AA172: 0 | AB172: 0 | AC172: 0 | AD172: 0 | AE172: 0 | AF172: 0 | AG172: 0 | AH172: 0 | AI172: 0 | AJ172: 0 | AK172: 0 | AL172: 0 | AM172: 0
A173: 4 | B173: FALSE | C173: 2022-04-08T02:00:00 | D173: 546959.5895 | E173: 300863.6311 | F173: 338744.4425 | G173: 439388.719 | H173: 546959.5895 | I173: 204346.5959 | J173: 52850.5741 | K173: 875.4562 | L173: 77.6532 | M173: 23191.8068 | N173: 6818.5398 | O173: 816.6557 | Q173: 6658.2193 | R173: 129.5914 | S173: 1873.5159 | T173: 30057.224 | U173: 177431.5255 | V173: 29889.3126 | W173: 184.5062 | X173: 9587.280864 | Y173: 2171.1321 | Z173: 0 | AA173: 0 | AB173: 0 | AC173: 0 | AD173: 0 | AE173: 0 | AF173: 0 | AG173: 0 | AH173: 0 | AI173: 0 | AJ173: 0 | AK173: 0 | AL173: 0 | AM173: 0
A174: 4 | B174: FALSE | C174: 2022-04-08T03:00:00 | D174: 548467.161 | E174: 302668.3236 | F174: 340843.9648 | G174: 440388.4128 | H174: 548467.161 | I174: 202447.4899 | J174: 55487.091 | K174: 919.1294 | L174: 81.5271 | M174: 24062.8253 | N174: 7074.6248 | O174: 847.327 | Q174: 6908.2831 | R174: 134.4585 | S174: 1823.527 | T174: 30047.4285 | U174: 176778.6185 | V174: 29915.7236 | W174: 180.6943 | X174: 9587.280864 | Y174: 2171.1321 | Z174: 0 | AA174: 0 | AB174: 0 | AC174: 0 | AD174: 0 | AE174: 0 | AF174: 0 | AG174: 0 | AH174: 0 | AI174: 0 | AJ174: 0 | AK174: 0 | AL174: 0 | AM174: 0
A175: 4 | B175: FALSE | C175: 2022-04-08T04:00:00 | D175: 545150.599 | E175: 299254.343 | F175: 338635.2603 | G175: 437583.9979 | H175: 545150.599 | I175: 199719.2419 | J175: 51994.1786 | K175: 861.2702 | L175: 76.3949 | M175: 26220.3886 | N175: 7708.9622 | O175: 923.3015 | Q175: 7527.7057 | R175: 146.5145 | S175: 1856.9037 | T175: 30664.1704 | U175: 175605.5612 | V175: 29910.0811 | W175: 177.5116 | X175: 9587.280864 | Y175: 2171.1321 | Z175: 0 | AA175: 0 | AB175: 0 | AC175: 0 | AD175: 0 | AE175: 0 | AF175: 0 | AG175: 0 | AH175: 0 | AI175: 0 | AJ175: 0 | AK175: 0 | AL175: 0 | AM175: 0
A176: 4 | B176: FALSE | C176: 2022-04-08T05:00:00 | D176: 598379.4713 | E176: 351880.5123 | F176: 393270.2565 | G176: 478326.4453 | H176: 598379.4713 | I176: 246391.865 | J176: 53162.1509 | K176: 880.6174 | L176: 78.111 | M176: 29903.6818 | N176: 8791.874 | O176: 1053.0018 | Q176: 8585.1556 | R176: 167.0961 | S176: 1897.9008 | T176: 31550.1567 | U176: 174110.6034 | V176: 29867.4986 | W176: 181.3453 | X176: 9587.280864 | Y176: 2171.1321 | Z176: 0 | AA176: 0 | AB176: 0 | AC176: 0 | AD176: 0 | AE176: 0 | AF176: 0 | AG176: 0 | AH176: 0 | AI176: 0 | AJ176: 0 | AK176: 0 | AL176: 0 | AM176: 0
A177: 4 | B177: FALSE | C177: 2022-04-08T06:00:00 | D177: 624924.2476 | E177: 369173.3147 | F177: 417673.7189 | G177: 499326.4148 | H177: 624924.2476 | I177: 256509.6875 | J177: 59034.6539 | K177: 977.8939 | L177: 86.7395 | M177: 34785.4269 | N177: 10227.1384 | O177: 1224.9032 | Q177: 9986.6734 | R177: 194.3744 | S177: 1997.5736 | T177: 37100.9975 | U177: 176122.8318 | V177: 29816.0542 | W177: 196.1987 | X177: 5432.79242 | Y177: 1230.3083 | Z177: 0 | AA177: 0 | AB177: 0 | AC177: 0 | AD177: 0 | AE177: 0 | AF177: 0 | AG177: 0 | AH177: 0 | AI177: 0 | AJ177: 0 | AK177: 0 | AL177: 0 | AM177: 0
A178: 4 | B178: TRUE | C178: 2022-04-08T07:00:00 | D178: 649996.6025 | E178: 376557.4783 | F178: 433527.71 | G178: 520705.5155 | H178: 649996.6025 | I178: 258789.4361 | J178: 65836.7701 | K178: 1090.5692 | L178: 96.7338 | M178: 38682.8202 | N178: 11372.997 | O178: 1362.1426 | Q178: 11105.5901 | R178: 216.1522 | S178: 1960.2345 | T178: 44290.5133 | U178: 185136.3769 | V178: 29873.6392 | W178: 182.6273 | X178: 0 | Y178: 0 | Z178: 0 | AA178: 0 | AB178: 0 | AC178: 0 | AD178: 0 | AE178: 0 | AF178: 0 | AG178: 0 | AH178: 0 | AI178: 0 | AJ178: 0 | AK178: 0 | AL178: 0 | AM178: 0
A179: 4 | B179: TRUE | C179: 2022-04-08T08:00:00 | D179: 694779.3546 | E179: 414843.9265 | F179: 476241.3348 | G179: 555815.9137 | H179: 694779.3546 | I179: 277603.2816 | J179: 82138.2617 | K179: 1360.5992 | L179: 120.6856 | M179: 41092.3245 | N179: 12081.4067 | O179: 1446.9887 | Q179: 11797.3433 | R179: 229.6161 | S179: 2034.7605 | T179: 47725.7863 | U179: 187219.5269 | V179: 29750.8186 | W179: 177.9549 | X179: 0 | Y179: 0 | Z179: 0 | AA179: 0 | AB179: 0 | AC179: 0 | AD179: 0 | AE179: 0 | AF179: 0 | AG179: 0 | AH179: 0 | AI179: 0 | AJ179: 0 | AK179: 0 | AL179: 0 | AM179: 0
A180: 4 | B180: TRUE | C180: 2022-04-08T09:00:00 | D180: 667202.9973 | E180: 385075.1854 | F180: 449090.4381 | G180: 534561.4948 | H180: 667202.9973 | I180: 245488.6781 | J180: 83494.1619 | K180: 1383.0593 | L180: 122.6778 | M180: 41894.3952 | N180: 12317.2206 | O180: 1475.2321 | Q180: 12027.6127 | R180: 234.0979 | S180: 1996.0496 | T180: 50080.8749 | U180: 186859.4707 | V180: 29655.1786 | W180: 174.2879 | X180: 0 | Y180: 0 | Z180: 0 | AA180: 0 | AB180: 0 | AC180: 0 | AD180: 0 | AE180: 0 | AF180: 0 | AG180: 0 | AH180: 0 | AI180: 0 | AJ180: 0 | AK180: 0 | AL180: 0 | AM180: 0
A181: 4 | B181: TRUE | C181: 2022-04-08T10:00:00 | D181: 673831.1152 | E181: 390223.9749 | F181: 454230.4086 | G181: 540012.6543 | H181: 673831.1152 | I181: 250508.2928 | J181: 84959.2245 | K181: 1407.3277 | L181: 124.8304 | M181: 40852.9839 | N181: 12011.039 | O181: 1438.5608 | Q181: 11728.6302 | R181: 228.2787 | S181: 2003.0603 | T181: 50359.7883 | U181: 188383.8868 | V181: 29653.4286 | W181: 171.7832 | X181: 0 | Y181: 0 | Z181: 0 | AA181: 0 | AB181: 0 | AC181: 0 | AD181: 0 | AE181: 0 | AF181: 0 | AG181: 0 | AH181: 0 | AI181: 0 | AJ181: 0 | AK181: 0 | AL181: 0 | AM181: 0
A182: 4 | B182: TRUE | C182: 2022-04-08T11:00:00 | D182: 641176.9496 | E182: 359353.3705 | F182: 422115.0571 | G182: 514729.918 | H182: 641176.9496 | I182: 218362.238 | J182: 85842.5091 | K182: 1421.9591 | L182: 126.1282 | M182: 41181.754 | N182: 12107.6995 | O182: 1450.1378 | Q182: 11823.018 | R182: 230.1158 | S182: 1961.1488 | T182: 49001.9122 | U182: 187838.8702 | V182: 29646.7563 | W182: 182.7026 | X182: 0 | Y182: 0 | Z182: 0 | AA182: 0 | AB182: 0 | AC182: 0 | AD182: 0 | AE182: 0 | AF182: 0 | AG182: 0 | AH182: 0 | AI182: 0 | AJ182: 0 | AK182: 0 | AL182: 0 | AM182: 0
A183: 4 | B183: TRUE | C183: 2022-04-08T12:00:00 | D183: 624354.4505 | E183: 346964.648 | F183: 407591.2415 | G183: 501131.5867 | H183: 624354.4505 | I183: 208871.5389 | J183: 83236.4399 | K183: 1378.7903 | L183: 122.2991 | M183: 40947.9521 | N183: 12038.9603 | O183: 1441.9049 | Q183: 11755.895 | R183: 228.8094 | S183: 1965.8735 | T183: 46980.0335 | U183: 185445.7858 | V183: 29753.2192 | W183: 186.9486 | X183: 0 | Y183: 0 | Z183: 0 | AA183: 0 | AB183: 0 | AC183: 0 | AD183: 0 | AE183: 0 | AF183: 0 | AG183: 0 | AH183: 0 | AI183: 0 | AJ183: 0 | AK183: 0 | AL183: 0 | AM183: 0
A184: 4 | B184: TRUE | C184: 2022-04-08T13:00:00 | D184: 623369.4957 | E184: 348831.7734 | F184: 408211.6055 | G184: 500871.1488 | H184: 623369.4957 | I184: 216153.1139 | J184: 80639.8825 | K184: 1335.7789 | L184: 118.484 | M184: 38749.9114 | N184: 11392.7222 | O184: 1364.505 | Q184: 11124.8515 | R184: 216.5271 | S184: 1956.2719 | T184: 46434.8039 | U184: 184788.462 | V184: 28886.4392 | W184: 207.7422 | X184: 0 | Y184: 0 | Z184: 0 | AA184: 0 | AB184: 0 | AC184: 0 | AD184: 0 | AE184: 0 | AF184: 0 | AG184: 0 | AH184: 0 | AI184: 0 | AJ184: 0 | AK184: 0 | AL184: 0 | AM184: 0
A185: 4 | B185: TRUE | C185: 2022-04-08T14:00:00 | D185: 630908.1105 | E185: 357479.6749 | F185: 415170.93 | G185: 505495.6763 | H185: 630908.1105 | I185: 225991.3647 | J185: 79466.7711 | K185: 1316.3467 | L185: 116.7603 | M185: 38699.9053 | N185: 11378.0201 | O185: 1362.7442 | Q185: 11110.4951 | R185: 216.2477 | S185: 2003.9748 | T185: 44780.6406 | U185: 184053.0758 | V185: 30204.6002 | W185: 207.1639 | X185: 0 | Y185: 0 | Z185: 0 | AA185: 0 | AB185: 0 | AC185: 0 | AD185: 0 | AE185: 0 | AF185: 0 | AG185: 0 | AH185: 0 | AI185: 0 | AJ185: 0 | AK185: 0 | AL185: 0 | AM185: 0
A186: 4 | B186: TRUE | C186: 2022-04-08T15:00:00 | D186: 620176.755 | E186: 349909.9075 | F186: 406088.382 | G186: 496957.3968 | H186: 620176.755 | I186: 219458.3818 | J186: 80825.0511 | K186: 1338.8462 | L186: 118.7561 | M186: 36987.2655 | N186: 10874.493 | O186: 1302.4368 | Q186: 10618.8072 | R186: 206.6778 | S186: 1900.9489 | T186: 43758.4575 | U186: 182572.8277 | V186: 30094.3524 | W186: 119.453 | X186: 0 | Y186: 0 | Z186: 0 | AA186: 0 | AB186: 0 | AC186: 0 | AD186: 0 | AE186: 0 | AF186: 0 | AG186: 0 | AH186: 0 | AI186: 0 | AJ186: 0 | AK186: 0 | AL186: 0 | AM186: 0
A187: 4 | B187: TRUE | C187: 2022-04-08T16:00:00 | D187: 621985.2349 | E187: 354857.9136 | F187: 410759.7743 | G187: 497575.0471 | H187: 621985.2349 | I187: 232608.9525 | J187: 77464.2335 | K187: 1283.1751 | L187: 113.818 | M187: 33199.207 | N187: 9760.7795 | O187: 1169.0475 | Q187: 9531.2798 | R187: 185.5109 | S187: 1953.8334 | T187: 44672.3952 | U187: 179728.6662 | V187: 30213.9289 | W187: 100.4074 | X187: 0 | Y187: 0 | Z187: 0 | AA187: 0 | AB187: 0 | AC187: 0 | AD187: 0 | AE187: 0 | AF187: 0 | AG187: 0 | AH187: 0 | AI187: 0 | AJ187: 0 | AK187: 0 | AL187: 0 | AM187: 0
A188: 4 | B188: TRUE | C188: 2022-04-08T17:00:00 | D188: 659256.585 | E188: 392808.927 | F188: 447573.627 | G188: 526360.5311 | H188: 659256.585 | I188: 280504.5122 | J188: 67818.6345 | K188: 1123.3983 | L188: 99.6458 | M188: 32959.1317 | N188: 9690.1959 | O188: 1160.5937 | Q188: 9462.3558 | R188: 184.1694 | S188: 1964.959 | T188: 43766.9364 | U188: 180165.1504 | V188: 30257.5681 | W188: 99.3338 | X188: 0 | Y188: 0 | Z188: 0 | AA188: 0 | AB188: 0 | AC188: 0 | AD188: 0 | AE188: 0 | AF188: 0 | AG188: 0 | AH188: 0 | AI188: 0 | AJ188: 0 | AK188: 0 | AL188: 0 | AM188: 0
A189: 4 | B189: TRUE | C189: 2022-04-08T18:00:00 | D189: 625323.6143 | E189: 358179.0267 | F189: 411586.7489 | G189: 500777.498 | H189: 625323.6143 | I189: 250763.9939 | J189: 64381.3726 | K189: 1066.4609 | L189: 94.5954 | M189: 31865.7023 | N189: 9368.7206 | O189: 1122.0906 | Q189: 9148.4392 | R189: 178.0595 | S189: 1914.9701 | T189: 42794.4812 | U189: 182359.9655 | V189: 30160.2139 | W189: 104.5486 | X189: 0 | Y189: 0 | Z189: 0 | AA189: 0 | AB189: 0 | AC189: 0 | AD189: 0 | AE189: 0 | AF189: 0 | AG189: 0 | AH189: 0 | AI189: 0 | AJ189: 0 | AK189: 0 | AL189: 0 | AM189: 0
A190: 4 | B190: TRUE | C190: 2022-04-08T19:00:00 | D190: 665517.3767 | E190: 399363.3563 | F190: 452045.1775 | G190: 531681.6597 | H190: 665517.3767 | I190: 290614.2603 | J190: 67816.043 | K190: 1123.3553 | L190: 99.642 | M190: 30249.6867 | N190: 8893.6017 | O190: 1065.1857 | Q190: 8684.4914 | R190: 169.0295 | S190: 1895.005 | T190: 42495.8347 | U190: 182135.5652 | V190: 30171.8063 | W190: 103.8699 | X190: 0 | Y190: 0 | Z190: 0 | AA190: 0 | AB190: 0 | AC190: 0 | AD190: 0 | AE190: 0 | AF190: 0 | AG190: 0 | AH190: 0 | AI190: 0 | AJ190: 0 | AK190: 0 | AL190: 0 | AM190: 0
A191: 4 | B191: TRUE | C191: 2022-04-08T20:00:00 | D191: 647650.0926 | E191: 386204.6026 | F191: 437035.2987 | G191: 517283.7818 | H191: 647650.0926 | I191: 270993.874 | J191: 69687.3872 | K191: 1154.3537 | L191: 102.3915 | M191: 29200.7417 | N191: 8585.2051 | O191: 1028.249 | Q191: 8383.346 | R191: 163.1682 | S191: 1938.1357 | T191: 40927.9691 | U191: 179339.6577 | V191: 30144.4957 | W191: 121.9116 | X191: 4793.640432 | Y191: 1085.566 | Z191: 0 | AA191: 0 | AB191: 0 | AC191: 0 | AD191: 0 | AE191: 0 | AF191: 0 | AG191: 0 | AH191: 0 | AI191: 0 | AJ191: 0 | AK191: 0 | AL191: 0 | AM191: 0
A192: 4 | B192: FALSE | C192: 2022-04-08T21:00:00 | D192: 674449.7015 | E192: 415342.2367 | F192: 464969.9273 | G192: 537679.8782 | H192: 674449.7015 | I192: 294770.1257 | J192: 71354.138 | K192: 1181.963 | L192: 104.8405 | M192: 27487.9324 | N192: 8081.6282 | O192: 967.9357 | Q192: 7891.6094 | R192: 153.5973 | S192: 1869.5534 | T192: 40210.5021 | U192: 178265.0151 | V192: 30141.9829 | W192: 210.4648 | X192: 9587.280864 | Y192: 2171.1321 | Z192: 0 | AA192: 0 | AB192: 0 | AC192: 0 | AD192: 0 | AE192: 0 | AF192: 0 | AG192: 0 | AH192: 0 | AI192: 0 | AJ192: 0 | AK192: 0 | AL192: 0 | AM192: 0
A193: 4 | B193: FALSE | C193: 2022-04-08T22:00:00 | D193: 649502.9535 | E193: 393137.2951 | F193: 440592.744 | G193: 518348.3459 | H193: 649502.9535 | I193: 277054.1342 | J193: 68510.5675 | K193: 1134.86 | L193: 100.6624 | M193: 26309.0466 | N193: 7735.0283 | O193: 926.4235 | Q193: 7553.1589 | R193: 147.01 | S193: 1759.9741 | T193: 38438.5506 | U193: 177766.1316 | V193: 30116.992 | W193: 192.0008 | X193: 9587.280864 | Y193: 2171.1321 | Z193: 0 | AA193: 0 | AB193: 0 | AC193: 0 | AD193: 0 | AE193: 0 | AF193: 0 | AG193: 0 | AH193: 0 | AI193: 0 | AJ193: 0 | AK193: 0 | AL193: 0 | AM193: 0
A194: 4 | B194: FALSE | C194: 2022-04-08T23:00:00 | D194: 621716.4014 | E194: 366673.8826 | F194: 412420.3875 | G194: 496965.2506 | H194: 621716.4014 | I194: 252461.945 | J194: 67118.3869 | K194: 1111.7988 | L194: 98.6169 | M194: 25934.7409 | N194: 7624.98 | O194: 913.243 | Q194: 7445.6981 | R194: 144.9184 | S194: 1771.7093 | T194: 36864.8077 | U194: 178110.0772 | V194: 30174.0768 | W194: 182.9895 | X194: 9587.280864 | Y194: 2171.1321 | Z194: 0 | AA194: 0 | AB194: 0 | AC194: 0 | AD194: 0 | AE194: 0 | AF194: 0 | AG194: 0 | AH194: 0 | AI194: 0 | AJ194: 0 | AK194: 0 | AL194: 0 | AM194: 0
A195: 4 | B195: =PeakTime(C195,Holidays,PkStart,PkEnd,UseDST,DST_1,DST_2) -> FALSE | C195: 2022-04-09 | D195: =SUM(OFFSET(I195,0,0,1,COUNTA(I195:IV195))) -> 620956.0883 | E195: =SUMIF(OFFSET($I$2,0,0,1,COUNTA($I$2:$IV$2)),E$2,OFFSET(I195,0,0,1,COUNTA(I195:IV195))) -> 366076.3502 | F195: =E195+SUMIF(OFFSET($I$2,0,0,1,COUNTA($I$2:$IV$2)),F$2,OFFSET(I195,0,0,1,COUNTA(I195:IV195))) -> 409576.6796 | G195: =F195*DistAtSubtran+SUMIF(OFFSET($I$2,0,0,1,COUNTA($I$2:$IV$2)),G$2,OFFSET(I195,0,0,1,COUNTA(I195:IV195))) -> 496919.5787 | H195: =SUM(OFFSET(I195,0,0,1,COUNTA(I195:IV195))) -> 620956.0883 | I195: 253281.1263 | J195: 66457.6973 | K195: 1100.8547 | L195: 97.6461 | M195: 25196.2432 | N195: 7407.8569 | O195: 887.2382 | Q195: 7233.6802 | R195: 140.7918 | S195: 1967.8547 | T195: 34850.826 | U195: 180282.964 | V195: 30111.5604 | W195: 181.3355 | X195: 9587.280864 | Y195: 2171.1321 | Z195: 0 | AA195: 0 | AB195: 0 | AC195: 0 | AD195: 0 | AE195: 0 | AF195: 0 | AG195: 0 | AH195: 0 | AI195: 0 | AJ195: 0 | AK195: 0 | AL195: 0 | AM195: 0
A196: =MONTH(C196) -> 4 | B196: FALSE | C196: =+C195+1/24 -> 2022-04-09T01:00:00 | D196: 617180.9039 | E196: 367146.6359 | F196: 408624.6492 | G196: 493323.3752 | H196: 617180.9039 | I196: 253859.0101 | J196: 66389.7355 | K196: 1099.7289 | L196: 97.5463 | M196: 25653.154 | N196: 7542.1916 | O196: 903.3274 | Q196: 7364.8563 | R196: 143.3449 | S196: 1939.9645 | T196: 32692.7479 | U196: 177404.48 | V196: 30150.901 | W196: 181.5025 | X196: 9587.280864 | Y196: 2171.1321 | Z196: 0 | AA196: 0 | AB196: 0 | AC196: 0 | AD196: 0 | AE196: 0 | AF196: 0 | AG196: 0 | AH196: 0 | AI196: 0 | AJ196: 0 | AK196: 0 | AL196: 0 | AM196: 0
A197: 4 | B197: FALSE | C197: 2022-04-09T02:00:00 | D197: 615677.7199 | E197: 369832.7172 | F197: 409413.7453 | G197: 491637.2688 | H197: 615677.7199 | I197: 258992.7594 | J197: 65696.0943 | K197: 1088.2389 | L197: 96.5271 | M197: 24270.7594 | N197: 7135.7588 | O197: 854.649 | Q197: 6967.9797 | R197: 135.6204 | S197: 1957.9484 | T197: 31221.41 | U197: 175159.9322 | V197: 30152.8663 | W197: 188.763 | X197: 9587.280864 | Y197: 2171.1321 | Z197: 0 | AA197: 0 | AB197: 0 | AC197: 0 | AD197: 0 | AE197: 0 | AF197: 0 | AG197: 0 | AH197: 0 | AI197: 0 | AJ197: 0 | AK197: 0 | AL197: 0 | AM197: 0
A198: 4 | B198: FALSE | C198: 2022-04-09T03:00:00 | D198: 598361.451 | E198: 353069.1564 | F198: 392930.3425 | G198: 478114.6836 | H198: 598361.451 | I198: 244402.9181 | J198: 63828.0788 | K198: 1057.2957 | L198: 93.7824 | M198: 24091.1855 | N198: 7082.9629 | O198: 848.3257 | Q198: 6916.4251 | R198: 134.617 | S198: 1890.8901 | T198: 31586.3105 | U198: 174349.8107 | V198: 30139.1897 | W198: 181.2458 | X198: 9587.280864 | Y198: 2171.1321 | Z198: 0 | AA198: 0 | AB198: 0 | AC198: 0 | AD198: 0 | AE198: 0 | AF198: 0 | AG198: 0 | AH198: 0 | AI198: 0 | AJ198: 0 | AK198: 0 | AL198: 0 | AM198: 0
A199: 4 | B199: FALSE | C199: 2022-04-09T04:00:00 | D199: 618011.2935 | E199: 373011.2446 | F199: 413286.9581 | G199: 493100.47 | H199: 618011.2935 | I199: 262790.0721 | J199: 63104.0117 | K199: 1045.3017 | L199: 92.7186 | M199: 25903.1565 | N199: 7615.694 | O199: 912.1308 | Q199: 7436.6304 | R199: 144.7419 | S199: 1837.2436 | T199: 31469.9759 | U199: 173584.4603 | V199: 30135.0257 | W199: 181.7173 | X199: 9587.280864 | Y199: 2171.1321 | Z199: 0 | AA199: 0 | AB199: 0 | AC199: 0 | AD199: 0 | AE199: 0 | AF199: 0 | AG199: 0 | AH199: 0 | AI199: 0 | AJ199: 0 | AK199: 0 | AL199: 0 | AM199: 0
A200: 4 | B200: FALSE | C200: 2022-04-09T05:00:00 | D200: 602781.7863 | E200: 357173.6398 | F200: 398079.6773 | G200: 481289.7196 | H200: 602781.7863 | I200: 242843.272 | J200: 64720.6269 | K200: 1072.0806 | L200: 95.0939 | M200: 27766.1198 | N200: 8163.4171 | O200: 977.7315 | Q200: 7971.4753 | R200: 155.1518 | S200: 1932.6491 | T200: 31515.388 | U200: 173425.6504 | V200: 30203.6332 | W200: 181.0837 | X200: 9587.280864 | Y200: 2171.1321 | Z200: 0 | AA200: 0 | AB200: 0 | AC200: 0 | AD200: 0 | AE200: 0 | AF200: 0 | AG200: 0 | AH200: 0 | AI200: 0 | AJ200: 0 | AK200: 0 | AL200: 0 | AM200: 0
... 337 more rows

Sheet Loss Values
A1: =UPPER(Inputs!C1 & " - " & Inputs!C2) -> KENTUCKY POWER COMPANY - KENTUCKY JURISDICTION
A2: LOSS FACTOR CALCULATIONS
A3: ="FOR THE TEST YEAR ENDED " & UPPER(TEXT(DATE(YEAR(ReportYr)+1,MONTH(ReportYr),DAY(ReportYr))-1,"Mmmm d, yyyy")) -> FOR THE TEST YEAR ENDED MARCH 31, 2023
B6: Secondary Voltage | C6: Primary Voltage | D6: Subtran Voltage | E6: Transmission Voltage | F6: Generation Point
A7: Metered Peak Demand - Secondary | B7: =+B11 -> 1002923.353 | C7: =OFFSET(Metered!F4, (MATCH(C11,Metered!F3:F8786,0)-2),-1) -> 1002923.353 | D7: =OFFSET(Metered!G4, (MATCH(D11,Metered!G3:G8786,0)-2),-2)*DistAtSubtran -> 772930.9496 | E7: =OFFSET(Metered!H4, (MATCH(E11,Metered!H3:H8786,0)-2),-3) -> 1002923.353 | F7: =+E7 -> 1002923.353
A8: Metered Peak Demand - Primary | B8: 0 | C8: =+C11-C7 -> 51991.8546 | D8: =(OFFSET(Metered!G4, (MATCH(D11,Metered!G3:G8786,0)-2),-1)*DistAtSubtran)-D7 -> 40068.97777 | E8: =OFFSET(Metered!H4, (MATCH(E11,Metered!H3:H8786,0)-2),-2)-E7 -> 51991.8546 | F8: =+E8 -> 51991.8546
A9: Metered Peak Demand - Subtran | B9: 0 | C9: 0 | D9: =+D11-D8-D7 -> 218633.6519 | E9: =OFFSET(Metered!H4, (MATCH(E11,Metered!H3:H8786,0)-2),-1)-(SUM(E7:E8)*DistAtSubtran) -> 218633.6519 | F9: =+E9 -> 218633.6519
A10: Metered Peak Demand - Trans | B10: 0 | C10: 0 | D10: 0 | E10: =+E11-SUM(E7:E9) -> 25226.023 | F10: =+E10 -> 25226.023
A11: Metered Peak Demand | B11: =MAX(Metered!E3:E8786) -> 1002923.353 | C11: =MAX(Metered!F3:F8786) -> 1054915.208 | D11: =MAX(Metered!G3:G8786) -> 1031633.579 | E11: =MAX(Metered!H3:H8786) -> 1298774.883 | F11: =SUM(F7:F10) -> 1298774.883
A12: Loss Adj Peak Demand at Lower Voltage | B12: =+B11 -> 1002923.353 | C12: =+C7*'Accum Loss Factors'!B10+C8 -> 1083121.903 | D12: =(D7*'Accum Loss Factors'!B11+D8*'Accum Loss Factors'!C11+D9) -> 1070545.325 | E12: =+E7*'Accum Loss Factors'!B13+E8*'Accum Loss Factors'!C13+E9*'Accum Loss Factors'!D13+E10 -> 1368242.191 | F12: =+F7*'Accum Loss Factors'!B14+F8*'Accum Loss Factors'!C14+F9*'Accum Loss Factors'!D14+F10*'Accum Loss Factors'!E14 -> 1423313.939
A13: On Date & Time | B13: =TYStart+(MATCH(B11,Metered!E3:E8786,0)-1)/24 -> 2023-02-04T07:00:00 | C13: =TYStart + (MATCH(C11,Metered!F3:F8786,0)-1)/24 -> 2023-02-04T07:00:00 | D13: =TYStart+(MATCH(D11,Metered!G3:G8786,0)-1)/24 -> 2023-02-04T07:00:00 | E13: =TYStart+(MATCH(E11,Metered!H3:H8786,0)-1)/24 -> 2023-02-04T07:00:00
A14: Zero Load Loss | B14: =+B12*Inputs!C13 -> 14973.4247 | C14: =+C12*Inputs!C12 -> 4195.552586 | D14: =+D12*Inputs!C11 -> 2474.754881 | E14: =+E12*Inputs!C10 -> 3281.928109 | F14: 0
A15: Loss Coefficient | B15: =+Inputs!D13/'Loss Values'!B12 -> 1.315623685e-08 | C15: =+Inputs!D12/C12 -> 1.541830425e-08 | D15: =+Inputs!D11/D12 -> 1.43990458e-08 | E15: =+Inputs!D10/E12 -> 2.766422103e-08 | F15: 0
A16: Maximum Loss | B16: =B12*Inputs!$B13 -> 28206.69463 | C16: =+Inputs!B12*C12 -> 22283.58333 | D16: =+Inputs!B11*D12 -> 18977.03032 | E16: =+Inputs!B10*E12 -> 55071.74819 | F16: 0
A17: Loss Gross-Up Factor | B17: =1+((LossCoeff_Sec*B11^2+ZeroLoadLoss_Sec)/B11) -> 1.028124477 | C17: =1+((LossCoeff_Sec*C11^2+ZeroLoadLoss_Sec)/C11) -> 1.028072675 | D17: =1+((LossCoeff_Sec*D11^2+ZeroLoadLoss_Sec)/D11) -> 1.028086702 | E17: =1+((LossCoeff_Sec*E11^2+ZeroLoadLoss_Sec)/E11) -> 1.028615874

Sheet Loss Adj
A1: Period | B1: Date | C1: Total Secondary | D1: Secondary Loss Factor | E1: Loss Adjusted Secondary | F1: Primary Metered | G1: Total @ Primary | H1: Primary Loss Factor | I1: Loss Adjusted Primary | J1: Subtransmission Metered | K1: Total @ Subtransmission | L1: Subtran Loss Factor | M1: Loss Adjusted Subtran | N1: Transmission Metered | O1: Total @ Tran | P1: Tran Loss Factor | Q1: Loss Adjusted Tran
A2: =MONTH(B2) -> 4 | B2: =+Inputs!C3 -> 2022-04-01 | C2: =+Metered!E3 -> 236698.4687 | D2: =IF(C2=0,0,ROUND(1+((LossCoeff_Sec*C2^2+ZeroLoadLoss_Sec)/C2),5)) -> 1.06637 | E2: =+C2*D2 -> 252408.1461 | F2: =SUMIF(OFFSET(Metered!$I$2,0,0,1,COUNTA(Metered!$I$2:$IV$2)),"Primary",OFFSET(Metered!$I3,0,0,1,COUNTA(Metered!$I3:$AA3))) -> 41904.8636 | G2: =+E2+F2 -> 294313.0097 | H2: =IF(G2=0,0,ROUND(1+((LossCoeff_Pri*G2^2+ZeroLoadLoss_Pri)/G2),5)) -> 1.01879 | I2: =+G2*H2 -> 299843.1511 | J2: =SUMIF(OFFSET(Metered!$I$2,0,0,1,COUNTA(Metered!$I$2:$IV$2)),"Subtransmission",OFFSET(Metered!$I3,0,0,1,COUNTA(Metered!$I3:$AA3))) -> 192160.5796 | K2: =+I2*DistAtSubtran+J2 -> 423243.0953 | L2: =IF(K2=0,0,ROUND(1+((LossCoeff_Sub*K2^2+ZeroLoadLoss_Sub)/K2),5)) -> 1.01194 | M2: =+K2*L2 -> 428296.6179 | N2: =SUMIF(OFFSET(Metered!$I$2,0,0,1,COUNTA(Metered!$I$2:$AA$2)),"Transmission",OFFSET(Metered!$I3,0,0,1,COUNTA(Metered!$I3:$AA3))) -> 29913.682 | O2: =+M2+N2+(1-DistAtSubtran)*I2 -> 526970.9353 | P2: =IF(O2=0,0,ROUND(1+((LossCoeff_Trn*O2^2+ZeroLoadLoss_Trn)/O2),5)) -> 1.02081 | Q2: =+P2*O2 -> 537937.2005
A3: =MONTH(B3) -> 4 | B3: =+B2+1/24 -> 2022-04-01T01:00:00 | C3: =+Metered!E4 -> 228474.8908 | D3: 1.06854 | E3: =+C3*D3 -> 244134.5598 | F3: =SUMIF(OFFSET(Metered!$I$2,0,0,1,COUNTA(Metered!$I$2:$IV$2)),"Primary",OFFSET(Metered!$I4,0,0,1,COUNTA(Metered!$I4:$AA4))) -> 39024.6271 | G3: =+E3+F3 -> 283159.1869 | H3: 1.01918 | I3: =+G3*H3 -> 288590.1802 | J3: =SUMIF(OFFSET(Metered!$I$2,0,0,1,COUNTA(Metered!$I$2:$IV$2)),"Subtransmission",OFFSET(Metered!$I4,0,0,1,COUNTA(Metered!$I4:$AA4))) -> 188117.694 | K3: 410527.7927 | L3: 1.01194 | M3: =+K3*L3 -> 415429.4945 | N3: =SUMIF(OFFSET(Metered!$I$2,0,0,1,COUNTA(Metered!$I$2:$AA$2)),"Transmission",OFFSET(Metered!$I4,0,0,1,COUNTA(Metered!$I4:$AA4))) -> 29889.4585 | O3: 511499.0345 | P3: 1.02057 | Q3: =+P3*O3 -> 522020.5696
A4: 4 | B4: 2022-04-01T02:00:00 | C4: =+Metered!E5 -> 250192.9544 | D4: 1.06314 | E4: 265990.1376 | F4: =SUMIF(OFFSET(Metered!$I$2,0,0,1,COUNTA(Metered!$I$2:$IV$2)),"Primary",OFFSET(Metered!$I5,0,0,1,COUNTA(Metered!$I5:$AA5))) -> 37651.9037 | G4: 303642.0413 | H4: 1.0185 | I4: 309259.419 | J4: =SUMIF(OFFSET(Metered!$I$2,0,0,1,COUNTA(Metered!$I$2:$IV$2)),"Subtransmission",OFFSET(Metered!$I5,0,0,1,COUNTA(Metered!$I5:$AA5))) -> 186395.1998 | K4: 424734.6259 | L4: 1.01194 | M4: 429805.9573 | N4: =SUMIF(OFFSET(Metered!$I$2,0,0,1,COUNTA(Metered!$I$2:$AA$2)),"Transmission",OFFSET(Metered!$I5,0,0,1,COUNTA(Metered!$I5:$AA5))) -> 29872.8046 | O4: 530598.7549 | P4: 1.02086 | Q4: 541667.0449
A5: 4 | B5: 2022-04-01T03:00:00 | C5: =+Metered!E6 -> 257533.5015 | D5: 1.06153 | E5: 273379.5378 | F5: =SUMIF(OFFSET(Metered!$I$2,0,0,1,COUNTA(Metered!$I$2:$IV$2)),"Primary",OFFSET(Metered!$I6,0,0,1,COUNTA(Metered!$I6:$AA6))) -> 37733.9292 | G5: 311113.467 | H5: 1.01828 | I5: 316800.6212 | J5: =SUMIF(OFFSET(Metered!$I$2,0,0,1,COUNTA(Metered!$I$2:$IV$2)),"Subtransmission",OFFSET(Metered!$I6,0,0,1,COUNTA(Metered!$I6:$AA6))) -> 182005.6315 | K5: 426156.8961 | L5: 1.01194 | M5: 431245.2094 | N5: =SUMIF(OFFSET(Metered!$I$2,0,0,1,COUNTA(Metered!$I$2:$AA$2)),"Transmission",OFFSET(Metered!$I6,0,0,1,COUNTA(Metered!$I6:$AA6))) -> 29914.1689 | O5: 533808.7349 | P5: 1.02092 | Q5: 544976.0137
A6: 4 | B6: 2022-04-01T04:00:00 | C6: =+Metered!E7 -> 261884.2026 | D6: 1.06062 | E6: 277759.623 | F6: =SUMIF(OFFSET(Metered!$I$2,0,0,1,COUNTA(Metered!$I$2:$IV$2)),"Primary",OFFSET(Metered!$I7,0,0,1,COUNTA(Metered!$I7:$AA7))) -> 38559.5137 | G6: 316319.1367 | H6: 1.01814 | I6: 322057.1659 | J6: =SUMIF(OFFSET(Metered!$I$2,0,0,1,COUNTA(Metered!$I$2:$IV$2)),"Subtransmission",OFFSET(Metered!$I7,0,0,1,COUNTA(Metered!$I7:$AA7))) -> 184566.8032 | K6: 432769.171 | L6: 1.01195 | M6: 437940.7626 | N6: =SUMIF(OFFSET(Metered!$I$2,0,0,1,COUNTA(Metered!$I$2:$AA$2)),"Transmission",OFFSET(Metered!$I7,0,0,1,COUNTA(Metered!$I7:$AA7))) -> 29945.832 | O6: 541741.3926 | P6: 1.02104 | Q6: 553139.6315
A7: 4 | B7: 2022-04-01T05:00:00 | C7: =+Metered!E8 -> 310656.8919 | D7: 1.05229 | E7: 326901.1408 | F7: =SUMIF(OFFSET(Metered!$I$2,0,0,1,COUNTA(Metered!$I$2:$IV$2)),"Primary",OFFSET(Metered!$I8,0,0,1,COUNTA(Metered!$I8:$AA8))) -> 40530.1004 | G7: 367431.2412 | H7: 1.01708 | I7: 373706.9668 | J7: =SUMIF(OFFSET(Metered!$I$2,0,0,1,COUNTA(Metered!$I$2:$IV$2)),"Subtransmission",OFFSET(Metered!$I8,0,0,1,COUNTA(Metered!$I8:$AA8))) -> 186774.9953 | K7: 474782.7276 | L7: 1.01205 | M7: 480503.8595 | N7: =SUMIF(OFFSET(Metered!$I$2,0,0,1,COUNTA(Metered!$I$2:$AA$2)),"Transmission",OFFSET(Metered!$I8,0,0,1,COUNTA(Metered!$I8:$AA8))) -> 29989.9109 | O7: 596193.0048 | P7: 1.022 | Q7: 609309.2509
A8: 4 | B8: 2022-04-01T06:00:00 | C8: =+Metered!E9 -> 364430.9434 | D8: 1.04588 | E8: 381151.0351 | F8: =SUMIF(OFFSET(Metered!$I$2,0,0,1,COUNTA(Metered!$I$2:$IV$2)),"Primary",OFFSET(Metered!$I9,0,0,1,COUNTA(Metered!$I9:$AA9))) -> 46475.264 | G8: 427626.2991 | H8: 1.0164 | I8: 434639.3704 | J8: =SUMIF(OFFSET(Metered!$I$2,0,0,1,COUNTA(Metered!$I$2:$IV$2)),"Subtransmission",OFFSET(Metered!$I9,0,0,1,COUNTA(Metered!$I9:$AA9))) -> 187311.8173 | K8: 522278.8117 | L8: 1.01226 | M8: 528681.9499 | N8: =SUMIF(OFFSET(Metered!$I$2,0,0,1,COUNTA(Metered!$I$2:$AA$2)),"Transmission",OFFSET(Metered!$I9,0,0,1,COUNTA(Metered!$I9:$AA9))) -> 29944.4231 | O8: 658298.749 | P8: 1.0232 | Q8: 673571.28
A9: 4 | B9: 2022-04-01T07:00:00 | C9: =+Metered!E10 -> 414687.6795 | D9: 1.04156 | E9: 431922.0995 | F9: =SUMIF(OFFSET(Metered!$I$2,0,0,1,COUNTA(Metered!$I$2:$IV$2)),"Primary",OFFSET(Metered!$I10,0,0,1,COUNTA(Metered!$I10:$AA10))) -> 56628.5133 | G9: 488550.6128 | H9: 1.01612 | I9: 496426.0486 | J9: =SUMIF(OFFSET(Metered!$I$2,0,0,1,COUNTA(Metered!$I$2:$IV$2)),"Subtransmission",OFFSET(Metered!$I10,0,0,1,COUNTA(Metered!$I10:$AA10))) -> 195313.5244 | K9: 577898.1515 | L9: 1.0126 | M9: 585179.6682 | N9: =SUMIF(OFFSET(Metered!$I$2,0,0,1,COUNTA(Metered!$I$2:$AA$2)),"Transmission",OFFSET(Metered!$I10,0,0,1,COUNTA(Metered!$I10:$AA10))) -> 29912.6455 | O9: 728933.7353 | P9: 1.02467 | Q9: 746916.5305
A10: 4 | B10: 2022-04-01T08:00:00 | C10: =+Metered!E11 -> 400051.0867 | D10: 1.04269 | E10: 417129.2676 | F10: =SUMIF(OFFSET(Metered!$I$2,0,0,1,COUNTA(Metered!$I$2:$IV$2)),"Primary",OFFSET(Metered!$I11,0,0,1,COUNTA(Metered!$I11:$AA11))) -> 60595.4689 | G10: 477724.7365 | H10: 1.01615 | I10: 485439.991 | J10: =SUMIF(OFFSET(Metered!$I$2,0,0,1,COUNTA(Metered!$I$2:$IV$2)),"Subtransmission",OFFSET(Metered!$I11,0,0,1,COUNTA(Metered!$I11:$AA11))) -> 197143.5811 | K10: 571261.4955 | L10: 1.01256 | M10: 578436.5398 | N10: =SUMIF(OFFSET(Metered!$I$2,0,0,1,COUNTA(Metered!$I$2:$AA$2)),"Transmission",OFFSET(Metered!$I11,0,0,1,COUNTA(Metered!$I11:$AA11))) -> 29911.692 | O10: 719670.3085 | P10: 1.02447 | Q10: 737280.6409
A11: 4 | B11: 2022-04-01T09:00:00 | C11: =+Metered!E12 -> 412430.139 | D11: 1.04173 | E11: 429640.8487 | F11: =SUMIF(OFFSET(Metered!$I$2,0,0,1,COUNTA(Metered!$I$2:$IV$2)),"Primary",OFFSET(Metered!$I12,0,0,1,COUNTA(Metered!$I12:$AA12))) -> 62693.3414 | G11: 492334.1901 | H11: 1.01611 | I11: 500265.6939 | J11: =SUMIF(OFFSET(Metered!$I$2,0,0,1,COUNTA(Metered!$I$2:$IV$2)),"Subtransmission",OFFSET(Metered!$I12,0,0,1,COUNTA(Metered!$I12:$AA12))) -> 191851.3634 | K11: 577395.1206 | L11: 1.0126 | M11: 584670.2991 | N11: =SUMIF(OFFSET(Metered!$I$2,0,0,1,COUNTA(Metered!$I$2:$AA$2)),"Transmission",OFFSET(Metered!$I12,0,0,1,COUNTA(Metered!$I12:$AA12))) -> 29888.9424 | O11: 729281.1782 | P11: 1.02468 | Q11: 747279.8377
A12: 4 | B12: 2022-04-01T10:00:00 | C12: =+Metered!E13 -> 408768.9959 | D12: 1.04201 | E12: 425941.3814 | F12: =SUMIF(OFFSET(Metered!$I$2,0,0,1,COUNTA(Metered!$I$2:$IV$2)),"Primary",OFFSET(Metered!$I13,0,0,1,COUNTA(Metered!$I13:$AA13))) -> 61260.7752 | G12: 487202.1566 | H12: 1.01612 | I12: 495055.8554 | J12: =SUMIF(OFFSET(Metered!$I$2,0,0,1,COUNTA(Metered!$I$2:$IV$2)),"Subtransmission",OFFSET(Metered!$I13,0,0,1,COUNTA(Metered!$I13:$AA13))) -> 190718.6908 | K12: 572247.3402 | L12: 1.01256 | M12: 579434.7667 | N12: =SUMIF(OFFSET(Metered!$I$2,0,0,1,COUNTA(Metered!$I$2:$AA$2)),"Transmission",OFFSET(Metered!$I13,0,0,1,COUNTA(Metered!$I13:$AA13))) -> 29910.2516 | O12: 722872.2244 | P12: 1.02454 | Q12: 740611.5088
A13: 4 | B13: 2022-04-01T11:00:00 | C13: =+Metered!E14 -> 370230.9484 | D13: 1.04531 | E13: 387006.1126 | F13: =SUMIF(OFFSET(Metered!$I$2,0,0,1,COUNTA(Metered!$I$2:$IV$2)),"Primary",OFFSET(Metered!$I14,0,0,1,COUNTA(Metered!$I14:$AA14))) -> 62229.2495 | G13: 449235.3621 | H13: 1.01627 | I13: 456544.4215 | J13: =SUMIF(OFFSET(Metered!$I$2,0,0,1,COUNTA(Metered!$I$2:$IV$2)),"Subtransmission",OFFSET(Metered!$I14,0,0,1,COUNTA(Metered!$I14:$AA14))) -> 191230.5481 | K13: 543079.2832 | L13: 1.01238 | M13: 549802.6047 | N13: =SUMIF(OFFSET(Metered!$I$2,0,0,1,COUNTA(Metered!$I$2:$AA$2)),"Transmission",OFFSET(Metered!$I14,0,0,1,COUNTA(Metered!$I14:$AA14))) -> 29998.7729 | O13: 684497.064 | P13: 1.02373 | Q13: 700740.1793
A14: 4 | B14: 2022-04-01T12:00:00 | C14: =+Metered!E15 -> 371552.5524 | D14: 1.04519 | E14: 388343.0123 | F14: =SUMIF(OFFSET(Metered!$I$2,0,0,1,COUNTA(Metered!$I$2:$IV$2)),"Primary",OFFSET(Metered!$I15,0,0,1,COUNTA(Metered!$I15:$AA15))) -> 62446.0484 | G14: 450789.0607 | H14: 1.01626 | I14: 458118.8908 | J14: =SUMIF(OFFSET(Metered!$I$2,0,0,1,COUNTA(Metered!$I$2:$IV$2)),"Subtransmission",OFFSET(Metered!$I15,0,0,1,COUNTA(Metered!$I15:$AA15))) -> 186966.5381 | K14: 540028.682 | L14: 1.01236 | M14: 546703.4365 | N14: =SUMIF(OFFSET(Metered!$I$2,0,0,1,COUNTA(Metered!$I$2:$AA$2)),"Transmission",OFFSET(Metered!$I15,0,0,1,COUNTA(Metered!$I15:$AA15))) -> 30006.7846 | O14: 681766.968 | P14: 1.02367 | Q14: 697904.3922
A15: 4 | B15: 2022-04-01T13:00:00 | C15: =+Metered!E16 -> 365643.0356 | D15: 1.04576 | E15: 382374.8609 | F15: =SUMIF(OFFSET(Metered!$I$2,0,0,1,COUNTA(Metered!$I$2:$IV$2)),"Primary",OFFSET(Metered!$I16,0,0,1,COUNTA(Metered!$I16:$AA16))) -> 63088.916 | G15: 445463.7769 | H15: 1.01629 | I15: 452720.3818 | J15: =SUMIF(OFFSET(Metered!$I$2,0,0,1,COUNTA(Metered!$I$2:$IV$2)),"Subtransmission",OFFSET(Metered!$I16,0,0,1,COUNTA(Metered!$I16:$AA16))) -> 189116.8592 | K15: 538018.4911 | L15: 1.01235 | M15: 544663.0194 | N15: =SUMIF(OFFSET(Metered!$I$2,0,0,1,COUNTA(Metered!$I$2:$AA$2)),"Transmission",OFFSET(Metered!$I16,0,0,1,COUNTA(Metered!$I16:$AA16))) -> 30008.5683 | O15: 678490.3377 | P15: 1.02361 | Q15: 694509.4945
A16: 4 | B16: 2022-04-01T14:00:00 | C16: =+Metered!E17 -> 360274.5033 | D16: 1.0463 | E16: 376955.2128 | F16: =SUMIF(OFFSET(Metered!$I$2,0,0,1,COUNTA(Metered!$I$2:$IV$2)),"Primary",OFFSET(Metered!$I17,0,0,1,COUNTA(Metered!$I17:$AA17))) -> 60781.2027 | G16: 437736.4155 | H16: 1.01633 | I16: 444884.6511 | J16: =SUMIF(OFFSET(Metered!$I$2,0,0,1,COUNTA(Metered!$I$2:$IV$2)),"Subtransmission",OFFSET(Metered!$I17,0,0,1,COUNTA(Metered!$I17:$AA17))) -> 191423.043 | K16: 534285.8497 | L16: 1.01233 | M16: 540873.5943 | N16: =SUMIF(OFFSET(Metered!$I$2,0,0,1,COUNTA(Metered!$I$2:$AA$2)),"Transmission",OFFSET(Metered!$I17,0,0,1,COUNTA(Metered!$I17:$AA17))) -> 29984.43 | O16: 672879.8686 | P16: 1.02349 | Q16: 688685.8168
A17: 4 | B17: 2022-04-01T15:00:00 | C17: =+Metered!E18 -> 343887.5404 | D17: 1.04807 | E17: 360418.2145 | F17: =SUMIF(OFFSET(Metered!$I$2,0,0,1,COUNTA(Metered!$I$2:$IV$2)),"Primary",OFFSET(Metered!$I18,0,0,1,COUNTA(Metered!$I18:$AA18))) -> 56406.4669 | G17: 416824.6814 | H17: 1.01649 | I17: 423698.1204 | J17: =SUMIF(OFFSET(Metered!$I$2,0,0,1,COUNTA(Metered!$I$2:$IV$2)),"Subtransmission",OFFSET(Metered!$I18,0,0,1,COUNTA(Metered!$I18:$AA18))) -> 190632.9447 | K17: 517167.7586 | L17: 1.01223 | M17: 523492.7203 | N17: =SUMIF(OFFSET(Metered!$I$2,0,0,1,COUNTA(Metered!$I$2:$AA$2)),"Transmission",OFFSET(Metered!$I18,0,0,1,COUNTA(Metered!$I18:$AA18))) -> 29972.5728 | O17: 650628.5996 | P17: 1.02304 | Q17: 665619.0825
A18: 4 | B18: 2022-04-01T16:00:00 | C18: =+Metered!E19 -> 324197.6831 | D18: 1.05045 | E18: 340553.4562 | F18: =SUMIF(OFFSET(Metered!$I$2,0,0,1,COUNTA(Metered!$I$2:$IV$2)),"Primary",OFFSET(Metered!$I19,0,0,1,COUNTA(Metered!$I19:$AA19))) -> 54250.4617 | G18: 394803.9179 | H18: 1.01671 | I18: 401401.0914 | J18: =SUMIF(OFFSET(Metered!$I$2,0,0,1,COUNTA(Metered!$I$2:$IV$2)),"Subtransmission",OFFSET(Metered!$I19,0,0,1,COUNTA(Metered!$I19:$AA19))) -> 189944.0869 | K18: 499295.0714 | L18: 1.01215 | M18: 505361.5065 | N18: =SUMIF(OFFSET(Metered!$I$2,0,0,1,COUNTA(Metered!$I$2:$AA$2)),"Transmission",OFFSET(Metered!$I19,0,0,1,COUNTA(Metered!$I19:$AA19))) -> 30012.9925 | O18: 627424.6059 | P18: 1.02259 | Q18: 641598.1278
A19: 4 | B19: 2022-04-01T17:00:00 | C19: =+Metered!E20 -> 327285.4309 | D19: 1.05006 | E19: 343669.3396 | F19: =SUMIF(OFFSET(Metered!$I$2,0,0,1,COUNTA(Metered!$I$2:$IV$2)),"Primary",OFFSET(Metered!$I20,0,0,1,COUNTA(Metered!$I20:$AA20))) -> 52936.2106 | G19: 396605.5502 | H19: 1.01669 | I19: 403224.8969 | J19: =SUMIF(OFFSET(Metered!$I$2,0,0,1,COUNTA(Metered!$I$2:$IV$2)),"Subtransmission",OFFSET(Metered!$I20,0,0,1,COUNTA(Metered!$I20:$AA20))) -> 185396.282 | K19: 496152.8332 | L19: 1.01213 | M19: 502171.1671 | N19: =SUMIF(OFFSET(Metered!$I$2,0,0,1,COUNTA(Metered!$I$2:$AA$2)),"Transmission",OFFSET(Metered!$I20,0,0,1,COUNTA(Metered!$I20:$AA20))) -> 29985.5854 | O19: 624625.0981 | P19: 1.02253 | Q19: 638697.9016
A20: 4 | B20: 2022-04-01T18:00:00 | C20: =+Metered!E21 -> 332618.3697 | D20: 1.04939 | E20: 349046.391 | F20: =SUMIF(OFFSET(Metered!$I$2,0,0,1,COUNTA(Metered!$I$2:$IV$2)),"Primary",OFFSET(Metered!$I21,0,0,1,COUNTA(Metered!$I21:$AA21))) -> 53061.9985 | G20: 402108.3895 | H20: 1.01663 | I20: 408795.452 | J20: =SUMIF(OFFSET(Metered!$I$2,0,0,1,COUNTA(Metered!$I$2:$IV$2)),"Subtransmission",OFFSET(Metered!$I21,0,0,1,COUNTA(Metered!$I21:$AA21))) -> 184705.1187 | K20: 499754.7741 | L20: 1.01215 | M20: 505826.7946 | N20: =SUMIF(OFFSET(Metered!$I$2,0,0,1,COUNTA(Metered!$I$2:$AA$2)),"Transmission",OFFSET(Metered!$I21,0,0,1,COUNTA(Metered!$I21:$AA21))) -> 30028.3563 | O20: 629600.9475 | P20: 1.02263 | Q20: 643848.8169
A21: 4 | B21: 2022-04-01T19:00:00 | C21: =+Metered!E22 -> 364105.1779 | D21: 1.04591 | E21: 380821.2467 | F21: =SUMIF(OFFSET(Metered!$I$2,0,0,1,COUNTA(Metered!$I$2:$IV$2)),"Primary",OFFSET(Metered!$I22,0,0,1,COUNTA(Metered!$I22:$AA22))) -> 53438.9993 | G21: 434260.246 | H21: 1.01636 | I21: 441364.7436 | J21: =SUMIF(OFFSET(Metered!$I$2,0,0,1,COUNTA(Metered!$I$2:$IV$2)),"Subtransmission",OFFSET(Metered!$I22,0,0,1,COUNTA(Metered!$I22:$AA22))) -> 183863.7958 | K21: 524013.8873 | L21: 1.01227 | M21: 530443.5377 | N21: =SUMIF(OFFSET(Metered!$I$2,0,0,1,COUNTA(Metered!$I$2:$AA$2)),"Transmission",OFFSET(Metered!$I22,0,0,1,COUNTA(Metered!$I22:$AA22))) -> 30039.2083 | O21: 661697.3981 | P21: 1.02327 | Q21: 677095.0965
A22: 4 | B22: 2022-04-01T20:00:00 | C22: =+Metered!E23 -> 380730.6819 | D22: 1.04434 | E22: 397612.2803 | F22: =SUMIF(OFFSET(Metered!$I$2,0,0,1,COUNTA(Metered!$I$2:$IV$2)),"Primary",OFFSET(Metered!$I23,0,0,1,COUNTA(Metered!$I23:$AA23))) -> 52092.2101 | G22: 449704.4904 | H22: 1.01626 | I22: 457016.6854 | J22: =SUMIF(OFFSET(Metered!$I$2,0,0,1,COUNTA(Metered!$I$2:$IV$2)),"Subtransmission",OFFSET(Metered!$I23,0,0,1,COUNTA(Metered!$I23:$AA23))) -> 182906.3557 | K22: 535119.0542 | L22: 1.01233 | M22: 541717.0721 | N22: =SUMIF(OFFSET(Metered!$I$2,0,0,1,COUNTA(Metered!$I$2:$AA$2)),"Transmission",OFFSET(Metered!$I23,0,0,1,COUNTA(Metered!$I23:$AA23))) -> 30108.5092 | O22: 676629.5683 | P22: 1.02357 | Q22: 692577.7272
A23: 4 | B23: 2022-04-01T21:00:00 | C23: =+Metered!E24 -> 391267.1303 | D23: 1.04342 | E23: 408255.949 | F23: =SUMIF(OFFSET(Metered!$I$2,0,0,1,COUNTA(Metered!$I$2:$IV$2)),"Primary",OFFSET(Metered!$I24,0,0,1,COUNTA(Metered!$I24:$AA24))) -> 49998.0082 | G23: 458253.9572 | H23: 1.01622 | I23: 465686.8364 | J23: =SUMIF(OFFSET(Metered!$I$2,0,0,1,COUNTA(Metered!$I$2:$IV$2)),"Subtransmission",OFFSET(Metered!$I24,0,0,1,COUNTA(Metered!$I24:$AA24))) -> 182804.814 | K23: 541699.407 | L23: 1.01237 | M23: 548400.2287 | N23: =SUMIF(OFFSET(Metered!$I$2,0,0,1,COUNTA(Metered!$I$2:$AA$2)),"Transmission",OFFSET(Metered!$I24,0,0,1,COUNTA(Metered!$I24:$AA24))) -> 30094.2425 | O23: 685286.7146 | P23: 1.02375 | Q23: 701562.2741
A24: 4 | B24: 2022-04-01T22:00:00 | C24: =+Metered!E25 -> 390757.9779 | D24: 1.04346 | E24: 407740.3196 | F24: =SUMIF(OFFSET(Metered!$I$2,0,0,1,COUNTA(Metered!$I$2:$IV$2)),"Primary",OFFSET(Metered!$I25,0,0,1,COUNTA(Metered!$I25:$AA25))) -> 45464.9269 | G24: 453205.2465 | H24: 1.01625 | I24: 460569.8318 | J24: =SUMIF(OFFSET(Metered!$I$2,0,0,1,COUNTA(Metered!$I$2:$IV$2)),"Subtransmission",OFFSET(Metered!$I25,0,0,1,COUNTA(Metered!$I25:$AA25))) -> 181101.1624 | K24: 536052.1925 | L24: 1.01234 | M24: 542667.0766 | N24: =SUMIF(OFFSET(Metered!$I$2,0,0,1,COUNTA(Metered!$I$2:$AA$2)),"Transmission",OFFSET(Metered!$I25,0,0,1,COUNTA(Metered!$I25:$AA25))) -> 30085.6228 | O24: 678371.501 | P24: 1.0236 | Q24: 694381.0684
A25: 4 | B25: 2022-04-01T23:00:00 | C25: =+Metered!E26 -> 388295.3356 | D25: 1.04367 | E25: 405252.1929 | F25: =SUMIF(OFFSET(Metered!$I$2,0,0,1,COUNTA(Metered!$I$2:$IV$2)),"Primary",OFFSET(Metered!$I26,0,0,1,COUNTA(Metered!$I26:$AA26))) -> 41978.8726 | G25: 447231.0655 | H25: 1.01628 | I25: 454511.9873 | J25: =SUMIF(OFFSET(Metered!$I$2,0,0,1,COUNTA(Metered!$I$2:$IV$2)),"Subtransmission",OFFSET(Metered!$I26,0,0,1,COUNTA(Metered!$I26:$AA26))) -> 180366.9285 | K25: 530649.3112 | L25: 1.0123 | M25: 537176.2978 | N25: =SUMIF(OFFSET(Metered!$I$2,0,0,1,COUNTA(Metered!$I$2:$AA$2)),"Transmission",OFFSET(Metered!$I26,0,0,1,COUNTA(Metered!$I26:$AA26))) -> 30104.3295 | O25: 671510.2318 | P25: 1.02346 | Q25: 687263.8618
A26: 4 | B26: 2022-04-02 | C26: =+Metered!E27 -> 392329.8783 | D26: 1.04333 | E26: 409329.532 | F26: =SUMIF(OFFSET(Metered!$I$2,0,0,1,COUNTA(Metered!$I$2:$IV$2)),"Primary",OFFSET(Metered!$I27,0,0,1,COUNTA(Metered!$I27:$AA27))) -> 41193.7835 | G26: 450523.3155 | H26: 1.01626 | I26: 457848.8246 | J26: =SUMIF(OFFSET(Metered!$I$2,0,0,1,COUNTA(Metered!$I$2:$IV$2)),"Subtransmission",OFFSET(Metered!$I27,0,0,1,COUNTA(Metered!$I27:$AA27))) -> 179726.9009 | K26: 532580.9107 | L26: 1.01232 | M26: 539142.3075 | N26: =SUMIF(OFFSET(Metered!$I$2,0,0,1,COUNTA(Metered!$I$2:$AA$2)),"Transmission",OFFSET(Metered!$I27,0,0,1,COUNTA(Metered!$I27:$AA27))) -> 30089.3493 | O26: 674226.4716 | P26: 1.02352 | Q26: 690084.2782
A27: 4 | B27: 2022-04-02T01:00:00 | C27: =+Metered!E28 -> 409600.6431 | D27: 1.04194 | E27: 426779.294 | F27: =SUMIF(OFFSET(Metered!$I$2,0,0,1,COUNTA(Metered!$I$2:$IV$2)),"Primary",OFFSET(Metered!$I28,0,0,1,COUNTA(Metered!$I28:$AA28))) -> 39562.694 | G27: 466341.988 | H27: 1.01619 | I27: 473892.0648 | J27: =SUMIF(OFFSET(Metered!$I$2,0,0,1,COUNTA(Metered!$I$2:$IV$2)),"Subtransmission",OFFSET(Metered!$I28,0,0,1,COUNTA(Metered!$I28:$AA28))) -> 176642.2698 | K27: 541860.4517 | L27: 1.01237 | M27: 548563.2655 | N27: =SUMIF(OFFSET(Metered!$I$2,0,0,1,COUNTA(Metered!$I$2:$AA$2)),"Transmission",OFFSET(Metered!$I28,0,0,1,COUNTA(Metered!$I28:$AA28))) -> 30105.3682 | O27: 687342.5166 | P27: 1.02379 | Q27: 703694.3951
A28: 4 | B28: 2022-04-02T02:00:00 | C28: =+Metered!E29 -> 431146.3795 | D28: 1.0404 | E28: 448564.6932 | F28: =SUMIF(OFFSET(Metered!$I$2,0,0,1,COUNTA(Metered!$I$2:$IV$2)),"Primary",OFFSET(Metered!$I29,0,0,1,COUNTA(Metered!$I29:$AA29))) -> 39343.2832 | G28: 487907.9764 | H28: 1.01612 | I28: 495773.053 | J28: =SUMIF(OFFSET(Metered!$I$2,0,0,1,COUNTA(Metered!$I$2:$IV$2)),"Subtransmission",OFFSET(Metered!$I29,0,0,1,COUNTA(Metered!$I29:$AA29))) -> 173181.3583 | K28: 555262.7361 | L28: 1.01245 | M28: 562175.7571 | N28: =SUMIF(OFFSET(Metered!$I$2,0,0,1,COUNTA(Metered!$I$2:$AA$2)),"Transmission",OFFSET(Metered!$I29,0,0,1,COUNTA(Metered!$I29:$AA29))) -> 30198.1298 | O28: 706065.5622 | P28: 1.02418 | Q28: 723138.2274
A29: 4 | B29: 2022-04-02T03:00:00 | C29: =+Metered!E30 -> 464938.5106 | D29: 1.03832 | E29: 482754.9543 | F29: =SUMIF(OFFSET(Metered!$I$2,0,0,1,COUNTA(Metered!$I$2:$IV$2)),"Primary",OFFSET(Metered!$I30,0,0,1,COUNTA(Metered!$I30:$AA30))) -> 39602.5611 | G29: 522357.5154 | H29: 1.01609 | I29: 530762.2478 | J29: =SUMIF(OFFSET(Metered!$I$2,0,0,1,COUNTA(Metered!$I$2:$IV$2)),"Subtransmission",OFFSET(Metered!$I30,0,0,1,COUNTA(Metered!$I30:$AA30))) -> 173227.4927 | K29: 582274.2726 | L29: 1.01263 | M29: 589628.3967 | N29: =SUMIF(OFFSET(Metered!$I$2,0,0,1,COUNTA(Metered!$I$2:$AA$2)),"Transmission",OFFSET(Metered!$I30,0,0,1,COUNTA(Metered!$I30:$AA30))) -> 30048.8489 | O29: 741392.7135 | P29: 1.02494 | Q29: 759883.0477
A30: 4 | B30: 2022-04-02T04:00:00 | C30: =+Metered!E31 -> 441835.5272 | D30: 1.0397 | E30: 459376.3977 | F30: =SUMIF(OFFSET(Metered!$I$2,0,0,1,COUNTA(Metered!$I$2:$IV$2)),"Primary",OFFSET(Metered!$I31,0,0,1,COUNTA(Metered!$I31:$AA31))) -> 40291.5695 | G30: 499667.9672 | H30: 1.0161 | I30: 507712.6214 | J30: =SUMIF(OFFSET(Metered!$I$2,0,0,1,COUNTA(Metered!$I$2:$IV$2)),"Subtransmission",OFFSET(Metered!$I31,0,0,1,COUNTA(Metered!$I31:$AA31))) -> 175620.7796 | K30: 566903.7199 | L30: 1.01253 | M30: 574007.0235 | N30: =SUMIF(OFFSET(Metered!$I$2,0,0,1,COUNTA(Metered!$I$2:$AA$2)),"Transmission",OFFSET(Metered!$I31,0,0,1,COUNTA(Metered!$I31:$AA31))) -> 30022.0318 | O30: 720458.7364 | P30: 1.02449 | Q30: 738102.7709
A31: 4 | B31: 2022-04-02T05:00:00 | C31: =+Metered!E32 -> 473941.1837 | D31: 1.03783 | E31: 491870.3787 | F31: =SUMIF(OFFSET(Metered!$I$2,0,0,1,COUNTA(Metered!$I$2:$IV$2)),"Primary",OFFSET(Metered!$I32,0,0,1,COUNTA(Metered!$I32:$AA32))) -> 40918.0453 | G31: 532788.424 | H31: 1.01609 | I31: 541360.9897 | J31: =SUMIF(OFFSET(Metered!$I$2,0,0,1,COUNTA(Metered!$I$2:$IV$2)),"Subtransmission",OFFSET(Metered!$I32,0,0,1,COUNTA(Metered!$I32:$AA32))) -> 176090.1422 | K31: 593305.1392 | L31: 1.01271 | M31: 600846.0475 | N31: =SUMIF(OFFSET(Metered!$I$2,0,0,1,COUNTA(Metered!$I$2:$AA$2)),"Transmission",OFFSET(Metered!$I32,0,0,1,COUNTA(Metered!$I32:$AA32))) -> 30152.2179 | O31: 755144.2581 | P31: 1.02524 | Q31: 774204.0992
A32: 4 | B32: 2022-04-02T06:00:00 | C32: =+Metered!E33 -> 489376.4937 | D32: 1.03704 | E32: 507502.9991 | F32: =SUMIF(OFFSET(Metered!$I$2,0,0,1,COUNTA(Metered!$I$2:$IV$2)),"Primary",OFFSET(Metered!$I33,0,0,1,COUNTA(Metered!$I33:$AA33))) -> 42925.9547 | G32: 550428.9538 | H32: 1.01611 | I32: 559296.3642 | J32: =SUMIF(OFFSET(Metered!$I$2,0,0,1,COUNTA(Metered!$I$2:$IV$2)),"Subtransmission",OFFSET(Metered!$I33,0,0,1,COUNTA(Metered!$I33:$AA33))) -> 175886.6134 | K32: 606924.0087 | L32: 1.01282 | M32: 614704.7745 | N32: =SUMIF(OFFSET(Metered!$I$2,0,0,1,COUNTA(Metered!$I$2:$AA$2)),"Transmission",OFFSET(Metered!$I33,0,0,1,COUNTA(Metered!$I33:$AA33))) -> 30249.774 | O32: 773213.5174 | P32: 1.02563 | Q32: 793030.9799
A33: 4 | B33: 2022-04-02T07:00:00 | C33: =+Metered!E34 -> 535034.0509 | D33: 1.03502 | E33: 553770.9433 | F33: =SUMIF(OFFSET(Metered!$I$2,0,0,1,COUNTA(Metered!$I$2:$IV$2)),"Primary",OFFSET(Metered!$I34,0,0,1,COUNTA(Metered!$I34:$AA34))) -> 43490.474 | G33: 597261.4173 | H33: 1.01623 | I33: 606954.9701 | J33: =SUMIF(OFFSET(Metered!$I$2,0,0,1,COUNTA(Metered!$I$2:$IV$2)),"Subtransmission",OFFSET(Metered!$I34,0,0,1,COUNTA(Metered!$I34:$AA34))) -> 176543.8013 | K33: 644310.635 | L33: 1.01312 | M33: 652763.9905 | N33: =SUMIF(OFFSET(Metered!$I$2,0,0,1,COUNTA(Metered!$I$2:$AA$2)),"Transmission",OFFSET(Metered!$I34,0,0,1,COUNTA(Metered!$I34:$AA34))) -> 30241.0466 | O33: 822193.1736 | P33: 1.02674 | Q33: 844178.619
A34: 4 | B34: 2022-04-02T08:00:00 | C34: =+Metered!E35 -> 519803.5782 | D34: 1.03564 | E34: 538329.3777 | F34: =SUMIF(OFFSET(Metered!$I$2,0,0,1,COUNTA(Metered!$I$2:$IV$2)),"Primary",OFFSET(Metered!$I35,0,0,1,COUNTA(Metered!$I35:$AA35))) -> 44140.2117 | G34: 582469.5894 | H34: 1.01618 | I34: 591893.9473 | J34: =SUMIF(OFFSET(Metered!$I$2,0,0,1,COUNTA(Metered!$I$2:$IV$2)),"Subtransmission",OFFSET(Metered!$I35,0,0,1,COUNTA(Metered!$I35:$AA35))) -> 176226.244 | K34: 632385.879 | L34: 1.01302 | M34: 640619.5431 | N34: =SUMIF(OFFSET(Metered!$I$2,0,0,1,COUNTA(Metered!$I$2:$AA$2)),"Transmission",OFFSET(Metered!$I35,0,0,1,COUNTA(Metered!$I35:$AA35))) -> 30153.757 | O34: 806507.6125 | P34: 1.02638 | Q34: 827783.2833
A35: 4 | B35: 2022-04-02T09:00:00 | C35: =+Metered!E36 -> 478638.9516 | D35: 1.03758 | E35: 496626.2034 | F35: =SUMIF(OFFSET(Metered!$I$2,0,0,1,COUNTA(Metered!$I$2:$IV$2)),"Primary",OFFSET(Metered!$I36,0,0,1,COUNTA(Metered!$I36:$AA36))) -> 44892.181 | G35: 541518.3844 | H35: 1.0161 | I35: 550236.8304 | J35: =SUMIF(OFFSET(Metered!$I$2,0,0,1,COUNTA(Metered!$I$2:$IV$2)),"Subtransmission",OFFSET(Metered!$I36,0,0,1,COUNTA(Metered!$I36:$AA36))) -> 176368.2953 | K35: 600423.7073 | L35: 1.01277 | M35: 608091.1181 | N35: =SUMIF(OFFSET(Metered!$I$2,0,0,1,COUNTA(Metered!$I$2:$AA$2)),"Transmission",OFFSET(Metered!$I36,0,0,1,COUNTA(Metered!$I36:$AA36))) -> 30007.6394 | O35: 764280.1759 | P35: 1.02544 | Q35: 783723.4635
A36: 4 | B36: 2022-04-02T10:00:00 | C36: =+Metered!E37 -> 421843.2151 | D36: 1.04105 | E36: 439159.8791 | F36: =SUMIF(OFFSET(Metered!$I$2,0,0,1,COUNTA(Metered!$I$2:$IV$2)),"Primary",OFFSET(Metered!$I37,0,0,1,COUNTA(Metered!$I37:$AA37))) -> 45144.2169 | G36: 484304.096 | H36: 1.01613 | I36: 492115.921 | J36: =SUMIF(OFFSET(Metered!$I$2,0,0,1,COUNTA(Metered!$I$2:$IV$2)),"Subtransmission",OFFSET(Metered!$I37,0,0,1,COUNTA(Metered!$I37:$AA37))) -> 175287.9848 | K36: 554550.8915 | L36: 1.01245 | M36: 561455.0501 | N36: =SUMIF(OFFSET(Metered!$I$2,0,0,1,COUNTA(Metered!$I$2:$AA$2)),"Transmission",OFFSET(Metered!$I37,0,0,1,COUNTA(Metered!$I37:$AA37))) -> 29743.1547 | O36: 704051.2191 | P36: 1.02414 | Q36: 721047.0156
A37: 4 | B37: 2022-04-02T11:00:00 | C37: =+Metered!E38 -> 329049.2224 | D37: 1.04983 | E37: 345445.7451 | F37: =SUMIF(OFFSET(Metered!$I$2,0,0,1,COUNTA(Metered!$I$2:$IV$2)),"Primary",OFFSET(Metered!$I38,0,0,1,COUNTA(Metered!$I38:$AA38))) -> 44237.5814 | G37: 389683.3265 | H37: 1.01677 | I37: 396218.3159 | J37: =SUMIF(OFFSET(Metered!$I$2,0,0,1,COUNTA(Metered!$I$2:$IV$2)),"Subtransmission",OFFSET(Metered!$I38,0,0,1,COUNTA(Metered!$I38:$AA38))) -> 174937.5539 | K37: 480294.2874 | L37: 1.01207 | M37: 486091.4395 | N37: =SUMIF(OFFSET(Metered!$I$2,0,0,1,COUNTA(Metered!$I$2:$AA$2)),"Transmission",OFFSET(Metered!$I38,0,0,1,COUNTA(Metered!$I38:$AA38))) -> 29740.4377 | O37: 606693.4595 | P37: 1.02219 | Q37: 620155.9874
A38: 4 | B38: 2022-04-02T12:00:00 | C38: =+Metered!E39 -> 327883.6095 | D38: 1.04998 | E38: 344271.2323 | F38: =SUMIF(OFFSET(Metered!$I$2,0,0,1,COUNTA(Metered!$I$2:$IV$2)),"Primary",OFFSET(Metered!$I39,0,0,1,COUNTA(Metered!$I39:$AA39))) -> 42622.7778 | G38: 386894.0101 | H38: 1.01681 | I38: 393397.6984 | J38: =SUMIF(OFFSET(Metered!$I$2,0,0,1,COUNTA(Metered!$I$2:$IV$2)),"Subtransmission",OFFSET(Metered!$I39,0,0,1,COUNTA(Metered!$I39:$AA39))) -> 174399.5825 | K38: 477582.5282 | L38: 1.01206 | M38: 483342.1735 | N38: =SUMIF(OFFSET(Metered!$I$2,0,0,1,COUNTA(Metered!$I$2:$AA$2)),"Transmission",OFFSET(Metered!$I39,0,0,1,COUNTA(Metered!$I39:$AA39))) -> 29749.9593 | O38: 603306.8855 | P38: 1.02213 | Q38: 616658.0669
A39: 4 | B39: 2022-04-02T13:00:00 | C39: =+Metered!E40 -> 283112.3315 | D39: 1.05661 | E39: 299139.3206 | F39: =SUMIF(OFFSET(Metered!$I$2,0,0,1,COUNTA(Metered!$I$2:$IV$2)),"Primary",OFFSET(Metered!$I40,0,0,1,COUNTA(Metered!$I40:$AA40))) -> 41504.6205 | G39: 340643.9411 | H39: 1.01757 | I39: 346629.0552 | J39: =SUMIF(OFFSET(Metered!$I$2,0,0,1,COUNTA(Metered!$I$2:$IV$2)),"Subtransmission",OFFSET(Metered!$I40,0,0,1,COUNTA(Metered!$I40:$AA40))) -> 174730.4208 | K39: 441869.8028 | L39: 1.01196 | M39: 447154.5656 | N39: =SUMIF(OFFSET(Metered!$I$2,0,0,1,COUNTA(Metered!$I$2:$AA$2)),"Transmission",OFFSET(Metered!$I40,0,0,1,COUNTA(Metered!$I40:$AA40))) -> 29802.4022 | O39: 556446.641 | P39: 1.02129 | Q39: 568293.39
A40: 4 | B40: 2022-04-02T14:00:00 | C40: =+Metered!E41 -> 280291.5371 | D40: 1.05711 | E40: 296298.9868 | F40: =SUMIF(OFFSET(Metered!$I$2,0,0,1,COUNTA(Metered!$I$2:$IV$2)),"Primary",OFFSET(Metered!$I41,0,0,1,COUNTA(Metered!$I41:$AA41))) -> 41087.4662 | G40: 337386.453 | H40: 1.01764 | I40: 343337.95 | J40: =SUMIF(OFFSET(Metered!$I$2,0,0,1,COUNTA(Metered!$I$2:$IV$2)),"Subtransmission",OFFSET(Metered!$I41,0,0,1,COUNTA(Metered!$I41:$AA41))) -> 174431.3861 | K40: 439034.3858 | L40: 1.01196 | M40: 444285.2371 | N40: =SUMIF(OFFSET(Metered!$I$2,0,0,1,COUNTA(Metered!$I$2:$AA$2)),"Transmission",OFFSET(Metered!$I41,0,0,1,COUNTA(Metered!$I41:$AA41))) -> 29843.4299 | O40: 552863.6173 | P40: 1.02123 | Q40: 564600.9119
A41: 4 | B41: 2022-04-02T15:00:00 | C41: =+Metered!E42 -> 246734.7966 | D41: 1.06393 | E41: 262508.5522 | F41: =SUMIF(OFFSET(Metered!$I$2,0,0,1,COUNTA(Metered!$I$2:$IV$2)),"Primary",OFFSET(Metered!$I42,0,0,1,COUNTA(Metered!$I42:$AA42))) -> 41029.5867 | G41: 303538.1389 | H41: 1.0185 | I41: 309153.5944 | J41: =SUMIF(OFFSET(Metered!$I$2,0,0,1,COUNTA(Metered!$I$2:$IV$2)),"Subtransmission",OFFSET(Metered!$I42,0,0,1,COUNTA(Metered!$I42:$AA42))) -> 173215.4907 | K41: 411473.3601 | L41: 1.01194 | M41: 416386.352 | N41: =SUMIF(OFFSET(Metered!$I$2,0,0,1,COUNTA(Metered!$I$2:$AA$2)),"Transmission",OFFSET(Metered!$I42,0,0,1,COUNTA(Metered!$I42:$AA42))) -> 29971.5969 | O41: 517253.674 | P41: 1.02065 | Q41: 527934.9623
A42: 4 | B42: 2022-04-02T16:00:00 | C42: =+Metered!E43 -> 260457.3534 | D42: 1.06092 | E42: 276324.4154 | F42: =SUMIF(OFFSET(Metered!$I$2,0,0,1,COUNTA(Metered!$I$2:$IV$2)),"Primary",OFFSET(Metered!$I43,0,0,1,COUNTA(Metered!$I43:$AA43))) -> 41510.1804 | G42: 317834.5958 | H42: 1.0181 | I42: 323587.402 | J42: =SUMIF(OFFSET(Metered!$I$2,0,0,1,COUNTA(Metered!$I$2:$IV$2)),"Subtransmission",OFFSET(Metered!$I43,0,0,1,COUNTA(Metered!$I43:$AA43))) -> 173735.0738 | K42: 423116.7609 | L42: 1.01194 | M42: 428168.775 | N42: =SUMIF(OFFSET(Metered!$I$2,0,0,1,COUNTA(Metered!$I$2:$AA$2)),"Transmission",OFFSET(Metered!$I43,0,0,1,COUNTA(Metered!$I43:$AA43))) -> 29944.0349 | O42: 532318.5248 | P42: 1.02089 | Q42: 543438.6588
A43: 4 | B43: 2022-04-02T17:00:00 | C43: =+Metered!E44 -> 265791.2436 | D43: 1.05983 | E43: 281693.5337 | F43: =SUMIF(OFFSET(Metered!$I$2,0,0,1,COUNTA(Metered!$I$2:$IV$2)),"Primary",OFFSET(Metered!$I44,0,0,1,COUNTA(Metered!$I44:$AA44))) -> 40918.5841 | G43: 322612.1178 | H43: 1.01798 | I43: 328412.6837 | J43: =SUMIF(OFFSET(Metered!$I$2,0,0,1,COUNTA(Metered!$I$2:$IV$2)),"Subtransmission",OFFSET(Metered!$I44,0,0,1,COUNTA(Metered!$I44:$AA44))) -> 173404.8019 | K43: 426505.2274 | L43: 1.01194 | M43: 431597.6998 | N43: =SUMIF(OFFSET(Metered!$I$2,0,0,1,COUNTA(Metered!$I$2:$AA$2)),"Transmission",OFFSET(Metered!$I44,0,0,1,COUNTA(Metered!$I44:$AA44))) -> 29948.8294 | O43: 536858.7874 | P43: 1.02096 | Q43: 548111.3476
A44: 4 | B44: 2022-04-02T18:00:00 | C44: =+Metered!E45 -> 271300.876 | D44: 1.05876 | E44: 287242.5155 | F44: =SUMIF(OFFSET(Metered!$I$2,0,0,1,COUNTA(Metered!$I$2:$IV$2)),"Primary",OFFSET(Metered!$I45,0,0,1,COUNTA(Metered!$I45:$AA45))) -> 40485.1948 | G44: 327727.7103 | H44: 1.01785 | I44: 333577.6499 | J44: =SUMIF(OFFSET(Metered!$I$2,0,0,1,COUNTA(Metered!$I$2:$IV$2)),"Subtransmission",OFFSET(Metered!$I45,0,0,1,COUNTA(Metered!$I45:$AA45))) -> 172917.4967 | K44: 429998.448 | L44: 1.01195 | M44: 435136.9294 | N44: =SUMIF(OFFSET(Metered!$I$2,0,0,1,COUNTA(Metered!$I$2:$AA$2)),"Transmission",OFFSET(Metered!$I45,0,0,1,COUNTA(Metered!$I45:$AA45))) -> 30032.7402 | O44: 541666.3683 | P44: 1.02104 | Q44: 553063.0287
A45: 4 | B45: 2022-04-02T19:00:00 | C45: =+Metered!E46 -> 301343.2934 | D45: 1.05365 | E45: 317510.361 | F45: =SUMIF(OFFSET(Metered!$I$2,0,0,1,COUNTA(Metered!$I$2:$IV$2)),"Primary",OFFSET(Metered!$I46,0,0,1,COUNTA(Metered!$I46:$AA46))) -> 41029.0916 | G45: 358539.4526 | H45: 1.01723 | I45: 364717.0874 | J45: =SUMIF(OFFSET(Metered!$I$2,0,0,1,COUNTA(Metered!$I$2:$IV$2)),"Subtransmission",OFFSET(Metered!$I46,0,0,1,COUNTA(Metered!$I46:$AA46))) -> 173175.3867 | K45: 454254.8169 | L45: 1.01199 | M45: 459701.3322 | N45: =SUMIF(OFFSET(Metered!$I$2,0,0,1,COUNTA(Metered!$I$2:$AA$2)),"Transmission",OFFSET(Metered!$I46,0,0,1,COUNTA(Metered!$I46:$AA46))) -> 29968.9338 | O45: 573307.9232 | P45: 1.02158 | Q45: 585679.9081
A46: 4 | B46: 2022-04-02T20:00:00 | C46: =+Metered!E47 -> 293090.651 | D46: 1.05494 | E46: 309193.0513 | F46: =SUMIF(OFFSET(Metered!$I$2,0,0,1,COUNTA(Metered!$I$2:$IV$2)),"Primary",OFFSET(Metered!$I47,0,0,1,COUNTA(Metered!$I47:$AA47))) -> 40938.1106 | G46: 350131.1619 | H46: 1.01738 | I46: 356216.4415 | J46: =SUMIF(OFFSET(Metered!$I$2,0,0,1,COUNTA(Metered!$I$2:$IV$2)),"Subtransmission",OFFSET(Metered!$I47,0,0,1,COUNTA(Metered!$I47:$AA47))) -> 172728.8217 | K46: 447256.9913 | L46: 1.01197 | M46: 452610.6575 | N46: =SUMIF(OFFSET(Metered!$I$2,0,0,1,COUNTA(Metered!$I$2:$AA$2)),"Transmission",OFFSET(Metered!$I47,0,0,1,COUNTA(Metered!$I47:$AA47))) -> 29942.184 | O46: 564241.1134 | P46: 1.02143 | Q46: 576332.8005
A47: 4 | B47: 2022-04-02T21:00:00 | C47: =+Metered!E48 -> 305065.9911 | D47: 1.0531 | E47: 321264.9952 | F47: =SUMIF(OFFSET(Metered!$I$2,0,0,1,COUNTA(Metered!$I$2:$IV$2)),"Primary",OFFSET(Metered!$I48,0,0,1,COUNTA(Metered!$I48:$AA48))) -> 40798.5567 | G47: 362063.5519 | H47: 1.01717 | I47: 368280.1831 | J47: =SUMIF(OFFSET(Metered!$I$2,0,0,1,COUNTA(Metered!$I$2:$IV$2)),"Subtransmission",OFFSET(Metered!$I48,0,0,1,COUNTA(Metered!$I48:$AA48))) -> 170221.1454 | K47: 454046.575 | L47: 1.01199 | M47: 459490.5934 | N47: =SUMIF(OFFSET(Metered!$I$2,0,0,1,COUNTA(Metered!$I$2:$AA$2)),"Transmission",OFFSET(Metered!$I48,0,0,1,COUNTA(Metered!$I48:$AA48))) -> 29955.6677 | O47: 573901.0146 | P47: 1.0216 | Q47: 586297.2765
A48: 4 | B48: 2022-04-02T22:00:00 | C48: =+Metered!E49 -> 315593.2953 | D48: 1.0516 | E48: 331877.9093 | F48: =SUMIF(OFFSET(Metered!$I$2,0,0,1,COUNTA(Metered!$I$2:$IV$2)),"Primary",OFFSET(Metered!$I49,0,0,1,COUNTA(Metered!$I49:$AA49))) -> 39718.127 | G48: 371596.0363 | H48: 1.01702 | I48: 377920.6009 | J48: =SUMIF(OFFSET(Metered!$I$2,0,0,1,COUNTA(Metered!$I$2:$IV$2)),"Subtransmission",OFFSET(Metered!$I49,0,0,1,COUNTA(Metered!$I49:$AA49))) -> 169658.5586 | K48: 460913.646 | L48: 1.01201 | M48: 466449.2189 | N48: =SUMIF(OFFSET(Metered!$I$2,0,0,1,COUNTA(Metered!$I$2:$AA$2)),"Transmission",OFFSET(Metered!$I49,0,0,1,COUNTA(Metered!$I49:$AA49))) -> 30002.9459 | O48: 583117.6783 | P48: 1.02176 | Q48: 595806.3189
A49: 4 | B49: 2022-04-02T23:00:00 | C49: =+Metered!E50 -> 281685.0681 | D49: 1.05686 | E49: 297701.6811 | F49: =SUMIF(OFFSET(Metered!$I$2,0,0,1,COUNTA(Metered!$I$2:$IV$2)),"Primary",OFFSET(Metered!$I50,0,0,1,COUNTA(Metered!$I50:$AA50))) -> 38212.1921 | G49: 335913.8732 | H49: 1.01767 | I49: 341849.4713 | J49: =SUMIF(OFFSET(Metered!$I$2,0,0,1,COUNTA(Metered!$I$2:$IV$2)),"Subtransmission",OFFSET(Metered!$I50,0,0,1,COUNTA(Metered!$I50:$AA50))) -> 170189.9744 | K49: 433645.8363 | L49: 1.01195 | M49: 438827.9041 | N49: =SUMIF(OFFSET(Metered!$I$2,0,0,1,COUNTA(Metered!$I$2:$AA$2)),"Transmission",OFFSET(Metered!$I50,0,0,1,COUNTA(Metered!$I50:$AA50))) -> 29977.7936 | O49: 547199.3071 | P49: 1.02114 | Q49: 558767.1004
A50: 4 | B50: 2022-04-03 | C50: =+Metered!E51 -> 267996.2065 | D50: 1.0594 | E50: 283915.1812 | F50: =SUMIF(OFFSET(Metered!$I$2,0,0,1,COUNTA(Metered!$I$2:$IV$2)),"Primary",OFFSET(Metered!$I51,0,0,1,COUNTA(Metered!$I51:$AA51))) -> 37704.2895 | G50: 321619.4707 | H50: 1.018 | I50: 327408.6211 | J50: =SUMIF(OFFSET(Metered!$I$2,0,0,1,COUNTA(Metered!$I$2:$IV$2)),"Subtransmission",OFFSET(Metered!$I51,0,0,1,COUNTA(Metered!$I51:$AA51))) -> 170191.7761 | K50: 422518.3927 | L50: 1.01194 | M50: 427563.2623 | N50: =SUMIF(OFFSET(Metered!$I$2,0,0,1,COUNTA(Metered!$I$2:$AA$2)),"Transmission",OFFSET(Metered!$I51,0,0,1,COUNTA(Metered!$I51:$AA51))) -> 29982.1415 | O50: 532627.4083 | P50: 1.0209 | Q50: 543759.3212
A51: 4 | B51: 2022-04-03T01:00:00 | C51: =+Metered!E52 -> 265666.6672 | D51: 1.05986 | E51: 281569.4739 | F51: =SUMIF(OFFSET(Metered!$I$2,0,0,1,COUNTA(Metered!$I$2:$IV$2)),"Primary",OFFSET(Metered!$I52,0,0,1,COUNTA(Metered!$I52:$AA52))) -> 36792.7484 | G51: 318362.2223 | H51: 1.01809 | I51: 324121.3949 | J51: =SUMIF(OFFSET(Metered!$I$2,0,0,1,COUNTA(Metered!$I$2:$IV$2)),"Subtransmission",OFFSET(Metered!$I52,0,0,1,COUNTA(Metered!$I52:$AA52))) -> 170180.6208 | K51: 419973.8445 | L51: 1.01194 | M51: 424988.3322 | N51: =SUMIF(OFFSET(Metered!$I$2,0,0,1,COUNTA(Metered!$I$2:$AA$2)),"Transmission",OFFSET(Metered!$I52,0,0,1,COUNTA(Metered!$I52:$AA52))) -> 30014.6595 | O51: 529331.1629 | P51: 1.02084 | Q51: 540362.4243
A52: 4 | B52: 2022-04-03T02:00:00 | C52: =+Metered!E53 -> 257937.6601 | D52: 1.06144 | E52: 273785.35 | F52: =SUMIF(OFFSET(Metered!$I$2,0,0,1,COUNTA(Metered!$I$2:$IV$2)),"Primary",OFFSET(Metered!$I53,0,0,1,COUNTA(Metered!$I53:$AA53))) -> 37093.1245 | G52: 310878.4745 | H52: 1.01829 | I52: 316564.4417 | J52: =SUMIF(OFFSET(Metered!$I$2,0,0,1,COUNTA(Metered!$I$2:$IV$2)),"Subtransmission",OFFSET(Metered!$I53,0,0,1,COUNTA(Metered!$I53:$AA53))) -> 170859.9113 | K52: 414829.1576 | L52: 1.01194 | M52: 419782.2177 | N52: =SUMIF(OFFSET(Metered!$I$2,0,0,1,COUNTA(Metered!$I$2:$AA$2)),"Transmission",OFFSET(Metered!$I53,0,0,1,COUNTA(Metered!$I53:$AA53))) -> 30045.147 | O52: 522422.5602 | P52: 1.02073 | Q52: 533252.3799
A53: 4 | B53: 2022-04-03T03:00:00 | C53: =+Metered!E54 -> 259578.4025 | D53: 1.0611 | E53: 275438.6429 | F53: =SUMIF(OFFSET(Metered!$I$2,0,0,1,COUNTA(Metered!$I$2:$IV$2)),"Primary",OFFSET(Metered!$I54,0,0,1,COUNTA(Metered!$I54:$AA54))) -> 37067.2941 | G53: 312505.937 | H53: 1.01824 | I53: 318206.0453 | J53: =SUMIF(OFFSET(Metered!$I$2,0,0,1,COUNTA(Metered!$I$2:$IV$2)),"Subtransmission",OFFSET(Metered!$I54,0,0,1,COUNTA(Metered!$I54:$AA54))) -> 170959.641 | K53: 416194.035 | L53: 1.01194 | M53: 421163.3918 | N53: =SUMIF(OFFSET(Metered!$I$2,0,0,1,COUNTA(Metered!$I$2:$AA$2)),"Transmission",OFFSET(Metered!$I54,0,0,1,COUNTA(Metered!$I54:$AA54))) -> 30005.5664 | O53: 524140.6095 | P53: 1.02076 | Q53: 535021.7685
A54: 4 | B54: 2022-04-03T04:00:00 | C54: =+Metered!E55 -> 271941.1779 | D54: 1.05864 | E54: 287887.8086 | F54: =SUMIF(OFFSET(Metered!$I$2,0,0,1,COUNTA(Metered!$I$2:$IV$2)),"Primary",OFFSET(Metered!$I55,0,0,1,COUNTA(Metered!$I55:$AA55))) -> 37495.8904 | G54: 325383.699 | H54: 1.01791 | I54: 331211.3211 | J54: =SUMIF(OFFSET(Metered!$I$2,0,0,1,COUNTA(Metered!$I$2:$IV$2)),"Subtransmission",OFFSET(Metered!$I55,0,0,1,COUNTA(Metered!$I55:$AA55))) -> 171242.3727 | K54: 426499.6464 | L54: 1.01194 | M54: 431592.0522 | N54: =SUMIF(OFFSET(Metered!$I$2,0,0,1,COUNTA(Metered!$I$2:$AA$2)),"Transmission",OFFSET(Metered!$I55,0,0,1,COUNTA(Metered!$I55:$AA55))) -> 30079.9803 | O54: 537626.0798 | P54: 1.02098 | Q54: 548905.475
A55: 4 | B55: 2022-04-03T05:00:00 | C55: =+Metered!E56 -> 283318.4417 | D55: 1.05658 | E55: 299348.5991 | F55: =SUMIF(OFFSET(Metered!$I$2,0,0,1,COUNTA(Metered!$I$2:$IV$2)),"Primary",OFFSET(Metered!$I56,0,0,1,COUNTA(Metered!$I56:$AA56))) -> 37188.3811 | G55: 336536.9802 | H55: 1.01766 | I55: 342480.2233 | J55: =SUMIF(OFFSET(Metered!$I$2,0,0,1,COUNTA(Metered!$I$2:$IV$2)),"Subtransmission",OFFSET(Metered!$I56,0,0,1,COUNTA(Metered!$I56:$AA56))) -> 172010.2526 | K55: 435952.2212 | L55: 1.01195 | M55: 441161.8502 | N55: =SUMIF(OFFSET(Metered!$I$2,0,0,1,COUNTA(Metered!$I$2:$AA$2)),"Transmission",OFFSET(Metered!$I56,0,0,1,COUNTA(Metered!$I56:$AA56))) -> 30093.0063 | O55: 549793.1112 | P55: 1.02118 | Q55: 561437.7293
A56: 4 | B56: 2022-04-03T06:00:00 | C56: =+Metered!E57 -> 305431.1698 | D56: 1.05304 | E56: 321631.2391 | F56: =SUMIF(OFFSET(Metered!$I$2,0,0,1,COUNTA(Metered!$I$2:$IV$2)),"Primary",OFFSET(Metered!$I57,0,0,1,COUNTA(Metered!$I57:$AA57))) -> 38282.4539 | G56: 359913.693 | H56: 1.01721 | I56: 366107.8076 | J56: =SUMIF(OFFSET(Metered!$I$2,0,0,1,COUNTA(Metered!$I$2:$IV$2)),"Subtransmission",OFFSET(Metered!$I57,0,0,1,COUNTA(Metered!$I57:$AA57))) -> 171805.0047 | K56: 453956.2324 | L56: 1.01199 | M56: 459399.1676 | N56: =SUMIF(OFFSET(Metered!$I$2,0,0,1,COUNTA(Metered!$I$2:$AA$2)),"Transmission",OFFSET(Metered!$I57,0,0,1,COUNTA(Metered!$I57:$AA57))) -> 30073.6625 | O56: 573429.4101 | P56: 1.02159 | Q56: 585809.751
A57: 4 | B57: 2022-04-03T07:00:00 | C57: =+Metered!E58 -> 322739.1703 | D57: 1.05064 | E57: 339082.6818 | F57: =SUMIF(OFFSET(Metered!$I$2,0,0,1,COUNTA(Metered!$I$2:$IV$2)),"Primary",OFFSET(Metered!$I58,0,0,1,COUNTA(Metered!$I58:$AA58))) -> 38509.9385 | G57: 377592.6203 | H57: 1.01693 | I57: 383985.2634 | J57: =SUMIF(OFFSET(Metered!$I$2,0,0,1,COUNTA(Metered!$I$2:$IV$2)),"Subtransmission",OFFSET(Metered!$I58,0,0,1,COUNTA(Metered!$I58:$AA58))) -> 170539.6678 | K57: 466468.6571 | L57: 1.01202 | M57: 472075.6103 | N57: =SUMIF(OFFSET(Metered!$I$2,0,0,1,COUNTA(Metered!$I$2:$AA$2)),"Transmission",OFFSET(Metered!$I58,0,0,1,COUNTA(Metered!$I58:$AA58))) -> 30040.1843 | O57: 590172.0688 | P57: 1.02189 | Q57: 603090.9353
A58: 4 | B58: 2022-04-03T08:00:00 | C58: =+Metered!E59 -> 367265.0187 | D58: 1.0456 | E58: 384012.3035 | F58: =SUMIF(OFFSET(Metered!$I$2,0,0,1,COUNTA(Metered!$I$2:$IV$2)),"Primary",OFFSET(Metered!$I59,0,0,1,COUNTA(Metered!$I59:$AA59))) -> 37268.9574 | G58: 421281.2609 | H58: 1.01645 | I58: 428211.3377 | J58: =SUMIF(OFFSET(Metered!$I$2,0,0,1,COUNTA(Metered!$I$2:$IV$2)),"Subtransmission",OFFSET(Metered!$I59,0,0,1,COUNTA(Metered!$I59:$AA59))) -> 170109.7626 | K58: 500122.8137 | L58: 1.01215 | M58: 506199.3059 | N58: =SUMIF(OFFSET(Metered!$I$2,0,0,1,COUNTA(Metered!$I$2:$AA$2)),"Transmission",OFFSET(Metered!$I59,0,0,1,COUNTA(Metered!$I59:$AA59))) -> 30058.1798 | O58: 634455.7723 | P58: 1.02272 | Q58: 648870.6074
A59: 4 | B59: 2022-04-03T09:00:00 | C59: =+Metered!E60 -> 344348.1266 | D59: 1.04801 | E59: 360880.2801 | F59: =SUMIF(OFFSET(Metered!$I$2,0,0,1,COUNTA(Metered!$I$2:$IV$2)),"Primary",OFFSET(Metered!$I60,0,0,1,COUNTA(Metered!$I60:$AA60))) -> 38298.5502 | G59: 399178.8303 | H59: 1.01667 | I59: 405833.1414 | J59: =SUMIF(OFFSET(Metered!$I$2,0,0,1,COUNTA(Metered!$I$2:$IV$2)),"Subtransmission",OFFSET(Metered!$I60,0,0,1,COUNTA(Metered!$I60:$AA60))) -> 169690.8426 | K59: 482457.5105 | L59: 1.01208 | M59: 488285.5972 | N59: =SUMIF(OFFSET(Metered!$I$2,0,0,1,COUNTA(Metered!$I$2:$AA$2)),"Transmission",OFFSET(Metered!$I60,0,0,1,COUNTA(Metered!$I60:$AA60))) -> 30031.3133 | O59: 611383.3841 | P59: 1.02228 | Q59: 625005.0059
A60: 4 | B60: 2022-04-03T10:00:00 | C60: =+Metered!E61 -> 340087.4814 | D60: 1.0485 | E60: 356581.7243 | F60: =SUMIF(OFFSET(Metered!$I$2,0,0,1,COUNTA(Metered!$I$2:$IV$2)),"Primary",OFFSET(Metered!$I61,0,0,1,COUNTA(Metered!$I61:$AA61))) -> 38364.99 | G60: 394946.7143 | H60: 1.01671 | I60: 401546.2739 | J60: =SUMIF(OFFSET(Metered!$I$2,0,0,1,COUNTA(Metered!$I$2:$IV$2)),"Subtransmission",OFFSET(Metered!$I61,0,0,1,COUNTA(Metered!$I61:$AA61))) -> 169254.1686 | K60: 478717.042 | L60: 1.01206 | M60: 484490.3696 | N60: =SUMIF(OFFSET(Metered!$I$2,0,0,1,COUNTA(Metered!$I$2:$AA$2)),"Transmission",OFFSET(Metered!$I61,0,0,1,COUNTA(Metered!$I61:$AA61))) -> 29973.8763 | O60: 606547.6463 | P60: 1.02219 | Q60: 620006.9386
A61: 4 | B61: 2022-04-03T11:00:00 | C61: =+Metered!E62 -> 320108.7225 | D61: 1.05099 | E61: 336431.0662 | F61: =SUMIF(OFFSET(Metered!$I$2,0,0,1,COUNTA(Metered!$I$2:$IV$2)),"Primary",OFFSET(Metered!$I62,0,0,1,COUNTA(Metered!$I62:$AA62))) -> 38412.7968 | G61: 374843.863 | H61: 1.01697 | I61: 381204.9634 | J61: =SUMIF(OFFSET(Metered!$I$2,0,0,1,COUNTA(Metered!$I$2:$IV$2)),"Subtransmission",OFFSET(Metered!$I62,0,0,1,COUNTA(Metered!$I62:$AA62))) -> 169415.7066 | K61: 463201.9799 | L61: 1.01201 | M61: 468765.0356 | N61: =SUMIF(OFFSET(Metered!$I$2,0,0,1,COUNTA(Metered!$I$2:$AA$2)),"Transmission",OFFSET(Metered!$I62,0,0,1,COUNTA(Metered!$I62:$AA62))) -> 29982.6015 | O61: 586166.3273 | P61: 1.02181 | Q61: 598950.6149
A62: 4 | B62: 2022-04-03T12:00:00 | C62: =+Metered!E63 -> 318451.0988 | D62: 1.05121 | E62: 334758.9795 | F62: =SUMIF(OFFSET(Metered!$I$2,0,0,1,COUNTA(Metered!$I$2:$IV$2)),"Primary",OFFSET(Metered!$I63,0,0,1,COUNTA(Metered!$I63:$AA63))) -> 38842.0788 | G62: 373601.0583 | H62: 1.01699 | I62: 379948.5403 | J62: =SUMIF(OFFSET(Metered!$I$2,0,0,1,COUNTA(Metered!$I$2:$IV$2)),"Subtransmission",OFFSET(Metered!$I63,0,0,1,COUNTA(Metered!$I63:$AA63))) -> 169567.7845 | K62: 462385.7602 | L62: 1.01201 | M62: 467939.0131 | N62: =SUMIF(OFFSET(Metered!$I$2,0,0,1,COUNTA(Metered!$I$2:$AA$2)),"Transmission",OFFSET(Metered!$I63,0,0,1,COUNTA(Metered!$I63:$AA63))) -> 29959.7532 | O62: 585029.331 | P62: 1.02179 | Q62: 597777.1201
A63: 4 | B63: 2022-04-03T13:00:00 | C63: =+Metered!E64 -> 307738.546 | D63: 1.0527 | E63: 323956.3674 | F63: =SUMIF(OFFSET(Metered!$I$2,0,0,1,COUNTA(Metered!$I$2:$IV$2)),"Primary",OFFSET(Metered!$I64,0,0,1,COUNTA(Metered!$I64:$AA64))) -> 39216.9076 | G63: 363173.275 | H63: 1.01715 | I63: 369401.6966 | J63: =SUMIF(OFFSET(Metered!$I$2,0,0,1,COUNTA(Metered!$I$2:$IV$2)),"Subtransmission",OFFSET(Metered!$I64,0,0,1,COUNTA(Metered!$I64:$AA64))) -> 168462.0276 | K63: 453151.783 | L63: 1.01199 | M63: 458585.0729 | N63: =SUMIF(OFFSET(Metered!$I$2,0,0,1,COUNTA(Metered!$I$2:$AA$2)),"Transmission",OFFSET(Metered!$I64,0,0,1,COUNTA(Metered!$I64:$AA64))) -> 29911.2882 | O63: 573208.3023 | P63: 1.02158 | Q63: 585578.1375
A64: 4 | B64: 2022-04-03T14:00:00 | C64: =+Metered!E65 -> 284345.2427 | D64: 1.0564 | E64: 300382.3144 | F64: =SUMIF(OFFSET(Metered!$I$2,0,0,1,COUNTA(Metered!$I$2:$IV$2)),"Primary",OFFSET(Metered!$I65,0,0,1,COUNTA(Metered!$I65:$AA65))) -> 38280.7934 | G64: 338663.1078 | H64: 1.01761 | I64: 344626.9651 | J64: =SUMIF(OFFSET(Metered!$I$2,0,0,1,COUNTA(Metered!$I$2:$IV$2)),"Subtransmission",OFFSET(Metered!$I65,0,0,1,COUNTA(Metered!$I65:$AA65))) -> 168232.5517 | K64: 433828.967 | L64: 1.01195 | M64: 439013.2231 | N64: =SUMIF(OFFSET(Metered!$I$2,0,0,1,COUNTA(Metered!$I$2:$AA$2)),"Transmission",OFFSET(Metered!$I65,0,0,1,COUNTA(Metered!$I65:$AA65))) -> 29998.5822 | O64: 548042.3552 | P64: 1.02115 | Q64: 559633.451
A65: 4 | B65: 2022-04-03T15:00:00 | C65: =+Metered!E66 -> 276332.0029 | D65: 1.05782 | E65: 292309.5193 | F65: =SUMIF(OFFSET(Metered!$I$2,0,0,1,COUNTA(Metered!$I$2:$IV$2)),"Primary",OFFSET(Metered!$I66,0,0,1,COUNTA(Metered!$I66:$AA66))) -> 38234.9079 | G65: 330544.4272 | H65: 1.01779 | I65: 336424.8126 | J65: =SUMIF(OFFSET(Metered!$I$2,0,0,1,COUNTA(Metered!$I$2:$IV$2)),"Subtransmission",OFFSET(Metered!$I66,0,0,1,COUNTA(Metered!$I66:$AA66))) -> 168067.2188 | K65: 427342.4156 | L65: 1.01194 | M65: 432444.8841 | N65: =SUMIF(OFFSET(Metered!$I$2,0,0,1,COUNTA(Metered!$I$2:$AA$2)),"Transmission",OFFSET(Metered!$I66,0,0,1,COUNTA(Metered!$I66:$AA66))) -> 29955.5084 | O65: 539550.0082 | P65: 1.02101 | Q65: 550885.9539
A66: 4 | B66: 2022-04-03T16:00:00 | C66: =+Metered!E67 -> 265420.551 | D66: =IF(C66=0,0,ROUND(1+((LossCoeff_Sec*C66^2+ZeroLoadLoss_Sec)/C66),5)) -> 1.05991 | E66: 281321.8962 | F66: =SUMIF(OFFSET(Metered!$I$2,0,0,1,COUNTA(Metered!$I$2:$IV$2)),"Primary",OFFSET(Metered!$I67,0,0,1,COUNTA(Metered!$I67:$AA67))) -> 38617.3518 | G66: 319939.248 | H66: =IF(G66=0,0,ROUND(1+((LossCoeff_Pri*G66^2+ZeroLoadLoss_Pri)/G66),5)) -> 1.01805 | I66: 325714.1514 | J66: =SUMIF(OFFSET(Metered!$I$2,0,0,1,COUNTA(Metered!$I$2:$IV$2)),"Subtransmission",OFFSET(Metered!$I67,0,0,1,COUNTA(Metered!$I67:$AA67))) -> 167293.1927 | K66: =+I66*DistAtSubtran+J66 -> 418313.9188 | L66: =IF(K66=0,0,ROUND(1+((LossCoeff_Sub*K66^2+ZeroLoadLoss_Sub)/K66),5)) -> 1.01194 | M66: 423308.5869 | N66: =SUMIF(OFFSET(Metered!$I$2,0,0,1,COUNTA(Metered!$I$2:$AA$2)),"Transmission",OFFSET(Metered!$I67,0,0,1,COUNTA(Metered!$I67:$AA67))) -> 29989.2872 | O66: =+M66+N66+(1-DistAtSubtran)*I66 -> 527991.2995 | P66: =IF(O66=0,0,ROUND(1+((LossCoeff_Trn*O66^2+ZeroLoadLoss_Trn)/O66),5)) -> 1.02082 | Q66: 538984.0783
A67: =MONTH(B67) -> 4 | B67: =+B66+1/24 -> 2022-04-03T17:00:00 | C67: =+Metered!E68 -> 254089.7819 | D67: 1.06227 | E67: =+C67*D67 -> 269911.9527 | F67: =SUMIF(OFFSET(Metered!$I$2,0,0,1,COUNTA(Metered!$I$2:$IV$2)),"Primary",OFFSET(Metered!$I68,0,0,1,COUNTA(Metered!$I68:$AA68))) -> 38335.84 | G67: =+E67+F67 -> 308247.7927 | H67: 1.01836 | I67: =+G67*H67 -> 313907.2221 | J67: =SUMIF(OFFSET(Metered!$I$2,0,0,1,COUNTA(Metered!$I$2:$IV$2)),"Subtransmission",OFFSET(Metered!$I68,0,0,1,COUNTA(Metered!$I68:$AA68))) -> 166665.8162 | K67: 408587.2018 | L67: 1.01194 | M67: =+K67*L67 -> 413465.733 | N67: =SUMIF(OFFSET(Metered!$I$2,0,0,1,COUNTA(Metered!$I$2:$AA$2)),"Transmission",OFFSET(Metered!$I68,0,0,1,COUNTA(Metered!$I68:$AA68))) -> 30042.3964 | O67: 515493.9659 | P67: 1.02063 | Q67: =+P67*O67 -> 526128.6064
A68: 4 | B68: 2022-04-03T18:00:00 | C68: =+Metered!E69 -> 258437.0496 | D68: 1.06134 | E68: 274289.5783 | F68: =SUMIF(OFFSET(Metered!$I$2,0,0,1,COUNTA(Metered!$I$2:$IV$2)),"Primary",OFFSET(Metered!$I69,0,0,1,COUNTA(Metered!$I69:$AA69))) -> 38000.3211 | G68: 312289.8994 | H68: 1.01825 | I68: 317989.19 | J68: =SUMIF(OFFSET(Metered!$I$2,0,0,1,COUNTA(Metered!$I$2:$IV$2)),"Subtransmission",OFFSET(Metered!$I69,0,0,1,COUNTA(Metered!$I69:$AA69))) -> 166820.6003 | K68: 411887.8687 | L68: 1.01194 | M68: 416805.8099 | N68: =SUMIF(OFFSET(Metered!$I$2,0,0,1,COUNTA(Metered!$I$2:$AA$2)),"Transmission",OFFSET(Metered!$I69,0,0,1,COUNTA(Metered!$I69:$AA69))) -> 29995.9573 | O68: 519723.6888 | P68: 1.02069 | Q68: 530476.7719
A69: 4 | B69: 2022-04-03T19:00:00 | C69: =+Metered!E70 -> 301125.962 | D69: 1.05369 | E69: 317293.4149 | F69: =SUMIF(OFFSET(Metered!$I$2,0,0,1,COUNTA(Metered!$I$2:$IV$2)),"Primary",OFFSET(Metered!$I70,0,0,1,COUNTA(Metered!$I70:$AA70))) -> 37846.4564 | G69: 355139.8713 | H69: 1.01729 | I69: 361280.2396 | J69: =SUMIF(OFFSET(Metered!$I$2,0,0,1,COUNTA(Metered!$I$2:$IV$2)),"Subtransmission",OFFSET(Metered!$I70,0,0,1,COUNTA(Metered!$I70:$AA70))) -> 166931.0523 | K69: 445361.7796 | L69: 1.01197 | M69: 450692.7601 | N69: =SUMIF(OFFSET(Metered!$I$2,0,0,1,COUNTA(Metered!$I$2:$AA$2)),"Transmission",OFFSET(Metered!$I70,0,0,1,COUNTA(Metered!$I70:$AA70))) -> 29984.6364 | O69: 563526.9088 | P69: 1.02141 | Q69: 575592.02
A70: 4 | B70: 2022-04-03T20:00:00 | C70: =+Metered!E71 -> 314465.4547 | D70: 1.05175 | E70: 330739.042 | F70: =SUMIF(OFFSET(Metered!$I$2,0,0,1,COUNTA(Metered!$I$2:$IV$2)),"Primary",OFFSET(Metered!$I71,0,0,1,COUNTA(Metered!$I71:$AA71))) -> 38151.9165 | G70: 368890.9585 | H70: 1.01706 | I70: 375184.2383 | J70: =SUMIF(OFFSET(Metered!$I$2,0,0,1,COUNTA(Metered!$I$2:$IV$2)),"Subtransmission",OFFSET(Metered!$I71,0,0,1,COUNTA(Metered!$I71:$AA71))) -> 167585.5684 | K70: 456731.8014 | L70: 1.01199 | M70: 462208.0157 | N70: =SUMIF(OFFSET(Metered!$I$2,0,0,1,COUNTA(Metered!$I$2:$AA$2)),"Transmission",OFFSET(Metered!$I71,0,0,1,COUNTA(Metered!$I71:$AA71))) -> 29988.9574 | O70: 578234.9784 | P70: 1.02167 | Q70: 590765.3303
A71: 4 | B71: 2022-04-03T21:00:00 | C71: =+Metered!E72 -> 321561.4779 | D71: 1.0508 | E71: 337896.801 | F71: =SUMIF(OFFSET(Metered!$I$2,0,0,1,COUNTA(Metered!$I$2:$IV$2)),"Primary",OFFSET(Metered!$I72,0,0,1,COUNTA(Metered!$I72:$AA72))) -> 38103.172 | G71: 375999.973 | H71: 1.01696 | I71: 382376.9326 | J71: =SUMIF(OFFSET(Metered!$I$2,0,0,1,COUNTA(Metered!$I$2:$IV$2)),"Subtransmission",OFFSET(Metered!$I72,0,0,1,COUNTA(Metered!$I72:$AA72))) -> 167916.5794 | K71: 462606.0635 | L71: 1.01201 | M71: 468161.9623 | N71: =SUMIF(OFFSET(Metered!$I$2,0,0,1,COUNTA(Metered!$I$2:$AA$2)),"Transmission",OFFSET(Metered!$I72,0,0,1,COUNTA(Metered!$I72:$AA72))) -> 29987.0773 | O71: 585836.4881 | P71: 1.02181 | Q71: 598613.5819
A72: 4 | B72: 2022-04-03T22:00:00 | C72: =+Metered!E73 -> 319929.8008 | D72: 1.05101 | E72: 336249.42 | F72: =SUMIF(OFFSET(Metered!$I$2,0,0,1,COUNTA(Metered!$I$2:$IV$2)),"Primary",OFFSET(Metered!$I73,0,0,1,COUNTA(Metered!$I73:$AA73))) -> 38198.043 | G72: 374447.463 | H72: 1.01698 | I72: 380805.5809 | J72: =SUMIF(OFFSET(Metered!$I$2,0,0,1,COUNTA(Metered!$I$2:$IV$2)),"Subtransmission",OFFSET(Metered!$I73,0,0,1,COUNTA(Metered!$I73:$AA73))) -> 168043.1469 | K72: 461521.6249 | L72: 1.01201 | M72: 467064.4996 | N72: =SUMIF(OFFSET(Metered!$I$2,0,0,1,COUNTA(Metered!$I$2:$AA$2)),"Transmission",OFFSET(Metered!$I73,0,0,1,COUNTA(Metered!$I73:$AA73))) -> 30014.3431 | O72: 584405.9456 | P72: 1.02178 | Q72: 597134.3071
A73: 4 | B73: 2022-04-03T23:00:00 | C73: =+Metered!E74 -> 322502.8029 | D73: 1.05067 | E73: 338844.0199 | F73: =SUMIF(OFFSET(Metered!$I$2,0,0,1,COUNTA(Metered!$I$2:$IV$2)),"Primary",OFFSET(Metered!$I74,0,0,1,COUNTA(Metered!$I74:$AA74))) -> 38051.4009 | G73: 376895.4208 | H73: 1.01694 | I73: 383280.0293 | J73: =SUMIF(OFFSET(Metered!$I$2,0,0,1,COUNTA(Metered!$I$2:$IV$2)),"Subtransmission",OFFSET(Metered!$I74,0,0,1,COUNTA(Metered!$I74:$AA74))) -> 168419.799 | K73: 463805.2799 | L73: 1.01201 | M73: 469375.5813 | N73: =SUMIF(OFFSET(Metered!$I$2,0,0,1,COUNTA(Metered!$I$2:$AA$2)),"Transmission",OFFSET(Metered!$I74,0,0,1,COUNTA(Metered!$I74:$AA74))) -> 29992.5987 | O73: 587262.7284 | P73: 1.02183 | Q73: 600082.6737
A74: 4 | B74: 2022-04-04 | C74: =+Metered!E75 -> 311072.7676 | D74: 1.05223 | E74: 327320.0982 | F74: =SUMIF(OFFSET(Metered!$I$2,0,0,1,COUNTA(Metered!$I$2:$IV$2)),"Primary",OFFSET(Metered!$I75,0,0,1,COUNTA(Metered!$I75:$AA75))) -> 37837.8727 | G74: 365157.9709 | H74: 1.01712 | I74: 371409.4754 | J74: =SUMIF(OFFSET(Metered!$I$2,0,0,1,COUNTA(Metered!$I$2:$IV$2)),"Subtransmission",OFFSET(Metered!$I75,0,0,1,COUNTA(Metered!$I75:$AA75))) -> 169020.6798 | K74: 455257.7861 | L74: 1.01199 | M74: 460716.327 | N74: =SUMIF(OFFSET(Metered!$I$2,0,0,1,COUNTA(Metered!$I$2:$AA$2)),"Transmission",OFFSET(Metered!$I75,0,0,1,COUNTA(Metered!$I75:$AA75))) -> 30009.0506 | O74: 575897.7467 | P74: 1.02163 | Q74: 588354.4149
A75: 4 | B75: 2022-04-04T01:00:00 | C75: =+Metered!E76 -> 334395.5703 | D75: 1.04918 | E75: 350841.1445 | F75: =SUMIF(OFFSET(Metered!$I$2,0,0,1,COUNTA(Metered!$I$2:$IV$2)),"Primary",OFFSET(Metered!$I76,0,0,1,COUNTA(Metered!$I76:$AA76))) -> 37697.7256 | G75: 388538.8701 | H75: 1.01679 | I75: 395062.4377 | J75: =SUMIF(OFFSET(Metered!$I$2,0,0,1,COUNTA(Metered!$I$2:$IV$2)),"Subtransmission",OFFSET(Metered!$I76,0,0,1,COUNTA(Metered!$I76:$AA76))) -> 168717.2344 | K75: 473183.158 | L75: 1.01204 | M75: 478880.2833 | N75: =SUMIF(OFFSET(Metered!$I$2,0,0,1,COUNTA(Metered!$I$2:$AA$2)),"Transmission",OFFSET(Metered!$I76,0,0,1,COUNTA(Metered!$I76:$AA76))) -> 29988.6007 | O75: 599465.398 | P75: 1.02206 | Q75: 612689.6047
A76: 4 | B76: 2022-04-04T02:00:00 | C76: =+Metered!E77 -> 363275.4317 | D76: 1.046 | E76: 379986.1015 | F76: =SUMIF(OFFSET(Metered!$I$2,0,0,1,COUNTA(Metered!$I$2:$IV$2)),"Primary",OFFSET(Metered!$I77,0,0,1,COUNTA(Metered!$I77:$AA77))) -> 37851.8315 | G76: 417837.933 | H76: 1.01648 | I76: 424723.9021 | J76: =SUMIF(OFFSET(Metered!$I$2,0,0,1,COUNTA(Metered!$I$2:$IV$2)),"Subtransmission",OFFSET(Metered!$I77,0,0,1,COUNTA(Metered!$I77:$AA77))) -> 169711.5605 | K76: 497036.9218 | L76: 1.01214 | M76: 503070.95 | N76: =SUMIF(OFFSET(Metered!$I$2,0,0,1,COUNTA(Metered!$I$2:$AA$2)),"Transmission",OFFSET(Metered!$I77,0,0,1,COUNTA(Metered!$I77:$AA77))) -> 29971.4376 | O76: 630440.9285 | P76: 1.02265 | Q76: 644720.4155
A77: 4 | B77: 2022-04-04T03:00:00 | C77: =+Metered!E78 -> 356066.7429 | D77: 1.04674 | E77: 372709.3024 | F77: =SUMIF(OFFSET(Metered!$I$2,0,0,1,COUNTA(Metered!$I$2:$IV$2)),"Primary",OFFSET(Metered!$I78,0,0,1,COUNTA(Metered!$I78:$AA78))) -> 38078.2246 | G77: 410787.527 | H77: 1.01655 | I77: 417586.0606 | J77: =SUMIF(OFFSET(Metered!$I$2,0,0,1,COUNTA(Metered!$I$2:$IV$2)),"Subtransmission",OFFSET(Metered!$I78,0,0,1,COUNTA(Metered!$I78:$AA78))) -> 169959.1155 | K77: 491783.4995 | L77: 1.01211 | M77: 497738.9977 | N77: =SUMIF(OFFSET(Metered!$I$2,0,0,1,COUNTA(Metered!$I$2:$AA$2)),"Transmission",OFFSET(Metered!$I78,0,0,1,COUNTA(Metered!$I78:$AA78))) -> 29971.1235 | O77: 623471.7978 | P77: 1.02251 | Q77: 637506.1479
A78: 4 | B78: 2022-04-04T04:00:00 | C78: =+Metered!E79 -> 370384.8268 | D78: 1.0453 | E78: 387163.2594 | F78: =SUMIF(OFFSET(Metered!$I$2,0,0,1,COUNTA(Metered!$I$2:$IV$2)),"Primary",OFFSET(Metered!$I79,0,0,1,COUNTA(Metered!$I79:$AA79))) -> 39644.2211 | G78: 426807.4805 | H78: 1.01641 | I78: 433811.3913 | J78: =SUMIF(OFFSET(Metered!$I$2,0,0,1,COUNTA(Metered!$I$2:$IV$2)),"Subtransmission",OFFSET(Metered!$I79,0,0,1,COUNTA(Metered!$I79:$AA79))) -> 170185.7155 | K78: 504514.6046 | L78: 1.01217 | M78: 510654.5474 | N78: =SUMIF(OFFSET(Metered!$I$2,0,0,1,COUNTA(Metered!$I$2:$AA$2)),"Transmission",OFFSET(Metered!$I79,0,0,1,COUNTA(Metered!$I79:$AA79))) -> 30181.1417 | O78: 640318.1912 | P78: 1.02284 | Q78: 654943.0587
A79: 4 | B79: 2022-04-04T05:00:00 | C79: =+Metered!E80 -> 401181.926 | D79: 1.0426 | E79: 418272.276 | F79: =SUMIF(OFFSET(Metered!$I$2,0,0,1,COUNTA(Metered!$I$2:$IV$2)),"Primary",OFFSET(Metered!$I80,0,0,1,COUNTA(Metered!$I80:$AA80))) -> 42485.2893 | G79: 460757.5653 | H79: 1.01621 | I79: 468226.4454 | J79: =SUMIF(OFFSET(Metered!$I$2,0,0,1,COUNTA(Metered!$I$2:$IV$2)),"Subtransmission",OFFSET(Metered!$I80,0,0,1,COUNTA(Metered!$I80:$AA80))) -> 172213.1704 | K79: 533064.9842 | L79: 1.01232 | M79: 539632.3448 | N79: =SUMIF(OFFSET(Metered!$I$2,0,0,1,COUNTA(Metered!$I$2:$AA$2)),"Transmission",OFFSET(Metered!$I80,0,0,1,COUNTA(Metered!$I80:$AA80))) -> 29435.6881 | O79: 676442.6645 | P79: 1.02357 | Q79: 692386.4182
A80: 4 | B80: 2022-04-04T06:00:00 | C80: =+Metered!E81 -> 430589.9861 | D80: 1.04044 | E80: 448003.0452 | F80: =SUMIF(OFFSET(Metered!$I$2,0,0,1,COUNTA(Metered!$I$2:$IV$2)),"Primary",OFFSET(Metered!$I81,0,0,1,COUNTA(Metered!$I81:$AA81))) -> 50306.5396 | G80: 498309.5848 | H80: 1.0161 | I80: 506332.3691 | J80: =SUMIF(OFFSET(Metered!$I$2,0,0,1,COUNTA(Metered!$I$2:$IV$2)),"Subtransmission",OFFSET(Metered!$I81,0,0,1,COUNTA(Metered!$I81:$AA81))) -> 176230.397 | K80: 566449.6072 | L80: 1.01253 | M80: 573547.2208 | N80: =SUMIF(OFFSET(Metered!$I$2,0,0,1,COUNTA(Metered!$I$2:$AA$2)),"Transmission",OFFSET(Metered!$I81,0,0,1,COUNTA(Metered!$I81:$AA81))) -> 29388.5288 | O80: 719048.9085 | P80: 1.02446 | Q80: 736636.8448
A81: 4 | B81: 2022-04-04T07:00:00 | C81: =+Metered!E82 -> 443128.0901 | D81: 1.03962 | E81: 460684.825 | F81: =SUMIF(OFFSET(Metered!$I$2,0,0,1,COUNTA(Metered!$I$2:$IV$2)),"Primary",OFFSET(Metered!$I82,0,0,1,COUNTA(Metered!$I82:$AA82))) -> 56397.6746 | G81: 517082.4996 | H81: 1.01609 | I81: 525402.3571 | J81: =SUMIF(OFFSET(Metered!$I$2,0,0,1,COUNTA(Metered!$I$2:$IV$2)),"Subtransmission",OFFSET(Metered!$I82,0,0,1,COUNTA(Metered!$I82:$AA82))) -> 184354.6895 | K81: 589270.7196 | L81: 1.01268 | M81: 596742.6724 | N81: =SUMIF(OFFSET(Metered!$I$2,0,0,1,COUNTA(Metered!$I$2:$AA$2)),"Transmission",OFFSET(Metered!$I82,0,0,1,COUNTA(Metered!$I82:$AA82))) -> 29104.0877 | O81: 746333.087 | P81: 1.02504 | Q81: 765021.2675
A82: 4 | B82: 2022-04-04T08:00:00 | C82: =+Metered!E83 -> 431549.9265 | D82: 1.04037 | E82: 448971.5971 | F82: =SUMIF(OFFSET(Metered!$I$2,0,0,1,COUNTA(Metered!$I$2:$IV$2)),"Primary",OFFSET(Metered!$I83,0,0,1,COUNTA(Metered!$I83:$AA83))) -> 61252.0279 | G82: 510223.625 | H82: 1.01609 | I82: 518433.1231 | J82: =SUMIF(OFFSET(Metered!$I$2,0,0,1,COUNTA(Metered!$I$2:$IV$2)),"Subtransmission",OFFSET(Metered!$I83,0,0,1,COUNTA(Metered!$I83:$AA83))) -> 187569.5491 | K82: 587114.544 | L82: 1.01267 | M82: 594553.2853 | N82: =SUMIF(OFFSET(Metered!$I$2,0,0,1,COUNTA(Metered!$I$2:$AA$2)),"Transmission",OFFSET(Metered!$I83,0,0,1,COUNTA(Metered!$I83:$AA83))) -> 29038.2957 | O82: 742479.7092 | P82: 1.02496 | Q82: 761012.0027
A83: 4 | B83: 2022-04-04T09:00:00 | C83: =+Metered!E84 -> 428403.3547 | D83: 1.04059 | E83: 445792.2469 | F83: =SUMIF(OFFSET(Metered!$I$2,0,0,1,COUNTA(Metered!$I$2:$IV$2)),"Primary",OFFSET(Metered!$I84,0,0,1,COUNTA(Metered!$I84:$AA84))) -> 61941.1961 | G83: 507733.443 | H83: 1.01609 | I83: 515902.8741 | J83: =SUMIF(OFFSET(Metered!$I$2,0,0,1,COUNTA(Metered!$I$2:$IV$2)),"Subtransmission",OFFSET(Metered!$I84,0,0,1,COUNTA(Metered!$I84:$AA84))) -> 186684.51 | K83: 584279.4977 | L83: 1.01265 | M83: 591670.6334 | N83: =SUMIF(OFFSET(Metered!$I$2,0,0,1,COUNTA(Metered!$I$2:$AA$2)),"Transmission",OFFSET(Metered!$I84,0,0,1,COUNTA(Metered!$I84:$AA84))) -> 29010.7271 | O83: 738989.2468 | P83: 1.02488 | Q83: 757375.2993
A84: 4 | B84: 2022-04-04T10:00:00 | C84: =+Metered!E85 -> 391089.1621 | D84: 1.04343 | E84: 408074.1644 | F84: =SUMIF(OFFSET(Metered!$I$2,0,0,1,COUNTA(Metered!$I$2:$IV$2)),"Primary",OFFSET(Metered!$I85,0,0,1,COUNTA(Metered!$I85:$AA85))) -> 62048.9281 | G84: 470123.0925 | H84: 1.01617 | I84: 477724.9829 | J84: =SUMIF(OFFSET(Metered!$I$2,0,0,1,COUNTA(Metered!$I$2:$IV$2)),"Subtransmission",OFFSET(Metered!$I85,0,0,1,COUNTA(Metered!$I85:$AA85))) -> 183318.7729 | K84: 551490.9004 | L84: 1.01243 | M84: 558345.9323 | N84: =SUMIF(OFFSET(Metered!$I$2,0,0,1,COUNTA(Metered!$I$2:$AA$2)),"Transmission",OFFSET(Metered!$I85,0,0,1,COUNTA(Metered!$I85:$AA85))) -> 28962.6591 | O84: 696861.4468 | P84: 1.02399 | Q84: 713579.1529
A85: 4 | B85: 2022-04-04T11:00:00 | C85: =+Metered!E86 -> 369484.805 | D85: 1.04539 | E85: 386255.7203 | F85: =SUMIF(OFFSET(Metered!$I$2,0,0,1,COUNTA(Metered!$I$2:$IV$2)),"Primary",OFFSET(Metered!$I86,0,0,1,COUNTA(Metered!$I86:$AA86))) -> 62869.7506 | G85: 449125.4709 | H85: 1.01627 | I85: 456432.7423 | J85: =SUMIF(OFFSET(Metered!$I$2,0,0,1,COUNTA(Metered!$I$2:$IV$2)),"Subtransmission",OFFSET(Metered!$I86,0,0,1,COUNTA(Metered!$I86:$AA86))) -> 184540.4382 | K85: 536303.1046 | L85: 1.01234 | M85: 542921.0849 | N85: =SUMIF(OFFSET(Metered!$I$2,0,0,1,COUNTA(Metered!$I$2:$AA$2)),"Transmission",OFFSET(Metered!$I86,0,0,1,COUNTA(Metered!$I86:$AA86))) -> 28942.8284 | O85: 676533.9892 | P85: 1.02357 | Q85: 692479.8953
A86: 4 | B86: 2022-04-04T12:00:00 | C86: =+Metered!E87 -> 338910.4171 | D86: 1.04864 | E86: 355395.0198 | F86: =SUMIF(OFFSET(Metered!$I$2,0,0,1,COUNTA(Metered!$I$2:$IV$2)),"Primary",OFFSET(Metered!$I87,0,0,1,COUNTA(Metered!$I87:$AA87))) -> 61323.4406 | G86: 416718.4604 | H86: 1.01649 | I86: 423590.1478 | J86: =SUMIF(OFFSET(Metered!$I$2,0,0,1,COUNTA(Metered!$I$2:$IV$2)),"Subtransmission",OFFSET(Metered!$I87,0,0,1,COUNTA(Metered!$I87:$AA87))) -> 186314.9862 | K86: 512766.588 | L86: 1.01221 | M86: 519027.468 | N86: =SUMIF(OFFSET(Metered!$I$2,0,0,1,COUNTA(Metered!$I$2:$AA$2)),"Transmission",OFFSET(Metered!$I87,0,0,1,COUNTA(Metered!$I87:$AA87))) -> 28990.0707 | O86: 645156.0847 | P86: 1.02293 | Q86: 659949.5137
A87: 4 | B87: 2022-04-04T13:00:00 | C87: =+Metered!E88 -> 292096.9422 | D87: 1.0551 | E87: 308191.4838 | F87: =SUMIF(OFFSET(Metered!$I$2,0,0,1,COUNTA(Metered!$I$2:$IV$2)),"Primary",OFFSET(Metered!$I88,0,0,1,COUNTA(Metered!$I88:$AA88))) -> 60207.2419 | G87: 368398.7257 | H87: 1.01707 | I87: 374687.2919 | J87: =SUMIF(OFFSET(Metered!$I$2,0,0,1,COUNTA(Metered!$I$2:$IV$2)),"Subtransmission",OFFSET(Metered!$I88,0,0,1,COUNTA(Metered!$I88:$AA88))) -> 185916.5032 | K87: 474679.7505 | L87: 1.01205 | M87: 480399.6415 | N87: =SUMIF(OFFSET(Metered!$I$2,0,0,1,COUNTA(Metered!$I$2:$AA$2)),"Transmission",OFFSET(Metered!$I88,0,0,1,COUNTA(Metered!$I88:$AA88))) -> 29018.0365 | O87: 595341.7226 | P87: 1.02198 | Q87: 608427.3337
A88: 4 | B88: 2022-04-04T14:00:00 | C88: =+Metered!E89 -> 311548.386 | D88: 1.05216 | E88: 327798.7498 | F88: =SUMIF(OFFSET(Metered!$I$2,0,0,1,COUNTA(Metered!$I$2:$IV$2)),"Primary",OFFSET(Metered!$I89,0,0,1,COUNTA(Metered!$I89:$AA89))) -> 60386.9452 | G88: 388185.695 | H88: 1.01679 | I88: 394703.3328 | J88: =SUMIF(OFFSET(Metered!$I$2,0,0,1,COUNTA(Metered!$I$2:$IV$2)),"Subtransmission",OFFSET(Metered!$I89,0,0,1,COUNTA(Metered!$I89:$AA89))) -> 185977.448 | K88: 490166.6174 | L88: 1.01211 | M88: 496102.5352 | N88: =SUMIF(OFFSET(Metered!$I$2,0,0,1,COUNTA(Metered!$I$2:$AA$2)),"Transmission",OFFSET(Metered!$I89,0,0,1,COUNTA(Metered!$I89:$AA89))) -> 29005.0038 | O88: 615621.7024 | P88: 1.02236 | Q88: 629387.0036
A89: 4 | B89: 2022-04-04T15:00:00 | C89: =+Metered!E90 -> 294478.4909 | D89: 1.05472 | E89: 310592.354 | F89: =SUMIF(OFFSET(Metered!$I$2,0,0,1,COUNTA(Metered!$I$2:$IV$2)),"Primary",OFFSET(Metered!$I90,0,0,1,COUNTA(Metered!$I90:$AA90))) -> 57273.815 | G89: 367866.169 | H89: 1.01708 | I89: 374149.3231 | J89: =SUMIF(OFFSET(Metered!$I$2,0,0,1,COUNTA(Metered!$I$2:$IV$2)),"Subtransmission",OFFSET(Metered!$I90,0,0,1,COUNTA(Metered!$I90:$AA90))) -> 181460.5662 | K89: 469809.2128 | L89: 1.01203 | M89: 475461.0177 | N89: =SUMIF(OFFSET(Metered!$I$2,0,0,1,COUNTA(Metered!$I$2:$AA$2)),"Transmission",OFFSET(Metered!$I90,0,0,1,COUNTA(Metered!$I90:$AA90))) -> 29021.4265 | O89: 590283.1206 | P89: 1.02189 | Q89: 603204.4182
A90: 4 | B90: 2022-04-04T16:00:00 | C90: =+Metered!E91 -> 278602.0196 | D90: 1.05741 | E90: 294596.5615 | F90: =SUMIF(OFFSET(Metered!$I$2,0,0,1,COUNTA(Metered!$I$2:$IV$2)),"Primary",OFFSET(Metered!$I91,0,0,1,COUNTA(Metered!$I91:$AA91))) -> 52959.8552 | G90: 347556.4167 | H90: 1.01743 | I90: 353614.3251 | J90: =SUMIF(OFFSET(Metered!$I$2,0,0,1,COUNTA(Metered!$I$2:$IV$2)),"Subtransmission",OFFSET(Metered!$I91,0,0,1,COUNTA(Metered!$I91:$AA91))) -> 178794.168 | K90: 451316.9437 | L90: 1.01198 | M90: 456723.7207 | N90: =SUMIF(OFFSET(Metered!$I$2,0,0,1,COUNTA(Metered!$I$2:$AA$2)),"Transmission",OFFSET(Metered!$I91,0,0,1,COUNTA(Metered!$I91:$AA91))) -> 28928.279 | O90: 566743.5491 | P90: 1.02147 | Q90: 578911.5331
A91: 4 | B91: 2022-04-04T17:00:00 | C91: =+Metered!E92 -> 289259.8086 | D91: 1.05557 | E91: 305333.9761 | F91: =SUMIF(OFFSET(Metered!$I$2,0,0,1,COUNTA(Metered!$I$2:$IV$2)),"Primary",OFFSET(Metered!$I92,0,0,1,COUNTA(Metered!$I92:$AA92))) -> 52455.1664 | G91: 357789.1425 | H91: 1.01724 | I91: 363957.4273 | J91: =SUMIF(OFFSET(Metered!$I$2,0,0,1,COUNTA(Metered!$I$2:$IV$2)),"Subtransmission",OFFSET(Metered!$I92,0,0,1,COUNTA(Metered!$I92:$AA92))) -> 179460.45 | K91: 459954.4269 | L91: 1.012 | M91: 465473.88 | N91: =SUMIF(OFFSET(Metered!$I$2,0,0,1,COUNTA(Metered!$I$2:$AA$2)),"Transmission",OFFSET(Metered!$I92,0,0,1,COUNTA(Metered!$I92:$AA92))) -> 28913.9585 | O91: 577851.289 | P91: 1.02167 | Q91: 590373.3264
A92: 4 | B92: 2022-04-04T18:00:00 | C92: =+Metered!E93 -> 263543.3237 | D92: 1.06028 | E92: 279429.7152 | F92: =SUMIF(OFFSET(Metered!$I$2,0,0,1,COUNTA(Metered!$I$2:$IV$2)),"Primary",OFFSET(Metered!$I93,0,0,1,COUNTA(Metered!$I93:$AA93))) -> 51373.0614 | G92: 330802.7766 | H92: 1.01778 | I92: 336684.45 | J92: =SUMIF(OFFSET(Metered!$I$2,0,0,1,COUNTA(Metered!$I$2:$IV$2)),"Subtransmission",OFFSET(Metered!$I93,0,0,1,COUNTA(Metered!$I93:$AA93))) -> 177320.6905 | K92: 436795.9842 | L92: 1.01196 | M92: 442020.0641 | N92: =SUMIF(OFFSET(Metered!$I$2,0,0,1,COUNTA(Metered!$I$2:$AA$2)),"Transmission",OFFSET(Metered!$I93,0,0,1,COUNTA(Metered!$I93:$AA93))) -> 28936.6789 | O92: 548165.8993 | P92: 1.02115 | Q92: 559759.6081
A93: 4 | B93: 2022-04-04T19:00:00 | C93: =+Metered!E94 -> 286639.6012 | D93: 1.05601 | E93: 302694.2853 | F93: =SUMIF(OFFSET(Metered!$I$2,0,0,1,COUNTA(Metered!$I$2:$IV$2)),"Primary",OFFSET(Metered!$I94,0,0,1,COUNTA(Metered!$I94:$AA94))) -> 51490.6965 | G93: 354184.9818 | H93: 1.01731 | I93: 360315.9238 | J93: =SUMIF(OFFSET(Metered!$I$2,0,0,1,COUNTA(Metered!$I$2:$IV$2)),"Subtransmission",OFFSET(Metered!$I94,0,0,1,COUNTA(Metered!$I94:$AA94))) -> 176881.0328 | K93: 454568.5831 | L93: 1.01199 | M93: 460018.8604 | N93: =SUMIF(OFFSET(Metered!$I$2,0,0,1,COUNTA(Metered!$I$2:$AA$2)),"Transmission",OFFSET(Metered!$I94,0,0,1,COUNTA(Metered!$I94:$AA94))) -> 28912.8188 | O93: 571560.0527 | P93: 1.02155 | Q93: 583877.1719
A94: 4 | B94: 2022-04-04T20:00:00 | C94: =+Metered!E95 -> 312303.4578 | D94: 1.05205 | E94: 328558.8528 | F94: =SUMIF(OFFSET(Metered!$I$2,0,0,1,COUNTA(Metered!$I$2:$IV$2)),"Primary",OFFSET(Metered!$I95,0,0,1,COUNTA(Metered!$I95:$AA95))) -> 50743.8623 | G94: 379302.7151 | H94: 1.01691 | I94: 385716.724 | J94: =SUMIF(OFFSET(Metered!$I$2,0,0,1,COUNTA(Metered!$I$2:$IV$2)),"Subtransmission",OFFSET(Metered!$I95,0,0,1,COUNTA(Metered!$I95:$AA95))) -> 176738.5186 | K94: 474001.9064 | L94: 1.01205 | M94: 479713.6294 | N94: =SUMIF(OFFSET(Metered!$I$2,0,0,1,COUNTA(Metered!$I$2:$AA$2)),"Transmission",OFFSET(Metered!$I95,0,0,1,COUNTA(Metered!$I95:$AA95))) -> 28902.7744 | O94: 597069.74 | P94: 1.02201 | Q94: 610211.2449
A95: 4 | B95: 2022-04-04T21:00:00 | C95: =+Metered!E96 -> 318921.4369 | D95: 1.05115 | E95: 335234.2684 | F95: =SUMIF(OFFSET(Metered!$I$2,0,0,1,COUNTA(Metered!$I$2:$IV$2)),"Primary",OFFSET(Metered!$I96,0,0,1,COUNTA(Metered!$I96:$AA96))) -> 47727.698 | G95: 382961.9664 | H95: 1.01686 | I95: 389418.7051 | J95: =SUMIF(OFFSET(Metered!$I$2,0,0,1,COUNTA(Metered!$I$2:$IV$2)),"Subtransmission",OFFSET(Metered!$I96,0,0,1,COUNTA(Metered!$I96:$AA96))) -> 176951.9611 | K95: 477068.3843 | L95: 1.01206 | M95: 482821.829 | N95: =SUMIF(OFFSET(Metered!$I$2,0,0,1,COUNTA(Metered!$I$2:$AA$2)),"Transmission",OFFSET(Metered!$I96,0,0,1,COUNTA(Metered!$I96:$AA96))) -> 29471.7822 | O95: 601595.8932 | P95: 1.0221 | Q95: 614891.1624
A96: 4 | B96: 2022-04-04T22:00:00 | C96: =+Metered!E97 -> 289079.2452 | D96: 1.0556 | E96: 305152.0513 | F96: =SUMIF(OFFSET(Metered!$I$2,0,0,1,COUNTA(Metered!$I$2:$IV$2)),"Primary",OFFSET(Metered!$I97,0,0,1,COUNTA(Metered!$I97:$AA97))) -> 47266.7988 | G96: 352418.8501 | H96: 1.01734 | I96: 358529.7929 | J96: =SUMIF(OFFSET(Metered!$I$2,0,0,1,COUNTA(Metered!$I$2:$IV$2)),"Subtransmission",OFFSET(Metered!$I97,0,0,1,COUNTA(Metered!$I97:$AA97))) -> 176914.1221 | K96: 453225.1407 | L96: 1.01199 | M96: 458659.3101 | N96: =SUMIF(OFFSET(Metered!$I$2,0,0,1,COUNTA(Metered!$I$2:$AA$2)),"Transmission",OFFSET(Metered!$I97,0,0,1,COUNTA(Metered!$I97:$AA97))) -> 29527.7295 | O96: 570405.814 | P96: 1.02153 | Q96: 582686.6512
A97: 4 | B97: 2022-04-04T23:00:00 | C97: =+Metered!E98 -> 250457.0312 | D97: 1.06308 | E97: 266255.8607 | F97: =SUMIF(OFFSET(Metered!$I$2,0,0,1,COUNTA(Metered!$I$2:$IV$2)),"Primary",OFFSET(Metered!$I98,0,0,1,COUNTA(Metered!$I98:$AA98))) -> 43759.8044 | G97: 310015.6651 | H97: 1.01831 | I97: 315692.0519 | J97: =SUMIF(OFFSET(Metered!$I$2,0,0,1,COUNTA(Metered!$I$2:$IV$2)),"Subtransmission",OFFSET(Metered!$I98,0,0,1,COUNTA(Metered!$I98:$AA98))) -> 178041.5191 | K97: 421338.4337 | L97: 1.01194 | M97: 426369.2146 | N97: =SUMIF(OFFSET(Metered!$I$2,0,0,1,COUNTA(Metered!$I$2:$AA$2)),"Transmission",OFFSET(Metered!$I98,0,0,1,COUNTA(Metered!$I98:$AA98))) -> 29552.4018 | O97: 528316.7537 | P97: 1.02083 | Q97: 539321.5917
A98: 4 | B98: 2022-04-05 | C98: =+Metered!E99 -> 245303.7599 | D98: 1.06427 | E98: 261069.4325 | F98: =SUMIF(OFFSET(Metered!$I$2,0,0,1,COUNTA(Metered!$I$2:$IV$2)),"Primary",OFFSET(Metered!$I99,0,0,1,COUNTA(Metered!$I99:$AA99))) -> 41012.7539 | G98: 302082.1864 | H98: 1.01855 | I98: 307685.811 | J98: =SUMIF(OFFSET(Metered!$I$2,0,0,1,COUNTA(Metered!$I$2:$IV$2)),"Subtransmission",OFFSET(Metered!$I99,0,0,1,COUNTA(Metered!$I99:$AA99))) -> 179814.9374 | K98: 416941.6184 | L98: 1.01194 | M98: 421919.9013 | N98: =SUMIF(OFFSET(Metered!$I$2,0,0,1,COUNTA(Metered!$I$2:$AA$2)),"Transmission",OFFSET(Metered!$I99,0,0,1,COUNTA(Metered!$I99:$AA99))) -> 29662.7326 | O98: 522141.7639 | P98: 1.02073 | Q98: 532965.7626
A99: 4 | B99: 2022-04-05T01:00:00 | C99: =+Metered!E100 -> 242161.0028 | D99: 1.06502 | E99: 257906.3112 | F99: =SUMIF(OFFSET(Metered!$I$2,0,0,1,COUNTA(Metered!$I$2:$IV$2)),"Primary",OFFSET(Metered!$I100,0,0,1,COUNTA(Metered!$I100:$AA100))) -> 39181.7996 | G99: 297088.1108 | H99: 1.0187 | I99: 302643.6585 | J99: =SUMIF(OFFSET(Metered!$I$2,0,0,1,COUNTA(Metered!$I$2:$IV$2)),"Subtransmission",OFFSET(Metered!$I100,0,0,1,COUNTA(Metered!$I100:$AA100))) -> 174091.252 | K99: 407332.0571 | L99: 1.01194 | M99: 412195.6018 | N99: =SUMIF(OFFSET(Metered!$I$2,0,0,1,COUNTA(Metered!$I$2:$AA$2)),"Transmission",OFFSET(Metered!$I100,0,0,1,COUNTA(Metered!$I100:$AA100))) -> 29692.4618 | O99: 511290.917 | P99: 1.02056 | Q99: 521803.0583
A100: 4 | B100: 2022-04-05T02:00:00 | C100: =+Metered!E101 -> 247618.3515 | D100: 1.06373 | E100: 263399.069 | F100: =SUMIF(OFFSET(Metered!$I$2,0,0,1,COUNTA(Metered!$I$2:$IV$2)),"Primary",OFFSET(Metered!$I101,0,0,1,COUNTA(Metered!$I101:$AA101))) -> 38295.8504 | G100: 301694.9194 | H100: 1.01856 | I100: 307294.3771 | J100: =SUMIF(OFFSET(Metered!$I$2,0,0,1,COUNTA(Metered!$I$2:$IV$2)),"Subtransmission",OFFSET(Metered!$I101,0,0,1,COUNTA(Metered!$I101:$AA101))) -> 174164.0977 | K100: 410989.1092 | L100: 1.01194 | M100: 415896.3192 | N100: =SUMIF(OFFSET(Metered!$I$2,0,0,1,COUNTA(Metered!$I$2:$AA$2)),"Transmission",OFFSET(Metered!$I101,0,0,1,COUNTA(Metered!$I101:$AA101))) -> 29679.5928 | O100: 516045.2776 | P100: 1.02064 | Q100: 526696.4521
A101: 4 | B101: 2022-04-05T03:00:00 | C101: =+Metered!E102 -> 250205.8126 | D101: 1.06314 | E101: 266003.8077 | F101: =SUMIF(OFFSET(Metered!$I$2,0,0,1,COUNTA(Metered!$I$2:$IV$2)),"Primary",OFFSET(Metered!$I102,0,0,1,COUNTA(Metered!$I102:$AA102))) -> 38518.4924 | G101: 304522.3001 | H101: 1.01847 | I101: 310146.8269 | J101: =SUMIF(OFFSET(Metered!$I$2,0,0,1,COUNTA(Metered!$I$2:$IV$2)),"Subtransmission",OFFSET(Metered!$I102,0,0,1,COUNTA(Metered!$I102:$AA102))) -> 172573.2545 | K101: 411596.5863 | L101: 1.01194 | M101: 416511.0495 | N101: =SUMIF(OFFSET(Metered!$I$2,0,0,1,COUNTA(Metered!$I$2:$AA$2)),"Transmission",OFFSET(Metered!$I102,0,0,1,COUNTA(Metered!$I102:$AA102))) -> 29687.167 | O101: 517321.7117 | P101: 1.02066 | Q101: 528009.5782
A102: 4 | B102: 2022-04-05T04:00:00 | C102: =+Metered!E103 -> 261341.4525 | D102: 1.06073 | E102: 277212.7189 | F102: =SUMIF(OFFSET(Metered!$I$2,0,0,1,COUNTA(Metered!$I$2:$IV$2)),"Primary",OFFSET(Metered!$I103,0,0,1,COUNTA(Metered!$I103:$AA103))) -> 39748.4287 | G102: 316961.1476 | H102: 1.01812 | I102: 322704.4836 | J102: =SUMIF(OFFSET(Metered!$I$2,0,0,1,COUNTA(Metered!$I$2:$IV$2)),"Subtransmission",OFFSET(Metered!$I103,0,0,1,COUNTA(Metered!$I103:$AA103))) -> 173929.9991 | K102: 422631.2405 | L102: 1.01194 | M102: 427677.4575 | N102: =SUMIF(OFFSET(Metered!$I$2,0,0,1,COUNTA(Metered!$I$2:$AA$2)),"Transmission",OFFSET(Metered!$I103,0,0,1,COUNTA(Metered!$I103:$AA103))) -> 29674.3272 | O102: 531355.0269 | P102: 1.02088 | Q102: 542449.7199
A103: 4 | B103: 2022-04-05T05:00:00 | C103: =+Metered!E104 -> 291945.2659 | D103: 1.05513 | E103: 308040.2084 | F103: =SUMIF(OFFSET(Metered!$I$2,0,0,1,COUNTA(Metered!$I$2:$IV$2)),"Primary",OFFSET(Metered!$I104,0,0,1,COUNTA(Metered!$I104:$AA104))) -> 42614.2646 | G103: 350654.473 | H103: 1.01737 | I103: 356745.3412 | J103: =SUMIF(OFFSET(Metered!$I$2,0,0,1,COUNTA(Metered!$I$2:$IV$2)),"Subtransmission",OFFSET(Metered!$I104,0,0,1,COUNTA(Metered!$I104:$AA104))) -> 176109.7768 | K103: 451045.5577 | L103: 1.01198 | M103: 456449.0835 | N103: =SUMIF(OFFSET(Metered!$I$2,0,0,1,COUNTA(Metered!$I$2:$AA$2)),"Transmission",OFFSET(Metered!$I104,0,0,1,COUNTA(Metered!$I104:$AA104))) -> 29678.4576 | O103: 567937.1014 | P103: 1.02149 | Q103: 580142.0697
A104: 4 | B104: 2022-04-05T06:00:00 | C104: =+Metered!E105 -> 320294.9588 | D104: 1.05096 | E104: 336617.1899 | F104: =SUMIF(OFFSET(Metered!$I$2,0,0,1,COUNTA(Metered!$I$2:$IV$2)),"Primary",OFFSET(Metered!$I105,0,0,1,COUNTA(Metered!$I105:$AA105))) -> 48729.4538 | G104: 385346.6437 | H104: 1.01683 | I104: 391832.0277 | J104: =SUMIF(OFFSET(Metered!$I$2,0,0,1,COUNTA(Metered!$I$2:$IV$2)),"Subtransmission",OFFSET(Metered!$I105,0,0,1,COUNTA(Metered!$I105:$AA105))) -> 177467.0869 | K104: 479443.4047 | L104: 1.01207 | M104: 485230.2866 | N104: =SUMIF(OFFSET(Metered!$I$2,0,0,1,COUNTA(Metered!$I$2:$AA$2)),"Transmission",OFFSET(Metered!$I105,0,0,1,COUNTA(Metered!$I105:$AA105))) -> 29651.977 | O104: 604737.9735 | P104: 1.02216 | Q104: 618138.967
A105: 4 | B105: 2022-04-05T07:00:00 | C105: =+Metered!E106 -> 324241.1094 | D105: 1.05045 | E105: 340599.0734 | F105: =SUMIF(OFFSET(Metered!$I$2,0,0,1,COUNTA(Metered!$I$2:$IV$2)),"Primary",OFFSET(Metered!$I106,0,0,1,COUNTA(Metered!$I106:$AA106))) -> 55963.8427 | G105: 396562.9161 | H105: 1.01669 | I105: 403181.5512 | J105: =SUMIF(OFFSET(Metered!$I$2,0,0,1,COUNTA(Metered!$I$2:$IV$2)),"Subtransmission",OFFSET(Metered!$I106,0,0,1,COUNTA(Metered!$I106:$AA106))) -> 184728.3644 | K105: 495451.5101 | L105: 1.01213 | M105: 501461.3369 | N105: =SUMIF(OFFSET(Metered!$I$2,0,0,1,COUNTA(Metered!$I$2:$AA$2)),"Transmission",OFFSET(Metered!$I106,0,0,1,COUNTA(Metered!$I106:$AA106))) -> 29719.1173 | O105: 623638.8597 | P105: 1.02252 | Q105: 637683.2068
A106: 4 | B106: 2022-04-05T08:00:00 | C106: =+Metered!E107 -> 300165.8589 | D106: 1.05383 | E106: 316323.7871 | F106: =SUMIF(OFFSET(Metered!$I$2,0,0,1,COUNTA(Metered!$I$2:$IV$2)),"Primary",OFFSET(Metered!$I107,0,0,1,COUNTA(Metered!$I107:$AA107))) -> 60463.3583 | G106: 376787.1454 | H106: 1.01694 | I106: 383169.9196 | J106: =SUMIF(OFFSET(Metered!$I$2,0,0,1,COUNTA(Metered!$I$2:$IV$2)),"Subtransmission",OFFSET(Metered!$I107,0,0,1,COUNTA(Metered!$I107:$AA107))) -> 186107.1811 | K106: 481407.8029 | L106: 1.01207 | M106: 487218.3951 | N106: =SUMIF(OFFSET(Metered!$I$2,0,0,1,COUNTA(Metered!$I$2:$AA$2)),"Transmission",OFFSET(Metered!$I107,0,0,1,COUNTA(Metered!$I107:$AA107))) -> 29570.3591 | O106: 604658.052 | P106: 1.02216 | Q106: 618057.2744
A107: 4 | B107: 2022-04-05T09:00:00 | C107: =+Metered!E108 -> 292998.3376 | D107: 1.05496 | E107: 309101.5262 | F107: =SUMIF(OFFSET(Metered!$I$2,0,0,1,COUNTA(Metered!$I$2:$IV$2)),"Primary",OFFSET(Metered!$I108,0,0,1,COUNTA(Metered!$I108:$AA108))) -> 63001.6226 | G107: 372103.1488 | H107: 1.01701 | I107: 378432.6234 | J107: =SUMIF(OFFSET(Metered!$I$2,0,0,1,COUNTA(Metered!$I$2:$IV$2)),"Subtransmission",OFFSET(Metered!$I108,0,0,1,COUNTA(Metered!$I108:$AA108))) -> 187051.7043 | K107: 478701.3962 | L107: 1.01206 | M107: 484474.535 | N107: =SUMIF(OFFSET(Metered!$I$2,0,0,1,COUNTA(Metered!$I$2:$AA$2)),"Transmission",OFFSET(Metered!$I108,0,0,1,COUNTA(Metered!$I108:$AA108))) -> 29569.9351 | O107: 600827.4016 | P107: 1.02208 | Q107: 614093.6707
A108: 4 | B108: 2022-04-05T10:00:00 | C108: =+Metered!E109 -> 318332.8991 | D108: 1.05123 | E108: 334641.0935 | F108: =SUMIF(OFFSET(Metered!$I$2,0,0,1,COUNTA(Metered!$I$2:$IV$2)),"Primary",OFFSET(Metered!$I109,0,0,1,COUNTA(Metered!$I109:$AA109))) -> 62592.9786 | G108: 397234.0721 | H108: 1.01669 | I108: 403863.9088 | J108: =SUMIF(OFFSET(Metered!$I$2,0,0,1,COUNTA(Metered!$I$2:$IV$2)),"Subtransmission",OFFSET(Metered!$I109,0,0,1,COUNTA(Metered!$I109:$AA109))) -> 186460.6739 | K108: 497709.6976 | L108: 1.01214 | M108: 503751.8933 | N108: =SUMIF(OFFSET(Metered!$I$2,0,0,1,COUNTA(Metered!$I$2:$AA$2)),"Transmission",OFFSET(Metered!$I109,0,0,1,COUNTA(Metered!$I109:$AA109))) -> 29647.1736 | O108: 626013.952 | P108: 1.02256 | Q108: 640136.8268
A109: 4 | B109: 2022-04-05T11:00:00 | C109: =+Metered!E110 -> 290007.7659 | D109: 1.05545 | E109: 306088.6966 | F109: =SUMIF(OFFSET(Metered!$I$2,0,0,1,COUNTA(Metered!$I$2:$IV$2)),"Primary",OFFSET(Metered!$I110,0,0,1,COUNTA(Metered!$I110:$AA110))) -> 62230.8668 | G109: 368319.5634 | H109: 1.01707 | I109: 374606.7783 | J109: =SUMIF(OFFSET(Metered!$I$2,0,0,1,COUNTA(Metered!$I$2:$IV$2)),"Subtransmission",OFFSET(Metered!$I110,0,0,1,COUNTA(Metered!$I110:$AA110))) -> 187887.6552 | K109: 476588.8525 | L109: 1.01206 | M109: 482336.514 | N109: =SUMIF(OFFSET(Metered!$I$2,0,0,1,COUNTA(Metered!$I$2:$AA$2)),"Transmission",OFFSET(Metered!$I110,0,0,1,COUNTA(Metered!$I110:$AA110))) -> 29627.6346 | O109: 597869.7297 | P109: 1.02203 | Q109: 611040.7998
A110: 4 | B110: 2022-04-05T12:00:00 | C110: =+Metered!E111 -> 296915.8184 | D110: 1.05434 | E110: 313050.224 | F110: =SUMIF(OFFSET(Metered!$I$2,0,0,1,COUNTA(Metered!$I$2:$IV$2)),"Primary",OFFSET(Metered!$I111,0,0,1,COUNTA(Metered!$I111:$AA111))) -> 63793.2444 | G110: 376843.4684 | H110: 1.01694 | I110: 383227.1967 | J110: =SUMIF(OFFSET(Metered!$I$2,0,0,1,COUNTA(Metered!$I$2:$IV$2)),"Subtransmission",OFFSET(Metered!$I111,0,0,1,COUNTA(Metered!$I111:$AA111))) -> 186000.2923 | K110: 481345.0563 | L110: 1.01207 | M110: 487154.8911 | N110: =SUMIF(OFFSET(Metered!$I$2,0,0,1,COUNTA(Metered!$I$2:$AA$2)),"Transmission",OFFSET(Metered!$I111,0,0,1,COUNTA(Metered!$I111:$AA111))) -> 29568.8425 | O110: 604606.1663 | P110: 1.02215 | Q110: 617998.1929
A111: 4 | B111: 2022-04-05T13:00:00 | C111: =+Metered!E112 -> 282177.4057 | D111: 1.05678 | E111: 298199.4387 | F111: =SUMIF(OFFSET(Metered!$I$2,0,0,1,COUNTA(Metered!$I$2:$IV$2)),"Primary",OFFSET(Metered!$I112,0,0,1,COUNTA(Metered!$I112:$AA112))) -> 61794.3666 | G111: 359993.8053 | H111: 1.01721 | I111: 366189.2987 | J111: =SUMIF(OFFSET(Metered!$I$2,0,0,1,COUNTA(Metered!$I$2:$IV$2)),"Subtransmission",OFFSET(Metered!$I112,0,0,1,COUNTA(Metered!$I112:$AA112))) -> 197210.3698 | K111: 479424.4009 | L111: 1.01207 | M111: 485211.0534 | N111: =SUMIF(OFFSET(Metered!$I$2,0,0,1,COUNTA(Metered!$I$2:$AA$2)),"Transmission",OFFSET(Metered!$I112,0,0,1,COUNTA(Metered!$I112:$AA112))) -> 29701.3978 | O111: 598887.7189 | P111: 1.02205 | Q111: 612093.1931
A112: 4 | B112: 2022-04-05T14:00:00 | C112: =+Metered!E113 -> 301378.473 | D112: 1.05365 | E112: 317547.4281 | F112: =SUMIF(OFFSET(Metered!$I$2,0,0,1,COUNTA(Metered!$I$2:$IV$2)),"Primary",OFFSET(Metered!$I113,0,0,1,COUNTA(Metered!$I113:$AA113))) -> 58960.5125 | G112: 376507.9406 | H112: 1.01695 | I112: 382889.7502 | J112: =SUMIF(OFFSET(Metered!$I$2,0,0,1,COUNTA(Metered!$I$2:$IV$2)),"Subtransmission",OFFSET(Metered!$I113,0,0,1,COUNTA(Metered!$I113:$AA113))) -> 190978.9353 | K112: 486063.6367 | L112: 1.01209 | M112: 491940.146 | N112: =SUMIF(OFFSET(Metered!$I$2,0,0,1,COUNTA(Metered!$I$2:$AA$2)),"Transmission",OFFSET(Metered!$I113,0,0,1,COUNTA(Metered!$I113:$AA113))) -> 29611.5304 | O112: 609356.7252 | P112: 1.02224 | Q112: 622908.8188
A113: 4 | B113: 2022-04-05T15:00:00 | C113: =+Metered!E114 -> 289301.8402 | D113: 1.05556 | E113: 305375.4505 | F113: =SUMIF(OFFSET(Metered!$I$2,0,0,1,COUNTA(Metered!$I$2:$IV$2)),"Primary",OFFSET(Metered!$I114,0,0,1,COUNTA(Metered!$I114:$AA114))) -> 56248.9511 | G113: 361624.4016 | H113: 1.01718 | I113: 367837.1088 | J113: =SUMIF(OFFSET(Metered!$I$2,0,0,1,COUNTA(Metered!$I$2:$IV$2)),"Subtransmission",OFFSET(Metered!$I114,0,0,1,COUNTA(Metered!$I114:$AA114))) -> 182655.1733 | K113: 466139.1353 | L113: 1.01202 | M113: 471742.1277 | N113: =SUMIF(OFFSET(Metered!$I$2,0,0,1,COUNTA(Metered!$I$2:$AA$2)),"Transmission",OFFSET(Metered!$I114,0,0,1,COUNTA(Metered!$I114:$AA114))) -> 29536.0957 | O113: 585631.3702 | P113: 1.02181 | Q113: 598403.9904
A114: 4 | B114: 2022-04-05T16:00:00 | C114: =+Metered!E115 -> 274681.1136 | D114: 1.05813 | E114: 290648.3267 | F114: =SUMIF(OFFSET(Metered!$I$2,0,0,1,COUNTA(Metered!$I$2:$IV$2)),"Primary",OFFSET(Metered!$I115,0,0,1,COUNTA(Metered!$I115:$AA115))) -> 53371.935 | G114: 344020.2617 | H114: 1.0175 | I114: 350040.6163 | J114: =SUMIF(OFFSET(Metered!$I$2,0,0,1,COUNTA(Metered!$I$2:$IV$2)),"Subtransmission",OFFSET(Metered!$I115,0,0,1,COUNTA(Metered!$I115:$AA115))) -> 181005.9501 | K114: 450774.5471 | L114: 1.01198 | M114: 456174.8262 | N114: =SUMIF(OFFSET(Metered!$I$2,0,0,1,COUNTA(Metered!$I$2:$AA$2)),"Transmission",OFFSET(Metered!$I115,0,0,1,COUNTA(Metered!$I115:$AA115))) -> 29581.7204 | O114: 566028.5659 | P114: 1.02146 | Q114: 578175.5389
A115: 4 | B115: 2022-04-05T17:00:00 | C115: =+Metered!E116 -> 317000.5625 | D115: 1.05141 | E115: 333297.5614 | F115: =SUMIF(OFFSET(Metered!$I$2,0,0,1,COUNTA(Metered!$I$2:$IV$2)),"Primary",OFFSET(Metered!$I116,0,0,1,COUNTA(Metered!$I116:$AA116))) -> 50380.3797 | G115: 383677.9411 | H115: 1.01685 | I115: 390142.9144 | J115: =SUMIF(OFFSET(Metered!$I$2,0,0,1,COUNTA(Metered!$I$2:$IV$2)),"Subtransmission",OFFSET(Metered!$I116,0,0,1,COUNTA(Metered!$I116:$AA116))) -> 181973.6667 | K115: 482648.222 | L115: 1.01208 | M115: 488478.6126 | N115: =SUMIF(OFFSET(Metered!$I$2,0,0,1,COUNTA(Metered!$I$2:$AA$2)),"Transmission",OFFSET(Metered!$I116,0,0,1,COUNTA(Metered!$I116:$AA116))) -> 29689.8525 | O115: 607636.8241 | P115: 1.02221 | Q115: 621132.438
A116: 4 | B116: 2022-04-05T18:00:00 | C116: =+Metered!E117 -> 307167.3923 | D116: 1.05279 | E116: 323382.7589 | F116: =SUMIF(OFFSET(Metered!$I$2,0,0,1,COUNTA(Metered!$I$2:$IV$2)),"Primary",OFFSET(Metered!$I117,0,0,1,COUNTA(Metered!$I117:$AA117))) -> 50577.5414 | G116: 373960.3003 | H116: 1.01699 | I116: 380313.8858 | J116: =SUMIF(OFFSET(Metered!$I$2,0,0,1,COUNTA(Metered!$I$2:$IV$2)),"Subtransmission",OFFSET(Metered!$I117,0,0,1,COUNTA(Metered!$I117:$AA117))) -> 180794.2982 | K116: 473893.8376 | L116: 1.01205 | M116: 479604.2583 | N116: =SUMIF(OFFSET(Metered!$I$2,0,0,1,COUNTA(Metered!$I$2:$AA$2)),"Transmission",OFFSET(Metered!$I117,0,0,1,COUNTA(Metered!$I117:$AA117))) -> 29657.7968 | O116: 596476.4016 | P116: 1.022 | Q116: 609598.8824
A117: 4 | B117: 2022-04-05T19:00:00 | C117: =+Metered!E118 -> 317998.5754 | D117: 1.05127 | E117: 334302.3623 | F117: =SUMIF(OFFSET(Metered!$I$2,0,0,1,COUNTA(Metered!$I$2:$IV$2)),"Primary",OFFSET(Metered!$I118,0,0,1,COUNTA(Metered!$I118:$AA118))) -> 49985.6303 | G117: 384287.9926 | H117: 1.01684 | I117: 390759.4024 | J117: =SUMIF(OFFSET(Metered!$I$2,0,0,1,COUNTA(Metered!$I$2:$IV$2)),"Subtransmission",OFFSET(Metered!$I118,0,0,1,COUNTA(Metered!$I118:$AA118))) -> 175342.1887 | K117: 476491.8578 | L117: 1.01205 | M117: 482233.5847 | N117: =SUMIF(OFFSET(Metered!$I$2,0,0,1,COUNTA(Metered!$I$2:$AA$2)),"Transmission",OFFSET(Metered!$I118,0,0,1,COUNTA(Metered!$I118:$AA118))) -> 29702.2818 | O117: 601545.5998 | P117: 1.0221 | Q117: 614839.7576
A118: 4 | B118: 2022-04-05T20:00:00 | C118: =+Metered!E119 -> 344575.5522 | D118: 1.04799 | E118: 361111.7329 | F118: =SUMIF(OFFSET(Metered!$I$2,0,0,1,COUNTA(Metered!$I$2:$IV$2)),"Primary",OFFSET(Metered!$I119,0,0,1,COUNTA(Metered!$I119:$AA119))) -> 50355.1816 | G118: 411466.9145 | H118: 1.01654 | I118: 418272.5773 | J118: =SUMIF(OFFSET(Metered!$I$2,0,0,1,COUNTA(Metered!$I$2:$IV$2)),"Subtransmission",OFFSET(Metered!$I119,0,0,1,COUNTA(Metered!$I119:$AA119))) -> 176084.7425 | K118: 498438.2098 | L118: 1.01214 | M118: 504489.2496 | N118: =SUMIF(OFFSET(Metered!$I$2,0,0,1,COUNTA(Metered!$I$2:$AA$2)),"Transmission",OFFSET(Metered!$I119,0,0,1,COUNTA(Metered!$I119:$AA119))) -> 29680.5216 | O118: 630088.8813 | P118: 1.02264 | Q118: 644354.0935
A119: 4 | B119: 2022-04-05T21:00:00 | C119: =+Metered!E120 -> 330194.8008 | D119: 1.04969 | E119: 346602.1804 | F119: =SUMIF(OFFSET(Metered!$I$2,0,0,1,COUNTA(Metered!$I$2:$IV$2)),"Primary",OFFSET(Metered!$I120,0,0,1,COUNTA(Metered!$I120:$AA120))) -> 48629.7424 | G119: 395231.9228 | H119: 1.01671 | I119: 401836.2483 | J119: =SUMIF(OFFSET(Metered!$I$2,0,0,1,COUNTA(Metered!$I$2:$IV$2)),"Subtransmission",OFFSET(Metered!$I120,0,0,1,COUNTA(Metered!$I120:$AA120))) -> 174548.6138 | K119: 484234.9641 | L119: 1.01208 | M119: 490084.5225 | N119: =SUMIF(OFFSET(Metered!$I$2,0,0,1,COUNTA(Metered!$I$2:$AA$2)),"Transmission",OFFSET(Metered!$I120,0,0,1,COUNTA(Metered!$I120:$AA120))) -> 29695.5063 | O119: 611929.9267 | P119: 1.02229 | Q119: 625569.8448
A120: 4 | B120: 2022-04-05T22:00:00 | C120: =+Metered!E121 -> 277006.2875 | D120: 1.0577 | E120: 292989.5503 | F120: =SUMIF(OFFSET(Metered!$I$2,0,0,1,COUNTA(Metered!$I$2:$IV$2)),"Primary",OFFSET(Metered!$I121,0,0,1,COUNTA(Metered!$I121:$AA121))) -> 47476.8565 | G120: 340466.4068 | H120: 1.01757 | I120: 346448.4015 | J120: =SUMIF(OFFSET(Metered!$I$2,0,0,1,COUNTA(Metered!$I$2:$IV$2)),"Subtransmission",OFFSET(Metered!$I121,0,0,1,COUNTA(Metered!$I121:$AA121))) -> 174803.9541 | K120: 441804.1103 | L120: 1.01196 | M120: 447088.0874 | N120: =SUMIF(OFFSET(Metered!$I$2,0,0,1,COUNTA(Metered!$I$2:$AA$2)),"Transmission",OFFSET(Metered!$I121,0,0,1,COUNTA(Metered!$I121:$AA121))) -> 29688.8317 | O120: 556225.1645 | P120: 1.02129 | Q120: 568067.1982
A121: 4 | B121: 2022-04-05T23:00:00 | C121: =+Metered!E122 -> 265575.3985 | D121: 1.05988 | E121: 281478.0534 | F121: =SUMIF(OFFSET(Metered!$I$2,0,0,1,COUNTA(Metered!$I$2:$IV$2)),"Primary",OFFSET(Metered!$I122,0,0,1,COUNTA(Metered!$I122:$AA122))) -> 45336.3552 | G121: 326814.4086 | H121: 1.01788 | I121: 332657.8502 | J121: =SUMIF(OFFSET(Metered!$I$2,0,0,1,COUNTA(Metered!$I$2:$IV$2)),"Subtransmission",OFFSET(Metered!$I122,0,0,1,COUNTA(Metered!$I122:$AA122))) -> 172511.2242 | K121: 428883.3061 | L121: 1.01195 | M121: 434008.4616 | N121: =SUMIF(OFFSET(Metered!$I$2,0,0,1,COUNTA(Metered!$I$2:$AA$2)),"Transmission",OFFSET(Metered!$I122,0,0,1,COUNTA(Metered!$I122:$AA122))) -> 29632.6197 | O121: 539926.8496 | P121: 1.02102 | Q121: 551276.112
A122: 4 | B122: 2022-04-06 | C122: =+Metered!E123 -> 238917.2278 | D122: 1.06582 | E122: 254642.7597 | F122: =SUMIF(OFFSET(Metered!$I$2,0,0,1,COUNTA(Metered!$I$2:$IV$2)),"Primary",OFFSET(Metered!$I123,0,0,1,COUNTA(Metered!$I123:$AA123))) -> 41618.5738 | G122: 296261.3335 | H122: 1.01873 | I122: 301810.3083 | J122: =SUMIF(OFFSET(Metered!$I$2,0,0,1,COUNTA(Metered!$I$2:$IV$2)),"Subtransmission",OFFSET(Metered!$I123,0,0,1,COUNTA(Metered!$I123:$AA123))) -> 173875.4192 | K122: 406473.9796 | L122: 1.01194 | M122: 411327.2789 | N122: =SUMIF(OFFSET(Metered!$I$2,0,0,1,COUNTA(Metered!$I$2:$AA$2)),"Transmission",OFFSET(Metered!$I123,0,0,1,COUNTA(Metered!$I123:$AA123))) -> 29653.4465 | O122: 510192.4733 | P122: 1.02055 | Q122: 520676.9286
A123: 4 | B123: 2022-04-06T01:00:00 | C123: =+Metered!E124 -> 233040.5913 | D123: 1.06732 | E123: 248728.884 | F123: =SUMIF(OFFSET(Metered!$I$2,0,0,1,COUNTA(Metered!$I$2:$IV$2)),"Primary",OFFSET(Metered!$I124,0,0,1,COUNTA(Metered!$I124:$AA124))) -> 39607.5994 | G123: 288336.4834 | H123: 1.019 | I123: 293814.8765 | J123: =SUMIF(OFFSET(Metered!$I$2,0,0,1,COUNTA(Metered!$I$2:$IV$2)),"Subtransmission",OFFSET(Metered!$I124,0,0,1,COUNTA(Metered!$I124:$AA124))) -> 169752.4623 | K123: 396189.1195 | L123: 1.01195 | M123: 400923.5795 | N123: =SUMIF(OFFSET(Metered!$I$2,0,0,1,COUNTA(Metered!$I$2:$AA$2)),"Transmission",OFFSET(Metered!$I124,0,0,1,COUNTA(Metered!$I124:$AA124))) -> 29641.5961 | O123: 497943.3949 | P123: 1.02037 | Q123: 508086.5019
A124: 4 | B124: 2022-04-06T02:00:00 | C124: =+Metered!E125 -> 223922.3808 | D124: 1.06981 | E124: 239554.4022 | F124: =SUMIF(OFFSET(Metered!$I$2,0,0,1,COUNTA(Metered!$I$2:$IV$2)),"Primary",OFFSET(Metered!$I125,0,0,1,COUNTA(Metered!$I125:$AA125))) -> 39113.4761 | G124: 278667.8783 | H124: 1.01935 | I124: 284060.1017 | J124: =SUMIF(OFFSET(Metered!$I$2,0,0,1,COUNTA(Metered!$I$2:$IV$2)),"Subtransmission",OFFSET(Metered!$I125,0,0,1,COUNTA(Metered!$I125:$AA125))) -> 166410.2206 | K124: 385329.0876 | L124: 1.01197 | M124: 389941.4768 | N124: =SUMIF(OFFSET(Metered!$I$2,0,0,1,COUNTA(Metered!$I$2:$AA$2)),"Transmission",OFFSET(Metered!$I125,0,0,1,COUNTA(Metered!$I125:$AA125))) -> 29638.0446 | O124: 484720.7561 | P124: 1.02018 | Q124: 494502.421
A125: 4 | B125: 2022-04-06T03:00:00 | C125: =+Metered!E126 -> 228702.7908 | D125: 1.06848 | E125: 244364.3579 | F125: =SUMIF(OFFSET(Metered!$I$2,0,0,1,COUNTA(Metered!$I$2:$IV$2)),"Primary",OFFSET(Metered!$I126,0,0,1,COUNTA(Metered!$I126:$AA126))) -> 38765.1958 | G125: 283129.5537 | H125: 1.01918 | I125: 288559.9785 | J125: =SUMIF(OFFSET(Metered!$I$2,0,0,1,COUNTA(Metered!$I$2:$IV$2)),"Subtransmission",OFFSET(Metered!$I126,0,0,1,COUNTA(Metered!$I126:$AA126))) -> 164644.1126 | K125: 387030.9356 | L125: 1.01197 | M125: 391663.6959 | N125: =SUMIF(OFFSET(Metered!$I$2,0,0,1,COUNTA(Metered!$I$2:$AA$2)),"Transmission",OFFSET(Metered!$I126,0,0,1,COUNTA(Metered!$I126:$AA126))) -> 29619.5443 | O125: 487456.3957 | P125: 1.02022 | Q125: 497312.7641
A126: 4 | B126: 2022-04-06T04:00:00 | C126: =+Metered!E127 -> 239445.9954 | D126: 1.06568 | E126: 255172.8084 | F126: =SUMIF(OFFSET(Metered!$I$2,0,0,1,COUNTA(Metered!$I$2:$IV$2)),"Primary",OFFSET(Metered!$I127,0,0,1,COUNTA(Metered!$I127:$AA127))) -> 39761.9259 | G126: 294934.7343 | H126: 1.01877 | I126: 300470.6593 | J126: =SUMIF(OFFSET(Metered!$I$2,0,0,1,COUNTA(Metered!$I$2:$IV$2)),"Subtransmission",OFFSET(Metered!$I127,0,0,1,COUNTA(Metered!$I127:$AA127))) -> 164146.3877 | K126: 395712.5101 | L126: 1.01195 | M126: 400441.2746 | N126: =SUMIF(OFFSET(Metered!$I$2,0,0,1,COUNTA(Metered!$I$2:$AA$2)),"Transmission",OFFSET(Metered!$I127,0,0,1,COUNTA(Metered!$I127:$AA127))) -> 29645.5694 | O126: 498991.3809 | P126: 1.02038 | Q126: 509160.8252
A127: 4 | B127: 2022-04-06T05:00:00 | C127: =+Metered!E128 -> 268918.2076 | D127: 1.05922 | E127: 284843.5438 | F127: =SUMIF(OFFSET(Metered!$I$2,0,0,1,COUNTA(Metered!$I$2:$IV$2)),"Primary",OFFSET(Metered!$I128,0,0,1,COUNTA(Metered!$I128:$AA128))) -> 42002.9178 | G127: 326846.4616 | H127: 1.01788 | I127: 332690.4764 | J127: =SUMIF(OFFSET(Metered!$I$2,0,0,1,COUNTA(Metered!$I$2:$IV$2)),"Subtransmission",OFFSET(Metered!$I128,0,0,1,COUNTA(Metered!$I128:$AA128))) -> 166162.6814 | K127: 422559.9075 | L127: 1.01194 | M127: 427605.2728 | N127: =SUMIF(OFFSET(Metered!$I$2,0,0,1,COUNTA(Metered!$I$2:$AA$2)),"Transmission",OFFSET(Metered!$I128,0,0,1,COUNTA(Metered!$I128:$AA128))) -> 29640.4542 | O127: 533538.9773 | P127: 1.02091 | Q127: 544695.2773
A128: 4 | B128: 2022-04-06T06:00:00 | C128: =+Metered!E129 -> 301827.0186 | D128: 1.05358 | E128: 317998.9103 | F128: =SUMIF(OFFSET(Metered!$I$2,0,0,1,COUNTA(Metered!$I$2:$IV$2)),"Primary",OFFSET(Metered!$I129,0,0,1,COUNTA(Metered!$I129:$AA129))) -> 47841.84 | G128: 365840.7503 | H128: 1.01711 | I128: 372100.2855 | J128: =SUMIF(OFFSET(Metered!$I$2,0,0,1,COUNTA(Metered!$I$2:$IV$2)),"Subtransmission",OFFSET(Metered!$I129,0,0,1,COUNTA(Metered!$I129:$AA129))) -> 170145.6633 | K128: 456915.1618 | L128: 1.012 | M128: 462398.1437 | N128: =SUMIF(OFFSET(Metered!$I$2,0,0,1,COUNTA(Metered!$I$2:$AA$2)),"Transmission",OFFSET(Metered!$I129,0,0,1,COUNTA(Metered!$I129:$AA129))) -> 29601.6251 | O128: 577330.5559 | P128: 1.02166 | Q128: 589835.5357
A129: 4 | B129: 2022-04-06T07:00:00 | C129: =+Metered!E130 -> 330471.3226 | D129: 1.04966 | E129: 346882.5284 | F129: =SUMIF(OFFSET(Metered!$I$2,0,0,1,COUNTA(Metered!$I$2:$IV$2)),"Primary",OFFSET(Metered!$I130,0,0,1,COUNTA(Metered!$I130:$AA130))) -> 53626.5544 | G129: 400509.0828 | H129: 1.01665 | I129: 407177.5591 | J129: =SUMIF(OFFSET(Metered!$I$2,0,0,1,COUNTA(Metered!$I$2:$IV$2)),"Subtransmission",OFFSET(Metered!$I130,0,0,1,COUNTA(Metered!$I130:$AA130))) -> 178240.4446 | K129: 492043.2256 | L129: 1.01211 | M129: 498001.869 | N129: =SUMIF(OFFSET(Metered!$I$2,0,0,1,COUNTA(Metered!$I$2:$AA$2)),"Transmission",OFFSET(Metered!$I130,0,0,1,COUNTA(Metered!$I130:$AA130))) -> 29664.6665 | O129: 621041.3136 | P129: 1.02247 | Q129: 634996.1119
A130: 4 | B130: 2022-04-06T08:00:00 | C130: =+Metered!E131 -> 290262.1864 | D130: =IF(C130=0,0,ROUND(1+((LossCoeff_Sec*C130^2+ZeroLoadLoss_Sec)/C130),5)) -> 1.0554 | E130: 306342.7115 | F130: =SUMIF(OFFSET(Metered!$I$2,0,0,1,COUNTA(Metered!$I$2:$IV$2)),"Primary",OFFSET(Metered!$I131,0,0,1,COUNTA(Metered!$I131:$AA131))) -> 57751.6181 | G130: 364094.3296 | H130: =IF(G130=0,0,ROUND(1+((LossCoeff_Pri*G130^2+ZeroLoadLoss_Pri)/G130),5)) -> 1.01714 | I130: 370334.9064 | J130: =SUMIF(OFFSET(Metered!$I$2,0,0,1,COUNTA(Metered!$I$2:$IV$2)),"Subtransmission",OFFSET(Metered!$I131,0,0,1,COUNTA(Metered!$I131:$AA131))) -> 177314.5359 | K130: =+I130*DistAtSubtran+J130 -> 462723.4956 | L130: =IF(K130=0,0,ROUND(1+((LossCoeff_Sub*K130^2+ZeroLoadLoss_Sub)/K130),5)) -> 1.01201 | M130: 468280.8047 | N130: =SUMIF(OFFSET(Metered!$I$2,0,0,1,COUNTA(Metered!$I$2:$AA$2)),"Transmission",OFFSET(Metered!$I131,0,0,1,COUNTA(Metered!$I131:$AA131))) -> 29638.5965 | O130: =+M130+N130+(1-DistAtSubtran)*I130 -> 582845.348 | P130: =IF(O130=0,0,ROUND(1+((LossCoeff_Trn*O130^2+ZeroLoadLoss_Trn)/O130),5)) -> 1.02175 | Q130: 595522.2343
A131: =MONTH(B131) -> 4 | B131: =+B130+1/24 -> 2022-04-06T09:00:00 | C131: =+Metered!E132 -> 282337.4929 | D131: 1.05675 | E131: =+C131*D131 -> 298360.1456 | F131: =SUMIF(OFFSET(Metered!$I$2,0,0,1,COUNTA(Metered!$I$2:$IV$2)),"Primary",OFFSET(Metered!$I132,0,0,1,COUNTA(Metered!$I132:$AA132))) -> 59150.9301 | G131: =+E131+F131 -> 357511.0757 | H131: 1.01725 | I131: =+G131*H131 -> 363678.1418 | J131: =SUMIF(OFFSET(Metered!$I$2,0,0,1,COUNTA(Metered!$I$2:$IV$2)),"Subtransmission",OFFSET(Metered!$I132,0,0,1,COUNTA(Metered!$I132:$AA132))) -> 179134.2057 | K131: 459412.9434 | L131: 1.012 | M131: =+K131*L131 -> 464925.8987 | N131: =SUMIF(OFFSET(Metered!$I$2,0,0,1,COUNTA(Metered!$I$2:$AA$2)),"Transmission",OFFSET(Metered!$I132,0,0,1,COUNTA(Metered!$I132:$AA132))) -> 29518.7351 | O131: 577844.0379 | P131: 1.02167 | Q131: =+P131*O131 -> 590365.9182
A132: 4 | B132: 2022-04-06T10:00:00 | C132: =+Metered!E133 -> 303994.0803 | D132: 1.05326 | E132: 320184.805 | F132: =SUMIF(OFFSET(Metered!$I$2,0,0,1,COUNTA(Metered!$I$2:$IV$2)),"Primary",OFFSET(Metered!$I133,0,0,1,COUNTA(Metered!$I133:$AA133))) -> 57976.704 | G132: 378161.509 | H132: 1.01693 | I132: 384563.7833 | J132: =SUMIF(OFFSET(Metered!$I$2,0,0,1,COUNTA(Metered!$I$2:$IV$2)),"Subtransmission",OFFSET(Metered!$I133,0,0,1,COUNTA(Metered!$I133:$AA133))) -> 180839.6073 | K132: 477214.4492 | L132: 1.01206 | M132: 482969.6554 | N132: =SUMIF(OFFSET(Metered!$I$2,0,0,1,COUNTA(Metered!$I$2:$AA$2)),"Transmission",OFFSET(Metered!$I133,0,0,1,COUNTA(Metered!$I133:$AA133))) -> 29615.0797 | O132: 600773.6766 | P132: 1.02208 | Q132: 614038.7594
A133: 4 | B133: 2022-04-06T11:00:00 | C133: =+Metered!E134 -> 279571.988 | D133: 1.05724 | E133: 295574.6886 | F133: =SUMIF(OFFSET(Metered!$I$2,0,0,1,COUNTA(Metered!$I$2:$IV$2)),"Primary",OFFSET(Metered!$I134,0,0,1,COUNTA(Metered!$I134:$AA134))) -> 59597.4393 | G133: 355172.1279 | H133: 1.01729 | I133: 361313.054 | J133: =SUMIF(OFFSET(Metered!$I$2,0,0,1,COUNTA(Metered!$I$2:$IV$2)),"Subtransmission",OFFSET(Metered!$I134,0,0,1,COUNTA(Metered!$I134:$AA134))) -> 179420.8035 | K133: 457876.8201 | L133: 1.012 | M133: 463371.3419 | N133: =SUMIF(OFFSET(Metered!$I$2,0,0,1,COUNTA(Metered!$I$2:$AA$2)),"Transmission",OFFSET(Metered!$I134,0,0,1,COUNTA(Metered!$I134:$AA134))) -> 29697.5456 | O133: 575925.9249 | P133: 1.02163 | Q133: 588383.2027
A134: 4 | B134: 2022-04-06T12:00:00 | C134: =+Metered!E135 -> 257758.3304 | D134: 1.06148 | E134: 273605.3126 | F134: =SUMIF(OFFSET(Metered!$I$2,0,0,1,COUNTA(Metered!$I$2:$IV$2)),"Primary",OFFSET(Metered!$I135,0,0,1,COUNTA(Metered!$I135:$AA135))) -> 60388.0297 | G134: 333993.3423 | H134: 1.01771 | I134: 339908.3644 | J134: =SUMIF(OFFSET(Metered!$I$2,0,0,1,COUNTA(Metered!$I$2:$IV$2)),"Subtransmission",OFFSET(Metered!$I135,0,0,1,COUNTA(Metered!$I135:$AA135))) -> 179119.1081 | K134: 441079.0016 | L134: 1.01196 | M134: 446354.3065 | N134: =SUMIF(OFFSET(Metered!$I$2,0,0,1,COUNTA(Metered!$I$2:$AA$2)),"Transmission",OFFSET(Metered!$I135,0,0,1,COUNTA(Metered!$I135:$AA135))) -> 29679.2899 | O134: 553982.0672 | P134: 1.02125 | Q134: 565754.1861
A135: 4 | B135: 2022-04-06T13:00:00 | C135: =+Metered!E136 -> 283621.5498 | D135: 1.05653 | E135: 299654.676 | F135: =SUMIF(OFFSET(Metered!$I$2,0,0,1,COUNTA(Metered!$I$2:$IV$2)),"Primary",OFFSET(Metered!$I136,0,0,1,COUNTA(Metered!$I136:$AA136))) -> 60504.8776 | G135: 360159.5536 | H135: 1.0172 | I135: 366354.298 | J135: =SUMIF(OFFSET(Metered!$I$2,0,0,1,COUNTA(Metered!$I$2:$IV$2)),"Subtransmission",OFFSET(Metered!$I136,0,0,1,COUNTA(Metered!$I136:$AA136))) -> 178023.5204 | K135: 460364.7127 | L135: 1.012 | M135: 465889.0893 | N135: =SUMIF(OFFSET(Metered!$I$2,0,0,1,COUNTA(Metered!$I$2:$AA$2)),"Transmission",OFFSET(Metered!$I136,0,0,1,COUNTA(Metered!$I136:$AA136))) -> 29772.8951 | O135: 579675.09 | P135: 1.0217 | Q135: 592254.0395
A136: 4 | B136: 2022-04-06T14:00:00 | C136: =+Metered!E137 -> 256010.474 | D136: 1.06186 | E136: 271847.2819 | F136: =SUMIF(OFFSET(Metered!$I$2,0,0,1,COUNTA(Metered!$I$2:$IV$2)),"Primary",OFFSET(Metered!$I137,0,0,1,COUNTA(Metered!$I137:$AA137))) -> 60280.419 | G136: 332127.7009 | H136: 1.01775 | I136: 338022.9676 | J136: =SUMIF(OFFSET(Metered!$I$2,0,0,1,COUNTA(Metered!$I$2:$IV$2)),"Subtransmission",OFFSET(Metered!$I137,0,0,1,COUNTA(Metered!$I137:$AA137))) -> 176870.0143 | K136: 437376.874 | L136: 1.01196 | M136: 442607.9015 | N136: =SUMIF(OFFSET(Metered!$I$2,0,0,1,COUNTA(Metered!$I$2:$AA$2)),"Transmission",OFFSET(Metered!$I137,0,0,1,COUNTA(Metered!$I137:$AA137))) -> 29871.205 | O136: 549995.2143 | P136: 1.02118 | Q136: 561644.113
A137: 4 | B137: 2022-04-06T15:00:00 | C137: =+Metered!E138 -> 259709.886 | D137: 1.06107 | E137: 275570.3687 | F137: =SUMIF(OFFSET(Metered!$I$2,0,0,1,COUNTA(Metered!$I$2:$IV$2)),"Primary",OFFSET(Metered!$I138,0,0,1,COUNTA(Metered!$I138:$AA138))) -> 60117.8788 | G137: 335688.2475 | H137: 1.01767 | I137: 341619.8589 | J137: =SUMIF(OFFSET(Metered!$I$2,0,0,1,COUNTA(Metered!$I$2:$IV$2)),"Subtransmission",OFFSET(Metered!$I138,0,0,1,COUNTA(Metered!$I138:$AA138))) -> 176664.4915 | K137: 439943.3962 | L137: 1.01196 | M137: 445205.1192 | N137: =SUMIF(OFFSET(Metered!$I$2,0,0,1,COUNTA(Metered!$I$2:$AA$2)),"Transmission",OFFSET(Metered!$I138,0,0,1,COUNTA(Metered!$I138:$AA138))) -> 29915.2121 | O137: 553461.2855 | P137: 1.02124 | Q137: 565216.8032
A138: 4 | B138: 2022-04-06T16:00:00 | C138: =+Metered!E139 -> 282670.3547 | D138: 1.05669 | E138: 298694.9371 | F138: =SUMIF(OFFSET(Metered!$I$2,0,0,1,COUNTA(Metered!$I$2:$IV$2)),"Primary",OFFSET(Metered!$I139,0,0,1,COUNTA(Metered!$I139:$AA139))) -> 55993.1973 | G138: 354688.1344 | H138: 1.0173 | I138: 360824.2392 | J138: =SUMIF(OFFSET(Metered!$I$2,0,0,1,COUNTA(Metered!$I$2:$IV$2)),"Subtransmission",OFFSET(Metered!$I139,0,0,1,COUNTA(Metered!$I139:$AA139))) -> 176012.6296 | K138: 454091.9274 | L138: 1.01199 | M138: 459536.4896 | N138: =SUMIF(OFFSET(Metered!$I$2,0,0,1,COUNTA(Metered!$I$2:$AA$2)),"Transmission",OFFSET(Metered!$I139,0,0,1,COUNTA(Metered!$I139:$AA139))) -> 29985.6863 | O138: 572267.1173 | P138: 1.02157 | Q138: 584610.919
A139: 4 | B139: 2022-04-06T17:00:00 | C139: =+Metered!E140 -> 276172.8217 | D139: 1.05785 | E139: 292149.4194 | F139: =SUMIF(OFFSET(Metered!$I$2,0,0,1,COUNTA(Metered!$I$2:$IV$2)),"Primary",OFFSET(Metered!$I140,0,0,1,COUNTA(Metered!$I140:$AA140))) -> 53784.4697 | G139: 345933.8891 | H139: 1.01746 | I139: 351973.8948 | J139: =SUMIF(OFFSET(Metered!$I$2,0,0,1,COUNTA(Metered!$I$2:$IV$2)),"Subtransmission",OFFSET(Metered!$I140,0,0,1,COUNTA(Metered!$I140:$AA140))) -> 172611.8946 | K139: 443870.4268 | L139: 1.01197 | M139: 449183.5558 | N139: =SUMIF(OFFSET(Metered!$I$2,0,0,1,COUNTA(Metered!$I$2:$AA$2)),"Transmission",OFFSET(Metered!$I140,0,0,1,COUNTA(Metered!$I140:$AA140))) -> 29978.3926 | O139: 559877.311 | P139: 1.02135 | Q139: 571830.6916
A140: 4 | B140: 2022-04-06T18:00:00 | C140: =+Metered!E141 -> 237507.2781 | D140: 1.06617 | E140: 253223.1346 | F140: =SUMIF(OFFSET(Metered!$I$2,0,0,1,COUNTA(Metered!$I$2:$IV$2)),"Primary",OFFSET(Metered!$I141,0,0,1,COUNTA(Metered!$I141:$AA141))) -> 51389.3387 | G140: 304612.4733 | H140: 1.01847 | I140: 310238.6657 | J140: =SUMIF(OFFSET(Metered!$I$2,0,0,1,COUNTA(Metered!$I$2:$IV$2)),"Subtransmission",OFFSET(Metered!$I141,0,0,1,COUNTA(Metered!$I141:$AA141))) -> 173717.3309 | K140: 412811.4408 | L140: 1.01194 | M140: 417740.4094 | N140: =SUMIF(OFFSET(Metered!$I$2,0,0,1,COUNTA(Metered!$I$2:$AA$2)),"Transmission",OFFSET(Metered!$I141,0,0,1,COUNTA(Metered!$I141:$AA141))) -> 29959.1991 | O140: 518844.1643 | P140: 1.02068 | Q140: 529573.8617
A141: 4 | B141: 2022-04-06T19:00:00 | C141: =+Metered!E142 -> 261182.065 | D141: 1.06077 | E141: 277054.0991 | F141: =SUMIF(OFFSET(Metered!$I$2,0,0,1,COUNTA(Metered!$I$2:$IV$2)),"Primary",OFFSET(Metered!$I142,0,0,1,COUNTA(Metered!$I142:$AA142))) -> 50210.0328 | G141: 327264.1319 | H141: 1.01787 | I141: 333112.342 | J141: =SUMIF(OFFSET(Metered!$I$2,0,0,1,COUNTA(Metered!$I$2:$IV$2)),"Subtransmission",OFFSET(Metered!$I142,0,0,1,COUNTA(Metered!$I142:$AA142))) -> 174707.4709 | K141: 431429.8196 | L141: 1.01195 | M141: 436585.4059 | N141: =SUMIF(OFFSET(Metered!$I$2,0,0,1,COUNTA(Metered!$I$2:$AA$2)),"Transmission",OFFSET(Metered!$I142,0,0,1,COUNTA(Metered!$I142:$AA142))) -> 29701.2408 | O141: 542676.64 | P141: 1.02106 | Q141: 554105.4101
A142: 4 | B142: 2022-04-06T20:00:00 | C142: =+Metered!E143 -> 285249.947 | D142: 1.05625 | E142: 301295.2565 | F142: =SUMIF(OFFSET(Metered!$I$2,0,0,1,COUNTA(Metered!$I$2:$IV$2)),"Primary",OFFSET(Metered!$I143,0,0,1,COUNTA(Metered!$I143:$AA143))) -> 49592.9629 | G142: 350888.2194 | H142: 1.01737 | I142: 356983.1477 | J142: =SUMIF(OFFSET(Metered!$I$2,0,0,1,COUNTA(Metered!$I$2:$IV$2)),"Subtransmission",OFFSET(Metered!$I143,0,0,1,COUNTA(Metered!$I143:$AA143))) -> 176206.5138 | K142: 451325.567 | L142: 1.01198 | M142: 456732.4473 | N142: =SUMIF(OFFSET(Metered!$I$2,0,0,1,COUNTA(Metered!$I$2:$AA$2)),"Transmission",OFFSET(Metered!$I143,0,0,1,COUNTA(Metered!$I143:$AA143))) -> 29697.4963 | O142: 568294.0381 | P142: 1.0215 | Q142: 580512.36
A143: 4 | B143: 2022-04-06T21:00:00 | C143: =+Metered!E144 -> 287570.5597 | D143: 1.05585 | E143: 303631.3754 | F143: =SUMIF(OFFSET(Metered!$I$2,0,0,1,COUNTA(Metered!$I$2:$IV$2)),"Primary",OFFSET(Metered!$I144,0,0,1,COUNTA(Metered!$I144:$AA144))) -> 47608.1258 | G143: 351239.5012 | H143: 1.01736 | I143: 357337.019 | J143: =SUMIF(OFFSET(Metered!$I$2,0,0,1,COUNTA(Metered!$I$2:$IV$2)),"Subtransmission",OFFSET(Metered!$I144,0,0,1,COUNTA(Metered!$I144:$AA144))) -> 175689.417 | K143: 451081.1909 | L143: 1.01198 | M143: 456485.1436 | N143: =SUMIF(OFFSET(Metered!$I$2,0,0,1,COUNTA(Metered!$I$2:$AA$2)),"Transmission",OFFSET(Metered!$I144,0,0,1,COUNTA(Metered!$I144:$AA144))) -> 29729.57 | O143: 568159.9586 | P143: 1.02149 | Q143: 580369.7162
A144: 4 | B144: 2022-04-06T22:00:00 | C144: =+Metered!E145 -> 240462.1941 | D144: 1.06543 | E144: 256195.6355 | F144: =SUMIF(OFFSET(Metered!$I$2,0,0,1,COUNTA(Metered!$I$2:$IV$2)),"Primary",OFFSET(Metered!$I145,0,0,1,COUNTA(Metered!$I145:$AA145))) -> 47912.905 | G144: 304108.5405 | H144: 1.01849 | I144: 309731.5074 | J144: =SUMIF(OFFSET(Metered!$I$2,0,0,1,COUNTA(Metered!$I$2:$IV$2)),"Subtransmission",OFFSET(Metered!$I145,0,0,1,COUNTA(Metered!$I145:$AA145))) -> 175797.2119 | K144: 414500.4661 | L144: 1.01194 | M144: 419449.6017 | N144: =SUMIF(OFFSET(Metered!$I$2,0,0,1,COUNTA(Metered!$I$2:$AA$2)),"Transmission",OFFSET(Metered!$I145,0,0,1,COUNTA(Metered!$I145:$AA145))) -> 29724.2506 | O144: 520202.1055 | P144: 1.0207 | Q144: 530970.2891
A145: 4 | B145: 2022-04-06T23:00:00 | C145: =+Metered!E146 -> 219102.4289 | D145: 1.07122 | E145: 234706.9038 | F145: =SUMIF(OFFSET(Metered!$I$2,0,0,1,COUNTA(Metered!$I$2:$IV$2)),"Primary",OFFSET(Metered!$I146,0,0,1,COUNTA(Metered!$I146:$AA146))) -> 44835.2582 | G145: 279542.162 | H145: 1.01932 | I145: 284942.9166 | J145: =SUMIF(OFFSET(Metered!$I$2,0,0,1,COUNTA(Metered!$I$2:$IV$2)),"Subtransmission",OFFSET(Metered!$I146,0,0,1,COUNTA(Metered!$I146:$AA146))) -> 175200.3337 | K145: 394799.5667 | L145: 1.01195 | M145: 399517.4215 | N145: =SUMIF(OFFSET(Metered!$I$2,0,0,1,COUNTA(Metered!$I$2:$AA$2)),"Transmission",OFFSET(Metered!$I146,0,0,1,COUNTA(Metered!$I146:$AA146))) -> 29693.3839 | O145: 494554.489 | P145: 1.02032 | Q145: 504603.8363
A146: 4 | B146: 2022-04-07 | C146: =+Metered!E147 -> 208852.4216 | D146: 1.07444 | E146: 224399.3959 | F146: =SUMIF(OFFSET(Metered!$I$2,0,0,1,COUNTA(Metered!$I$2:$IV$2)),"Primary",OFFSET(Metered!$I147,0,0,1,COUNTA(Metered!$I147:$AA147))) -> 41584.4644 | G146: 265983.8603 | H146: 1.01987 | I146: 271268.9596 | J146: =SUMIF(OFFSET(Metered!$I$2,0,0,1,COUNTA(Metered!$I$2:$IV$2)),"Subtransmission",OFFSET(Metered!$I147,0,0,1,COUNTA(Metered!$I147:$AA147))) -> 172323.2179 | K146: 381384.2332 | L146: 1.01198 | M146: 385953.2163 | N146: =SUMIF(OFFSET(Metered!$I$2,0,0,1,COUNTA(Metered!$I$2:$AA$2)),"Transmission",OFFSET(Metered!$I147,0,0,1,COUNTA(Metered!$I147:$AA147))) -> 29713.8181 | O146: 477874.9787 | P146: 1.02009 | Q146: 487475.487
A147: 4 | B147: 2022-04-07T01:00:00 | C147: =+Metered!E148 -> 203715.5715 | D147: 1.07618 | E147: 219234.6238 | F147: =SUMIF(OFFSET(Metered!$I$2,0,0,1,COUNTA(Metered!$I$2:$IV$2)),"Primary",OFFSET(Metered!$I148,0,0,1,COUNTA(Metered!$I148:$AA148))) -> 39118.71 | G147: 258353.3338 | H147: 1.02022 | I147: 263577.2382 | J147: =SUMIF(OFFSET(Metered!$I$2,0,0,1,COUNTA(Metered!$I$2:$IV$2)),"Subtransmission",OFFSET(Metered!$I148,0,0,1,COUNTA(Metered!$I148:$AA148))) -> 170454.106 | K147: 373587.281 | L147: 1.012 | M147: 378070.3283 | N147: =SUMIF(OFFSET(Metered!$I$2,0,0,1,COUNTA(Metered!$I$2:$AA$2)),"Transmission",OFFSET(Metered!$I148,0,0,1,COUNTA(Metered!$I148:$AA148))) -> 29794.1213 | O147: 468308.5129 | P147: 1.01996 | Q147: 477655.9508
A148: 4 | B148: 2022-04-07T02:00:00 | C148: =+Metered!E149 -> 206084.5947 | D148: 1.07537 | E148: 221617.1906 | F148: =SUMIF(OFFSET(Metered!$I$2,0,0,1,COUNTA(Metered!$I$2:$IV$2)),"Primary",OFFSET(Metered!$I149,0,0,1,COUNTA(Metered!$I149:$AA149))) -> 38920.9952 | G148: 260538.1858 | H148: 1.02012 | I148: 265780.2141 | J148: =SUMIF(OFFSET(Metered!$I$2,0,0,1,COUNTA(Metered!$I$2:$IV$2)),"Subtransmission",OFFSET(Metered!$I149,0,0,1,COUNTA(Metered!$I149:$AA149))) -> 168265.8825 | K148: 373096.8425 | L148: 1.01201 | M148: 377577.7356 | N148: =SUMIF(OFFSET(Metered!$I$2,0,0,1,COUNTA(Metered!$I$2:$AA$2)),"Transmission",OFFSET(Metered!$I149,0,0,1,COUNTA(Metered!$I149:$AA149))) -> 29747.3591 | O148: 468274.3487 | P148: 1.01996 | Q148: 477621.1047
A149: 4 | B149: 2022-04-07T03:00:00 | C149: =+Metered!E150 -> 211703.8872 | D149: 1.07351 | E149: 227266.2399 | F149: =SUMIF(OFFSET(Metered!$I$2,0,0,1,COUNTA(Metered!$I$2:$IV$2)),"Primary",OFFSET(Metered!$I150,0,0,1,COUNTA(Metered!$I150:$AA150))) -> 38326.4755 | G149: 265592.7154 | H149: 1.01989 | I149: 270875.3545 | J149: =SUMIF(OFFSET(Metered!$I$2,0,0,1,COUNTA(Metered!$I$2:$IV$2)),"Subtransmission",OFFSET(Metered!$I150,0,0,1,COUNTA(Metered!$I150:$AA150))) -> 169122.9814 | K149: 377880.654 | L149: 1.01199 | M149: 382411.443 | N149: =SUMIF(OFFSET(Metered!$I$2,0,0,1,COUNTA(Metered!$I$2:$AA$2)),"Transmission",OFFSET(Metered!$I150,0,0,1,COUNTA(Metered!$I150:$AA150))) -> 29752.0728 | O149: 474281.1978 | P149: 1.02004 | Q149: 483785.793
A150: 4 | B150: 2022-04-07T04:00:00 | C150: =+Metered!E151 -> 220362.8524 | D150: 1.07085 | E150: 235975.5605 | F150: =SUMIF(OFFSET(Metered!$I$2,0,0,1,COUNTA(Metered!$I$2:$IV$2)),"Primary",OFFSET(Metered!$I151,0,0,1,COUNTA(Metered!$I151:$AA151))) -> 39458.2675 | G150: 275433.828 | H150: 1.01948 | I150: 280799.279 | J150: =SUMIF(OFFSET(Metered!$I$2,0,0,1,COUNTA(Metered!$I$2:$IV$2)),"Subtransmission",OFFSET(Metered!$I151,0,0,1,COUNTA(Metered!$I151:$AA151))) -> 169849.4274 | K150: 386255.2501 | L150: 1.01197 | M150: 390878.7254 | N150: =SUMIF(OFFSET(Metered!$I$2,0,0,1,COUNTA(Metered!$I$2:$AA$2)),"Transmission",OFFSET(Metered!$I151,0,0,1,COUNTA(Metered!$I151:$AA151))) -> 29765.4174 | O150: 485037.5991 | P150: 1.02018 | Q150: 494825.6579
A151: 4 | B151: 2022-04-07T05:00:00 | C151: =+Metered!E152 -> 268312.5027 | D151: 1.05934 | E151: 284234.1667 | F151: =SUMIF(OFFSET(Metered!$I$2,0,0,1,COUNTA(Metered!$I$2:$IV$2)),"Primary",OFFSET(Metered!$I152,0,0,1,COUNTA(Metered!$I152:$AA152))) -> 41639.686 | G151: 325873.8527 | H151: 1.0179 | I151: 331706.9946 | J151: =SUMIF(OFFSET(Metered!$I$2,0,0,1,COUNTA(Metered!$I$2:$IV$2)),"Subtransmission",OFFSET(Metered!$I152,0,0,1,COUNTA(Metered!$I152:$AA152))) -> 170305.0167 | K151: 425944.2951 | L151: 1.01194 | M151: 431030.07 | N151: =SUMIF(OFFSET(Metered!$I$2,0,0,1,COUNTA(Metered!$I$2:$AA$2)),"Transmission",OFFSET(Metered!$I152,0,0,1,COUNTA(Metered!$I152:$AA152))) -> 29763.5418 | O151: 536861.328 | P151: 1.02097 | Q151: 548119.3101
A152: 4 | B152: 2022-04-07T06:00:00 | C152: =+Metered!E153 -> 287293.4132 | D152: 1.0559 | E152: 303353.115 | F152: =SUMIF(OFFSET(Metered!$I$2,0,0,1,COUNTA(Metered!$I$2:$IV$2)),"Primary",OFFSET(Metered!$I153,0,0,1,COUNTA(Metered!$I153:$AA153))) -> 48939.6501 | G152: 352292.7651 | H152: 1.01734 | I152: 358401.5216 | J152: =SUMIF(OFFSET(Metered!$I$2,0,0,1,COUNTA(Metered!$I$2:$IV$2)),"Subtransmission",OFFSET(Metered!$I153,0,0,1,COUNTA(Metered!$I153:$AA153))) -> 173065.3436 | K152: 449277.5063 | L152: 1.01198 | M152: 454659.8508 | N152: =SUMIF(OFFSET(Metered!$I$2,0,0,1,COUNTA(Metered!$I$2:$AA$2)),"Transmission",OFFSET(Metered!$I153,0,0,1,COUNTA(Metered!$I153:$AA153))) -> 29759.3733 | O152: 566608.5831 | P152: 1.02147 | Q152: 578773.6693
A153: 4 | B153: 2022-04-07T07:00:00 | C153: =+Metered!E154 -> 314473.296 | D153: 1.05175 | E153: 330747.2891 | F153: =SUMIF(OFFSET(Metered!$I$2,0,0,1,COUNTA(Metered!$I$2:$IV$2)),"Primary",OFFSET(Metered!$I154,0,0,1,COUNTA(Metered!$I154:$AA154))) -> 57793.1508 | G153: 388540.4399 | H153: 1.01679 | I153: 395064.0339 | J153: =SUMIF(OFFSET(Metered!$I$2,0,0,1,COUNTA(Metered!$I$2:$IV$2)),"Subtransmission",OFFSET(Metered!$I154,0,0,1,COUNTA(Metered!$I154:$AA154))) -> 184798.8023 | K153: 489265.9561 | L153: 1.0121 | M153: 495186.0742 | N153: =SUMIF(OFFSET(Metered!$I$2,0,0,1,COUNTA(Metered!$I$2:$AA$2)),"Transmission",OFFSET(Metered!$I154,0,0,1,COUNTA(Metered!$I154:$AA154))) -> 29750.4709 | O153: 615533.4251 | P153: 1.02236 | Q153: 629296.7525
A154: 4 | B154: 2022-04-07T08:00:00 | C154: =+Metered!E155 -> 301329.4346 | D154: 1.05366 | E154: 317498.7721 | F154: =SUMIF(OFFSET(Metered!$I$2,0,0,1,COUNTA(Metered!$I$2:$IV$2)),"Primary",OFFSET(Metered!$I155,0,0,1,COUNTA(Metered!$I155:$AA155))) -> 62417.2393 | G154: 379916.0114 | H154: 1.0169 | I154: 386336.592 | J154: =SUMIF(OFFSET(Metered!$I$2,0,0,1,COUNTA(Metered!$I$2:$IV$2)),"Subtransmission",OFFSET(Metered!$I155,0,0,1,COUNTA(Metered!$I155:$AA155))) -> 185391.2821 | K154: 483132.3885 | L154: 1.01208 | M154: 488968.6278 | N154: =SUMIF(OFFSET(Metered!$I$2,0,0,1,COUNTA(Metered!$I$2:$AA$2)),"Transmission",OFFSET(Metered!$I155,0,0,1,COUNTA(Metered!$I155:$AA155))) -> 29729.1011 | O154: 607293.2144 | P154: 1.0222 | Q154: 620775.1238
A155: 4 | B155: 2022-04-07T09:00:00 | C155: =+Metered!E156 -> 319940.6507 | D155: 1.05101 | E155: 336260.8233 | F155: =SUMIF(OFFSET(Metered!$I$2,0,0,1,COUNTA(Metered!$I$2:$IV$2)),"Primary",OFFSET(Metered!$I156,0,0,1,COUNTA(Metered!$I156:$AA156))) -> 62456.0138 | G155: 398716.8371 | H155: 1.01667 | I155: 405363.4467 | J155: =SUMIF(OFFSET(Metered!$I$2,0,0,1,COUNTA(Metered!$I$2:$IV$2)),"Subtransmission",OFFSET(Metered!$I156,0,0,1,COUNTA(Metered!$I156:$AA156))) -> 184641.0599 | K155: 497045.7445 | L155: 1.01214 | M155: 503079.8798 | N155: =SUMIF(OFFSET(Metered!$I$2,0,0,1,COUNTA(Metered!$I$2:$AA$2)),"Transmission",OFFSET(Metered!$I156,0,0,1,COUNTA(Metered!$I156:$AA156))) -> 26480.0602 | O155: 622518.7022 | P155: 1.02249 | Q155: 636519.1478
A156: 4 | B156: 2022-04-07T10:00:00 | C156: =+Metered!E157 -> 285324.972 | D156: 1.05623 | E156: 301368.7952 | F156: =SUMIF(OFFSET(Metered!$I$2,0,0,1,COUNTA(Metered!$I$2:$IV$2)),"Primary",OFFSET(Metered!$I157,0,0,1,COUNTA(Metered!$I157:$AA157))) -> 63470.4485 | G156: 364839.2437 | H156: 1.01712 | I156: 371085.2916 | J156: =SUMIF(OFFSET(Metered!$I$2,0,0,1,COUNTA(Metered!$I$2:$IV$2)),"Subtransmission",OFFSET(Metered!$I157,0,0,1,COUNTA(Metered!$I157:$AA157))) -> 183475.4227 | K156: 469462.6877 | L156: 1.01203 | M156: 475110.3238 | N156: =SUMIF(OFFSET(Metered!$I$2,0,0,1,COUNTA(Metered!$I$2:$AA$2)),"Transmission",OFFSET(Metered!$I157,0,0,1,COUNTA(Metered!$I157:$AA157))) -> 29888.4152 | O156: 590096.7656 | P156: 1.02189 | Q156: 603013.9838
A157: 4 | B157: 2022-04-07T11:00:00 | C157: =+Metered!E158 -> 271445.7991 | D157: 1.05873 | E157: 287387.8109 | F157: =SUMIF(OFFSET(Metered!$I$2,0,0,1,COUNTA(Metered!$I$2:$IV$2)),"Primary",OFFSET(Metered!$I158,0,0,1,COUNTA(Metered!$I158:$AA158))) -> 64052.7007 | G157: 351440.5116 | H157: 1.01736 | I157: 357541.5189 | J157: =SUMIF(OFFSET(Metered!$I$2,0,0,1,COUNTA(Metered!$I$2:$IV$2)),"Subtransmission",OFFSET(Metered!$I158,0,0,1,COUNTA(Metered!$I158:$AA158))) -> 186000.3637 | K157: 461549.7412 | L157: 1.01201 | M157: 467092.9536 | N157: =SUMIF(OFFSET(Metered!$I$2,0,0,1,COUNTA(Metered!$I$2:$AA$2)),"Transmission",OFFSET(Metered!$I158,0,0,1,COUNTA(Metered!$I158:$AA158))) -> 30145.7431 | O157: 579230.8381 | P157: 1.02169 | Q157: 591794.3549
A158: 4 | B158: 2022-04-07T12:00:00 | C158: =+Metered!E159 -> 259961.7829 | D158: 1.06102 | E158: 275824.6509 | F158: =SUMIF(OFFSET(Metered!$I$2,0,0,1,COUNTA(Metered!$I$2:$IV$2)),"Primary",OFFSET(Metered!$I159,0,0,1,COUNTA(Metered!$I159:$AA159))) -> 65115.7114 | G158: 340940.3623 | H158: 1.01756 | I158: 346927.275 | J158: =SUMIF(OFFSET(Metered!$I$2,0,0,1,COUNTA(Metered!$I$2:$IV$2)),"Subtransmission",OFFSET(Metered!$I159,0,0,1,COUNTA(Metered!$I159:$AA159))) -> 187779.4569 | K158: 455148.6703 | L158: 1.01199 | M158: 460605.9029 | N158: =SUMIF(OFFSET(Metered!$I$2,0,0,1,COUNTA(Metered!$I$2:$AA$2)),"Transmission",OFFSET(Metered!$I159,0,0,1,COUNTA(Metered!$I159:$AA159))) -> 29805.9605 | O158: 569969.925 | P158: 1.02153 | Q158: 582241.3775
A159: 4 | B159: 2022-04-07T13:00:00 | C159: =+Metered!E160 -> 252524.6026 | D159: 1.06262 | E159: 268337.6932 | F159: =SUMIF(OFFSET(Metered!$I$2,0,0,1,COUNTA(Metered!$I$2:$IV$2)),"Primary",OFFSET(Metered!$I160,0,0,1,COUNTA(Metered!$I160:$AA160))) -> 63818.2567 | G159: 332155.9499 | H159: 1.01775 | I159: 338051.718 | J159: =SUMIF(OFFSET(Metered!$I$2,0,0,1,COUNTA(Metered!$I$2:$IV$2)),"Subtransmission",OFFSET(Metered!$I160,0,0,1,COUNTA(Metered!$I160:$AA160))) -> 189467.7838 | K159: 449996.8009 | L159: 1.01198 | M159: 455387.7625 | N159: =SUMIF(OFFSET(Metered!$I$2,0,0,1,COUNTA(Metered!$I$2:$AA$2)),"Transmission",OFFSET(Metered!$I160,0,0,1,COUNTA(Metered!$I160:$AA160))) -> 29723.9387 | O159: 562634.4022 | P159: 1.0214 | Q159: 574674.7784
A160: 4 | B160: 2022-04-07T14:00:00 | C160: =+Metered!E161 -> 280166.3692 | D160: 1.05713 | E160: 296172.2739 | F160: =SUMIF(OFFSET(Metered!$I$2,0,0,1,COUNTA(Metered!$I$2:$IV$2)),"Primary",OFFSET(Metered!$I161,0,0,1,COUNTA(Metered!$I161:$AA161))) -> 61944.5358 | G160: 358116.8097 | H160: 1.01724 | I160: 364290.7435 | J160: =SUMIF(OFFSET(Metered!$I$2,0,0,1,COUNTA(Metered!$I$2:$IV$2)),"Subtransmission",OFFSET(Metered!$I161,0,0,1,COUNTA(Metered!$I161:$AA161))) -> 188395.5078 | K160: 469146.3642 | L160: 1.01203 | M160: 474790.1949 | N160: =SUMIF(OFFSET(Metered!$I$2,0,0,1,COUNTA(Metered!$I$2:$AA$2)),"Transmission",OFFSET(Metered!$I161,0,0,1,COUNTA(Metered!$I161:$AA161))) -> 29749.9952 | O160: 588080.0773 | P160: 1.02185 | Q160: 600929.627
A161: 4 | B161: 2022-04-07T15:00:00 | C161: =+Metered!E162 -> 269202.1951 | D161: 1.05916 | E161: 285128.197 | F161: =SUMIF(OFFSET(Metered!$I$2,0,0,1,COUNTA(Metered!$I$2:$IV$2)),"Primary",OFFSET(Metered!$I162,0,0,1,COUNTA(Metered!$I162:$AA162))) -> 58769.6524 | G161: 343897.8494 | H161: 1.0175 | I161: 349916.0617 | J161: =SUMIF(OFFSET(Metered!$I$2,0,0,1,COUNTA(Metered!$I$2:$IV$2)),"Subtransmission",OFFSET(Metered!$I162,0,0,1,COUNTA(Metered!$I162:$AA162))) -> 187623.0803 | K161: 457295.6859 | L161: 1.012 | M161: 462783.2341 | N161: =SUMIF(OFFSET(Metered!$I$2,0,0,1,COUNTA(Metered!$I$2:$AA$2)),"Transmission",OFFSET(Metered!$I162,0,0,1,COUNTA(Metered!$I162:$AA162))) -> 29776.3659 | O161: 572803.0562 | P161: 1.02158 | Q161: 585164.1461
A162: 4 | B162: 2022-04-07T16:00:00 | C162: =+Metered!E163 -> 252379.2285 | D162: 1.06265 | E162: 268190.7872 | F162: =SUMIF(OFFSET(Metered!$I$2,0,0,1,COUNTA(Metered!$I$2:$IV$2)),"Primary",OFFSET(Metered!$I163,0,0,1,COUNTA(Metered!$I163:$AA163))) -> 57077.6002 | G162: 325268.3874 | H162: 1.01791 | I162: 331093.9442 | J162: =SUMIF(OFFSET(Metered!$I$2,0,0,1,COUNTA(Metered!$I$2:$IV$2)),"Subtransmission",OFFSET(Metered!$I163,0,0,1,COUNTA(Metered!$I163:$AA163))) -> 184286.7152 | K162: 439453.5292 | L162: 1.01196 | M162: 444709.3934 | N162: =SUMIF(OFFSET(Metered!$I$2,0,0,1,COUNTA(Metered!$I$2:$AA$2)),"Transmission",OFFSET(Metered!$I163,0,0,1,COUNTA(Metered!$I163:$AA163))) -> 29780.6331 | O162: 550417.1567 | P162: 1.02119 | Q162: 562080.4963
A163: 4 | B163: 2022-04-07T17:00:00 | C163: =+Metered!E164 -> 247707.1249 | D163: 1.06371 | E163: 263488.5458 | F163: =SUMIF(OFFSET(Metered!$I$2,0,0,1,COUNTA(Metered!$I$2:$IV$2)),"Primary",OFFSET(Metered!$I164,0,0,1,COUNTA(Metered!$I164:$AA164))) -> 55716.2196 | G163: 319204.7654 | H163: 1.01807 | I163: 324972.7955 | J163: =SUMIF(OFFSET(Metered!$I$2,0,0,1,COUNTA(Metered!$I$2:$IV$2)),"Subtransmission",OFFSET(Metered!$I164,0,0,1,COUNTA(Metered!$I164:$AA164))) -> 182782.5178 | K163: 433231.8972 | L163: 1.01195 | M163: 438409.0184 | N163: =SUMIF(OFFSET(Metered!$I$2,0,0,1,COUNTA(Metered!$I$2:$AA$2)),"Transmission",OFFSET(Metered!$I164,0,0,1,COUNTA(Metered!$I164:$AA164))) -> 29821.2569 | O163: 542753.6914 | P163: 1.02106 | Q163: 554184.0841
A164: 4 | B164: 2022-04-07T18:00:00 | C164: =+Metered!E165 -> 248207.6875 | D164: 1.06359 | E164: 263991.2144 | F164: =SUMIF(OFFSET(Metered!$I$2,0,0,1,COUNTA(Metered!$I$2:$IV$2)),"Primary",OFFSET(Metered!$I165,0,0,1,COUNTA(Metered!$I165:$AA165))) -> 53556.7475 | G164: 317547.9619 | H164: 1.01811 | I164: 323298.7554 | J164: =SUMIF(OFFSET(Metered!$I$2,0,0,1,COUNTA(Metered!$I$2:$IV$2)),"Subtransmission",OFFSET(Metered!$I165,0,0,1,COUNTA(Metered!$I165:$AA165))) -> 182829.6453 | K164: 431988.8789 | L164: 1.01195 | M164: 437151.146 | N164: =SUMIF(OFFSET(Metered!$I$2,0,0,1,COUNTA(Metered!$I$2:$AA$2)),"Transmission",OFFSET(Metered!$I165,0,0,1,COUNTA(Metered!$I165:$AA165))) -> 29742.2954 | O164: 541032.9633 | P164: 1.02103 | Q164: 552410.8865
A165: 4 | B165: 2022-04-07T19:00:00 | C165: =+Metered!E166 -> 271067.0289 | D165: 1.05881 | E165: 287008.4808 | F165: =SUMIF(OFFSET(Metered!$I$2,0,0,1,COUNTA(Metered!$I$2:$IV$2)),"Primary",OFFSET(Metered!$I166,0,0,1,COUNTA(Metered!$I166:$AA166))) -> 51260.1291 | G165: 338268.6099 | H165: 1.01762 | I165: 344228.9028 | J165: =SUMIF(OFFSET(Metered!$I$2,0,0,1,COUNTA(Metered!$I$2:$IV$2)),"Subtransmission",OFFSET(Metered!$I166,0,0,1,COUNTA(Metered!$I166:$AA166))) -> 182569.6113 | K165: 447859.2487 | L165: 1.01197 | M165: 453220.1239 | N165: =SUMIF(OFFSET(Metered!$I$2,0,0,1,COUNTA(Metered!$I$2:$AA$2)),"Transmission",OFFSET(Metered!$I166,0,0,1,COUNTA(Metered!$I166:$AA166))) -> 29773.2944 | O165: 561932.6837 | P165: 1.02139 | Q165: 573952.4238
A166: 4 | B166: 2022-04-07T20:00:00 | C166: =+Metered!E167 -> 336680.1478 | D166: 1.0489 | E166: 353143.8071 | F166: =SUMIF(OFFSET(Metered!$I$2,0,0,1,COUNTA(Metered!$I$2:$IV$2)),"Primary",OFFSET(Metered!$I167,0,0,1,COUNTA(Metered!$I167:$AA167))) -> 50283.0801 | G166: 403426.8872 | H166: 1.01662 | I166: 410131.842 | J166: =SUMIF(OFFSET(Metered!$I$2,0,0,1,COUNTA(Metered!$I$2:$IV$2)),"Subtransmission",OFFSET(Metered!$I167,0,0,1,COUNTA(Metered!$I167:$AA167))) -> 183040.4356 | K166: 499120.0174 | L166: 1.01215 | M166: 505184.3256 | N166: =SUMIF(OFFSET(Metered!$I$2,0,0,1,COUNTA(Metered!$I$2:$AA$2)),"Transmission",OFFSET(Metered!$I167,0,0,1,COUNTA(Metered!$I167:$AA167))) -> 29785.7618 | O166: 629022.3476 | P166: 1.02262 | Q166: 643250.8331
A167: 4 | B167: 2022-04-07T21:00:00 | C167: =+Metered!E168 -> 333703.6399 | D167: 1.04926 | E167: 350141.8812 | F167: =SUMIF(OFFSET(Metered!$I$2,0,0,1,COUNTA(Metered!$I$2:$IV$2)),"Primary",OFFSET(Metered!$I168,0,0,1,COUNTA(Metered!$I168:$AA168))) -> 48622.9127 | G167: 398764.7939 | H167: 1.01667 | I167: 405412.203 | J167: =SUMIF(OFFSET(Metered!$I$2,0,0,1,COUNTA(Metered!$I$2:$IV$2)),"Subtransmission",OFFSET(Metered!$I168,0,0,1,COUNTA(Metered!$I168:$AA168))) -> 183583.5595 | K167: 496025.8194 | L167: 1.01213 | M167: 502042.6126 | N167: =SUMIF(OFFSET(Metered!$I$2,0,0,1,COUNTA(Metered!$I$2:$AA$2)),"Transmission",OFFSET(Metered!$I168,0,0,1,COUNTA(Metered!$I168:$AA168))) -> 29822.3944 | O167: 624834.9501 | P167: 1.02254 | Q167: 638918.7298
A168: 4 | B168: 2022-04-07T22:00:00 | C168: =+Metered!E169 -> 311280.9776 | D168: 1.0522 | E168: 327529.8446 | F168: =SUMIF(OFFSET(Metered!$I$2,0,0,1,COUNTA(Metered!$I$2:$IV$2)),"Primary",OFFSET(Metered!$I169,0,0,1,COUNTA(Metered!$I169:$AA169))) -> 48892.615 | G168: 376422.4596 | H168: 1.01695 | I168: 382802.8203 | J168: =SUMIF(OFFSET(Metered!$I$2,0,0,1,COUNTA(Metered!$I$2:$IV$2)),"Subtransmission",OFFSET(Metered!$I169,0,0,1,COUNTA(Metered!$I169:$AA169))) -> 184182.0046 | K168: 479199.711 | L168: 1.01206 | M168: 484978.8596 | N168: =SUMIF(OFFSET(Metered!$I$2,0,0,1,COUNTA(Metered!$I$2:$AA$2)),"Transmission",OFFSET(Metered!$I169,0,0,1,COUNTA(Metered!$I169:$AA169))) -> 29854.8899 | O168: 602618.8633 | P168: 1.02212 | Q168: 615948.7926
A169: 4 | B169: 2022-04-07T23:00:00 | C169: =+Metered!E170 -> 282328.9376 | D169: 1.05675 | E169: 298351.1048 | F169: =SUMIF(OFFSET(Metered!$I$2,0,0,1,COUNTA(Metered!$I$2:$IV$2)),"Primary",OFFSET(Metered!$I170,0,0,1,COUNTA(Metered!$I170:$AA170))) -> 45803.0259 | G169: 344154.1307 | H169: 1.0175 | I169: 350176.828 | J169: =SUMIF(OFFSET(Metered!$I$2,0,0,1,COUNTA(Metered!$I$2:$IV$2)),"Subtransmission",OFFSET(Metered!$I170,0,0,1,COUNTA(Metered!$I170:$AA170))) -> 183186.0221 | K169: 453059.5945 | L169: 1.01199 | M169: 458491.7791 | N169: =SUMIF(OFFSET(Metered!$I$2,0,0,1,COUNTA(Metered!$I$2:$AA$2)),"Transmission",OFFSET(Metered!$I170,0,0,1,COUNTA(Metered!$I170:$AA170))) -> 29832.6407 | O169: 568627.6754 | P169: 1.0215 | Q169: 580853.1704
A170: 4 | B170: 2022-04-08 | C170: =+Metered!E171 -> 295439.2705 | D170: 1.05457 | E170: 311561.3915 | F170: =SUMIF(OFFSET(Metered!$I$2,0,0,1,COUNTA(Metered!$I$2:$IV$2)),"Primary",OFFSET(Metered!$I171,0,0,1,COUNTA(Metered!$I171:$AA171))) -> 40962.5481 | G170: 352523.9396 | H170: 1.01734 | I170: 358636.7047 | J170: =SUMIF(OFFSET(Metered!$I$2,0,0,1,COUNTA(Metered!$I$2:$IV$2)),"Subtransmission",OFFSET(Metered!$I171,0,0,1,COUNTA(Metered!$I171:$AA171))) -> 183769.2726 | K170: 460162.6857 | L170: 1.012 | M170: 465684.6379 | N170: =SUMIF(OFFSET(Metered!$I$2,0,0,1,COUNTA(Metered!$I$2:$AA$2)),"Transmission",OFFSET(Metered!$I171,0,0,1,COUNTA(Metered!$I171:$AA171))) -> 29899.0608 | O170: 577826.9903 | P170: 1.02166 | Q170: 590342.7229
A171: 4 | B171: 2022-04-08T01:00:00 | C171: =+Metered!E172 -> 308042.6443 | D171: 1.05266 | E171: 324264.17 | F171: =SUMIF(OFFSET(Metered!$I$2,0,0,1,COUNTA(Metered!$I$2:$IV$2)),"Primary",OFFSET(Metered!$I172,0,0,1,COUNTA(Metered!$I172:$AA172))) -> 38756.097 | G171: 363020.267 | H171: 1.01715 | I171: 369246.0646 | J171: =SUMIF(OFFSET(Metered!$I$2,0,0,1,COUNTA(Metered!$I$2:$IV$2)),"Subtransmission",OFFSET(Metered!$I172,0,0,1,COUNTA(Metered!$I172:$AA172))) -> 180094.4035 | K171: 464664.2167 | L171: 1.01202 | M171: 470249.4806 | N171: =SUMIF(OFFSET(Metered!$I$2,0,0,1,COUNTA(Metered!$I$2:$AA$2)),"Transmission",OFFSET(Metered!$I172,0,0,1,COUNTA(Metered!$I172:$AA172))) -> 29917.6598 | O171: 584843.3918 | P171: 1.02179 | Q171: 597587.1293
A172: 4 | B172: 2022-04-08T02:00:00 | C172: =+Metered!E173 -> 300863.6311 | D172: 1.05373 | E172: 317029.034 | F172: =SUMIF(OFFSET(Metered!$I$2,0,0,1,COUNTA(Metered!$I$2:$IV$2)),"Primary",OFFSET(Metered!$I173,0,0,1,COUNTA(Metered!$I173:$AA173))) -> 37880.8114 | G172: 354909.8454 | H172: 1.01729 | I172: 361046.2366 | J172: =SUMIF(OFFSET(Metered!$I$2,0,0,1,COUNTA(Metered!$I$2:$IV$2)),"Subtransmission",OFFSET(Metered!$I173,0,0,1,COUNTA(Metered!$I173:$AA173))) -> 178325.8344 | K172: 456576.2207 | L172: 1.01199 | M172: 462050.5696 | N172: =SUMIF(OFFSET(Metered!$I$2,0,0,1,COUNTA(Metered!$I$2:$AA$2)),"Transmission",OFFSET(Metered!$I173,0,0,1,COUNTA(Metered!$I173:$AA173))) -> 29889.3126 | O172: 574735.7325 | P172: 1.02161 | Q172: 587155.7717
A173: 4 | B173: 2022-04-08T03:00:00 | C173: =+Metered!E174 -> 302668.3236 | D173: 1.05345 | E173: 318845.9455 | F173: =SUMIF(OFFSET(Metered!$I$2,0,0,1,COUNTA(Metered!$I$2:$IV$2)),"Primary",OFFSET(Metered!$I174,0,0,1,COUNTA(Metered!$I174:$AA174))) -> 38175.6412 | G173: 357021.5867 | H173: 1.01726 | I173: 363183.7793 | J173: =SUMIF(OFFSET(Metered!$I$2,0,0,1,COUNTA(Metered!$I$2:$IV$2)),"Subtransmission",OFFSET(Metered!$I174,0,0,1,COUNTA(Metered!$I174:$AA174))) -> 177707.4726 | K173: 457605.216 | L173: 1.012 | M173: 463096.4786 | N173: =SUMIF(OFFSET(Metered!$I$2,0,0,1,COUNTA(Metered!$I$2:$AA$2)),"Transmission",OFFSET(Metered!$I174,0,0,1,COUNTA(Metered!$I174:$AA174))) -> 29915.7236 | O173: 576298.2381 | P173: 1.02164 | Q173: 588769.3319
A174: 4 | B174: 2022-04-08T04:00:00 | C174: =+Metered!E175 -> 299254.343 | D174: 1.05397 | E174: 315405.0999 | F174: =SUMIF(OFFSET(Metered!$I$2,0,0,1,COUNTA(Metered!$I$2:$IV$2)),"Primary",OFFSET(Metered!$I175,0,0,1,COUNTA(Metered!$I175:$AA175))) -> 39380.9173 | G174: 354786.0172 | H174: 1.0173 | I174: 360923.8153 | J174: =SUMIF(OFFSET(Metered!$I$2,0,0,1,COUNTA(Metered!$I$2:$IV$2)),"Subtransmission",OFFSET(Metered!$I175,0,0,1,COUNTA(Metered!$I175:$AA175))) -> 176605.2576 | K174: 454761.2965 | L174: 1.01199 | M174: 460213.8845 | N174: =SUMIF(OFFSET(Metered!$I$2,0,0,1,COUNTA(Metered!$I$2:$AA$2)),"Transmission",OFFSET(Metered!$I175,0,0,1,COUNTA(Metered!$I175:$AA175))) -> 29910.0811 | O174: 572891.742 | P174: 1.02158 | Q174: 585254.7458
A175: 4 | B175: 2022-04-08T05:00:00 | C175: =+Metered!E176 -> 351880.5123 | D175: 1.04718 | E175: 368482.2349 | F175: =SUMIF(OFFSET(Metered!$I$2,0,0,1,COUNTA(Metered!$I$2:$IV$2)),"Primary",OFFSET(Metered!$I176,0,0,1,COUNTA(Metered!$I176:$AA176))) -> 41389.7442 | G175: 409871.9791 | H175: 1.01656 | I175: 416659.4591 | J175: =SUMIF(OFFSET(Metered!$I$2,0,0,1,COUNTA(Metered!$I$2:$IV$2)),"Subtransmission",OFFSET(Metered!$I176,0,0,1,COUNTA(Metered!$I176:$AA176))) -> 175241.7162 | K175: 496351.9888 | L175: 1.01213 | M175: 502372.7384 | N175: =SUMIF(OFFSET(Metered!$I$2,0,0,1,COUNTA(Metered!$I$2:$AA$2)),"Transmission",OFFSET(Metered!$I176,0,0,1,COUNTA(Metered!$I176:$AA176))) -> 29867.4986 | O175: 627789.4235 | P175: 1.0226 | Q175: 641977.4645
A176: 4 | B176: 2022-04-08T06:00:00 | C176: =+Metered!E177 -> 369173.3147 | D176: 1.04542 | E176: 385941.1667 | F176: =SUMIF(OFFSET(Metered!$I$2,0,0,1,COUNTA(Metered!$I$2:$IV$2)),"Primary",OFFSET(Metered!$I177,0,0,1,COUNTA(Metered!$I177:$AA177))) -> 48500.4042 | G176: 434441.5709 | H176: 1.01636 | I176: 441549.035 | J176: =SUMIF(OFFSET(Metered!$I$2,0,0,1,COUNTA(Metered!$I$2:$IV$2)),"Subtransmission",OFFSET(Metered!$I177,0,0,1,COUNTA(Metered!$I177:$AA177))) -> 177434.4745 | K176: 517726.5953 | L176: 1.01223 | M176: 524058.3915 | N176: =SUMIF(OFFSET(Metered!$I$2,0,0,1,COUNTA(Metered!$I$2:$AA$2)),"Transmission",OFFSET(Metered!$I177,0,0,1,COUNTA(Metered!$I177:$AA177))) -> 29816.0542 | O176: 655131.3599 | P176: 1.02313 | Q176: 670284.5483
A177: 4 | B177: 2022-04-08T07:00:00 | C177: =+Metered!E178 -> 376557.4783 | D177: 1.04472 | E177: 393397.1288 | F177: =SUMIF(OFFSET(Metered!$I$2,0,0,1,COUNTA(Metered!$I$2:$IV$2)),"Primary",OFFSET(Metered!$I178,0,0,1,COUNTA(Metered!$I178:$AA178))) -> 56970.2317 | G177: 450367.3605 | H177: 1.01626 | I177: 457690.3337 | J177: =SUMIF(OFFSET(Metered!$I$2,0,0,1,COUNTA(Metered!$I$2:$IV$2)),"Subtransmission",OFFSET(Metered!$I178,0,0,1,COUNTA(Metered!$I178:$AA178))) -> 186595.2533 | K177: 539327.1177 | L177: 1.01235 | M177: 545987.8076 | N177: =SUMIF(OFFSET(Metered!$I$2,0,0,1,COUNTA(Metered!$I$2:$AA$2)),"Transmission",OFFSET(Metered!$I178,0,0,1,COUNTA(Metered!$I178:$AA178))) -> 29873.6392 | O177: 680819.9161 | P177: 1.02365 | Q177: 696921.3072
A178: 4 | B178: 2022-04-08T08:00:00 | C178: =+Metered!E179 -> 414843.9265 | D178: 1.04155 | E178: 432080.6916 | F178: =SUMIF(OFFSET(Metered!$I$2,0,0,1,COUNTA(Metered!$I$2:$IV$2)),"Primary",OFFSET(Metered!$I179,0,0,1,COUNTA(Metered!$I179:$AA179))) -> 61397.4083 | G178: 493478.0999 | H178: 1.01611 | I178: 501428.0321 | J178: =SUMIF(OFFSET(Metered!$I$2,0,0,1,COUNTA(Metered!$I$2:$IV$2)),"Subtransmission",OFFSET(Metered!$I179,0,0,1,COUNTA(Metered!$I179:$AA179))) -> 188787.2012 | K178: 575226.7469 | L178: 1.01258 | M178: 582463.0994 | N178: =SUMIF(OFFSET(Metered!$I$2,0,0,1,COUNTA(Metered!$I$2:$AA$2)),"Transmission",OFFSET(Metered!$I179,0,0,1,COUNTA(Metered!$I179:$AA179))) -> 29750.8186 | O178: 727202.4044 | P178: 1.02463 | Q178: 745113.3996
A179: 4 | B179: 2022-04-08T09:00:00 | C179: =+Metered!E180 -> 385075.1854 | D179: 1.04395 | E179: 401999.2398 | F179: =SUMIF(OFFSET(Metered!$I$2,0,0,1,COUNTA(Metered!$I$2:$IV$2)),"Primary",OFFSET(Metered!$I180,0,0,1,COUNTA(Metered!$I180:$AA180))) -> 64015.2527 | G179: 466014.4925 | H179: 1.01619 | I179: 473559.2672 | J179: =SUMIF(OFFSET(Metered!$I$2,0,0,1,COUNTA(Metered!$I$2:$IV$2)),"Subtransmission",OFFSET(Metered!$I180,0,0,1,COUNTA(Metered!$I180:$AA180))) -> 188457.3806 | K179: 553419.0826 | L179: 1.01244 | M179: 560303.616 | N179: =SUMIF(OFFSET(Metered!$I$2,0,0,1,COUNTA(Metered!$I$2:$AA$2)),"Transmission",OFFSET(Metered!$I180,0,0,1,COUNTA(Metered!$I180:$AA180))) -> 29655.1786 | O179: 698556.3597 | P179: 1.02402 | Q179: 715335.6835
A180: 4 | B180: 2022-04-08T10:00:00 | C180: =+Metered!E181 -> 390223.9749 | D180: 1.04351 | E180: 407202.62 | F180: =SUMIF(OFFSET(Metered!$I$2,0,0,1,COUNTA(Metered!$I$2:$IV$2)),"Primary",OFFSET(Metered!$I181,0,0,1,COUNTA(Metered!$I181:$AA181))) -> 64006.4337 | G180: 471209.0537 | H180: 1.01617 | I180: 478828.5041 | J180: =SUMIF(OFFSET(Metered!$I$2,0,0,1,COUNTA(Metered!$I$2:$IV$2)),"Subtransmission",OFFSET(Metered!$I181,0,0,1,COUNTA(Metered!$I181:$AA181))) -> 189947.278 | K180: 558969.865 | L180: 1.01248 | M180: 565945.8089 | N180: =SUMIF(OFFSET(Metered!$I$2,0,0,1,COUNTA(Metered!$I$2:$AA$2)),"Transmission",OFFSET(Metered!$I181,0,0,1,COUNTA(Metered!$I181:$AA181))) -> 29653.4286 | O180: 705405.1547 | P180: 1.02417 | Q180: 722454.7972
A181: 4 | B181: 2022-04-08T11:00:00 | C181: =+Metered!E182 -> 359353.3705 | D181: 1.0464 | E181: 376027.3668 | F181: =SUMIF(OFFSET(Metered!$I$2,0,0,1,COUNTA(Metered!$I$2:$IV$2)),"Primary",OFFSET(Metered!$I182,0,0,1,COUNTA(Metered!$I182:$AA182))) -> 62761.6866 | G181: 438789.0534 | H181: 1.01633 | I181: 445954.4787 | J181: =SUMIF(OFFSET(Metered!$I$2,0,0,1,COUNTA(Metered!$I$2:$IV$2)),"Subtransmission",OFFSET(Metered!$I182,0,0,1,COUNTA(Metered!$I182:$AA182))) -> 189415.1362 | K181: 533102.4355 | L181: 1.01232 | M181: 539670.2575 | N181: =SUMIF(OFFSET(Metered!$I$2,0,0,1,COUNTA(Metered!$I$2:$AA$2)),"Transmission",OFFSET(Metered!$I182,0,0,1,COUNTA(Metered!$I182:$AA182))) -> 29646.7563 | O181: 671584.1932 | P181: 1.02347 | Q181: 687346.2742
A182: 4 | B182: 2022-04-08T12:00:00 | C182: =+Metered!E183 -> 346964.648 | D182: 1.04772 | E182: 363521.801 | F182: =SUMIF(OFFSET(Metered!$I$2,0,0,1,COUNTA(Metered!$I$2:$IV$2)),"Primary",OFFSET(Metered!$I183,0,0,1,COUNTA(Metered!$I183:$AA183))) -> 60626.5935 | G182: 424148.3945 | H182: 1.01643 | I182: 431117.1527 | J182: =SUMIF(OFFSET(Metered!$I$2,0,0,1,COUNTA(Metered!$I$2:$IV$2)),"Subtransmission",OFFSET(Metered!$I183,0,0,1,COUNTA(Metered!$I183:$AA183))) -> 187009.9898 | K182: 519262.4885 | L182: 1.01224 | M182: 525618.2614 | N182: =SUMIF(OFFSET(Metered!$I$2,0,0,1,COUNTA(Metered!$I$2:$AA$2)),"Transmission",OFFSET(Metered!$I183,0,0,1,COUNTA(Metered!$I183:$AA183))) -> 29753.2192 | O182: 654236.1345 | P182: 1.02312 | Q182: 669362.0739
A183: 4 | B183: 2022-04-08T13:00:00 | C183: =+Metered!E184 -> 348831.7734 | D183: 1.04751 | E183: 365404.7709 | F183: =SUMIF(OFFSET(Metered!$I$2,0,0,1,COUNTA(Metered!$I$2:$IV$2)),"Primary",OFFSET(Metered!$I184,0,0,1,COUNTA(Metered!$I184:$AA184))) -> 59379.8321 | G183: 424784.603 | H183: 1.01643 | I183: 431763.8141 | J183: =SUMIF(OFFSET(Metered!$I$2,0,0,1,COUNTA(Metered!$I$2:$IV$2)),"Subtransmission",OFFSET(Metered!$I184,0,0,1,COUNTA(Metered!$I184:$AA184))) -> 186271.451 | K183: 519022.3174 | L183: 1.01224 | M183: 525375.1506 | N183: =SUMIF(OFFSET(Metered!$I$2,0,0,1,COUNTA(Metered!$I$2:$AA$2)),"Transmission",OFFSET(Metered!$I184,0,0,1,COUNTA(Metered!$I184:$AA184))) -> 28886.4392 | O183: 653274.5374 | P183: 1.0231 | Q183: 668365.1792
A184: 4 | B184: 2022-04-08T14:00:00 | C184: =+Metered!E185 -> 357479.6749 | D184: 1.04659 | E184: 374134.6529 | F184: =SUMIF(OFFSET(Metered!$I$2,0,0,1,COUNTA(Metered!$I$2:$IV$2)),"Primary",OFFSET(Metered!$I185,0,0,1,COUNTA(Metered!$I185:$AA185))) -> 57691.2551 | G184: 431825.908 | H184: 1.01637 | I184: 438894.8982 | J184: =SUMIF(OFFSET(Metered!$I$2,0,0,1,COUNTA(Metered!$I$2:$IV$2)),"Subtransmission",OFFSET(Metered!$I185,0,0,1,COUNTA(Metered!$I185:$AA185))) -> 185532.5803 | K184: 523779.2163 | L184: 1.01227 | M184: 530205.9873 | N184: =SUMIF(OFFSET(Metered!$I$2,0,0,1,COUNTA(Metered!$I$2:$AA$2)),"Transmission",OFFSET(Metered!$I185,0,0,1,COUNTA(Metered!$I185:$AA185))) -> 30204.6002 | O184: 661058.8496 | P184: 1.02325 | Q184: 676428.4679
A185: 4 | B185: 2022-04-08T15:00:00 | C185: =+Metered!E186 -> 349909.9075 | D185: 1.0474 | E185: 366495.6371 | F185: =SUMIF(OFFSET(Metered!$I$2,0,0,1,COUNTA(Metered!$I$2:$IV$2)),"Primary",OFFSET(Metered!$I186,0,0,1,COUNTA(Metered!$I186:$AA186))) -> 56178.4745 | G185: 422674.1116 | H185: 1.01644 | I185: 429622.874 | J185: =SUMIF(OFFSET(Metered!$I$2,0,0,1,COUNTA(Metered!$I$2:$IV$2)),"Subtransmission",OFFSET(Metered!$I186,0,0,1,COUNTA(Metered!$I186:$AA186))) -> 183994.0206 | K185: 515094.9117 | L185: 1.01222 | M185: 521389.3715 | N185: =SUMIF(OFFSET(Metered!$I$2,0,0,1,COUNTA(Metered!$I$2:$AA$2)),"Transmission",OFFSET(Metered!$I186,0,0,1,COUNTA(Metered!$I186:$AA186))) -> 30094.3524 | O185: 650005.7069 | P185: 1.02303 | Q185: 664975.3383
A186: 4 | B186: 2022-04-08T16:00:00 | C186: =+Metered!E187 -> 354857.9136 | D186: 1.04686 | E186: 371486.5554 | F186: =SUMIF(OFFSET(Metered!$I$2,0,0,1,COUNTA(Metered!$I$2:$IV$2)),"Primary",OFFSET(Metered!$I187,0,0,1,COUNTA(Metered!$I187:$AA187))) -> 55901.8607 | G186: 427388.4161 | H186: 1.01641 | I186: 434401.86 | J186: =SUMIF(OFFSET(Metered!$I$2,0,0,1,COUNTA(Metered!$I$2:$IV$2)),"Subtransmission",OFFSET(Metered!$I187,0,0,1,COUNTA(Metered!$I187:$AA187))) -> 181011.5317 | K186: 515795.4821 | L186: 1.01222 | M186: 522098.5029 | N186: =SUMIF(OFFSET(Metered!$I$2,0,0,1,COUNTA(Metered!$I$2:$AA$2)),"Transmission",OFFSET(Metered!$I187,0,0,1,COUNTA(Metered!$I187:$AA187))) -> 30213.9289 | O186: 651930.3414 | P186: 1.02307 | Q186: 666970.3744
A187: 4 | B187: 2022-04-08T17:00:00 | C187: =+Metered!E188 -> 392808.927 | D187: 1.04329 | E187: 409813.6254 | F187: =SUMIF(OFFSET(Metered!$I$2,0,0,1,COUNTA(Metered!$I$2:$IV$2)),"Primary",OFFSET(Metered!$I188,0,0,1,COUNTA(Metered!$I188:$AA188))) -> 54764.7 | G187: 464578.3254 | H187: 1.01619 | I187: 472099.8485 | J187: =SUMIF(OFFSET(Metered!$I$2,0,0,1,COUNTA(Metered!$I$2:$IV$2)),"Subtransmission",OFFSET(Metered!$I188,0,0,1,COUNTA(Metered!$I188:$AA188))) -> 181425.3899 | K187: 545262.3501 | L187: 1.01239 | M187: 552018.1507 | N187: =SUMIF(OFFSET(Metered!$I$2,0,0,1,COUNTA(Metered!$I$2:$AA$2)),"Transmission",OFFSET(Metered!$I188,0,0,1,COUNTA(Metered!$I188:$AA188))) -> 30257.5681 | O187: 690538.6071 | P187: 1.02386 | Q187: 707014.8582
A188: 4 | B188: 2022-04-08T18:00:00 | C188: =+Metered!E189 -> 358179.0267 | D188: 1.04652 | E188: 374841.515 | F188: =SUMIF(OFFSET(Metered!$I$2,0,0,1,COUNTA(Metered!$I$2:$IV$2)),"Primary",OFFSET(Metered!$I189,0,0,1,COUNTA(Metered!$I189:$AA189))) -> 53407.7222 | G188: 428249.2372 | H188: 1.0164 | I188: 435272.5247 | J188: =SUMIF(OFFSET(Metered!$I$2,0,0,1,COUNTA(Metered!$I$2:$IV$2)),"Subtransmission",OFFSET(Metered!$I189,0,0,1,COUNTA(Metered!$I189:$AA189))) -> 183576.6515 | K188: 519031.604 | L188: 1.01224 | M188: 525384.5508 | N188: =SUMIF(OFFSET(Metered!$I$2,0,0,1,COUNTA(Metered!$I$2:$AA$2)),"Transmission",OFFSET(Metered!$I189,0,0,1,COUNTA(Metered!$I189:$AA189))) -> 30160.2139 | O188: 655362.3369 | P188: 1.02314 | Q188: 670527.4214
A189: 4 | B189: 2022-04-08T19:00:00 | C189: =+Metered!E190 -> 399363.3563 | D189: 1.04275 | E189: 416436.1398 | F189: =SUMIF(OFFSET(Metered!$I$2,0,0,1,COUNTA(Metered!$I$2:$IV$2)),"Primary",OFFSET(Metered!$I190,0,0,1,COUNTA(Metered!$I190:$AA190))) -> 52681.8212 | G189: 469117.961 | H189: 1.01618 | I189: 476708.2896 | J189: =SUMIF(OFFSET(Metered!$I$2,0,0,1,COUNTA(Metered!$I$2:$IV$2)),"Subtransmission",OFFSET(Metered!$I190,0,0,1,COUNTA(Metered!$I190:$AA190))) -> 183300.3929 | K189: 550688.9772 | L189: 1.01242 | M189: 557528.5343 | N189: =SUMIF(OFFSET(Metered!$I$2,0,0,1,COUNTA(Metered!$I$2:$AA$2)),"Transmission",OFFSET(Metered!$I190,0,0,1,COUNTA(Metered!$I190:$AA190))) -> 30171.8063 | O189: 697020.0459 | P189: 1.02399 | Q189: 713741.5568
A190: 4 | B190: 2022-04-08T20:00:00 | C190: =+Metered!E191 -> 386204.6026 | D190: 1.04385 | E190: 403139.6744 | F190: =SUMIF(OFFSET(Metered!$I$2,0,0,1,COUNTA(Metered!$I$2:$IV$2)),"Primary",OFFSET(Metered!$I191,0,0,1,COUNTA(Metered!$I191:$AA191))) -> 50830.6961 | G190: 453970.3705 | H190: 1.01624 | I190: 461342.8494 | J190: =SUMIF(OFFSET(Metered!$I$2,0,0,1,COUNTA(Metered!$I$2:$IV$2)),"Subtransmission",OFFSET(Metered!$I191,0,0,1,COUNTA(Metered!$I191:$AA191))) -> 180470.2982 | K190: 536017.076 | L190: 1.01234 | M190: 542631.5267 | N190: =SUMIF(OFFSET(Metered!$I$2,0,0,1,COUNTA(Metered!$I$2:$AA$2)),"Transmission",OFFSET(Metered!$I191,0,0,1,COUNTA(Metered!$I191:$AA191))) -> 30144.4957 | O190: 678572.094 | P190: 1.02361 | Q190: 694593.1811
A191: 4 | B191: 2022-04-08T21:00:00 | C191: =+Metered!E192 -> 415342.2367 | D191: 1.04152 | E191: 432587.2464 | F191: =SUMIF(OFFSET(Metered!$I$2,0,0,1,COUNTA(Metered!$I$2:$IV$2)),"Primary",OFFSET(Metered!$I192,0,0,1,COUNTA(Metered!$I192:$AA192))) -> 49627.6906 | G191: 482214.937 | H191: 1.01614 | I191: 489997.8861 | J191: =SUMIF(OFFSET(Metered!$I$2,0,0,1,COUNTA(Metered!$I$2:$IV$2)),"Subtransmission",OFFSET(Metered!$I192,0,0,1,COUNTA(Metered!$I192:$AA192))) -> 179337.7913 | K191: 556968.375 | L191: 1.01246 | M191: 563908.201 | N191: =SUMIF(OFFSET(Metered!$I$2,0,0,1,COUNTA(Metered!$I$2:$AA$2)),"Transmission",OFFSET(Metered!$I192,0,0,1,COUNTA(Metered!$I192:$AA192))) -> 30141.9829 | O191: 706417.4862 | P191: 1.02419 | Q191: 723505.7252
A192: 4 | B192: 2022-04-08T22:00:00 | C192: =+Metered!E193 -> 393137.2951 | D192: 1.04326 | E192: 410144.4145 | F192: =SUMIF(OFFSET(Metered!$I$2,0,0,1,COUNTA(Metered!$I$2:$IV$2)),"Primary",OFFSET(Metered!$I193,0,0,1,COUNTA(Metered!$I193:$AA193))) -> 47455.4489 | G192: 457599.8634 | H192: 1.01622 | I192: 465022.1332 | J192: =SUMIF(OFFSET(Metered!$I$2,0,0,1,COUNTA(Metered!$I$2:$IV$2)),"Subtransmission",OFFSET(Metered!$I193,0,0,1,COUNTA(Metered!$I193:$AA193))) -> 178793.2175 | K192: 537175.5383 | L192: 1.01234 | M192: 543804.2845 | N192: =SUMIF(OFFSET(Metered!$I$2,0,0,1,COUNTA(Metered!$I$2:$AA$2)),"Transmission",OFFSET(Metered!$I193,0,0,1,COUNTA(Metered!$I193:$AA193))) -> 30116.992 | O192: 680561.0888 | P192: 1.02365 | Q192: 696656.3586
A193: 4 | B193: 2022-04-08T23:00:00 | C193: =+Metered!E194 -> 366673.8826 | D193: 1.04566 | E193: 383416.2121 | F193: =SUMIF(OFFSET(Metered!$I$2,0,0,1,COUNTA(Metered!$I$2:$IV$2)),"Primary",OFFSET(Metered!$I194,0,0,1,COUNTA(Metered!$I194:$AA194))) -> 45746.5049 | G193: 429162.717 | H193: 1.01639 | I193: 436196.694 | J193: =SUMIF(OFFSET(Metered!$I$2,0,0,1,COUNTA(Metered!$I$2:$IV$2)),"Subtransmission",OFFSET(Metered!$I194,0,0,1,COUNTA(Metered!$I194:$AA194))) -> 179121.9371 | K193: 515289.1265 | L193: 1.01222 | M193: 521585.9596 | N193: =SUMIF(OFFSET(Metered!$I$2,0,0,1,COUNTA(Metered!$I$2:$AA$2)),"Transmission",OFFSET(Metered!$I194,0,0,1,COUNTA(Metered!$I194:$AA194))) -> 30174.0768 | O193: 651789.541 | P193: 1.02307 | Q193: 666826.3257
A194: 4 | B194: 2022-04-09 | C194: =+Metered!E195 -> 366076.3502 | D194: =IF(C194=0,0,ROUND(1+((LossCoeff_Sec*C194^2+ZeroLoadLoss_Sec)/C194),5)) -> 1.04572 | E194: 382813.3609 | F194: =SUMIF(OFFSET(Metered!$I$2,0,0,1,COUNTA(Metered!$I$2:$IV$2)),"Primary",OFFSET(Metered!$I195,0,0,1,COUNTA(Metered!$I195:$AA195))) -> 43500.3294 | G194: 426313.6903 | H194: =IF(G194=0,0,ROUND(1+((LossCoeff_Pri*G194^2+ZeroLoadLoss_Pri)/G194),5)) -> 1.01641 | I194: 433309.498 | J194: =SUMIF(OFFSET(Metered!$I$2,0,0,1,COUNTA(Metered!$I$2:$IV$2)),"Subtransmission",OFFSET(Metered!$I195,0,0,1,COUNTA(Metered!$I195:$AA195))) -> 181267.8483 | K194: =+I194*DistAtSubtran+J194 -> 515209.9393 | L194: =IF(K194=0,0,ROUND(1+((LossCoeff_Sub*K194^2+ZeroLoadLoss_Sub)/K194),5)) -> 1.01222 | M194: 521505.8048 | N194: =SUMIF(OFFSET(Metered!$I$2,0,0,1,COUNTA(Metered!$I$2:$AA$2)),"Transmission",OFFSET(Metered!$I195,0,0,1,COUNTA(Metered!$I195:$AA195))) -> 30111.5604 | O194: =+M194+N194+(1-DistAtSubtran)*I194 -> 650984.7722 | P194: =IF(O194=0,0,ROUND(1+((LossCoeff_Trn*O194^2+ZeroLoadLoss_Trn)/O194),5)) -> 1.02305 | Q194: 665989.9712
A195: =MONTH(B195) -> 4 | B195: =+B194+1/24 -> 2022-04-09T01:00:00 | C195: =+Metered!E196 -> 367146.6359 | D195: 1.04561 | E195: =+C195*D195 -> 383892.1939 | F195: =SUMIF(OFFSET(Metered!$I$2,0,0,1,COUNTA(Metered!$I$2:$IV$2)),"Primary",OFFSET(Metered!$I196,0,0,1,COUNTA(Metered!$I196:$AA196))) -> 41478.0133 | G195: =+E195+F195 -> 425370.2072 | H195: 1.01642 | I195: =+G195*H195 -> 432354.786 | J195: =SUMIF(OFFSET(Metered!$I$2,0,0,1,COUNTA(Metered!$I$2:$IV$2)),"Subtransmission",OFFSET(Metered!$I196,0,0,1,COUNTA(Metered!$I196:$AA196))) -> 178405.3537 | K195: 511611.6692 | L195: 1.0122 | M195: =+K195*L195 -> 517853.3316 | N195: =SUMIF(OFFSET(Metered!$I$2,0,0,1,COUNTA(Metered!$I$2:$AA$2)),"Transmission",OFFSET(Metered!$I196,0,0,1,COUNTA(Metered!$I196:$AA196))) -> 30150.901 | O195: 647152.7031 | P195: 1.02297 | Q195: =+P195*O195 -> 662017.8007
A196: 4 | B196: 2022-04-09T02:00:00 | C196: =+Metered!E197 -> 369832.7172 | D196: 1.04535 | E196: 386604.6309 | F196: =SUMIF(OFFSET(Metered!$I$2,0,0,1,COUNTA(Metered!$I$2:$IV$2)),"Primary",OFFSET(Metered!$I197,0,0,1,COUNTA(Metered!$I197:$AA197))) -> 39581.0281 | G196: 426185.659 | H196: 1.01642 | I196: 433183.6275 | J196: =SUMIF(OFFSET(Metered!$I$2,0,0,1,COUNTA(Metered!$I$2:$IV$2)),"Subtransmission",OFFSET(Metered!$I197,0,0,1,COUNTA(Metered!$I197:$AA197))) -> 176111.1083 | K196: 509956.1937 | L196: 1.0122 | M196: 516177.6593 | N196: =SUMIF(OFFSET(Metered!$I$2,0,0,1,COUNTA(Metered!$I$2:$AA$2)),"Transmission",OFFSET(Metered!$I197,0,0,1,COUNTA(Metered!$I197:$AA197))) -> 30152.8663 | O196: 645669.0677 | P196: 1.02294 | Q196: 660480.7161
A197: 4 | B197: 2022-04-09T03:00:00 | C197: =+Metered!E198 -> 353069.1564 | D197: 1.04705 | E197: 369681.0602 | F197: =SUMIF(OFFSET(Metered!$I$2,0,0,1,COUNTA(Metered!$I$2:$IV$2)),"Primary",OFFSET(Metered!$I198,0,0,1,COUNTA(Metered!$I198:$AA198))) -> 39861.1861 | G197: 409542.2463 | H197: 1.01656 | I197: 416324.2659 | J197: =SUMIF(OFFSET(Metered!$I$2,0,0,1,COUNTA(Metered!$I$2:$IV$2)),"Subtransmission",OFFSET(Metered!$I198,0,0,1,COUNTA(Metered!$I198:$AA198))) -> 175291.9188 | K197: 496143.8654 | L197: 1.01213 | M197: 502162.0905 | N197: =SUMIF(OFFSET(Metered!$I$2,0,0,1,COUNTA(Metered!$I$2:$AA$2)),"Transmission",OFFSET(Metered!$I198,0,0,1,COUNTA(Metered!$I198:$AA198))) -> 30139.1897 | O197: 627773.5995 | P197: 1.02259 | Q197: 641955.0051
A198: 4 | B198: 2022-04-09T04:00:00 | C198: =+Metered!E199 -> 373011.2446 | D198: 1.04505 | E198: 389815.4011 | F198: =SUMIF(OFFSET(Metered!$I$2,0,0,1,COUNTA(Metered!$I$2:$IV$2)),"Primary",OFFSET(Metered!$I199,0,0,1,COUNTA(Metered!$I199:$AA199))) -> 40275.7135 | G198: 430091.1146 | H198: 1.01639 | I198: 437140.308 | J198: =SUMIF(OFFSET(Metered!$I$2,0,0,1,COUNTA(Metered!$I$2:$IV$2)),"Subtransmission",OFFSET(Metered!$I199,0,0,1,COUNTA(Metered!$I199:$AA199))) -> 174589.3097 | K198: 511483.7217 | L198: 1.0122 | M198: 517723.8231 | N198: =SUMIF(OFFSET(Metered!$I$2,0,0,1,COUNTA(Metered!$I$2:$AA$2)),"Transmission",OFFSET(Metered!$I199,0,0,1,COUNTA(Metered!$I199:$AA199))) -> 30135.0257 | O198: 648104.7448 | P198: 1.02299 | Q198: 663004.6729
A199: 4 | B199: 2022-04-09T05:00:00 | C199: =+Metered!E200 -> 357173.6398 | D199: 1.04662 | E199: 373825.0748 | F199: =SUMIF(OFFSET(Metered!$I$2,0,0,1,COUNTA(Metered!$I$2:$IV$2)),"Primary",OFFSET(Metered!$I200,0,0,1,COUNTA(Metered!$I200:$AA200))) -> 40906.0375 | G199: 414731.1123 | H199: 1.01651 | I199: 421578.323 | J199: =SUMIF(OFFSET(Metered!$I$2,0,0,1,COUNTA(Metered!$I$2:$IV$2)),"Subtransmission",OFFSET(Metered!$I200,0,0,1,COUNTA(Metered!$I200:$AA200))) -> 174498.4758 | K199: 499399.6085 | L199: 1.01215 | M199: 505467.3138 | N199: =SUMIF(OFFSET(Metered!$I$2,0,0,1,COUNTA(Metered!$I$2:$AA$2)),"Transmission",OFFSET(Metered!$I200,0,0,1,COUNTA(Metered!$I200:$AA200))) -> 30203.6332 | O199: 632348.1373 | P199: 1.02268 | Q199: 646689.793
A200: 4 | B200: 2022-04-09T06:00:00 | C200: =+Metered!E201 -> 379768.005 | D200: 1.04442 | E200: 396637.2998 | F200: =SUMIF(OFFSET(Metered!$I$2,0,0,1,COUNTA(Metered!$I$2:$IV$2)),"Primary",OFFSET(Metered!$I201,0,0,1,COUNTA(Metered!$I201:$AA201))) -> 45232.7652 | G200: 441870.065 | H200: 1.01631 | I200: 449076.9657 | J200: =SUMIF(OFFSET(Metered!$I$2,0,0,1,COUNTA(Metered!$I$2:$IV$2)),"Subtransmission",OFFSET(Metered!$I201,0,0,1,COUNTA(Metered!$I201:$AA201))) -> 175024.8107 | K200: 521118.542 | L200: 1.01225 | M200: 527502.2441 | N200: =SUMIF(OFFSET(Metered!$I$2,0,0,1,COUNTA(Metered!$I$2:$AA$2)),"Transmission",OFFSET(Metered!$I201,0,0,1,COUNTA(Metered!$I201:$AA201))) -> 30095.9117 | O200: 660581.3903 | P200: 1.02324 | Q200: 675933.3018
... 362 more rows

Sheet Loss Adj Sec
A1: Period | B1: Date | C1: Total | D1: =+Metered!I1 -> Res | E1: =+Metered!J1 -> GS Sec | F1: =+Metered!K1 -> GS Pri | G1: =+Metered!L1 -> GS Sub | H1: =+Metered!M1 -> LGS Sec | I1: =+Metered!N1 -> LGS Pri | J1: =+Metered!O1 -> LGS Sub | K1: =+Metered!P1 -> LGS Tran | L1: =+Metered!Q1 -> PS Sec | M1: =+Metered!R1 -> PS Pri | N1: =+Metered!S1 -> IGS Sec | O1: =+Metered!T1 -> IGS Pri | P1: =+Metered!U1 -> IGS Sub | Q1: =+Metered!V1 -> IGS Tran | R1: =+Metered!W1 -> MW | S1: =+Metered!X1 -> OL | T1: =+Metered!Y1 -> SL | U1: =+Metered!Z1 -> Blank A | V1: =+Metered!AA1 -> Blank 0 | W1: =+Metered!AB1 -> Blank 1 | X1: =+Metered!AC1 -> Blank 2 | Y1: =+Metered!AD1 -> Blank 3 | Z1: =+Metered!AE1 -> Blank 4 | AA1: =+Metered!AF1 -> Blank 5 | AB1: =+Metered!AG1 -> Blank 6 | AC1: =+Metered!AH1 -> Blank 7 | AD1: =+Metered!AI1 -> Blank 8 | AE1: =+Metered!AJ1 -> Blank 9 | AF1: =+Metered!AK1 -> Blank 10 | AG1: =+Metered!AL1 -> Blank 11 | AH1: =+Metered!AM1 -> Blank 12
C2: Loss Adj | D2: =+Metered!I2 -> Secondary | E2: =+Metered!J2 -> Secondary | F2: =+Metered!K2 -> Primary | G2: =+Metered!L2 -> Subtransmission | H2: =+Metered!M2 -> Secondary | I2: =+Metered!N2 -> Primary | J2: =+Metered!O2 -> Subtransmission | K2: =+Metered!P2 -> Transmission | L2: =+Metered!Q2 -> Secondary | M2: =+Metered!R2 -> Primary | N2: =+Metered!S2 -> Secondary | O2: =+Metered!T2 -> Primary | P2: =+Metered!U2 -> Subtransmission | Q2: =+Metered!V2 -> Transmission | R2: =+Metered!W2 -> Secondary | S2: =+Metered!X2 -> Secondary | T2: =+Metered!Y2 -> Secondary | U2: =+Metered!Z2 -> Secondary | V2: =+Metered!AA2 -> Subtransmission | W2: =+Metered!AB2 -> Secondary | X2: =+Metered!AC2 -> Secondary | Y2: =+Metered!AD2 -> Subtransmission | Z2: =+Metered!AE2 -> Transmission | AA2: =+Metered!AF2 -> Secondary | AB2: =+Metered!AG2 -> Primary | AC2: =+Metered!AH2 -> Subtransmission | AD2: =+Metered!AI2 -> Transmission | AE2: =+Metered!AJ2 -> Secondary | AF2: =+Metered!AK2 -> Primary | AG2: =+Metered!AL2 -> Subtransmission | AH2: =+Metered!AM2 -> Subtransmission
A3: =MONTH(B3) -> 4 | B3: =+Inputs!C3 -> 2022-04-01 | C3: =SUM(OFFSET(D3,0,0,1,COUNTA(D3:IV3))) -> 252408.1461 | D3: =IF(D$2="Secondary",Metered!I3*'Loss Adj'!$D2,0) -> 152229.6617 | E3: =IF(E$2="Secondary",+Metered!J3*'Loss Adj'!$D2,0) -> 51403.0668 | F3: =IF(F$2="Secondary",+Metered!K3*'Loss Adj'!$D2,0) -> 0 | G3: =IF(G$2="Secondary",+Metered!L3*'Loss Adj'!$D2,0) -> 0 | H3: =IF(H$2="Secondary",+Metered!M3*'Loss Adj'!$D2,0) -> 26539.58772 | I3: =IF(I$2="Secondary",+Metered!N3*'Loss Adj'!$D2,0) -> 0 | J3: =IF(J$2="Secondary",+Metered!O3*'Loss Adj'!$D2,0) -> 0 | K3: =IF(K$2="Secondary",+Metered!P3*'Loss Adj'!$D2,0) -> 0 | L3: =IF(L$2="Secondary",+Metered!Q3*'Loss Adj'!$D2,0) -> 7619.345773 | M3: =IF(M$2="Secondary",+Metered!R3*'Loss Adj'!$D2,0) -> 0 | N3: =IF(N$2="Secondary",+Metered!S3*'Loss Adj'!$D2,0) -> 1878.733865 | O3: =IF(O$2="Secondary",+Metered!T3*'Loss Adj'!$D2,0) -> 0 | P3: =IF(P$2="Secondary",+Metered!U3*'Loss Adj'!$D2,0) -> 0 | Q3: =IF(Q$2="Secondary",+Metered!V3*'Loss Adj'!$D2,0) -> 0 | R3: =IF(R$2="Secondary",+Metered!W3*'Loss Adj'!$D2,0) -> 198.9314301 | S3: =IF(S$2="Secondary",+Metered!X3*'Loss Adj'!$D2,0) -> 10223.58869 | T3: =IF(T$2="Secondary",+Metered!Y3*'Loss Adj'!$D2,0) -> 2315.230137 | U3: =IF(U$2="Secondary",+Metered!Z3*'Loss Adj'!$D2,0) -> 0 | V3: =IF(V$2="Secondary",+Metered!AA3*'Loss Adj'!$D2,0) -> 0 | W3: =IF(W$2="Secondary",+Metered!AB3*'Loss Adj'!$D2,0) -> 0 | X3: =IF(X$2="Secondary",+Metered!AC3*'Loss Adj'!$D2,0) -> 0 | Y3: =IF(Y$2="Secondary",+Metered!AD3*'Loss Adj'!$D2,0) -> 0 | Z3: =IF(Z$2="Secondary",+Metered!AE3*'Loss Adj'!$D2,0) -> 0 | AA3: =IF(AA$2="Secondary",+Metered!AF3*'Loss Adj'!$D2,0) -> 0 | AB3: =IF(AB$2="Secondary",+Metered!AG3*'Loss Adj'!$D2,0) -> 0 | AC3: =IF(AC$2="Secondary",+Metered!AH3*'Loss Adj'!$D2,0) -> 0 | AD3: =IF(AD$2="Secondary",+Metered!AI3*'Loss Adj'!$D2,0) -> 0 | AE3: =IF(AE$2="Secondary",+Metered!AJ3*'Loss Adj'!$D2,0) -> 0 | AF3: =IF(AF$2="Secondary",+Metered!AK3*'Loss Adj'!$D2,0) -> 0 | AG3: =IF(AG$2="Secondary",+Metered!AL3*'Loss Adj'!$D2,0) -> 0 | AH3: =IF(AH$2="Secondary",+Metered!AM3*'Loss Adj'!$D2,0) -> 0
A4: 4 | B4: =+B3+1/24 -> 2022-04-01T01:00:00 | C4: 244134.5598 | D4: =IF(D$2="Secondary",Metered!I4*'Loss Adj'!$D3,0) -> 147772.4851 | E4: =IF(E$2="Secondary",+Metered!J4*'Loss Adj'!$D3,0) -> 51779.72068 | F4: =IF(F$2="Secondary",+Metered!K4*'Loss Adj'!$D3,0) -> 0 | G4: =IF(G$2="Secondary",+Metered!L4*'Loss Adj'!$D3,0) -> 0 | H4: =IF(H$2="Secondary",+Metered!M4*'Loss Adj'!$D3,0) -> 23280.48069 | I4: =IF(I$2="Secondary",+Metered!N4*'Loss Adj'!$D3,0) -> 0 | J4: =IF(J$2="Secondary",+Metered!O4*'Loss Adj'!$D3,0) -> 0 | K4: =IF(K$2="Secondary",+Metered!P4*'Loss Adj'!$D3,0) -> 0 | L4: =IF(L$2="Secondary",+Metered!Q4*'Loss Adj'!$D3,0) -> 6683.676989 | M4: =IF(M$2="Secondary",+Metered!R4*'Loss Adj'!$D3,0) -> 0 | N4: =IF(N$2="Secondary",+Metered!S4*'Loss Adj'!$D3,0) -> 1875.065764 | O4: =IF(O$2="Secondary",+Metered!T4*'Loss Adj'!$D3,0) -> 0 | P4: =IF(P$2="Secondary",+Metered!U4*'Loss Adj'!$D3,0) -> 0 | Q4: =IF(Q$2="Secondary",+Metered!V4*'Loss Adj'!$D3,0) -> 0 | R4: =IF(R$2="Secondary",+Metered!W4*'Loss Adj'!$D3,0) -> 178.79602 | S4: =IF(S$2="Secondary",+Metered!X4*'Loss Adj'!$D3,0) -> 10244.39309 | T4: =IF(T$2="Secondary",+Metered!Y4*'Loss Adj'!$D3,0) -> 2319.941494 | U4: =IF(U$2="Secondary",+Metered!Z4*'Loss Adj'!$D3,0) -> 0 | V4: =IF(V$2="Secondary",+Metered!AA4*'Loss Adj'!$D3,0) -> 0 | W4: =IF(W$2="Secondary",+Metered!AB4*'Loss Adj'!$D3,0) -> 0 | X4: =IF(X$2="Secondary",+Metered!AC4*'Loss Adj'!$D3,0) -> 0 | Y4: =IF(Y$2="Secondary",+Metered!AD4*'Loss Adj'!$D3,0) -> 0 | Z4: =IF(Z$2="Secondary",+Metered!AE4*'Loss Adj'!$D3,0) -> 0 | AA4: =IF(AA$2="Secondary",+Metered!AF4*'Loss Adj'!$D3,0) -> 0 | AB4: =IF(AB$2="Secondary",+Metered!AG4*'Loss Adj'!$D3,0) -> 0 | AC4: =IF(AC$2="Secondary",+Metered!AH4*'Loss Adj'!$D3,0) -> 0 | AD4: =IF(AD$2="Secondary",+Metered!AI4*'Loss Adj'!$D3,0) -> 0 | AE4: =IF(AE$2="Secondary",+Metered!AJ4*'Loss Adj'!$D3,0) -> 0 | AF4: =IF(AF$2="Secondary",+Metered!AK4*'Loss Adj'!$D3,0) -> 0 | AG4: =IF(AG$2="Secondary",+Metered!AL4*'Loss Adj'!$D3,0) -> 0 | AH4: =IF(AH$2="Secondary",+Metered!AM4*'Loss Adj'!$D3,0) -> 0
A5: 4 | B5: 2022-04-01T02:00:00 | C5: 265990.1376 | D5: =IF(D$2="Secondary",Metered!I5*'Loss Adj'!$D4,0) -> 170703.6319 | E5: =IF(E$2="Secondary",+Metered!J5*'Loss Adj'!$D4,0) -> 51466.13739 | F5: =IF(F$2="Secondary",+Metered!K5*'Loss Adj'!$D4,0) -> 0 | G5: =IF(G$2="Secondary",+Metered!L5*'Loss Adj'!$D4,0) -> 0 | H5: =IF(H$2="Secondary",+Metered!M5*'Loss Adj'!$D4,0) -> 22748.98297 | I5: =IF(I$2="Secondary",+Metered!N5*'Loss Adj'!$D4,0) -> 0 | J5: =IF(J$2="Secondary",+Metered!O5*'Loss Adj'!$D4,0) -> 0 | K5: =IF(K$2="Secondary",+Metered!P5*'Loss Adj'!$D4,0) -> 0 | L5: =IF(L$2="Secondary",+Metered!Q5*'Loss Adj'!$D4,0) -> 6531.087389 | M5: =IF(M$2="Secondary",+Metered!R5*'Loss Adj'!$D4,0) -> 0 | N5: =IF(N$2="Secondary",+Metered!S5*'Loss Adj'!$D4,0) -> 1846.79474 | O5: =IF(O$2="Secondary",+Metered!T5*'Loss Adj'!$D4,0) -> 0 | P5: =IF(P$2="Secondary",+Metered!U5*'Loss Adj'!$D4,0) -> 0 | Q5: =IF(Q$2="Secondary",+Metered!V5*'Loss Adj'!$D4,0) -> 0 | R5: =IF(R$2="Secondary",+Metered!W5*'Loss Adj'!$D4,0) -> 192.6640381 | S5: =IF(S$2="Secondary",+Metered!X5*'Loss Adj'!$D4,0) -> 10192.62178 | T5: =IF(T$2="Secondary",+Metered!Y5*'Loss Adj'!$D4,0) -> 2308.217381 | U5: =IF(U$2="Secondary",+Metered!Z5*'Loss Adj'!$D4,0) -> 0 | V5: =IF(V$2="Secondary",+Metered!AA5*'Loss Adj'!$D4,0) -> 0 | W5: =IF(W$2="Secondary",+Metered!AB5*'Loss Adj'!$D4,0) -> 0 | X5: =IF(X$2="Secondary",+Metered!AC5*'Loss Adj'!$D4,0) -> 0 | Y5: =IF(Y$2="Secondary",+Metered!AD5*'Loss Adj'!$D4,0) -> 0 | Z5: =IF(Z$2="Secondary",+Metered!AE5*'Loss Adj'!$D4,0) -> 0 | AA5: =IF(AA$2="Secondary",+Metered!AF5*'Loss Adj'!$D4,0) -> 0 | AB5: =IF(AB$2="Secondary",+Metered!AG5*'Loss Adj'!$D4,0) -> 0 | AC5: =IF(AC$2="Secondary",+Metered!AH5*'Loss Adj'!$D4,0) -> 0 | AD5: =IF(AD$2="Secondary",+Metered!AI5*'Loss Adj'!$D4,0) -> 0 | AE5: =IF(AE$2="Secondary",+Metered!AJ5*'Loss Adj'!$D4,0) -> 0 | AF5: =IF(AF$2="Secondary",+Metered!AK5*'Loss Adj'!$D4,0) -> 0 | AG5: =IF(AG$2="Secondary",+Metered!AL5*'Loss Adj'!$D4,0) -> 0 | AH5: =IF(AH$2="Secondary",+Metered!AM5*'Loss Adj'!$D4,0) -> 0
A6: 4 | B6: 2022-04-01T03:00:00 | C6: 273379.5378 | D6: =IF(D$2="Secondary",Metered!I6*'Loss Adj'!$D5,0) -> 175948.2175 | E6: =IF(E$2="Secondary",+Metered!J6*'Loss Adj'!$D5,0) -> 53025.42555 | F6: =IF(F$2="Secondary",+Metered!K6*'Loss Adj'!$D5,0) -> 0 | G6: =IF(G$2="Secondary",+Metered!L6*'Loss Adj'!$D5,0) -> 0 | H6: =IF(H$2="Secondary",+Metered!M6*'Loss Adj'!$D5,0) -> 23207.65302 | I6: =IF(I$2="Secondary",+Metered!N6*'Loss Adj'!$D5,0) -> 0 | J6: =IF(J$2="Secondary",+Metered!O6*'Loss Adj'!$D5,0) -> 0 | K6: =IF(K$2="Secondary",+Metered!P6*'Loss Adj'!$D5,0) -> 0 | L6: =IF(L$2="Secondary",+Metered!Q6*'Loss Adj'!$D5,0) -> 6662.768626 | M6: =IF(M$2="Secondary",+Metered!R6*'Loss Adj'!$D5,0) -> 0 | N6: =IF(N$2="Secondary",+Metered!S6*'Loss Adj'!$D5,0) -> 1852.410719 | O6: =IF(O$2="Secondary",+Metered!T6*'Loss Adj'!$D5,0) -> 0 | P6: =IF(P$2="Secondary",+Metered!U6*'Loss Adj'!$D5,0) -> 0 | Q6: =IF(Q$2="Secondary",+Metered!V6*'Loss Adj'!$D5,0) -> 0 | R6: =IF(R$2="Secondary",+Metered!W6*'Loss Adj'!$D5,0) -> 201.1543089 | S6: =IF(S$2="Secondary",+Metered!X6*'Loss Adj'!$D5,0) -> 10177.18626 | T6: =IF(T$2="Secondary",+Metered!Y6*'Loss Adj'!$D5,0) -> 2304.721858 | U6: =IF(U$2="Secondary",+Metered!Z6*'Loss Adj'!$D5,0) -> 0 | V6: =IF(V$2="Secondary",+Metered!AA6*'Loss Adj'!$D5,0) -> 0 | W6: =IF(W$2="Secondary",+Metered!AB6*'Loss Adj'!$D5,0) -> 0 | X6: =IF(X$2="Secondary",+Metered!AC6*'Loss Adj'!$D5,0) -> 0 | Y6: =IF(Y$2="Secondary",+Metered!AD6*'Loss Adj'!$D5,0) -> 0 | Z6: =IF(Z$2="Secondary",+Metered!AE6*'Loss Adj'!$D5,0) -> 0 | AA6: =IF(AA$2="Secondary",+Metered!AF6*'Loss Adj'!$D5,0) -> 0 | AB6: =IF(AB$2="Secondary",+Metered!AG6*'Loss Adj'!$D5,0) -> 0 | AC6: =IF(AC$2="Secondary",+Metered!AH6*'Loss Adj'!$D5,0) -> 0 | AD6: =IF(AD$2="Secondary",+Metered!AI6*'Loss Adj'!$D5,0) -> 0 | AE6: =IF(AE$2="Secondary",+Metered!AJ6*'Loss Adj'!$D5,0) -> 0 | AF6: =IF(AF$2="Secondary",+Metered!AK6*'Loss Adj'!$D5,0) -> 0 | AG6: =IF(AG$2="Secondary",+Metered!AL6*'Loss Adj'!$D5,0) -> 0 | AH6: =IF(AH$2="Secondary",+Metered!AM6*'Loss Adj'!$D5,0) -> 0
A7: 4 | B7: 2022-04-01T04:00:00 | C7: 277759.623 | D7: =IF(D$2="Secondary",Metered!I7*'Loss Adj'!$D6,0) -> 176315.0507 | E7: =IF(E$2="Secondary",+Metered!J7*'Loss Adj'!$D6,0) -> 54188.33582 | F7: =IF(F$2="Secondary",+Metered!K7*'Loss Adj'!$D6,0) -> 0 | G7: =IF(G$2="Secondary",+Metered!L7*'Loss Adj'!$D6,0) -> 0 | H7: =IF(H$2="Secondary",+Metered!M7*'Loss Adj'!$D6,0) -> 25421.07337 | I7: =IF(I$2="Secondary",+Metered!N7*'Loss Adj'!$D6,0) -> 0 | J7: =IF(J$2="Secondary",+Metered!O7*'Loss Adj'!$D6,0) -> 0 | K7: =IF(K$2="Secondary",+Metered!P7*'Loss Adj'!$D6,0) -> 0 | L7: =IF(L$2="Secondary",+Metered!Q7*'Loss Adj'!$D6,0) -> 7298.227403 | M7: =IF(M$2="Secondary",+Metered!R7*'Loss Adj'!$D6,0) -> 0 | N7: =IF(N$2="Secondary",+Metered!S7*'Loss Adj'!$D6,0) -> 1873.129482 | O7: =IF(O$2="Secondary",+Metered!T7*'Loss Adj'!$D6,0) -> 0 | P7: =IF(P$2="Secondary",+Metered!U7*'Loss Adj'!$D6,0) -> 0 | Q7: =IF(Q$2="Secondary",+Metered!V7*'Loss Adj'!$D6,0) -> 0 | R7: =IF(R$2="Secondary",+Metered!W7*'Loss Adj'!$D6,0) -> 192.598304 | S7: =IF(S$2="Secondary",+Metered!X7*'Loss Adj'!$D6,0) -> 10168.46183 | T7: =IF(T$2="Secondary",+Metered!Y7*'Loss Adj'!$D6,0) -> 2302.746128 | U7: =IF(U$2="Secondary",+Metered!Z7*'Loss Adj'!$D6,0) -> 0 | V7: =IF(V$2="Secondary",+Metered!AA7*'Loss Adj'!$D6,0) -> 0 | W7: =IF(W$2="Secondary",+Metered!AB7*'Loss Adj'!$D6,0) -> 0 | X7: =IF(X$2="Secondary",+Metered!AC7*'Loss Adj'!$D6,0) -> 0 | Y7: =IF(Y$2="Secondary",+Metered!AD7*'Loss Adj'!$D6,0) -> 0 | Z7: =IF(Z$2="Secondary",+Metered!AE7*'Loss Adj'!$D6,0) -> 0 | AA7: =IF(AA$2="Secondary",+Metered!AF7*'Loss Adj'!$D6,0) -> 0 | AB7: =IF(AB$2="Secondary",+Metered!AG7*'Loss Adj'!$D6,0) -> 0 | AC7: =IF(AC$2="Secondary",+Metered!AH7*'Loss Adj'!$D6,0) -> 0 | AD7: =IF(AD$2="Secondary",+Metered!AI7*'Loss Adj'!$D6,0) -> 0 | AE7: =IF(AE$2="Secondary",+Metered!AJ7*'Loss Adj'!$D6,0) -> 0 | AF7: =IF(AF$2="Secondary",+Metered!AK7*'Loss Adj'!$D6,0) -> 0 | AG7: =IF(AG$2="Secondary",+Metered!AL7*'Loss Adj'!$D6,0) -> 0 | AH7: =IF(AH$2="Secondary",+Metered!AM7*'Loss Adj'!$D6,0) -> 0
A8: 4 | B8: 2022-04-01T05:00:00 | C8: 326901.1408 | D8: =IF(D$2="Secondary",Metered!I8*'Loss Adj'!$D7,0) -> 223745.246 | E8: =IF(E$2="Secondary",+Metered!J8*'Loss Adj'!$D7,0) -> 52840.18432 | F8: =IF(F$2="Secondary",+Metered!K8*'Loss Adj'!$D7,0) -> 0 | G8: =IF(G$2="Secondary",+Metered!L8*'Loss Adj'!$D7,0) -> 0 | H8: =IF(H$2="Secondary",+Metered!M8*'Loss Adj'!$D7,0) -> 27824.40216 | I8: =IF(I$2="Secondary",+Metered!N8*'Loss Adj'!$D7,0) -> 0 | J8: =IF(J$2="Secondary",+Metered!O8*'Loss Adj'!$D7,0) -> 0 | K8: =IF(K$2="Secondary",+Metered!P8*'Loss Adj'!$D7,0) -> 0 | L8: =IF(L$2="Secondary",+Metered!Q8*'Loss Adj'!$D7,0) -> 7988.207722 | M8: =IF(M$2="Secondary",+Metered!R8*'Loss Adj'!$D7,0) -> 0 | N8: =IF(N$2="Secondary",+Metered!S8*'Loss Adj'!$D7,0) -> 1939.246931 | O8: =IF(O$2="Secondary",+Metered!T8*'Loss Adj'!$D7,0) -> 0 | P8: =IF(P$2="Secondary",+Metered!U8*'Loss Adj'!$D7,0) -> 0 | Q8: =IF(Q$2="Secondary",+Metered!V8*'Loss Adj'!$D7,0) -> 0 | R8: =IF(R$2="Secondary",+Metered!W8*'Loss Adj'!$D7,0) -> 190.5932903 | S8: =IF(S$2="Secondary",+Metered!X8*'Loss Adj'!$D7,0) -> 10088.59978 | T8: =IF(T$2="Secondary",+Metered!Y8*'Loss Adj'!$D7,0) -> 2284.660598 | U8: =IF(U$2="Secondary",+Metered!Z8*'Loss Adj'!$D7,0) -> 0 | V8: =IF(V$2="Secondary",+Metered!AA8*'Loss Adj'!$D7,0) -> 0 | W8: =IF(W$2="Secondary",+Metered!AB8*'Loss Adj'!$D7,0) -> 0 | X8: =IF(X$2="Secondary",+Metered!AC8*'Loss Adj'!$D7,0) -> 0 | Y8: =IF(Y$2="Secondary",+Metered!AD8*'Loss Adj'!$D7,0) -> 0 | Z8: =IF(Z$2="Secondary",+Metered!AE8*'Loss Adj'!$D7,0) -> 0 | AA8: =IF(AA$2="Secondary",+Metered!AF8*'Loss Adj'!$D7,0) -> 0 | AB8: =IF(AB$2="Secondary",+Metered!AG8*'Loss Adj'!$D7,0) -> 0 | AC8: =IF(AC$2="Secondary",+Metered!AH8*'Loss Adj'!$D7,0) -> 0 | AD8: =IF(AD$2="Secondary",+Metered!AI8*'Loss Adj'!$D7,0) -> 0 | AE8: =IF(AE$2="Secondary",+Metered!AJ8*'Loss Adj'!$D7,0) -> 0 | AF8: =IF(AF$2="Secondary",+Metered!AK8*'Loss Adj'!$D7,0) -> 0 | AG8: =IF(AG$2="Secondary",+Metered!AL8*'Loss Adj'!$D7,0) -> 0 | AH8: =IF(AH$2="Secondary",+Metered!AM8*'Loss Adj'!$D7,0) -> 0
A9: 4 | B9: 2022-04-01T06:00:00 | C9: 381151.0351 | D9: =IF(D$2="Secondary",Metered!I9*'Loss Adj'!$D8,0) -> 267332.344 | E9: =IF(E$2="Secondary",+Metered!J9*'Loss Adj'!$D8,0) -> 58037.59142 | F9: =IF(F$2="Secondary",+Metered!K9*'Loss Adj'!$D8,0) -> 0 | G9: =IF(G$2="Secondary",+Metered!L9*'Loss Adj'!$D8,0) -> 0 | H9: =IF(H$2="Secondary",+Metered!M9*'Loss Adj'!$D8,0) -> 34398.13338 | I9: =IF(I$2="Secondary",+Metered!N9*'Loss Adj'!$D8,0) -> 0 | J9: =IF(J$2="Secondary",+Metered!O9*'Loss Adj'!$D8,0) -> 0 | K9: =IF(K$2="Secondary",+Metered!P9*'Loss Adj'!$D8,0) -> 0 | L9: =IF(L$2="Secondary",+Metered!Q9*'Loss Adj'!$D8,0) -> 9875.483962 | M9: =IF(M$2="Secondary",+Metered!R9*'Loss Adj'!$D8,0) -> 0 | N9: =IF(N$2="Secondary",+Metered!S9*'Loss Adj'!$D8,0) -> 2094.004354 | O9: =IF(O$2="Secondary",+Metered!T9*'Loss Adj'!$D8,0) -> 0 | P9: =IF(P$2="Secondary",+Metered!U9*'Loss Adj'!$D8,0) -> 0 | Q9: =IF(Q$2="Secondary",+Metered!V9*'Loss Adj'!$D8,0) -> 0 | R9: =IF(R$2="Secondary",+Metered!W9*'Loss Adj'!$D8,0) -> 190.0613925 | S9: =IF(S$2="Secondary",+Metered!X9*'Loss Adj'!$D8,0) -> 7520.358801 | T9: =IF(T$2="Secondary",+Metered!Y9*'Loss Adj'!$D8,0) -> 1703.057757 | U9: =IF(U$2="Secondary",+Metered!Z9*'Loss Adj'!$D8,0) -> 0 | V9: =IF(V$2="Secondary",+Metered!AA9*'Loss Adj'!$D8,0) -> 0 | W9: =IF(W$2="Secondary",+Metered!AB9*'Loss Adj'!$D8,0) -> 0 | X9: =IF(X$2="Secondary",+Metered!AC9*'Loss Adj'!$D8,0) -> 0 | Y9: =IF(Y$2="Secondary",+Metered!AD9*'Loss Adj'!$D8,0) -> 0 | Z9: =IF(Z$2="Secondary",+Metered!AE9*'Loss Adj'!$D8,0) -> 0 | AA9: =IF(AA$2="Secondary",+Metered!AF9*'Loss Adj'!$D8,0) -> 0 | AB9: =IF(AB$2="Secondary",+Metered!AG9*'Loss Adj'!$D8,0) -> 0 | AC9: =IF(AC$2="Secondary",+Metered!AH9*'Loss Adj'!$D8,0) -> 0 | AD9: =IF(AD$2="Secondary",+Metered!AI9*'Loss Adj'!$D8,0) -> 0 | AE9: =IF(AE$2="Secondary",+Metered!AJ9*'Loss Adj'!$D8,0) -> 0 | AF9: =IF(AF$2="Secondary",+Metered!AK9*'Loss Adj'!$D8,0) -> 0 | AG9: =IF(AG$2="Secondary",+Metered!AL9*'Loss Adj'!$D8,0) -> 0 | AH9: =IF(AH$2="Secondary",+Metered!AM9*'Loss Adj'!$D8,0) -> 0
A10: 4 | B10: 2022-04-01T07:00:00 | C10: 431922.0995 | D10: =IF(D$2="Secondary",Metered!I10*'Loss Adj'!$D9,0) -> 310246.18 | E10: =IF(E$2="Secondary",+Metered!J10*'Loss Adj'!$D9,0) -> 68498.55607 | F10: =IF(F$2="Secondary",+Metered!K10*'Loss Adj'!$D9,0) -> 0 | G10: =IF(G$2="Secondary",+Metered!L10*'Loss Adj'!$D9,0) -> 0 | H10: =IF(H$2="Secondary",+Metered!M10*'Loss Adj'!$D9,0) -> 39587.11222 | I10: =IF(I$2="Secondary",+Metered!N10*'Loss Adj'!$D9,0) -> 0 | J10: =IF(J$2="Secondary",+Metered!O10*'Loss Adj'!$D9,0) -> 0 | K10: =IF(K$2="Secondary",+Metered!P10*'Loss Adj'!$D9,0) -> 0 | L10: =IF(L$2="Secondary",+Metered!Q10*'Loss Adj'!$D9,0) -> 11365.2065 | M10: =IF(M$2="Secondary",+Metered!R10*'Loss Adj'!$D9,0) -> 0 | N10: =IF(N$2="Secondary",+Metered!S10*'Loss Adj'!$D9,0) -> 2034.558411 | O10: =IF(O$2="Secondary",+Metered!T10*'Loss Adj'!$D9,0) -> 0 | P10: =IF(P$2="Secondary",+Metered!U10*'Loss Adj'!$D9,0) -> 0 | Q10: =IF(Q$2="Secondary",+Metered!V10*'Loss Adj'!$D9,0) -> 0 | R10: =IF(R$2="Secondary",+Metered!W10*'Loss Adj'!$D9,0) -> 190.4862214 | S10: =IF(S$2="Secondary",+Metered!X10*'Loss Adj'!$D9,0) -> 0 | T10: =IF(T$2="Secondary",+Metered!Y10*'Loss Adj'!$D9,0) -> 0 | U10: =IF(U$2="Secondary",+Metered!Z10*'Loss Adj'!$D9,0) -> 0 | V10: =IF(V$2="Secondary",+Metered!AA10*'Loss Adj'!$D9,0) -> 0 | W10: =IF(W$2="Secondary",+Metered!AB10*'Loss Adj'!$D9,0) -> 0 | X10: =IF(X$2="Secondary",+Metered!AC10*'Loss Adj'!$D9,0) -> 0 | Y10: =IF(Y$2="Secondary",+Metered!AD10*'Loss Adj'!$D9,0) -> 0 | Z10: =IF(Z$2="Secondary",+Metered!AE10*'Loss Adj'!$D9,0) -> 0 | AA10: =IF(AA$2="Secondary",+Metered!AF10*'Loss Adj'!$D9,0) -> 0 | AB10: =IF(AB$2="Secondary",+Metered!AG10*'Loss Adj'!$D9,0) -> 0 | AC10: =IF(AC$2="Secondary",+Metered!AH10*'Loss Adj'!$D9,0) -> 0 | AD10: =IF(AD$2="Secondary",+Metered!AI10*'Loss Adj'!$D9,0) -> 0 | AE10: =IF(AE$2="Secondary",+Metered!AJ10*'Loss Adj'!$D9,0) -> 0 | AF10: =IF(AF$2="Secondary",+Metered!AK10*'Loss Adj'!$D9,0) -> 0 | AG10: =IF(AG$2="Secondary",+Metered!AL10*'Loss Adj'!$D9,0) -> 0 | AH10: =IF(AH$2="Secondary",+Metered!AM10*'Loss Adj'!$D9,0) -> 0
A11: 4 | B11: 2022-04-01T08:00:00 | C11: 417129.2676 | D11: =IF(D$2="Secondary",Metered!I11*'Loss Adj'!$D10,0) -> 280475.2916 | E11: =IF(E$2="Secondary",+Metered!J11*'Loss Adj'!$D10,0) -> 79400.26606 | F11: =IF(F$2="Secondary",+Metered!K11*'Loss Adj'!$D10,0) -> 0 | G11: =IF(G$2="Secondary",+Metered!L11*'Loss Adj'!$D10,0) -> 0 | H11: =IF(H$2="Secondary",+Metered!M11*'Loss Adj'!$D10,0) -> 42711.96947 | I11: =IF(I$2="Secondary",+Metered!N11*'Loss Adj'!$D10,0) -> 0 | J11: =IF(J$2="Secondary",+Metered!O11*'Loss Adj'!$D10,0) -> 0 | K11: =IF(K$2="Secondary",+Metered!P11*'Loss Adj'!$D10,0) -> 0 | L11: =IF(L$2="Secondary",+Metered!Q11*'Loss Adj'!$D10,0) -> 12262.33303 | M11: =IF(M$2="Secondary",+Metered!R11*'Loss Adj'!$D10,0) -> 0 | N11: =IF(N$2="Secondary",+Metered!S11*'Loss Adj'!$D10,0) -> 2086.02824 | O11: =IF(O$2="Secondary",+Metered!T11*'Loss Adj'!$D10,0) -> 0 | P11: =IF(P$2="Secondary",+Metered!U11*'Loss Adj'!$D10,0) -> 0 | Q11: =IF(Q$2="Secondary",+Metered!V11*'Loss Adj'!$D10,0) -> 0 | R11: =IF(R$2="Secondary",+Metered!W11*'Loss Adj'!$D10,0) -> 193.3791642 | S11: =IF(S$2="Secondary",+Metered!X11*'Loss Adj'!$D10,0) -> 0 | T11: =IF(T$2="Secondary",+Metered!Y11*'Loss Adj'!$D10,0) -> 0 | U11: =IF(U$2="Secondary",+Metered!Z11*'Loss Adj'!$D10,0) -> 0 | V11: =IF(V$2="Secondary",+Metered!AA11*'Loss Adj'!$D10,0) -> 0 | W11: =IF(W$2="Secondary",+Metered!AB11*'Loss Adj'!$D10,0) -> 0 | X11: =IF(X$2="Secondary",+Metered!AC11*'Loss Adj'!$D10,0) -> 0 | Y11: =IF(Y$2="Secondary",+Metered!AD11*'Loss Adj'!$D10,0) -> 0 | Z11: =IF(Z$2="Secondary",+Metered!AE11*'Loss Adj'!$D10,0) -> 0 | AA11: =IF(AA$2="Secondary",+Metered!AF11*'Loss Adj'!$D10,0) -> 0 | AB11: =IF(AB$2="Secondary",+Metered!AG11*'Loss Adj'!$D10,0) -> 0 | AC11: =IF(AC$2="Secondary",+Metered!AH11*'Loss Adj'!$D10,0) -> 0 | AD11: =IF(AD$2="Secondary",+Metered!AI11*'Loss Adj'!$D10,0) -> 0 | AE11: =IF(AE$2="Secondary",+Metered!AJ11*'Loss Adj'!$D10,0) -> 0 | AF11: =IF(AF$2="Secondary",+Metered!AK11*'Loss Adj'!$D10,0) -> 0 | AG11: =IF(AG$2="Secondary",+Metered!AL11*'Loss Adj'!$D10,0) -> 0 | AH11: =IF(AH$2="Secondary",+Metered!AM11*'Loss Adj'!$D10,0) -> 0
A12: 4 | B12: 2022-04-01T09:00:00 | C12: 429640.8487 | D12: =IF(D$2="Secondary",Metered!I12*'Loss Adj'!$D11,0) -> 284103.1005 | E12: =IF(E$2="Secondary",+Metered!J12*'Loss Adj'!$D11,0) -> 86798.43567 | F12: =IF(F$2="Secondary",+Metered!K12*'Loss Adj'!$D11,0) -> 0 | G12: =IF(G$2="Secondary",+Metered!L12*'Loss Adj'!$D11,0) -> 0 | H12: =IF(H$2="Secondary",+Metered!M12*'Loss Adj'!$D11,0) -> 43828.55899 | I12: =IF(I$2="Secondary",+Metered!N12*'Loss Adj'!$D11,0) -> 0 | J12: =IF(J$2="Secondary",+Metered!O12*'Loss Adj'!$D11,0) -> 0 | K12: =IF(K$2="Secondary",+Metered!P12*'Loss Adj'!$D11,0) -> 0 | L12: =IF(L$2="Secondary",+Metered!Q12*'Loss Adj'!$D11,0) -> 12582.89874 | M12: =IF(M$2="Secondary",+Metered!R12*'Loss Adj'!$D11,0) -> 0 | N12: =IF(N$2="Secondary",+Metered!S12*'Loss Adj'!$D11,0) -> 2114.431779 | O12: =IF(O$2="Secondary",+Metered!T12*'Loss Adj'!$D11,0) -> 0 | P12: =IF(P$2="Secondary",+Metered!U12*'Loss Adj'!$D11,0) -> 0 | Q12: =IF(Q$2="Secondary",+Metered!V12*'Loss Adj'!$D11,0) -> 0 | R12: =IF(R$2="Secondary",+Metered!W12*'Loss Adj'!$D11,0) -> 213.4229753 | S12: =IF(S$2="Secondary",+Metered!X12*'Loss Adj'!$D11,0) -> 0 | T12: =IF(T$2="Secondary",+Metered!Y12*'Loss Adj'!$D11,0) -> 0 | U12: =IF(U$2="Secondary",+Metered!Z12*'Loss Adj'!$D11,0) -> 0 | V12: =IF(V$2="Secondary",+Metered!AA12*'Loss Adj'!$D11,0) -> 0 | W12: =IF(W$2="Secondary",+Metered!AB12*'Loss Adj'!$D11,0) -> 0 | X12: =IF(X$2="Secondary",+Metered!AC12*'Loss Adj'!$D11,0) -> 0 | Y12: =IF(Y$2="Secondary",+Metered!AD12*'Loss Adj'!$D11,0) -> 0 | Z12: =IF(Z$2="Secondary",+Metered!AE12*'Loss Adj'!$D11,0) -> 0 | AA12: =IF(AA$2="Secondary",+Metered!AF12*'Loss Adj'!$D11,0) -> 0 | AB12: =IF(AB$2="Secondary",+Metered!AG12*'Loss Adj'!$D11,0) -> 0 | AC12: =IF(AC$2="Secondary",+Metered!AH12*'Loss Adj'!$D11,0) -> 0 | AD12: =IF(AD$2="Secondary",+Metered!AI12*'Loss Adj'!$D11,0) -> 0 | AE12: =IF(AE$2="Secondary",+Metered!AJ12*'Loss Adj'!$D11,0) -> 0 | AF12: =IF(AF$2="Secondary",+Metered!AK12*'Loss Adj'!$D11,0) -> 0 | AG12: =IF(AG$2="Secondary",+Metered!AL12*'Loss Adj'!$D11,0) -> 0 | AH12: =IF(AH$2="Secondary",+Metered!AM12*'Loss Adj'!$D11,0) -> 0
A13: 4 | B13: 2022-04-01T10:00:00 | C13: 425941.3814 | D13: =IF(D$2="Secondary",Metered!I13*'Loss Adj'!$D12,0) -> 280461.5677 | E13: =IF(E$2="Secondary",+Metered!J13*'Loss Adj'!$D12,0) -> 86358.34485 | F13: =IF(F$2="Secondary",+Metered!K13*'Loss Adj'!$D12,0) -> 0 | G13: =IF(G$2="Secondary",+Metered!L13*'Loss Adj'!$D12,0) -> 0 | H13: =IF(H$2="Secondary",+Metered!M13*'Loss Adj'!$D12,0) -> 44125.43145 | I13: =IF(I$2="Secondary",+Metered!N13*'Loss Adj'!$D12,0) -> 0 | J13: =IF(J$2="Secondary",+Metered!O13*'Loss Adj'!$D12,0) -> 0 | K13: =IF(K$2="Secondary",+Metered!P13*'Loss Adj'!$D12,0) -> 0 | L13: =IF(L$2="Secondary",+Metered!Q13*'Loss Adj'!$D12,0) -> 12668.12894 | M13: =IF(M$2="Secondary",+Metered!R13*'Loss Adj'!$D12,0) -> 0 | N13: =IF(N$2="Secondary",+Metered!S13*'Loss Adj'!$D12,0) -> 2121.987718 | O13: =IF(O$2="Secondary",+Metered!T13*'Loss Adj'!$D12,0) -> 0 | P13: =IF(P$2="Secondary",+Metered!U13*'Loss Adj'!$D12,0) -> 0 | Q13: =IF(Q$2="Secondary",+Metered!V13*'Loss Adj'!$D12,0) -> 0 | R13: =IF(R$2="Secondary",+Metered!W13*'Loss Adj'!$D12,0) -> 205.9207658 | S13: =IF(S$2="Secondary",+Metered!X13*'Loss Adj'!$D12,0) -> 0 | T13: =IF(T$2="Secondary",+Metered!Y13*'Loss Adj'!$D12,0) -> 0 | U13: =IF(U$2="Secondary",+Metered!Z13*'Loss Adj'!$D12,0) -> 0 | V13: =IF(V$2="Secondary",+Metered!AA13*'Loss Adj'!$D12,0) -> 0 | W13: =IF(W$2="Secondary",+Metered!AB13*'Loss Adj'!$D12,0) -> 0 | X13: =IF(X$2="Secondary",+Metered!AC13*'Loss Adj'!$D12,0) -> 0 | Y13: =IF(Y$2="Secondary",+Metered!AD13*'Loss Adj'!$D12,0) -> 0 | Z13: =IF(Z$2="Secondary",+Metered!AE13*'Loss Adj'!$D12,0) -> 0 | AA13: =IF(AA$2="Secondary",+Metered!AF13*'Loss Adj'!$D12,0) -> 0 | AB13: =IF(AB$2="Secondary",+Metered!AG13*'Loss Adj'!$D12,0) -> 0 | AC13: =IF(AC$2="Secondary",+Metered!AH13*'Loss Adj'!$D12,0) -> 0 | AD13: =IF(AD$2="Secondary",+Metered!AI13*'Loss Adj'!$D12,0) -> 0 | AE13: =IF(AE$2="Secondary",+Metered!AJ13*'Loss Adj'!$D12,0) -> 0 | AF13: =IF(AF$2="Secondary",+Metered!AK13*'Loss Adj'!$D12,0) -> 0 | AG13: =IF(AG$2="Secondary",+Metered!AL13*'Loss Adj'!$D12,0) -> 0 | AH13: =IF(AH$2="Secondary",+Metered!AM13*'Loss Adj'!$D12,0) -> 0
A14: 4 | B14: 2022-04-01T11:00:00 | C14: 387006.1126 | D14: =IF(D$2="Secondary",Metered!I14*'Loss Adj'!$D13,0) -> 244788.1764 | E14: =IF(E$2="Secondary",+Metered!J14*'Loss Adj'!$D13,0) -> 83969.48062 | F14: =IF(F$2="Secondary",+Metered!K14*'Loss Adj'!$D13,0) -> 0 | G14: =IF(G$2="Secondary",+Metered!L14*'Loss Adj'!$D13,0) -> 0 | H14: =IF(H$2="Secondary",+Metered!M14*'Loss Adj'!$D13,0) -> 43469.89486 | I14: =IF(I$2="Secondary",+Metered!N14*'Loss Adj'!$D13,0) -> 0 | J14: =IF(J$2="Secondary",+Metered!O14*'Loss Adj'!$D13,0) -> 0 | K14: =IF(K$2="Secondary",+Metered!P14*'Loss Adj'!$D13,0) -> 0 | L14: =IF(L$2="Secondary",+Metered!Q14*'Loss Adj'!$D13,0) -> 12479.9286 | M14: =IF(M$2="Secondary",+Metered!R14*'Loss Adj'!$D13,0) -> 0 | N14: =IF(N$2="Secondary",+Metered!S14*'Loss Adj'!$D13,0) -> 2104.652032 | O14: =IF(O$2="Secondary",+Metered!T14*'Loss Adj'!$D13,0) -> 0 | P14: =IF(P$2="Secondary",+Metered!U14*'Loss Adj'!$D13,0) -> 0 | Q14: =IF(Q$2="Secondary",+Metered!V14*'Loss Adj'!$D13,0) -> 0 | R14: =IF(R$2="Secondary",+Metered!W14*'Loss Adj'!$D13,0) -> 193.9801628 | S14: =IF(S$2="Secondary",+Metered!X14*'Loss Adj'!$D13,0) -> 0 | T14: =IF(T$2="Secondary",+Metered!Y14*'Loss Adj'!$D13,0) -> 0 | U14: =IF(U$2="Secondary",+Metered!Z14*'Loss Adj'!$D13,0) -> 0 | V14: =IF(V$2="Secondary",+Metered!AA14*'Loss Adj'!$D13,0) -> 0 | W14: =IF(W$2="Secondary",+Metered!AB14*'Loss Adj'!$D13,0) -> 0 | X14: =IF(X$2="Secondary",+Metered!AC14*'Loss Adj'!$D13,0) -> 0 | Y14: =IF(Y$2="Secondary",+Metered!AD14*'Loss Adj'!$D13,0) -> 0 | Z14: =IF(Z$2="Secondary",+Metered!AE14*'Loss Adj'!$D13,0) -> 0 | AA14: =IF(AA$2="Secondary",+Metered!AF14*'Loss Adj'!$D13,0) -> 0 | AB14: =IF(AB$2="Secondary",+Metered!AG14*'Loss Adj'!$D13,0) -> 0 | AC14: =IF(AC$2="Secondary",+Metered!AH14*'Loss Adj'!$D13,0) -> 0 | AD14: =IF(AD$2="Secondary",+Metered!AI14*'Loss Adj'!$D13,0) -> 0 | AE14: =IF(AE$2="Secondary",+Metered!AJ14*'Loss Adj'!$D13,0) -> 0 | AF14: =IF(AF$2="Secondary",+Metered!AK14*'Loss Adj'!$D13,0) -> 0 | AG14: =IF(AG$2="Secondary",+Metered!AL14*'Loss Adj'!$D13,0) -> 0 | AH14: =IF(AH$2="Secondary",+Metered!AM14*'Loss Adj'!$D13,0) -> 0
A15: 4 | B15: 2022-04-01T12:00:00 | C15: 388343.0123 | D15: =IF(D$2="Secondary",Metered!I15*'Loss Adj'!$D14,0) -> 244804.5563 | E15: =IF(E$2="Secondary",+Metered!J15*'Loss Adj'!$D14,0) -> 87115.5226 | F15: =IF(F$2="Secondary",+Metered!K15*'Loss Adj'!$D14,0) -> 0 | G15: =IF(G$2="Secondary",+Metered!L15*'Loss Adj'!$D14,0) -> 0 | H15: =IF(H$2="Secondary",+Metered!M15*'Loss Adj'!$D14,0) -> 42062.80101 | I15: =IF(I$2="Secondary",+Metered!N15*'Loss Adj'!$D14,0) -> 0 | J15: =IF(J$2="Secondary",+Metered!O15*'Loss Adj'!$D14,0) -> 0 | K15: =IF(K$2="Secondary",+Metered!P15*'Loss Adj'!$D14,0) -> 0 | L15: =IF(L$2="Secondary",+Metered!Q15*'Loss Adj'!$D14,0) -> 12075.96096 | M15: =IF(M$2="Secondary",+Metered!R15*'Loss Adj'!$D14,0) -> 0 | N15: =IF(N$2="Secondary",+Metered!S15*'Loss Adj'!$D14,0) -> 2094.056456 | O15: =IF(O$2="Secondary",+Metered!T15*'Loss Adj'!$D14,0) -> 0 | P15: =IF(P$2="Secondary",+Metered!U15*'Loss Adj'!$D14,0) -> 0 | Q15: =IF(Q$2="Secondary",+Metered!V15*'Loss Adj'!$D14,0) -> 0 | R15: =IF(R$2="Secondary",+Metered!W15*'Loss Adj'!$D14,0) -> 190.1149396 | S15: =IF(S$2="Secondary",+Metered!X15*'Loss Adj'!$D14,0) -> 0 | T15: =IF(T$2="Secondary",+Metered!Y15*'Loss Adj'!$D14,0) -> 0 | U15: =IF(U$2="Secondary",+Metered!Z15*'Loss Adj'!$D14,0) -> 0 | V15: =IF(V$2="Secondary",+Metered!AA15*'Loss Adj'!$D14,0) -> 0 | W15: =IF(W$2="Secondary",+Metered!AB15*'Loss Adj'!$D14,0) -> 0 | X15: =IF(X$2="Secondary",+Metered!AC15*'Loss Adj'!$D14,0) -> 0 | Y15: =IF(Y$2="Secondary",+Metered!AD15*'Loss Adj'!$D14,0) -> 0 | Z15: =IF(Z$2="Secondary",+Metered!AE15*'Loss Adj'!$D14,0) -> 0 | AA15: =IF(AA$2="Secondary",+Metered!AF15*'Loss Adj'!$D14,0) -> 0 | AB15: =IF(AB$2="Secondary",+Metered!AG15*'Loss Adj'!$D14,0) -> 0 | AC15: =IF(AC$2="Secondary",+Metered!AH15*'Loss Adj'!$D14,0) -> 0 | AD15: =IF(AD$2="Secondary",+Metered!AI15*'Loss Adj'!$D14,0) -> 0 | AE15: =IF(AE$2="Secondary",+Metered!AJ15*'Loss Adj'!$D14,0) -> 0 | AF15: =IF(AF$2="Secondary",+Metered!AK15*'Loss Adj'!$D14,0) -> 0 | AG15: =IF(AG$2="Secondary",+Metered!AL15*'Loss Adj'!$D14,0) -> 0 | AH15: =IF(AH$2="Secondary",+Metered!AM15*'Loss Adj'!$D14,0) -> 0
